{"text_format":"1","workbook":"xlsx","n_sheets":35,"sheets":["MENU PRINCIPALE","ANAGRAFICA","INPUT BILANCI","FAST DASHBOARD OUTPUT","GESTIONE DASHBOARD","DASH PATR","DASH ECO","DASH FIN","GESTIONE REPORT","BILANCI RICLASSIFICATI","CRITERIO RICLASS. SP","INDICI E MARGINI","DATI GRAFICI","FAST DASHBOARD","COMMENTO INDICI","RENDICONTO FINANZIARIO","CALCOLI RENDICONTO SINTETICO","CALCOLI RENDICONTO SINTETIC n-1","RATING OUTPUT","RATING CALCOLI","Z-SCORE OUTPUT","Z-SCORE CALCOLI","EM SCORE","REPORT BEP","CALCOLI BEP GRAFICO","RELAZIONE AUTOMATICA","NOTE LIBERE","STAMPA FASCICOLO","FRONTESPIZIO","MAPPA","INFORMAZIONI","MARGINI","CE RICLASSIFICATO","ELENCO TENDINA","CALCOLI BEP DATI"],"not_rendered":{"charts":60,"images":15,"macros":1,"external_links":1,"defined_names":26,"comments":9,"pivot_tables":0},"unopened":[],"bounds":{"document_bytes":16777216,"sheet_cells":100000,"rows_first":2000,"rows_last":500,"rows_between":2000,"halvings":0,"cell_chars":16384,"cell_head_chars":4096},"cells_cut":0,"cells_raw":0,"read":"whole","date_system":"1900"}

{"sheet":"MENU PRINCIPALE","index":0,"n_rows":18,"n_cols":8,"rows_kept":18,"cut":false,"hidden":false,"merged":[[1,1,1,6],[17,1,17,2],[2,1,3,6],[6,1,6,10],[8,1,8,5],[8,6,8,10]]}
[]
[null,"CHECK UP AZIENDA PLUS"]
[null,"Analisi di bilancio e Report direzionali"]
[]
[null,"Versione 9.0 del 12/04/2023"]
[null,"Realizzato da Nicola Napolitano"]
[null,"AGGIORNATO CON LE INDICAZIONI DEL CODICE DELLA CRISI (D.Lgs. 14/2019)"]
[]
[null,"Informazioni & Credits",null,null,null,null,"Mappa delle funzioni"]
[]
[null,null,"ANAGRAFICA AZIENDA ",null,null,null,null,"REPORT  GRAFICI ANDAMENTALI"]
[]
[null,null,"INSERIMENTO BILANCI ",null,null,null,null,"REPORT  ANALISI QUANTITATIVA"]
[]
[null,null,"REPORT RAPIDO: EQUILIBRI GESTIONALI",null,null,null,null,"STAMPA FASCICOLO"]
[]
[]
[null,"   Ultimi arrivi"]

{"sheet":"ANAGRAFICA","index":1,"n_rows":28,"n_cols":4,"rows_kept":28,"cut":false,"hidden":false,"merged":[]}
[]
[]
[null,"ANAGRAFICA AZIENDA",null,"Indietro"]
[]
[null,"RAGIONE SOCIALE"]
[]
[null,"OGGETTO SOCIALE"]
[]
[null,"INDIRIZZO E CITTA'"]
[]
[null,"COD. FISCALE E PARTITA I.V.A."]
[]
[null,"ALTRI DATI (Reg. imprese, ecc.)"]
[]
[null,"BILANCI ANALIZZATI",null,"Nota"]
[null,"Anno n",null,"gg/mm/aaaa"]
[null,"Anno n-1",null,"gg/mm/aaaa"]
[null,"Anno n-2",null,"gg/mm/aaaa"]
[]
[null,"Per il calcolo dell'Indice di Altman (Z-score), indicare la tipologia dell'impresa:"]
[null,"Selezionare da elenco","Cliccare nella cella a sinistra e selezionare dall'elenco"]
[]
[null,"Per il calcolo del RATING QUANTITATIVO per la valutazione del merito creditizio, indicare il settore:"]
[null,"Selezionare da elenco","Cliccare nella cella a sinistra e selezionare dall'elenco"]
[]
[]
[]
[null,null,"Vai inizio pagina"]

{"sheet":"INPUT BILANCI","index":2,"n_rows":335,"n_cols":9,"rows_kept":335,"cut":false,"hidden":false,"merged":[[13,8,13,13],[3,2,6,2],[3,3,6,3],[3,4,6,4],[7,7,7,9],[8,7,8,9],[5,7,6,9],[3,7,3,8]]}
[]
[null,{"$f":"+IF(B3=0,\"Inserire la Ragione sociale da ANAGRAFICA AZIENDA\",\"\")","v":"Inserire la Ragione sociale da ANAGRAFICA AZIENDA"},null,null,null,null,null,"Indietro"]
[null,{"$f":"+ANAGRAFICA!C5","v":0}]
[null,null,{"$f":"+IF(C9=0,\"Inserire data da Anagrafica azienda\",\"\")","v":"Inserire data da Anagrafica azienda"},{"$f":"+IF(D9=0,\"Inserire data da Anagrafica azienda\",\"\")","v":"Inserire data da Anagrafica azienda"},{"$f":"+IF(E9=0,\"Inserire data da Anagrafica azienda\",\"\")","v":"Inserire data da Anagrafica azienda"},null,null,"VAI AL CONTO ECONOMICO"]
[null,null,null,null,null,null,"Attenzione"]
[null,null,null,null,null,null,"righe nascoste"]
[null,null,null,null,null,"NASCOSTO","NASCOSTO"]
[null,"STATO PATRIMONIALE  (art. 2424 c.c.)","Anno n ","Anno n - 1","Anno n - 2","SITUAZIONE AL","NOTE PER"]
[null,"ATTIVO",{"$f":"+ANAGRAFICA!C16","v":"00:00:00"},{"$f":"+ANAGRAFICA!C17","v":"00:00:00"},{"$f":"+ANAGRAFICA!C18","v":"00:00:00"},{"$f":"+#REF!","v":{"$error":"#REF!"}},"NUOVO SCHEMA","ATTENZIONE"]
[null,"A) Crediti verso i soci per versamenti ancora dovuti con separata indicazione della parte già richiamata",null,null,null,null,null,"Inserire gli importi in cifra intera senza decimali"]
[null,"Crediti verso soci per versamenti ancora dovuti",null,null,null,{"$f":"+#REF!","v":{"$error":"#REF!"}}]
[null,"Decimi già richiamati",null,null,null,{"$f":"+#REF!","v":{"$error":"#REF!"}}]
[null,"Totale Crediti v/soci",{"$f":"SUM(C11:C12)","v":0},{"$f":"SUM(D11:D12)","v":0},{"$f":"SUM(E11:E12)","v":0},{"$f":"+#REF!","v":{"$error":"#REF!"}}]
[null,"B) Immobilizzazioni con separata indicazione di quelle concesse in locazione finanziaria",null,null,null,null,null,null,"Utilizzare questi bottoni per cancellare tutti i dati inseriti.                              Oppure utilizzare il tasto CANC per cancellature parziali."]
[null,"I - Immobilizzazioni immateriali"]
[null,"1) costi di impianto e di ampliamento",null,null,null,{"$f":"+#REF!","v":{"$error":"#REF!"}}]
[null,"2) costi di sviluppo",null,null,null,{"$f":"+#REF!","v":{"$error":"#REF!"}},"MODIFICATO"]
[null,"3) diritti di brevetto ind.le e diritti di utilizzazione delle opere dell'ingegno",null,null,null,{"$f":"+#REF!","v":{"$error":"#REF!"}}]
[null,"4) concessioni, licenze, marchi e simili",null,null,null,{"$f":"+#REF!","v":{"$error":"#REF!"}}]
[null,"5) avviamento",null,null,null,{"$f":"+#REF!","v":{"$error":"#REF!"}}]
[null,"6) immobilizzazioni in corso e acconti",null,null,null,{"$f":"+#REF!","v":{"$error":"#REF!"}}]
[null,"7) altre",null,null,null,{"$f":"+#REF!","v":{"$error":"#REF!"}}]
[null,"Totale",{"$f":"SUM(C16:C22)","v":0},{"$f":"SUM(D16:D22)","v":0},{"$f":"SUM(E16:E22)","v":0},{"$f":"+#REF!","v":{"$error":"#REF!"}}]
[null,"II - Immobilizzazioni materiali"]
[null,"1) terreni e fabbricati",null,null,null,{"$f":"+#REF!","v":{"$error":"#REF!"}}]
[null,"2) Impianti e macchinari",null,null,null,{"$f":"+#REF!","v":{"$error":"#REF!"}}]
[null,"3) Attrezzature industriali e commerciali",null,null,null,{"$f":"+#REF!","v":{"$error":"#REF!"}}]
[null,"4) Altri beni",null,null,null,{"$f":"+#REF!","v":{"$error":"#REF!"}}]
[null,"5) Immobilizzazioni in corso e acconti",null,null,null,{"$f":"+#REF!","v":{"$error":"#REF!"}}]
[null,"Totale",{"$f":"SUM(C25:C29)","v":0},{"$f":"SUM(D25:D29)","v":0},{"$f":"SUM(E25:E29)","v":0},{"$f":"+#REF!","v":{"$error":"#REF!"}}]
[null,"III - Immobilizzazioni finanziarie con separata indicazione per ciascuna voce dei crediti, degli importi esigibili entro l'esercizio successivo"]
[null,"1) partecipazioni in:"]
[null,"a) imprese controllate",null,null,null,{"$f":"+#REF!","v":{"$error":"#REF!"}}]
[null,"b) imprese collegate",null,null,null,{"$f":"+#REF!","v":{"$error":"#REF!"}}]
[null,"c) imprese controllanti",null,null,null,{"$f":"+#REF!","v":{"$error":"#REF!"}}]
[null,"d) imprese sottoposte al controllo delle controllanti",null,null,null,{"$f":"+#REF!","v":{"$error":"#REF!"}},"NUOVA VOCE AGGIUNTA"]
[null,"d bis) altre imprese",null,null,null,{"$f":"+#REF!","v":{"$error":"#REF!"}},"MODIFICATO IL NUMERO"]
[null,"2) crediti:"]
[null,"a) verso imprese controllate"]
[null,"Entro l'esercizio successivo",null,null,null,{"$f":"+#REF!","v":{"$error":"#REF!"}}]
[null,"Oltre l'esercizio successivo",null,null,null,{"$f":"+#REF!","v":{"$error":"#REF!"}}]
[null,"b) verso imprese collegate"]
[null,"Entro l'esercizio successivo",null,null,null,{"$f":"+#REF!","v":{"$error":"#REF!"}}]
[null,"Oltre l'esercizio successivo",null,null,null,{"$f":"+#REF!","v":{"$error":"#REF!"}}]
[null,"c) verso controllanti"]
[null,"Entro l'esercizio successivo",null,null,null,{"$f":"+#REF!","v":{"$error":"#REF!"}}]
[null,"Oltre l'esercizio successivo",null,null,null,{"$f":"+#REF!","v":{"$error":"#REF!"}}]
[null,"d) verso imprese sottoposte al controllo delle controllanti",null,null,null,null,"NUOVA VOCE AGGIUNTA"]
[null,"Entro l'esercizio successivo",null,null,null,{"$f":"+#REF!","v":{"$error":"#REF!"}},"NUOVA VOCE AGGIUNTA"]
[null,"Oltre l'esercizio successivo",null,null,null,{"$f":"+#REF!","v":{"$error":"#REF!"}},"NUOVA VOCE AGGIUNTA"]
[null,"d bis) verso altri",null,null,null,null,"MODIFICATO IL NUMERO"]
[null,"Entro l'esercizio successivo",null,null,null,{"$f":"+#REF!","v":{"$error":"#REF!"}}]
[null,"Oltre l'esercizio successivo",null,null,null,{"$f":"+#REF!","v":{"$error":"#REF!"}}]
[null,"3) altri titoli",null,null,null,{"$f":"+#REF!","v":{"$error":"#REF!"}}]
[null,"4) strumenti derivati finanziari attivi",null,null,null,{"$f":"+#REF!","v":{"$error":"#REF!"}},"MODIFICATO"]
[null,"Totale",{"$f":"SUM(C32:C55)","v":0},{"$f":"SUM(D32:D55)","v":0},{"$f":"SUM(E32:E55)","v":0},{"$f":"+#REF!","v":{"$error":"#REF!"}}]
[null,"Totale Immobilizzazioni",{"$f":"+C23+C30+C56","v":0},{"$f":"+D23+D30+D56","v":0},{"$f":"+E23+E30+E56","v":0},{"$f":"+#REF!","v":{"$error":"#REF!"}}]
[null,"C) ATTIVO CIRCOLANTE"]
[null,"I - Rimanenze"]
[null,"1) materie prime sussidiarie e di consumo",null,null,null,{"$f":"+#REF!","v":{"$error":"#REF!"}}]
[null,"2) prodotti in corso di lavorazione e semilavorati",null,null,null,{"$f":"+#REF!","v":{"$error":"#REF!"}}]
[null,"3) lavori in corso su ordinazioni",null,null,null,{"$f":"+#REF!","v":{"$error":"#REF!"}}]
[null,"4) prodotti finiti e merci",null,null,null,{"$f":"+#REF!","v":{"$error":"#REF!"}}]
[null,"5) acconti",null,null,null,{"$f":"+#REF!","v":{"$error":"#REF!"}}]
[null,"Totale",{"$f":"SUM(C60:C64)","v":0},{"$f":"SUM(D60:D64)","v":0},{"$f":"SUM(E60:E64)","v":0},{"$f":"+#REF!","v":{"$error":"#REF!"}}]
[null,"II - Crediti, con separata indicazione, per ciascuna voce, degli importi esigibili oltre l'esercizio successivo:"]
[null,"1) verso clienti"]
[null,"Entro l'esercizio successivo",null,null,null,{"$f":"+#REF!","v":{"$error":"#REF!"}}]
[null,"Oltre l'esercizio successivo",null,null,null,{"$f":"+#REF!","v":{"$error":"#REF!"}}]
[null,"2) verso imprese controllate"]
[null,"Entro l'esercizio successivo",null,null,null,{"$f":"+#REF!","v":{"$error":"#REF!"}}]
[null,"Oltre l'esercizio successivo",null,null,null,{"$f":"+#REF!","v":{"$error":"#REF!"}}]
[null,"3) verso imprese collegate"]
[null,"Entro l'esercizio successivo",null,null,null,{"$f":"+#REF!","v":{"$error":"#REF!"}}]
[null,"Oltre l'esercizio successivo",null,null,null,{"$f":"+#REF!","v":{"$error":"#REF!"}}]
[null,"4) verso controllanti"]
[null,"Entro l'esercizio successivo",null,null,null,{"$f":"+#REF!","v":{"$error":"#REF!"}}]
[null,"Oltre l'esercizio successivo",null,null,null,{"$f":"+#REF!","v":{"$error":"#REF!"}}]
[null,"5) verso imprese sottoposte al controllo delle controllanti",null,null,null,null,"NUOVA VOCE AGGIUNTA"]
[null,"Entro l'esercizio successivo",null,null,null,{"$f":"+#REF!","v":{"$error":"#REF!"}},"NUOVA VOCE AGGIUNTA"]
[null,"Oltre l'esercizio successivo",null,null,null,{"$f":"+#REF!","v":{"$error":"#REF!"}},"NUOVA VOCE AGGIUNTA"]
[null,"5 bis) crediti tributari",null,null,null,null,"MODIFICATO IL NUMERO"]
[null,"Entro l'esercizio successivo",null,null,null,{"$f":"+#REF!","v":{"$error":"#REF!"}},"MODIFICATO IL NUMERO"]
[null,"Oltre l'esercizio successivo",null,null,null,{"$f":"+#REF!","v":{"$error":"#REF!"}},"MODIFICATO IL NUMERO"]
[null,"5 ter) imposte anticipate",null,null,null,null,"MODIFICATO IL NUMERO"]
[null,"Entro l'esercizio successivo",null,null,null,{"$f":"+#REF!","v":{"$error":"#REF!"}},"MODIFICATO IL NUMERO"]
[null,"Oltre l'esercizio successivo",null,null,null,{"$f":"+#REF!","v":{"$error":"#REF!"}},"MODIFICATO IL NUMERO"]
[null,"5 quater) verso altri",null,null,null,null,"MODIFICATO IL NUMERO"]
[null,"Entro l'esercizio successivo",null,null,null,{"$f":"+#REF!","v":{"$error":"#REF!"}},"MODIFICATO IL NUMERO"]
[null,"Oltre l'esercizio successivo",null,null,null,{"$f":"+#REF!","v":{"$error":"#REF!"}},"MODIFICATO IL NUMERO"]
[null,"Totale",{"$f":"SUM(C68:C90)","v":0},{"$f":"SUM(D68:D90)","v":0},{"$f":"SUM(E68:E90)","v":0},{"$f":"+#REF!","v":{"$error":"#REF!"}}]
[null,"III - Attività finanziarie che non costituiscono immobilizzazioni"]
[null,"1) partecipazioni in imprese controllate",null,null,null,{"$f":"+#REF!","v":{"$error":"#REF!"}}]
[null,"2) partecipazioni in imprese collegate",null,null,null,{"$f":"+#REF!","v":{"$error":"#REF!"}}]
[null,"3) partecipazioni in imprese controllanti",null,null,null,{"$f":"+#REF!","v":{"$error":"#REF!"}}]
[null,"3 bis) partecipazione in imprese sottoposte al controllo delle controllanti",null,null,null,{"$f":"+#REF!","v":{"$error":"#REF!"}},"NUOVA VOCE AGGIUNTA"]
[null,"4) altre partecipazioni",null,null,null,{"$f":"+#REF!","v":{"$error":"#REF!"}}]
[null,"5) strumenti finanziari derivati",null,null,null,{"$f":"+#REF!","v":{"$error":"#REF!"}},"MODIFICATO"]
[null,"6) altri titoli",null,null,null,{"$f":"+#REF!","v":{"$error":"#REF!"}}]
[null,"Totale",{"$f":"SUM(C93:C99)","v":0},{"$f":"SUM(D93:D99)","v":0},{"$f":"SUM(E93:E99)","v":0},{"$f":"+#REF!","v":{"$error":"#REF!"}}]
[null,"IV - Disponibilità liquide"]
[null,"1) depositi bancari e postali",null,null,null,{"$f":"+#REF!","v":{"$error":"#REF!"}}]
[null,"2) assegni",null,null,null,{"$f":"+#REF!","v":{"$error":"#REF!"}}]
[null,"3) denaro e valori in cassa",null,null,null,{"$f":"+#REF!","v":{"$error":"#REF!"}}]
[null,"Totale",{"$f":"SUM(C102:C104)","v":0},{"$f":"SUM(D102:D104)","v":0},{"$f":"SUM(E102:E104)","v":0},{"$f":"+#REF!","v":{"$error":"#REF!"}}]
[null,"Totale Attivo Circolante",{"$f":"+C65+C91+C100+C105","v":0},{"$f":"+D65+D91+D100+D105","v":0},{"$f":"+E65+E91+E100+E105","v":0},{"$f":"+#REF!","v":{"$error":"#REF!"}}]
[null,"D) Ratei e risconti",{"$f":"+C108+C109","v":0},{"$f":"+D108+D109","v":0},0,{"$f":"+#REF!","v":{"$error":"#REF!"}},"MODIFICATA DESCRIZIONE"]
[null,"di natura finanziaria",null,null,null,null,"ELIMINATO"]
[null,"di natura commerciale",null,null,null,null,"ELIMINATO"]
[null,"Disaggio su prestiti",null,null,null,null,"ELIMINATO"]
[null,"Totale",null,null,null,null,"ELIMINATO"]
[null,"TOTALE ATTIVO",{"$f":"C13+C57+C106+C107","v":0},{"$f":"D13+D57+D106+D107","v":0},{"$f":"E13+E57+E106+E107","v":0},{"$f":"+#REF!","v":{"$error":"#REF!"}},"TOTALI CONTROLLATI OK"]
[]
[null,"PASSIVO",{"$f":"+C8","v":"Anno n "},"Anno n - 1","Anno n - 2",{"$f":"+F8","v":"SITUAZIONE AL"}]
[null,null,{"$f":"+C9","v":"00:00:00"},{"$f":"+D9","v":"00:00:00"},{"$f":"+E9","v":"00:00:00"},{"$f":"+F9","v":{"$error":"#REF!"}}]
[null,"A) Patrimonio netto"]
[null,"I - Capitale sociale",null,null,null,{"$f":"+#REF!","v":{"$error":"#REF!"}}]
[null,"II - Riserva sovrapprezzo azioni",null,null,null,{"$f":"+#REF!","v":{"$error":"#REF!"}}]
[null,"III - Riserva di rivalutazione",null,null,null,{"$f":"+#REF!","v":{"$error":"#REF!"}}]
[null,"IV - Riserva legale",null,null,null,{"$f":"+#REF!","v":{"$error":"#REF!"}}]
[null,"V - Riserve statutarie",null,null,null,{"$f":"+#REF!","v":{"$error":"#REF!"}}]
[null,"VI - Altre riserve, distintamente indicate",null,null,null,{"$f":"+#REF!","v":{"$error":"#REF!"}},"MODIFICATO (INVERTTITO LA POSIZIONE)"]
[null,"VII - Riserva per operazioni di copertura dei flussi finanziari attesi",null,null,null,{"$f":"+#REF!","v":{"$error":"#REF!"}},"nuova voce che sostituisce la precedente altre riserve"]
[null,"VIII - Utili (perdite) portati a nuovo",null,null,null,{"$f":"+#REF!","v":{"$error":"#REF!"}}]
[null,"IX - Utili (perdite) dell'esercizio",{"$f":"SUM(C126:C127)","v":0},{"$f":"SUM(D126:D127)","v":0},{"$f":"SUM(E126:E127)","v":0},{"$f":"+#REF!","v":{"$error":"#REF!"}},null,"Nota su \"IX - Utili (perdite) dell'esercizio\""]
[null,"Parte non distribuita o prelevata (utile o perdita)",null,null,null,{"$f":"+#REF!","v":{"$error":"#REF!"}}]
[null,"Parte di utile distribuita o prelevata",null,null,null,{"$f":"+#REF!","v":{"$error":"#REF!"}}]
[null,"X - Riserva negativa per azioni proprie in portafoglio",null,null,null,{"$f":"+#REF!","v":{"$error":"#REF!"}},"NUOVA VOCE AGGIUNTA"]
[null,"Totale A) Patrimonio Netto",{"$f":"+C117+C118+C119+C120+C121+C122+C123+C124+C125-C128","v":0},{"$f":"+D117+D118+D119+D120+D121+D122+D123+D124+D125-D128","v":0},{"$f":"+E117+E118+E119+E120+E121+E122+E123+E124+E125-E128","v":0},{"$f":"+#REF!","v":{"$error":"#REF!"}}]
[null,"B) Fondi per rischi e oneri"]
[null,"1) per trattamento di quiescenza e obblighi simili"]
[null,"Entro l'esercizio successivo",null,null,null,{"$f":"+#REF!","v":{"$error":"#REF!"}}]
[null,"Oltre l'esercizio successivo",null,null,null,{"$f":"+#REF!","v":{"$error":"#REF!"}}]
[null,"2) per imposte, anche differite"]
[null,"Entro l'esercizio successivo",null,null,null,{"$f":"+#REF!","v":{"$error":"#REF!"}}]
[null,"Oltre l'esercizio successivo",null,null,null,{"$f":"+#REF!","v":{"$error":"#REF!"}}]
[null,"3) strumenti finanziari derivati passivi",null,null,null,null,"NUOVA VOCE AGGIUNTA"]
[null,"Entro l'esercizio successivo",null,null,null,{"$f":"+#REF!","v":{"$error":"#REF!"}},"NUOVA VOCE AGGIUNTA"]
[null,"Oltre l'esercizio successivo",null,null,null,{"$f":"+#REF!","v":{"$error":"#REF!"}},"NUOVA VOCE AGGIUNTA"]
[null,"4) altri",null,null,null,null,"MODIFICATO NUMERO"]
[null,"Entro l'esercizio successivo",null,null,null,{"$f":"+#REF!","v":{"$error":"#REF!"}},"MODIFICATO NUMERO"]
[null,"Oltre l'esercizio successivo",null,null,null,{"$f":"+#REF!","v":{"$error":"#REF!"}},"MODIFICATO NUMERO"]
[null,"Totale B)",{"$f":"SUM(C131:C142)","v":0},{"$f":"SUM(D131:D142)","v":0},{"$f":"SUM(E131:E142)","v":0},{"$f":"+#REF!","v":{"$error":"#REF!"}}]
[null,"C) Trattamento di fine rapporto di lavoro subordinato"]
[null,"Entro l'esercizio successivo",null,null,null,{"$f":"+#REF!","v":{"$error":"#REF!"}}]
[null,"Oltre l'esercizio successivo",null,null,null,{"$f":"+#REF!","v":{"$error":"#REF!"}}]
[null,"Totale C)",{"$f":"SUM(C145:C146)","v":0},{"$f":"SUM(D145:D146)","v":0},{"$f":"SUM(E145:E146)","v":0},{"$f":"+#REF!","v":{"$error":"#REF!"}}]
[null,"D) Debiti con separata indicazione, per ciascuna voce, degli importi esigibili oltre l'esercizio successivo"]
[null,"1) obbligazioni"]
[null,"Entro l'esercizio successivo",null,null,null,{"$f":"+#REF!","v":{"$error":"#REF!"}}]
[null,"Oltre l'esercizio successivo",null,null,null,{"$f":"+#REF!","v":{"$error":"#REF!"}}]
[null,"2) obbligazioni convertibili"]
[null,"Entro l'esercizio successivo",null,null,null,{"$f":"+#REF!","v":{"$error":"#REF!"}}]
[null,"Oltre l'esercizio successivo",null,null,null,{"$f":"+#REF!","v":{"$error":"#REF!"}}]
[null,"3) debiti verso soci per finanziamenti"]
[null,"Entro l'esercizio successivo",null,null,null,{"$f":"+#REF!","v":{"$error":"#REF!"}}]
[null,"Oltre l'esercizio successivo",null,null,null,{"$f":"+#REF!","v":{"$error":"#REF!"}}]
[null,"4) debiti verso banche"]
[null,"Entro l'esercizio successivo",null,null,null,{"$f":"+#REF!","v":{"$error":"#REF!"}}]
[null,"Oltre l'esercizio successivo",null,null,null,{"$f":"+#REF!","v":{"$error":"#REF!"}}]
[null,"5) debiti verso altri finanziatori"]
[null,"Entro l'esercizio successivo",null,null,null,{"$f":"+#REF!","v":{"$error":"#REF!"}}]
[null,"Oltre l'esercizio successivo",null,null,null,{"$f":"+#REF!","v":{"$error":"#REF!"}}]
[null,"6) acconti"]
[null,"Entro l'esercizio successivo",null,null,null,{"$f":"+#REF!","v":{"$error":"#REF!"}}]
[null,"Oltre l'esercizio successivo",null,null,null,{"$f":"+#REF!","v":{"$error":"#REF!"}}]
[null,"7) debiti verso fornitori"]
[null,"Entro l'esercizio successivo",null,null,null,{"$f":"+#REF!","v":{"$error":"#REF!"}}]
[null,"Oltre l'esercizio successivo",null,null,null,{"$f":"+#REF!","v":{"$error":"#REF!"}}]
[null,"8) debiti rappresentati da titoli di credito"]
[null,"Entro l'esercizio successivo",null,null,null,{"$f":"+#REF!","v":{"$error":"#REF!"}}]
[null,"Oltre l'esercizio successivo",null,null,null,{"$f":"+#REF!","v":{"$error":"#REF!"}}]
[null,"9) debiti verso imprese controllate"]
[null,"Entro l'esercizio successivo",null,null,null,{"$f":"+#REF!","v":{"$error":"#REF!"}}]
[null,"Oltre l'esercizio successivo",null,null,null,{"$f":"+#REF!","v":{"$error":"#REF!"}}]
[null,"10) debiti verso imprese collegate"]
[null,"Entro l'esercizio successivo",null,null,null,{"$f":"+#REF!","v":{"$error":"#REF!"}}]
[null,"Oltre l'esercizio successivo",null,null,null,{"$f":"+#REF!","v":{"$error":"#REF!"}}]
[null,"11) debiti verso controllanti"]
[null,"Entro l'esercizio successivo",null,null,null,{"$f":"+#REF!","v":{"$error":"#REF!"}}]
[null,"Oltre l'esercizio successivo",null,null,null,{"$f":"+#REF!","v":{"$error":"#REF!"}}]
[null,"11 bis) debiti verso imprese sottoposte al controllo delle controllanti",null,null,null,null,"NUOVA VOCE AGGIUNTA"]
[null,"Entro l'esercizio successivo",null,null,null,{"$f":"+#REF!","v":{"$error":"#REF!"}},"NUOVA VOCE AGGIUNTA"]
[null,"Oltre l'esercizio successivo",null,null,null,{"$f":"+#REF!","v":{"$error":"#REF!"}},"NUOVA VOCE AGGIUNTA"]
[null,"12) debiti tributari"]
[null,"Entro l'esercizio successivo",null,null,null,{"$f":"+#REF!","v":{"$error":"#REF!"}}]
[null,"Oltre l'esercizio successivo",null,null,null,{"$f":"+#REF!","v":{"$error":"#REF!"}}]
[null,"13) debiti verso istituti di previdenza e sicurezza sociale"]
[null,"Entro l'esercizio successivo",null,null,null,{"$f":"+#REF!","v":{"$error":"#REF!"}}]
[null,"Oltre l'esercizio successivo",null,null,null,{"$f":"+#REF!","v":{"$error":"#REF!"}}]
[null,"14) altri debiti"]
[null,"Entro l'esercizio successivo",null,null,null,{"$f":"+#REF!","v":{"$error":"#REF!"}}]
[null,"Oltre l'esercizio successivo",null,null,null,{"$f":"+#REF!","v":{"$error":"#REF!"}}]
[null,"Totale   D)",{"$f":"SUM(C150:C193)","v":0},{"$f":"SUM(D150:D193)","v":0},{"$f":"SUM(E150:E193)","v":0},{"$f":"+#REF!","v":{"$error":"#REF!"}}]
[null,"E) Ratei e Risconti",{"$f":"+C196+C197","v":0},{"$f":"+D196+D197","v":0},0,{"$f":"+#REF!","v":{"$error":"#REF!"}},"MODIFICATA DESCRIZIONE"]
[null,"di natura finanziaria",null,null,null,null,"ELIMINATO"]
[null,"di natura commerciale",null,null,null,null,"ELIMINATO"]
[null,"Aggio su prestiti",null,null,null,null,"ELIMINATO"]
[null,"Totale   E)",null,null,null,null,"ELIMINATO"]
[null,"TOTALE PASSIVO",{"$f":"+C129+C143+C147+C194+C195","v":0},{"$f":"+D129+D143+D147+D194+D195","v":0},{"$f":"+E129+E143+E147+E194+E195","v":0},{"$f":"+#REF!","v":{"$error":"#REF!"}},"TOTALI CONTROLLATI OK"]
[null,"Quadratura Attivo - Passivo",{"$f":"+C112-C200","v":0},{"$f":"+D112-D200","v":0},{"$f":"+E112-E200","v":0},{"$f":"+#REF!","v":{"$error":"#REF!"}}]
[null,"Quadratura Attivo - Passivo",{"$f":"+IF(C201=0,\"Ok\",\"Errore\")","v":"Ok"},{"$f":"+IF(D201=0,\"Ok\",\"Errore\")","v":"Ok"},"Ok"]
[null,null,{"$f":"+IF(C201=0,\"\",+C201)","v":""},{"$f":"+IF(D201=0,\"\",+D201)","v":""},{"$f":"+IF(E201=0,\"\",+E201)","v":""}]
[]
[null,"CONTO ECONOMICO (art. 2425 c.c.)",null,null,null,"INFRANNUALE"]
[null,null,"Anno n","Anno n - 1","Anno n - 2","SITUAZIONE AL",null,"VAI ALLO STATO PATRIMONIALE"]
[null,null,{"$f":"+C115","v":"00:00:00"},{"$f":"+D115","v":"00:00:00"},{"$f":"+E115","v":"00:00:00"},{"$f":"+F9","v":{"$error":"#REF!"}}]
[null,"A) Valore della produzione"]
[null,"1) ricavi delle vendite e delle prestazioni",null,null,null,{"$f":"+#REF!","v":{"$error":"#REF!"}}]
[null,"2) variazione delle rimanenze di prodotti in corso di lavorazione, semilavorati e finiti (+/-)",null,null,null,{"$f":"+#REF!","v":{"$error":"#REF!"}}]
[null,"3) variazione dei lavori in corso su ordinazione (+/-)",null,null,null,{"$f":"+#REF!","v":{"$error":"#REF!"}}]
[null,"4) incrementi delle immobilizzazioni per lavori interni",null,null,null,{"$f":"+#REF!","v":{"$error":"#REF!"}}]
[null,"5) altri ricavi e proventi, con separata indicazione dei contributi in conto esercizio"]
[null,"Contributi in conto esercizio",null,null,null,{"$f":"+#REF!","v":{"$error":"#REF!"}}]
[null,"Altri",{"$f":"SUM(C216:C217)","v":0},{"$f":"SUM(D216:D217)","v":0},{"$f":"SUM(E216:E217)","v":0},{"$f":"+#REF!","v":{"$error":"#REF!"}}]
[null,"straordinari",null,null,null,{"$f":"+#REF!","v":{"$error":"#REF!"}},"AGGIUNTA SOLO PER RICLASSIFICAZIONE"]
[null,"ordinari",null,null,null,{"$f":"+#REF!","v":{"$error":"#REF!"}},"AGGIUNTA SOLO PER RICLASSIFICAZIONE"]
[null,"Totale   A)",{"$f":"+C209+C210+C211+C212+C214+C216+C217","v":0},{"$f":"+D209+D210+D211+D212+D214+D216+D217","v":0},{"$f":"+E209+E210+E211+E212+E214+E216+E217","v":0},{"$f":"+#REF!","v":{"$error":"#REF!"}}]
[null,"B) Costi della produzione"]
[null,"6) per materie prime, sussidiari, di consumo e merci",null,null,null,{"$f":"+#REF!","v":{"$error":"#REF!"}}]
[null,"7) per servizi",null,null,null,{"$f":"+#REF!","v":{"$error":"#REF!"}}]
[null,"8) per godimento di beni di terzi",null,null,null,{"$f":"+#REF!","v":{"$error":"#REF!"}}]
[null,"9) per il personale"]
[null,"a) salari e stipendi",null,null,null,{"$f":"+#REF!","v":{"$error":"#REF!"}}]
[null,"b) oneri sociali",null,null,null,{"$f":"+#REF!","v":{"$error":"#REF!"}}]
[null,"c) trattamento di fine rapporto",null,null,null,{"$f":"+#REF!","v":{"$error":"#REF!"}}]
[null,"d) trattamento di quiescenza e simili",null,null,null,{"$f":"+#REF!","v":{"$error":"#REF!"}}]
[null,"e) altri costi",null,null,null,{"$f":"+#REF!","v":{"$error":"#REF!"}}]
[null,"10) ammortamenti e svalutazioni"]
[null,"a) ammortam. delle immobilizzazioni immateriali",null,null,null,{"$f":"+#REF!","v":{"$error":"#REF!"}}]
[null,"b) ammort. delle immobilizzazioni materiali",null,null,null,{"$f":"+#REF!","v":{"$error":"#REF!"}}]
[null,"c) altre svalutazioni delle immobilizzazioni",null,null,null,{"$f":"+#REF!","v":{"$error":"#REF!"}}]
[null,"d) svalutazione dei crediti compresi nell'attivo circolante e delle disponibilità liquide",null,null,null,{"$f":"+#REF!","v":{"$error":"#REF!"}}]
[null,"11) variazioni delle rimanenze di materie prime, sussidiarie, di consumo e merci (+/-)",null,null,null,{"$f":"+#REF!","v":{"$error":"#REF!"}}]
[null,"12) accantonamenti per rischi",null,null,null,{"$f":"+#REF!","v":{"$error":"#REF!"}}]
[null,"13) altri accantonamenti",null,null,null,{"$f":"+#REF!","v":{"$error":"#REF!"}}]
[null,"14) oneri diversi di gestione",{"$f":"+C238+C240+C239","v":0},{"$f":"+D238+D240+D239","v":0},0,{"$f":"+#REF!","v":{"$error":"#REF!"}}]
[null,"straordinari",null,null,null,{"$f":"+#REF!","v":{"$error":"#REF!"}},"AGGIUNTA SOLO PER RICLASSIFICAZIONE"]
[null,"ordinari (gestione caratteristica)",null,null,null,null,"AGGIUNTA SOLO PER RICLASSIFICAZIONE"]
[null,"ordinari (gestione accessoria)",null,null,null,{"$f":"+#REF!","v":{"$error":"#REF!"}},"AGGIUNTA SOLO PER RICLASSIFICAZIONE"]
[null,"Totale   B)",{"$f":"+C220+C221+C222+C224+C225+C226+C227+C228+C230+C231+C232+C233+C234+C235+C236+C237","v":0},{"$f":"+D220+D221+D222+D224+D225+D226+D227+D228+D230+D231+D232+D233+D234+D235+D236+D237","v":0},0,{"$f":"+#REF!","v":{"$error":"#REF!"}}]
[null,"Differenza tra valore e costi della produzione (A - B)",{"$f":"+C218-C241","v":0},{"$f":"+D218-D241","v":0},{"$f":"+E218-E241","v":0},{"$f":"+#REF!","v":{"$error":"#REF!"}}]
[]
[null,"C) Proventi e oneri finanziari"]
[null,"15) proventi da partecipazioni"]
[null,"In imprese controllate",null,null,null,{"$f":"+#REF!","v":{"$error":"#REF!"}}]
[null,"In imprese collegate",null,null,null,{"$f":"+#REF!","v":{"$error":"#REF!"}}]
[null,"In imprese controllanti",null,null,null,{"$f":"+#REF!","v":{"$error":"#REF!"}},"NUOVA VOCE AGGIUNTA"]
[null,"In imprese sottoposte al controllo delle controllanti",null,null,null,{"$f":"+#REF!","v":{"$error":"#REF!"}},"NUOVA VOCE AGGIUNTA"]
[null,"16) altri proventi finanziari"]
[null,"a) da crediti iscritti nelle immobilizzazioni:"]
[null,"In imprese controllate",null,null,null,{"$f":"+#REF!","v":{"$error":"#REF!"}}]
[null,"In imprese collegate",null,null,null,{"$f":"+#REF!","v":{"$error":"#REF!"}}]
[null,"In imprese controllanti",null,null,null,{"$f":"+#REF!","v":{"$error":"#REF!"}}]
[null,"In imprese sottoposte al controllo delle controllanti",null,null,null,{"$f":"+#REF!","v":{"$error":"#REF!"}},"NUOVA VOCE AGGIUNTA"]
[null,"b) da titoli iscritti nelle immobilizzazioni che non costituiscono partecipazioni",null,null,null,{"$f":"+#REF!","v":{"$error":"#REF!"}}]
[null,"c) da titoli iscritti nell'attivo circolante che non costituiscono partecipazioni",null,null,null,{"$f":"+#REF!","v":{"$error":"#REF!"}}]
[null,"d) proventi diversi dai precedenti"]
[null,"In imprese controllate e collegate",null,null,null,{"$f":"+#REF!","v":{"$error":"#REF!"}}]
[null,"In imprese controllanti",null,null,null,{"$f":"+#REF!","v":{"$error":"#REF!"}}]
[null,"In imprese sottoposte al controllo delle controllanti",null,null,null,{"$f":"+#REF!","v":{"$error":"#REF!"}}]
[null,"Da altri proventi vari",null,null,null,{"$f":"+#REF!","v":{"$error":"#REF!"}},"MODIFICATA "]
[null,"17) interessi e altri oneri finanziari"]
[null,"In imprese controllate",null,null,null,{"$f":"+#REF!","v":{"$error":"#REF!"}}]
[null,"In imprese collegate",null,null,null,{"$f":"+#REF!","v":{"$error":"#REF!"}}]
[null,"In imprese controllanti",null,null,null,{"$f":"+#REF!","v":{"$error":"#REF!"}}]
[null,"Verso altri",null,null,null,{"$f":"+#REF!","v":{"$error":"#REF!"}}]
[null,"17bis) utili e perdite su cambi (+/-)",null,null,null,{"$f":"+#REF!","v":{"$error":"#REF!"}}]
[null,"Totale C) (15 + 16 - 17 +/- 17bis)",{"$f":"+C246+C247+C248+C249+C252+C253+C254+C255+C256+C257+C259+C260+C261+C262-C264-C265-C266-C267+C268","v":0},{"$f":"+D246+D247+D248+D249+D252+D253+D254+D255+D256+D257+D259+D260+D261+D262-D264-D265-D266-D267+D268","v":0},{"$f":"+E246+E247+E248+E249+E252+E253+E254+E255+E256+E257+E259+E260+E261+E262-E264-E265-E266-E267+E268","v":0},{"$f":"+#REF!","v":{"$error":"#REF!"}}]
[null,"D) Rettifiche di valore di attività e passività finanziarie",null,null,null,null,"MODIFICATA DESCRIZIONE"]
[null,"18) rivalutazioni"]
[null,"a) di partecipazioni",null,null,null,{"$f":"+#REF!","v":{"$error":"#REF!"}}]
[null,"b) di immobilizzazioni finanziarie che non costituiscono partecipazioni",null,null,null,{"$f":"+#REF!","v":{"$error":"#REF!"}}]
[null,"c) di titoli iscritti nell'attivo circolante che non costituiscono partecipazioni",null,null,null,{"$f":"+#REF!","v":{"$error":"#REF!"}}]
[null,"d) di strumenti finanziari derivati",null,null,null,{"$f":"+#REF!","v":{"$error":"#REF!"}},"NUOVA VOCE AGGIUNTA"]
[null,"19) svalutazioni"]
[null,"a) di partecipazioni",null,null,null,{"$f":"+#REF!","v":{"$error":"#REF!"}}]
[null,"b) di immobilizzazioni finanziarie che non costituiscono partecipazioni",null,null,null,{"$f":"+#REF!","v":{"$error":"#REF!"}}]
[null,"c) di titoli iscritti nell'attivo circolante che non costituiscono partecipazioni",null,null,null,{"$f":"+#REF!","v":{"$error":"#REF!"}}]
[null,"d) di strumenti finanziari derivati",null,null,null,{"$f":"+#REF!","v":{"$error":"#REF!"}},"NUOVA VOCE AGGIUNTA"]
[null,"Totale D)  (18 - 19)",{"$f":"+C272+C273+C274+C275-C277-C278-C279-C280","v":0},{"$f":"+D272+D273+D274+D275-D277-D278-D279-D280","v":0},{"$f":"+E272+E273+E274+E275-E277-E278-E279-E280","v":0},{"$f":"+#REF!","v":{"$error":"#REF!"}}]
[null,"E) Proventi e oneri straordinari",null,null,null,null,"ELIMINATO"]
[null,"20) proventi",null,null,null,null,"ELIMINATO"]
[null,"Proventi straordinari",null,null,null,null,"ELIMINATO"]
[null,"Plusvalenze da alienazioni non iscrivibili al n. 5",null,null,null,null,"ELIMINATO"]
[null,"21) oneri",null,null,null,null,"ELIMINATO"]
[null,"Oneri straordinari",null,null,null,null,"ELIMINATO"]
[null,"Minusvalenze da alienazioni non iscrivibili al n. 14",null,null,null,null,"ELIMINATO"]
[null,"Imposte relative ad esercizi precedenti",null,null,null,null,"ELIMINATO"]
[null,"Totale E) delle partite straordinarie (20 - 21)",null,null,null,null,"ELIMINATO"]
[null,"Risultato prima delle imposte (A-B+-C+-D)",{"$f":"+C242+C269+C281","v":0},{"$f":"+D242+D269+D281","v":0},{"$f":"+E242+E269+E281","v":0},{"$f":"+#REF!","v":{"$error":"#REF!"}}]
[null,"20) imposte sul reddito dell'esercizio, correnti differite e anticipate",null,null,null,{"$f":"+#REF!","v":{"$error":"#REF!"}}]
[null,"21) utile (perdita) dell'esercizio",{"$f":"+C291-C292","v":0},{"$f":"+D291-D292","v":0},{"$f":"+E291-E292","v":0},{"$f":"+#REF!","v":{"$error":"#REF!"}}]
[null,"Quadratura con utile/perdita SP",{"$f":"+(C126+C127)-C293","v":0},{"$f":"+(D126+D127)-D293","v":0},{"$f":"+(E126+E127)-E293","v":0},{"$f":"+(F126+F127)-F293","v":{"$error":"#REF!"}}]
[null,"Quadratura con Utile (Perdita) da Stato Patrimoniale",{"$f":"+IF(C294=0,\"Ok\",\"Errore\")","v":"Ok"},{"$f":"+IF(D294=0,\"Ok\",\"Errore\")","v":"Ok"},"Ok",{"$f":"+IF(F294=0,\"\",\"Errore pareggio utile (perdita) con SP\")","v":{"$error":"#REF!"}}]
[null,null,{"$f":"+IF(C294=0,\"\",+C294)","v":""},{"$f":"+IF(D294=0,\"\",+D294)","v":""},{"$f":"+IF(E294=0,\"\",+E294)","v":""}]
[]
[null,"Numero medio degli addetti",null,null,null,{"$f":"+#REF!","v":{"$error":"#REF!"}}]
[null,"Numero di ore lavorate"]
[]
[]
[]
[]
[]
[]
[null,null,null,null,null,null,null,null,"Vai inizio pagina"]
[]
[]
[]
[]
[]
[]
[]
[]
[]
[]
[]
[]
[]
[]
[]
[]
[]
[]
[]
[]
[]
[]
[]
[]
[]
[]
[]
[]
[null,"Vai inizio pagina"]

{"sheet":"FAST DASHBOARD OUTPUT","index":3,"n_rows":80,"n_cols":18,"rows_kept":80,"cut":false,"hidden":false,"merged":[[20,7,20,8],[36,1,36,5],[53,1,53,5],[53,7,53,9],[54,1,54,5],[39,1,39,11],[40,1,40,3],[40,5,40,7],[40,9,40,11],[23,1,23,11],[24,1,24,3],[24,5,24,7],[24,9,24,11],[3,1,6,11],[2,1,2,11],[8,1,8,11],[9,1,9,3],[9,5,9,7],[9,9,9,11]]}
[]
[null,{"$f":"+ANAGRAFICA!C5","v":0}]
[null,"REPORT RAPIDO DEGLI EQUILIBRI GESTIONALI",null,null,null,null,null,null,null,null,null,null,"Indietro",null,"NASCONDI","NASCONDI","NASCONDI"]
[null,"Il REPORT RAPIDO DEGLI EQUILIBRI GESTIONALI permette di ottenere una prima analisi  sintetica circa la presenza dell'equilibrio Patrimoniale ed Economico-Finanziario relativi agli ultimi tre esercizi,  come previsto dal Codice della Crisi d'Impresa e dell'Insolvenza (Art. 3 co. 3 lett. a del D.Lgs. 14/2019). Gli indicatori vanno interpretati congiuntamente a tutti gli altri indici di bilancio e non isolatamente, consultando i REPORT andamentali e quantitativi."]
[]
[]
[]
[]
[null,"EQULIBRIO PATRIMONIALE"]
[null,{"$f":"+'FAST DASHBOARD'!C6","v":"00:00:00"},null,null,null,{"$f":"+'FAST DASHBOARD'!D6","v":"00:00:00"},null,null,null,{"$f":"+'FAST DASHBOARD'!E6","v":"00:00:00"},null,null,null,null,null,null,null,"Area tutor"]
[null,null,null,null,null,null,null,null,null,null,null,null,null,null,null,null,null,"Gli equilibri gestionali sono misurati da appositi"]
[null,null,null,null,null,null,null,null,null,null,null,null,null,null,null,null,null,"\"Indicatori sintetici\", calcolati in base al risultato "]
[null,null,null,null,null,null,null,null,null,null,null,null,null,null,null,null,null,"di alcuni rappresentativi indici di bilancio."]
[null,null,null,null,null,null,null,null,null,null,null,null,null,null,null,null,null,"I parametri utilizzati sono visibili nei commenti"]
[null,null,null,null,null,null,null,null,null,null,null,null,null,null,null,null,null,"di ogni cella (passare il puntatore sulle celle"]
[null,null,null,null,null,null,null,null,null,null,null,null,null,null,null,null,null,"con angolo rosso per visualizzare)."]
[]
[null,"Indicatore sintetico",null,{"$f":"+'FAST DASHBOARD'!G7","v":0},null,"Indicatore sintetico",null,{"$f":"+'FAST DASHBOARD'!H7","v":0},null,"Indicatore sintetico",null,{"$f":"+'FAST DASHBOARD'!I7","v":0}]
[null,"Patrimonio netto",null,{"$f":"+'BILANCI RICLASSIFICATI'!C45","v":0},null,"Patrimonio netto",null,{"$f":"+'BILANCI RICLASSIFICATI'!D45","v":0},null,"Patrimonio netto",null,{"$f":"+'BILANCI RICLASSIFICATI'!E45","v":0},null,null,{"$f":"+D18-H18","v":0},{"$f":"+IF(O19<0,\"peggiorato\",IF(O19>0,\"migliorato\",IF(O19=0,\"invariato\")))","v":"invariato"},"PATRIMONIO NETTO"]
[null,"Capitale di terzi",null,{"$f":"+'BILANCI RICLASSIFICATI'!C50","v":0},null,"Capitale di terzi",null,{"$f":"+'BILANCI RICLASSIFICATI'!D50","v":0},null,"Capitale di terzi",null,{"$f":"+'BILANCI RICLASSIFICATI'!E50","v":0},null,null,{"$f":"+D20","v":0},{"$f":"+IF(O20>0,\"aumentata\",IF(O20<0,\"diminuita\",IF(O20=0,\"invarata\")))","v":"invarata"},"CAPITALE DI TERZI"]
[null,"L'equilibrio patrimoniale nell'ultimo esercizio è",null,null,null,null,{"$f":"+P19","v":"invariato"},"e risulta",null,{"$f":"+P20","v":"invarata"},"la dipendenza dal"]
[null,"capitale di terzi."]
[]
[null,"EQULIBRIO ECONOMICO"]
[null,{"$f":"+B10","v":"00:00:00"},null,null,null,{"$f":"+F10","v":"00:00:00"},null,null,null,{"$f":"+J10","v":"00:00:00"}]
[]
[]
[]
[]
[]
[]
[]
[null,"Indicatore sintetico",null,{"$f":"+'FAST DASHBOARD'!G15","v":{"$error":"#DIV/0!"}},null,"Indicatore sintetico",null,{"$f":"+'FAST DASHBOARD'!H15","v":{"$error":"#DIV/0!"}},null,"Indicatore sintetico",null,{"$f":"+'FAST DASHBOARD'!I15","v":{"$error":"#DIV/0!"}},null,null,{"$f":"+D33-H33","v":{"$error":"#DIV/0!"}},{"$f":"+IF(O33<0,\"peggiorato\",IF(O33>0,\"migliorato\",IF(O33=0,\"invariato\")))","v":{"$error":"#DIV/0!"}},"INDICATORE SINTETICO"]
[null,"EBITDA",null,{"$f":"+'FAST DASHBOARD'!C11","v":0},null,"EBITDA",null,{"$f":"+'FAST DASHBOARD'!D11","v":0},null,"EBITDA",null,{"$f":"+'FAST DASHBOARD'!E11","v":0},null,null,{"$f":"+D34","v":0},{"$f":"+IF(O34>0,\"ha\",IF(O34<=0,\"non ha\"))","v":"non ha"},"EBITDA"]
[null,"EBIT",null,{"$f":"+'FAST DASHBOARD'!C12","v":{"$error":"#DIV/0!"}},null,"EBIT",null,{"$f":"+'FAST DASHBOARD'!D12","v":{"$error":"#DIV/0!"}},null,"EBIT",null,{"$f":"+'FAST DASHBOARD'!E12","v":{"$error":"#DIV/0!"}}]
[null,"RN",null,{"$f":"+'FAST DASHBOARD'!C13","v":{"$error":"#DIV/0!"}},null,"RN",null,{"$f":"+'FAST DASHBOARD'!D13","v":{"$error":"#DIV/0!"}},null,"RN",null,{"$f":"+'FAST DASHBOARD'!E13","v":{"$error":"#DIV/0!"}}]
[null,"L'equilibrio economico nell'ultimo esercizio è",null,null,null,null,{"$f":"+P33","v":{"$error":"#DIV/0!"}},"e la gestione caratteristica del Margine EBITDA"]
[null,{"$f":"+P34","v":"non ha"},"generato nuovo flusso di cassa."]
[]
[null,"EQULIBRIO FINANZIARIO"]
[null,{"$f":"+B25","v":"00:00:00"},null,null,null,{"$f":"+F25","v":"00:00:00"},null,null,null,{"$f":"+J25","v":"00:00:00"}]
[]
[]
[]
[]
[]
[]
[]
[null,"Indicatore sintetico",null,{"$f":"+'FAST DASHBOARD'!G23","v":{"$error":"#DIV/0!"}},null,"Indicatore sintetico",null,{"$f":"+'FAST DASHBOARD'!H23","v":{"$error":"#DIV/0!"}},null,"Indicatore sintetico",null,{"$f":"+'FAST DASHBOARD'!I23","v":{"$error":"#DIV/0!"}},null,null,{"$f":"+D49-H49","v":{"$error":"#DIV/0!"}},{"$f":"+IF(O49<0,\"peggiorato\",IF(O49>0,\"migliorato\",IF(O49=0,\"invariato\")))","v":{"$error":"#DIV/0!"}},"INDICATORE SINTETICO"]
[null,"Margine di struttura",null,{"$f":"+'FAST DASHBOARD'!C18","v":{"$error":"#DIV/0!"}},null,"Margine di struttura",null,{"$f":"+'FAST DASHBOARD'!D18","v":{"$error":"#DIV/0!"}},null,"Margine di struttura",null,{"$f":"+'FAST DASHBOARD'!E18","v":{"$error":"#DIV/0!"}},null,null,{"$f":"+D52","v":{"$error":"#DIV/0!"}},{"$f":"+IF(O50>1,\"risulta\",IF(O50<=1,\"non risulta\"))","v":{"$error":"#DIV/0!"}},"CCN"]
[null,"Marg. Strutt. Globale",null,{"$f":"+'FAST DASHBOARD'!C19","v":{"$error":"#DIV/0!"}},null,"Marg. Strutt. Globale",null,{"$f":"+'FAST DASHBOARD'!D19","v":{"$error":"#DIV/0!"}},null,"Marg. Strutt. Globale",null,{"$f":"+'FAST DASHBOARD'!E19","v":{"$error":"#DIV/0!"}}]
[null,"Capitale circol. netto",null,{"$f":"+'FAST DASHBOARD'!C20","v":{"$error":"#DIV/0!"}},null,"Capitale circol. netto",null,{"$f":"+'FAST DASHBOARD'!D20","v":{"$error":"#DIV/0!"}},null,"Capitale circol. netto",null,{"$f":"+'FAST DASHBOARD'!E20","v":{"$error":"#DIV/0!"}}]
[null,"Margine di tesoreria",null,{"$f":"+'FAST DASHBOARD'!C21","v":{"$error":"#DIV/0!"}},null,"Margine di tesoreria",null,{"$f":"+'FAST DASHBOARD'!D21","v":{"$error":"#DIV/0!"}},null,"Margine di tesoreria",null,{"$f":"+'FAST DASHBOARD'!E21","v":{"$error":"#DIV/0!"}}]
[null,"L'equilibrio finanziario nell'ultimo esercizio è",null,null,null,null,{"$f":"+P49","v":{"$error":"#DIV/0!"}},"e l'Attivo Corrente",null,null,{"$f":"+P50","v":{"$error":"#DIV/0!"}},"sufficiente"]
[null,"a coprire l'indebitamento a breve termine."]
[]
[]
[]
[]
[]
[]
[]
[]
[]
[]
[]
[]
[]
[]
[]
[]
[]
[]
[]
[]
[]
[]
[]
[]
[null,null,null,null,null,null,null,null,null,null,null,null,"Vai inizio pagina"]

{"sheet":"GESTIONE DASHBOARD","index":4,"n_rows":12,"n_cols":9,"rows_kept":12,"cut":false,"hidden":false,"merged":[[3,1,3,6]]}
[]
[]
[null,{"$f":"+ANAGRAFICA!C5","v":0}]
[null,"REPORT GRAFICI ANDAMENTALI",null,null,null,null,null,null,"Indietro"]
[null,"Per una rapida analisa grafica dell'andamento degli equilibri aziendali"]
[]
[]
[null,"Report grafici 1","ANDAMENTO DEGLI EQUILIBRI PATRIMONIALI"]
[]
[null,"Report grafici 2","ANDAMENTO DEGLI EQUILIBRI ECONOMICI"]
[]
[null,"Report grafici 3","ANDAMENTO DEGLI EQUILIBRI FINANZIARI"]

{"sheet":"DASH PATR","index":5,"n_rows":92,"n_cols":19,"rows_kept":92,"cut":false,"hidden":false,"merged":[[14,15,23,16],[25,15,34,16],[5,15,11,16],[2,1,2,16],[4,1,4,2],[4,3,4,4],[4,6,4,7],[4,8,4,9],[4,11,4,12],[4,13,4,14]]}
[]
[null,{"$f":"+ANAGRAFICA!C5","v":0}]
[null,"ANDAMENTO DEGLI EQUILIBRI PATRIMONIALI",null,null,null,null,null,null,null,null,null,null,null,null,null,null,null,"Indietro"]
[]
[null,"Anno n",null,{"$f":"+'DATI GRAFICI'!B15","v":"00:00:00"},null,null,"Anno n-1",null,{"$f":"+'DATI GRAFICI'!B32","v":"00:00:00"},null,null,"Anno n-2",null,{"$f":"+'DATI GRAFICI'!B53","v":"00:00:00"},null,null,null,null,"Per un maggiore approfondimento"]
[null,null,null,null,null,null,null,null,null,null,null,null,null,null,null,"Indici sintetici dell'autonomia patrimoniale",null,null,"visionare i REPORT ANALISI QUANTITATIVA"]
[]
[]
[]
[]
[]
[]
[null,"Indicatore sintetico di equilibrio",null,null,{"$f":"+'DATI GRAFICI'!C8","v":0},null,"Indicatore sintetico di equilibrio",null,null,{"$f":"+'DATI GRAFICI'!C34","v":0},null,"Indicatore sintetico di equilibrio",null,null,{"$f":"+'DATI GRAFICI'!C55","v":0}]
[]
[null,null,null,null,null,null,null,null,null,null,null,null,null,null,null,"Attivo          Patrimoniale"]
[]
[]
[]
[]
[]
[]
[]
[]
[]
[]
[null,null,null,null,null,null,null,null,null,null,null,null,null,null,null,"Passivo                     Patrimoniale"]
[]
[]
[]
[]
[]
[]
[]
[]
[]
[]
[]
[]
[]
[]
[]
[]
[]
[]
[]
[]
[]
[]
[]
[]
[]
[]
[]
[]
[]
[]
[]
[]
[]
[]
[]
[]
[]
[]
[]
[]
[]
[]
[]
[]
[]
[]
[]
[]
[]
[]
[]
[]
[]
[]
[]
[]
[]
[]
[]
[]
[]
[]
[]
[]
[]
[null,null,null,null,null,null,null,null,null,null,null,null,null,null,null,null,null,"Vai inizio pagina"]

{"sheet":"DASH ECO","index":6,"n_rows":114,"n_cols":19,"rows_kept":114,"cut":false,"hidden":false,"merged":[[4,11,4,12],[4,13,4,14],[12,11,12,12],[13,11,13,12],[14,11,14,12],[2,1,2,16],[5,15,11,16],[12,1,12,2],[13,1,13,2],[14,1,14,2],[12,6,12,7],[13,6,13,7],[14,6,14,7],[4,1,4,2],[4,3,4,4],[4,6,4,7],[4,8,4,9]]}
[]
[null,{"$f":"+ANAGRAFICA!C5","v":0}]
[null,"ANDAMENTO DEGLI EQUILIBRI ECONOMICI",null,null,null,null,null,null,null,null,null,null,null,null,null,null,null,"Indietro"]
[]
[null,"Anno n",null,{"$f":"+'DATI GRAFICI'!B15","v":"00:00:00"},null,null,"Anno n-1",null,{"$f":"+'DATI GRAFICI'!B32","v":"00:00:00"},null,null,"Anno n-2",null,{"$f":"+'DATI GRAFICI'!B53","v":"00:00:00"},null,null,null,null,"Per un maggiore approfondimento"]
[null,null,null,null,null,null,null,null,null,null,null,null,null,null,null,"Indici sintetici degli equilibri economici",null,null,"visionare i REPORT ANALISI QUANTITATIVA"]
[]
[]
[]
[]
[]
[]
[null,"EBITDA",null,{"$f":"+'FAST DASHBOARD'!C11","v":0},null,null,"EBITDA",null,{"$f":"+'FAST DASHBOARD'!D11","v":0},null,null,"EBITDA",null,{"$f":"+'FAST DASHBOARD'!E11","v":0}]
[null,"EBIT",null,{"$f":"+'FAST DASHBOARD'!C12","v":{"$error":"#DIV/0!"}},null,null,"EBIT",null,{"$f":"+'FAST DASHBOARD'!D12","v":{"$error":"#DIV/0!"}},null,null,"EBIT",null,{"$f":"+'FAST DASHBOARD'!E12","v":{"$error":"#DIV/0!"}}]
[null,"RN",null,{"$f":"+'FAST DASHBOARD'!C13","v":{"$error":"#DIV/0!"}},null,null,"RN",null,{"$f":"+'FAST DASHBOARD'!D13","v":{"$error":"#DIV/0!"}},null,null,"RN",null,{"$f":"+'FAST DASHBOARD'!E13","v":{"$error":"#DIV/0!"}}]
[null,"Indicatore sintetico di equilibrio",null,null,{"$f":"+'DATI GRAFICI'!C17","v":{"$error":"#DIV/0!"}},null,"Indicatore sintetico di equilibrio",null,null,{"$f":"+'DATI GRAFICI'!C42","v":{"$error":"#DIV/0!"}},null,"Indicatore sintetico di equilibrio",null,null,{"$f":"+'DATI GRAFICI'!C63","v":{"$error":"#DIV/0!"}}]
[]
[]
[]
[]
[]
[]
[]
[]
[]
[]
[]
[]
[]
[]
[]
[]
[]
[]
[]
[]
[]
[]
[]
[]
[]
[]
[]
[]
[]
[]
[]
[]
[]
[]
[]
[]
[]
[]
[]
[]
[]
[]
[]
[]
[]
[]
[]
[]
[]
[]
[]
[]
[]
[]
[]
[null,null,"n","n-1","n-2",null,null,"n","n-1","n-2"]
[null,"Ric. monet.",{"$f":"+'BILANCI RICLASSIFICATI'!C169","v":0},{"$f":"+'BILANCI RICLASSIFICATI'!D169","v":0},{"$f":"+'BILANCI RICLASSIFICATI'!E169","v":0},null,"Addetti",{"$f":"+'INPUT BILANCI'!C298","v":0},{"$f":"+'INPUT BILANCI'!D298","v":0},{"$f":"+'INPUT BILANCI'!E298","v":0}]
[null,"Costi mon.",{"$f":"+'BILANCI RICLASSIFICATI'!C140","v":0},{"$f":"+'BILANCI RICLASSIFICATI'!D140","v":0},{"$f":"+'BILANCI RICLASSIFICATI'!E140","v":0}]
[null,"Cash flow",{"$f":"+C73-C74","v":0},{"$f":"+D73-D74","v":0},0]
[]
[]
[]
[]
[]
[]
[]
[]
[]
[]
[]
[]
[null,null,null,null,null,null,null,null,null,null,"La percentuale di fatturato di equilibrio esprime il livello percentuale"]
[null,null,null,null,null,null,null,null,null,null,"del fatturato in cui si verifica il pareggio tra Ricavi e Costi."]
[null,"Indica il fatturato a cui corrisponde il pareggio tra Ricavi e costi.",null,null,null,null,null,null,null,null,"Il Margine di sicurezza indica di quanto può diminuire il fatturato "]
[null,null,null,null,null,null,null,null,null,null,"prima che inizi l'area di perdita."]
[]
[]
[]
[]
[]
[]
[]
[]
[]
[]
[]
[]
[]
[]
[]
[]
[]
[]
[]
[]
[]
[]
[null,null,null,null,null,null,null,null,null,null,null,null,null,null,"Vai inizio pagina"]

{"sheet":"DASH FIN","index":7,"n_rows":121,"n_cols":19,"rows_kept":121,"cut":false,"hidden":false,"merged":[[5,15,12,16],[2,1,2,16],[4,1,4,2],[4,3,4,4],[4,6,4,7],[4,8,4,9],[4,11,4,12],[4,13,4,14],[62,14,62,15],[63,14,63,15],[64,14,64,15],[65,14,65,15],[19,15,34,16],[63,7,63,11],[64,7,64,11],[65,7,65,11],[63,12,63,13],[62,12,62,13],[64,12,64,13],[65,12,65,13],[67,11,67,15],[68,13,68,14],[69,13,69,14],[70,13,70,14],[68,11,68,12],[69,11,69,12],[70,11,70,12]]}
[]
[null,{"$f":"+ANAGRAFICA!C5","v":0}]
[null,"ANDAMENTO DEGLI EQUILIBRI FINANZIARI",null,null,null,null,null,null,null,null,null,null,null,null,null,null,null,"Indietro"]
[]
[null,"Anno n",null,{"$f":"+'DATI GRAFICI'!B15","v":"00:00:00"},null,null,"Anno n-1",null,{"$f":"+'DATI GRAFICI'!B32","v":"00:00:00"},null,null,"Anno n-2",null,{"$f":"+'DATI GRAFICI'!B53","v":"00:00:00"},null,null,null,null,"Per un maggiore approfondimento"]
[null,null,null,null,null,null,null,null,null,null,null,null,null,null,null,"Indici sintetici dell'autonomia finanziaria",null,null,"visionare i REPORT ANALISI QUANTITATIVA"]
[]
[]
[]
[]
[]
[]
[]
[null,"Margine di struttura",null,null,{"$f":"+'FAST DASHBOARD'!C18","v":{"$error":"#DIV/0!"}},null,"Margine di struttura",null,null,{"$f":"+'FAST DASHBOARD'!D18","v":{"$error":"#DIV/0!"}},null,"Margine di struttura",null,null,{"$f":"+'FAST DASHBOARD'!E18","v":{"$error":"#DIV/0!"}}]
[null,"Margine di struttura globale",null,null,{"$f":"+'FAST DASHBOARD'!C19","v":{"$error":"#DIV/0!"}},null,"Margine di struttura globale",null,null,{"$f":"+'FAST DASHBOARD'!D19","v":{"$error":"#DIV/0!"}},null,"Margine di struttura globale",null,null,{"$f":"+'FAST DASHBOARD'!E19","v":{"$error":"#DIV/0!"}}]
[null,"Capitale circolante netto",null,null,{"$f":"+'FAST DASHBOARD'!C20","v":{"$error":"#DIV/0!"}},null,"Capitale circolante netto",null,null,{"$f":"+'FAST DASHBOARD'!D20","v":{"$error":"#DIV/0!"}},null,"Capitale circolante netto",null,null,{"$f":"+'FAST DASHBOARD'!E20","v":{"$error":"#DIV/0!"}}]
[null,"Margine di tsoreria",null,null,{"$f":"+'FAST DASHBOARD'!C21","v":{"$error":"#DIV/0!"}},null,"Margine di tsoreria",null,null,{"$f":"+'FAST DASHBOARD'!D21","v":{"$error":"#DIV/0!"}},null,"Margine di tsoreria",null,null,{"$f":"+'FAST DASHBOARD'!E21","v":{"$error":"#DIV/0!"}}]
[null,"Indicatore sintetico di equilibrio",null,null,{"$f":"+'DATI GRAFICI'!C23","v":{"$error":"#DIV/0!"}},null,"Indicatore sintetico di equilibrio",null,null,{"$f":"+'DATI GRAFICI'!C48","v":{"$error":"#DIV/0!"}},null,"Indicatore sintetico di equilibrio",null,null,{"$f":"+'DATI GRAFICI'!C70","v":{"$error":"#DIV/0!"}}]
[]
[null,null,null,null,null,null,null,null,null,null,null,null,null,null,null,"Correlazione temporale Fonti / Impieghi"]
[]
[]
[]
[]
[]
[]
[]
[]
[]
[]
[]
[]
[]
[]
[]
[]
[null,"(AI) Attivo immobilizzato",null,null,"(AC) Attivo corrente",null,null,"(PN) Patrimonio netto",null,"(DML) Debiti a medio lungo",null,null,null,"(DB) Debiti a breve"]
[]
[]
[]
[]
[]
[]
[]
[]
[]
[]
[]
[]
[]
[]
[]
[]
[]
[]
[]
[]
[]
[]
[]
[]
[]
[null,null,null,null,null,null,null,null,null,null,null,null,"Anno n",null,"Anno n-1"]
[null,null,null,null,null,null,null,"Flusso della gestione operativa",null,null,null,null,{"$f":"+'RENDICONTO FINANZIARIO'!D14","v":0},null,{"$f":"+'RENDICONTO FINANZIARIO'!F14","v":0}]
[null,null,null,null,null,null,null,"Flusso della gestione degli investimenti",null,null,null,null,{"$f":"+'RENDICONTO FINANZIARIO'!D15","v":0},null,{"$f":"+'RENDICONTO FINANZIARIO'!F15","v":0}]
[null,null,null,null,null,null,null,"Flusso della gestione dei finanziamenti",null,null,null,null,{"$f":"+'RENDICONTO FINANZIARIO'!D19","v":0},null,{"$f":"+'RENDICONTO FINANZIARIO'!F19","v":0}]
[]
[null,null,null,null,null,null,null,null,null,null,null,"RATING QUANTITATIVO DEL RATING CREDITIZIO"]
[null,null,null,null,null,null,null,null,null,null,null,"Anno n",null,{"$f":"+'RATING OUTPUT'!C14","v":"Errore"}]
[null,null,null,null,null,null,null,null,null,null,null,"Anno n-1",null,{"$f":"+'RATING OUTPUT'!D14","v":"Errore"}]
[null,null,null,null,null,null,null,null,null,null,null,"Anno n-2",null,{"$f":"+'RATING OUTPUT'!E14","v":"Errore"}]
[]
[]
[]
[]
[]
[]
[]
[]
[]
[]
[]
[]
[]
[]
[]
[]
[]
[]
[]
[]
[]
[]
[]
[]
[]
[]
[]
[]
[]
[]
[]
[]
[]
[]
[]
[]
[]
[]
[]
[]
[]
[]
[]
[]
[]
[]
[]
[]
[]
[null,null,null,null,null,null,null,null,null,null,null,null,null,null,null,null,null,"Vai inizio pagina"]

{"sheet":"GESTIONE REPORT","index":8,"n_rows":26,"n_cols":8,"rows_kept":26,"cut":false,"hidden":false,"merged":[[3,1,3,5],[4,1,4,5]]}
[]
[]
[null,{"$f":"+ANAGRAFICA!C5","v":0}]
[null,"REPORT DELL'ANALISI QUANTITATIVA",null,null,null,null,null,"Indietro"]
[null,"Per una analisi approfondita basata su indicatori quantitativi"]
[]
[null,"Report 1","BILANCI RICLASSIFICATI"]
[]
[null,"Report 2","ANALISI PER INDICI E MARGINI"]
[]
[null,"Report 3","ANALISI PER FLUSSI"]
[]
[null,"Report 4","RATING QUANTITATIVO PER IL MERITO CREDITIZIO"]
[]
[null,"Report 5","INDICE FINANZIARIO Z-SCORE DI ALTMAN"]
[]
[null,"Report 6","INDICE  EM SCORE"]
[]
[null,"Report 7","BREAK EVEN ANALYSIS - FATTURATO DI EQUILIBRIO"]
[]
[null,"Report 8","RELAZIONE  AUTOGENERANTE"]
[]
[null,"Report 9","NOTE LIBERE"]
[]
[]
[null,null,null,null,null,null,null,"Vai inizio pagina"]

{"sheet":"BILANCI RICLASSIFICATI","index":9,"n_rows":183,"n_cols":8,"rows_kept":183,"cut":false,"hidden":false,"merged":[[121,1,121,4],[2,1,2,4],[4,1,4,4],[35,1,35,4],[6,7,6,9],[53,1,53,4],[87,1,87,4]]}
[]
[null,{"$f":"+ANAGRAFICA!C5","v":0}]
[null,"BILANCI RICLASSIFICATI"]
[null,"Report 1"]
[null,"STATO PATRIMONIALE RICLASSIFICATO CON CRITERIO FINANZIARIO",null,null,null,null,null,"Indietro"]
[null,null,null,null,null,"NASCOSTO"]
[null,null,{"$f":"+'INPUT BILANCI'!C8","v":"Anno n "},{"$f":"+'INPUT BILANCI'!D8","v":"Anno n - 1"},{"$f":"+'INPUT BILANCI'!E8","v":"Anno n - 2"},{"$f":"+'INPUT BILANCI'!F8","v":"SITUAZIONE AL"},null,"Visualizza criteri di riclassificazione"]
[null,null,{"$f":"+'INPUT BILANCI'!C9","v":"00:00:00"},{"$f":"+'INPUT BILANCI'!D9","v":"00:00:00"},{"$f":"+'INPUT BILANCI'!E9","v":"00:00:00"},{"$f":"+'INPUT BILANCI'!F9","v":{"$error":"#REF!"}}]
[null,"ATIVO"]
[null,"Attivo immobilizzato"]
[null,"Immobilizzazioni immateriali",{"$f":"+'INPUT BILANCI'!C23","v":0},{"$f":"+'INPUT BILANCI'!D23","v":0},{"$f":"+'INPUT BILANCI'!E23","v":0},{"$f":"+'INPUT BILANCI'!F23","v":{"$error":"#REF!"}}]
[null,"Immobilizzazioni materiali",{"$f":"+'INPUT BILANCI'!C30","v":0},{"$f":"+'INPUT BILANCI'!D30","v":0},{"$f":"+'INPUT BILANCI'!E30","v":0},{"$f":"+'INPUT BILANCI'!F30","v":{"$error":"#REF!"}}]
[null,"Immobilizzazioni finanziarie",{"$f":"+'INPUT BILANCI'!C11+'INPUT BILANCI'!C33+'INPUT BILANCI'!C34+'INPUT BILANCI'!C35+'INPUT BILANCI'!C36+'INPUT BILANCI'!C41+'INPUT BILANCI'!C44+'INPUT BILANCI'!C47+'INPUT BILANCI'!C53+'INPUT BILANCI'!C54+'INPUT BILANCI'!C69+'INPUT BILANCI'!C72+'INPUT BILANCI'!C75+'INPUT BILANCI'!C78+'INPUT BILANCI'!C84+'INPUT BILANCI'!C87+'INPUT BILANCI'!C90+'INPUT BILANCI'!C37+'INPUT BILANCI'!C81+'INPUT BILANCI'!C55+'INPUT BILANCI'!C50","v":0},{"$f":"+'INPUT BILANCI'!D11+'INPUT BILANCI'!D33+'INPUT BILANCI'!D34+'INPUT BILANCI'!D35+'INPUT BILANCI'!D36+'INPUT BILANCI'!D41+'INPUT BILANCI'!D44+'INPUT BILANCI'!D47+'INPUT BILANCI'!D53+'INPUT BILANCI'!D54+'INPUT BILANCI'!D69+'INPUT BILANCI'!D72+'INPUT BILANCI'!D75+'INPUT BILANCI'!D78+'INPUT BILANCI'!D84+'INPUT BILANCI'!D87+'INPUT BILANCI'!D90+'INPUT BILANCI'!D37+'INPUT BILANCI'!D81+'INPUT BILANCI'!D55+'INPUT BILANCI'!D50","v":0},{"$f":"+'INPUT BILANCI'!E11+'INPUT BILANCI'!E33+'INPUT BILANCI'!E34+'INPUT BILANCI'!E35+'INPUT BILANCI'!E36+'INPUT BILANCI'!E41+'INPUT BILANCI'!E44+'INPUT BILANCI'!E47+'INPUT BILANCI'!E53+'INPUT BILANCI'!E54+'INPUT BILANCI'!E69+'INPUT BILANCI'!E72+'INPUT BILANCI'!E75+'INPUT BILANCI'!E78+'INPUT BILANCI'!E84+'INPUT BILANCI'!E87+'INPUT BILANCI'!E90+'INPUT BILANCI'!E37+'INPUT BILANCI'!E81+'INPUT BILANCI'!E55+'INPUT BILANCI'!E50","v":0},{"$f":"+'INPUT BILANCI'!F11+'INPUT BILANCI'!F33+'INPUT BILANCI'!F34+'INPUT BILANCI'!F35+'INPUT BILANCI'!F36+'INPUT BILANCI'!F41+'INPUT BILANCI'!F44+'INPUT BILANCI'!F47+'INPUT BILANCI'!F53+'INPUT BILANCI'!F54+'INPUT BILANCI'!F69+'INPUT BILANCI'!F72+'INPUT BILANCI'!F75+'INPUT BILANCI'!F78+'INPUT BILANCI'!F84+'INPUT BILANCI'!F87+'INPUT BILANCI'!F90+'INPUT BILANCI'!F37+'INPUT BILANCI'!F81+'INPUT BILANCI'!F55+'INPUT BILANCI'!F50","v":{"$error":"#REF!"}}]
[null,"Totale Attivo Immobilizzato",{"$f":"SUM(C11:C13)","v":0},{"$f":"SUM(D11:D13)","v":0},{"$f":"SUM(E11:E13)","v":0},{"$f":"SUM(F11:F13)","v":{"$error":"#REF!"}}]
[null,"Attivo corrente"]
[null,"Rimanenze",{"$f":"+'INPUT BILANCI'!C65","v":0},{"$f":"+'INPUT BILANCI'!D65","v":0},{"$f":"+'INPUT BILANCI'!E65","v":0},{"$f":"+'INPUT BILANCI'!F65","v":{"$error":"#REF!"}}]
[null,"Crediti finanziari a breve",{"$f":"+'INPUT BILANCI'!C12+'INPUT BILANCI'!C40+'INPUT BILANCI'!C43+'INPUT BILANCI'!C46+'INPUT BILANCI'!C52+'INPUT BILANCI'!C71+'INPUT BILANCI'!C74+'INPUT BILANCI'!C77+'INPUT BILANCI'!C83+'INPUT BILANCI'!C86+'INPUT BILANCI'!C89+'INPUT BILANCI'!C93+'INPUT BILANCI'!C94+'INPUT BILANCI'!C95+'INPUT BILANCI'!C97+'INPUT BILANCI'!C99+'INPUT BILANCI'!C108+'INPUT BILANCI'!C49+'INPUT BILANCI'!C80+'INPUT BILANCI'!C96+'INPUT BILANCI'!C98","v":0},{"$f":"+'INPUT BILANCI'!D12+'INPUT BILANCI'!D40+'INPUT BILANCI'!D43+'INPUT BILANCI'!D46+'INPUT BILANCI'!D52+'INPUT BILANCI'!D71+'INPUT BILANCI'!D74+'INPUT BILANCI'!D77+'INPUT BILANCI'!D83+'INPUT BILANCI'!D86+'INPUT BILANCI'!D89+'INPUT BILANCI'!D93+'INPUT BILANCI'!D94+'INPUT BILANCI'!D95+'INPUT BILANCI'!D97+'INPUT BILANCI'!D99+'INPUT BILANCI'!D108+'INPUT BILANCI'!D49+'INPUT BILANCI'!D80+'INPUT BILANCI'!D96+'INPUT BILANCI'!D98","v":0},{"$f":"+'INPUT BILANCI'!E12+'INPUT BILANCI'!E40+'INPUT BILANCI'!E43+'INPUT BILANCI'!E46+'INPUT BILANCI'!E52+'INPUT BILANCI'!E71+'INPUT BILANCI'!E74+'INPUT BILANCI'!E77+'INPUT BILANCI'!E83+'INPUT BILANCI'!E86+'INPUT BILANCI'!E89+'INPUT BILANCI'!E93+'INPUT BILANCI'!E94+'INPUT BILANCI'!E95+'INPUT BILANCI'!E97+'INPUT BILANCI'!E99+'INPUT BILANCI'!E108+'INPUT BILANCI'!E49+'INPUT BILANCI'!E80+'INPUT BILANCI'!E96+'INPUT BILANCI'!E98","v":0},{"$f":"+'INPUT BILANCI'!F12+'INPUT BILANCI'!F40+'INPUT BILANCI'!F43+'INPUT BILANCI'!F46+'INPUT BILANCI'!F52+'INPUT BILANCI'!F71+'INPUT BILANCI'!F74+'INPUT BILANCI'!F77+'INPUT BILANCI'!F83+'INPUT BILANCI'!F86+'INPUT BILANCI'!F89+'INPUT BILANCI'!F93+'INPUT BILANCI'!F94+'INPUT BILANCI'!F95+'INPUT BILANCI'!F97+'INPUT BILANCI'!F99+'INPUT BILANCI'!F107+'INPUT BILANCI'!F49+'INPUT BILANCI'!F80+'INPUT BILANCI'!F96+'INPUT BILANCI'!F98","v":{"$error":"#REF!"}}]
[null,"Crediti commerciali",{"$f":"+'INPUT BILANCI'!C68+'INPUT BILANCI'!C109","v":0},{"$f":"+'INPUT BILANCI'!D68+'INPUT BILANCI'!D109","v":0},{"$f":"+'INPUT BILANCI'!E68+'INPUT BILANCI'!E109","v":0},{"$f":"+'INPUT BILANCI'!F68","v":{"$error":"#REF!"}}]
[null,"Liquidità",{"$f":"+'INPUT BILANCI'!C105","v":0},{"$f":"+'INPUT BILANCI'!D105","v":0},{"$f":"+'INPUT BILANCI'!E105","v":0},{"$f":"+'INPUT BILANCI'!F105","v":{"$error":"#REF!"}}]
[null,"Totale Attivo circolante",{"$f":"SUM(C16:C19)","v":0},{"$f":"SUM(D16:D19)","v":0},{"$f":"SUM(E16:E19)","v":0},{"$f":"SUM(F16:F19)","v":{"$error":"#REF!"}}]
[null,"Totale Attivo",{"$f":"+C14+C20","v":0},{"$f":"+D14+D20","v":0},{"$f":"+E14+E20","v":0},{"$f":"+F14+F20","v":{"$error":"#REF!"}}]
[null,"PASSIVO"]
[null,"Capitale proprio ",{"$f":"+'INPUT BILANCI'!C117+'INPUT BILANCI'!C118+'INPUT BILANCI'!C119+'INPUT BILANCI'!C120+'INPUT BILANCI'!C121+'INPUT BILANCI'!C122+'INPUT BILANCI'!C123+'INPUT BILANCI'!C124-'INPUT BILANCI'!C128","v":0},{"$f":"+'INPUT BILANCI'!D117+'INPUT BILANCI'!D118+'INPUT BILANCI'!D119+'INPUT BILANCI'!D120+'INPUT BILANCI'!D121+'INPUT BILANCI'!D122+'INPUT BILANCI'!D123+'INPUT BILANCI'!D124-'INPUT BILANCI'!D128","v":0},{"$f":"+'INPUT BILANCI'!E117+'INPUT BILANCI'!E118+'INPUT BILANCI'!E119+'INPUT BILANCI'!E120+'INPUT BILANCI'!E121+'INPUT BILANCI'!E122+'INPUT BILANCI'!E123+'INPUT BILANCI'!E124-'INPUT BILANCI'!E128","v":0},{"$f":"+'INPUT BILANCI'!F117+'INPUT BILANCI'!F118+'INPUT BILANCI'!F119+'INPUT BILANCI'!F120+'INPUT BILANCI'!F121+'INPUT BILANCI'!F122+'INPUT BILANCI'!F123+'INPUT BILANCI'!F124-'INPUT BILANCI'!F128","v":{"$error":"#REF!"}}]
[null,"Utile netto (parte non distribuita)/Perdita",{"$f":"+'INPUT BILANCI'!C126","v":0},{"$f":"+'INPUT BILANCI'!D126","v":0},{"$f":"+'INPUT BILANCI'!E126","v":0},{"$f":"+'INPUT BILANCI'!F126","v":{"$error":"#REF!"}}]
[null,"Totale Patrimonio netto",{"$f":"SUM(C23:C24)","v":0},{"$f":"SUM(D23:D24)","v":0},{"$f":"SUM(E23:E24)","v":0},{"$f":"SUM(F23:F24)","v":{"$error":"#REF!"}}]
[null,"Capitale di terzi"]
[null,"Debiti a medio lungo termine",{"$f":"+'INPUT BILANCI'!C133+'INPUT BILANCI'!C136+'INPUT BILANCI'!C142+'INPUT BILANCI'!C146+'INPUT BILANCI'!C151+'INPUT BILANCI'!C154+'INPUT BILANCI'!C157+'INPUT BILANCI'!C160+'INPUT BILANCI'!C163+'INPUT BILANCI'!C166+'INPUT BILANCI'!C169+'INPUT BILANCI'!C172+'INPUT BILANCI'!C175+'INPUT BILANCI'!C178+'INPUT BILANCI'!C181+'INPUT BILANCI'!C187+'INPUT BILANCI'!C190+'INPUT BILANCI'!C193+'INPUT BILANCI'!C139+'INPUT BILANCI'!C184","v":0},{"$f":"+'INPUT BILANCI'!D133+'INPUT BILANCI'!D136+'INPUT BILANCI'!D142+'INPUT BILANCI'!D146+'INPUT BILANCI'!D151+'INPUT BILANCI'!D154+'INPUT BILANCI'!D157+'INPUT BILANCI'!D160+'INPUT BILANCI'!D163+'INPUT BILANCI'!D166+'INPUT BILANCI'!D169+'INPUT BILANCI'!D172+'INPUT BILANCI'!D175+'INPUT BILANCI'!D178+'INPUT BILANCI'!D181+'INPUT BILANCI'!D187+'INPUT BILANCI'!D190+'INPUT BILANCI'!D193+'INPUT BILANCI'!D139+'INPUT BILANCI'!D184","v":0},{"$f":"+'INPUT BILANCI'!E133+'INPUT BILANCI'!E136+'INPUT BILANCI'!E142+'INPUT BILANCI'!E146+'INPUT BILANCI'!E151+'INPUT BILANCI'!E154+'INPUT BILANCI'!E157+'INPUT BILANCI'!E160+'INPUT BILANCI'!E163+'INPUT BILANCI'!E166+'INPUT BILANCI'!E169+'INPUT BILANCI'!E172+'INPUT BILANCI'!E175+'INPUT BILANCI'!E178+'INPUT BILANCI'!E181+'INPUT BILANCI'!E187+'INPUT BILANCI'!E190+'INPUT BILANCI'!E193+'INPUT BILANCI'!E139+'INPUT BILANCI'!E184","v":0},{"$f":"+'INPUT BILANCI'!F133+'INPUT BILANCI'!F136+'INPUT BILANCI'!F142+'INPUT BILANCI'!F146+'INPUT BILANCI'!F151+'INPUT BILANCI'!F154+'INPUT BILANCI'!F157+'INPUT BILANCI'!F160+'INPUT BILANCI'!F163+'INPUT BILANCI'!F166+'INPUT BILANCI'!F169+'INPUT BILANCI'!F172+'INPUT BILANCI'!F175+'INPUT BILANCI'!F178+'INPUT BILANCI'!F181+'INPUT BILANCI'!F187+'INPUT BILANCI'!F190+'INPUT BILANCI'!F193+'INPUT BILANCI'!F139+'INPUT BILANCI'!F184+'INPUT BILANCI'!F195","v":{"$error":"#REF!"}}]
[null,"Debiti finanziari a breve termine",{"$f":"+'INPUT BILANCI'!C127+'INPUT BILANCI'!C132+'INPUT BILANCI'!C135+'INPUT BILANCI'!C141+'INPUT BILANCI'!C145+'INPUT BILANCI'!C150+'INPUT BILANCI'!C153+'INPUT BILANCI'!C156+'INPUT BILANCI'!C159+'INPUT BILANCI'!C162+'INPUT BILANCI'!C171+'INPUT BILANCI'!C174+'INPUT BILANCI'!C177+'INPUT BILANCI'!C180+'INPUT BILANCI'!C186+'INPUT BILANCI'!C189+'INPUT BILANCI'!C192+'INPUT BILANCI'!C183+'INPUT BILANCI'!C138+'INPUT BILANCI'!C196","v":0},{"$f":"+'INPUT BILANCI'!D127+'INPUT BILANCI'!D132+'INPUT BILANCI'!D135+'INPUT BILANCI'!D141+'INPUT BILANCI'!D145+'INPUT BILANCI'!D150+'INPUT BILANCI'!D153+'INPUT BILANCI'!D156+'INPUT BILANCI'!D159+'INPUT BILANCI'!D162+'INPUT BILANCI'!D171+'INPUT BILANCI'!D174+'INPUT BILANCI'!D177+'INPUT BILANCI'!D180+'INPUT BILANCI'!D186+'INPUT BILANCI'!D189+'INPUT BILANCI'!D192+'INPUT BILANCI'!D183+'INPUT BILANCI'!D138+'INPUT BILANCI'!D196","v":0},{"$f":"+'INPUT BILANCI'!E127+'INPUT BILANCI'!E132+'INPUT BILANCI'!E135+'INPUT BILANCI'!E141+'INPUT BILANCI'!E145+'INPUT BILANCI'!E150+'INPUT BILANCI'!E153+'INPUT BILANCI'!E156+'INPUT BILANCI'!E159+'INPUT BILANCI'!E162+'INPUT BILANCI'!E171+'INPUT BILANCI'!E174+'INPUT BILANCI'!E177+'INPUT BILANCI'!E180+'INPUT BILANCI'!E186+'INPUT BILANCI'!E189+'INPUT BILANCI'!E192+'INPUT BILANCI'!E183+'INPUT BILANCI'!E138+'INPUT BILANCI'!E196","v":0},{"$f":"+'INPUT BILANCI'!F127+'INPUT BILANCI'!F132+'INPUT BILANCI'!F135+'INPUT BILANCI'!F141+'INPUT BILANCI'!F145+'INPUT BILANCI'!F150+'INPUT BILANCI'!F153+'INPUT BILANCI'!F156+'INPUT BILANCI'!F159+'INPUT BILANCI'!F162+'INPUT BILANCI'!F171+'INPUT BILANCI'!F174+'INPUT BILANCI'!F177+'INPUT BILANCI'!F180+'INPUT BILANCI'!F186+'INPUT BILANCI'!F189+'INPUT BILANCI'!F192+'INPUT BILANCI'!F183+'INPUT BILANCI'!F138","v":{"$error":"#REF!"}}]
[null,"Debiti commerciali a breve termine",{"$f":"+'INPUT BILANCI'!C168+'INPUT BILANCI'!C165+'INPUT BILANCI'!C197","v":0},{"$f":"+'INPUT BILANCI'!D168+'INPUT BILANCI'!D165+'INPUT BILANCI'!D197","v":0},{"$f":"+'INPUT BILANCI'!E168+'INPUT BILANCI'!E165+'INPUT BILANCI'!E197","v":0},{"$f":"+'INPUT BILANCI'!F168+'INPUT BILANCI'!F165","v":{"$error":"#REF!"}}]
[null,"Totale debiti a breve termine",{"$f":"SUM(C28:C29)","v":0},{"$f":"SUM(D28:D29)","v":0},{"$f":"SUM(E28:E29)","v":0},{"$f":"SUM(F28:F29)","v":{"$error":"#REF!"}}]
[null,"Totale Capitale di terzi",{"$f":"SUM(C27:C29)","v":0},{"$f":"SUM(D27:D29)","v":0},{"$f":"SUM(E27:E29)","v":0},{"$f":"SUM(F27:F29)","v":{"$error":"#REF!"}}]
[null,"Totale Passivo",{"$f":"+C25+C31","v":0},{"$f":"+D25+D31","v":0},{"$f":"+E25+E31","v":0},{"$f":"+F25+F31","v":{"$error":"#REF!"}}]
[null,"Quadratura",{"$f":"+C21-C32","v":0},{"$f":"+D21-D32","v":0},{"$f":"+E21-E32","v":0},{"$f":"+F21-F32","v":{"$error":"#REF!"}}]
[null,null,{"$f":"+IF(C33=0,\"\",\"Errore\")","v":""},{"$f":"+IF(D33=0,\"\",\"Errore\")","v":""},{"$f":"+IF(E33=0,\"\",\"Errore\")","v":""},{"$f":"+IF(F33=0,\"\",\"Errore\")","v":{"$error":"#REF!"}}]
[]
[null,"STATO PATRIMONIALE PERCENTUALIZZATO"]
[]
[null,null,{"$f":"+C7","v":"Anno n "},"Anno n - 1","Anno n - 2","SITUAZIONE AL"]
[null,null,"00:00:00","00:00:00","00:00:00",{"$error":"#REF!"}]
[null,"ATTIVO"]
[null,"Attivo immobilizzato",{"$f":"IF(C14=0,0,+C14/C21)","v":0},{"$f":"IF(D14=0,0,+D14/D21)","v":0},{"$f":"IF(E14=0,0,+E14/E21)","v":0},{"$f":"IF(F14=0,0,+F14/F21)","v":{"$error":"#REF!"}}]
[null,"Attivo corrente",{"$f":"IF(C20=0,0,+C20/C21)","v":0},{"$f":"IF(D20=0,0,+D20/D21)","v":0},{"$f":"IF(E20=0,0,+E20/E21)","v":0},{"$f":"IF(F20=0,0,+F20/F21)","v":{"$error":"#REF!"}}]
[null,"Totale Attivo",{"$f":"SUM(C41:C42)","v":0},{"$f":"SUM(D41:D42)","v":0},{"$f":"SUM(E41:E42)","v":0},{"$f":"SUM(F41:F42)","v":{"$error":"#REF!"}}]
[null,"PASSIVO"]
[null,"Patrimonio netto",{"$f":"IF(C25=0,0,+C25/C32)","v":0},{"$f":"IF(D25=0,0,+D25/D32)","v":0},{"$f":"IF(E25=0,0,+E25/E32)","v":0},{"$f":"IF(F25=0,0,+F25/F32)","v":{"$error":"#REF!"}}]
[null,"Capitale di terzi"]
[null,"Debiti a medio lungo termine",{"$f":"IF(C27=0,0,+C27/C32)","v":0},{"$f":"IF(D27=0,0,+D27/D32)","v":0},{"$f":"IF(E27=0,0,+E27/E32)","v":0},{"$f":"IF(F27=0,0,+F27/F32)","v":{"$error":"#REF!"}}]
[null,"Debiti finanziari a breve termine",{"$f":"IF(C28=0,0,+C28/C32)","v":0},{"$f":"IF(D28=0,0,+D28/D32)","v":0},{"$f":"IF(E28=0,0,+E28/E32)","v":0},{"$f":"IF(F28=0,0,+F28/F32)","v":{"$error":"#REF!"}}]
[null,"Debiti commerciali a breve termine",{"$f":"IF(C29=0,0,+C29/C32)","v":0},{"$f":"IF(D29=0,0,+D29/D32)","v":0},{"$f":"IF(E29=0,0,+E29/E32)","v":0},{"$f":"IF(F29=0,0,+F29/F32)","v":{"$error":"#REF!"}}]
[null,"Totale Capitale di terzi",{"$f":"IF(C31=0,0,+C31/C32)","v":0},{"$f":"IF(D31=0,0,+D31/D32)","v":0},{"$f":"IF(E31=0,0,+E31/E32)","v":0},{"$f":"IF(F31=0,0,+F31/F32)","v":{"$error":"#REF!"}}]
[null,"Totale Passivo",{"$f":"+C45+C50","v":0},{"$f":"+D45+D50","v":0},{"$f":"+E45+E50","v":0},{"$f":"+F45+F50","v":{"$error":"#REF!"}}]
[]
[]
[null,"CONTO ECONOMICO A VALORE AGGIUNTO"]
[]
[null,null,{"$f":"+C7","v":"Anno n "},{"$f":"+D7","v":"Anno n - 1"},"Anno n - 2"]
[null,null,{"$f":"'CE RICLASSIFICATO'!C6","v":"00:00:00"},{"$f":"'CE RICLASSIFICATO'!D6","v":"00:00:00"},{"$f":"'CE RICLASSIFICATO'!E6","v":"00:00:00"}]
[]
[null,{"$f":"'CE RICLASSIFICATO'!B8","v":"Ricavi netti di vendita"},{"$f":"+'CE RICLASSIFICATO'!C8","v":0},{"$f":"+'CE RICLASSIFICATO'!D8","v":0},{"$f":"+'CE RICLASSIFICATO'!E8","v":0}]
[null,{"$f":"'CE RICLASSIFICATO'!B9","v":"Variazione delle rimanenze di prodotti in corso di lavorazione, semilavorati e finiti"},{"$f":"+'CE RICLASSIFICATO'!C9","v":0},{"$f":"+'CE RICLASSIFICATO'!D9","v":0},{"$f":"+'CE RICLASSIFICATO'!E9","v":0}]
[null,{"$f":"'CE RICLASSIFICATO'!B10","v":"Variazione dei lavori in corso su ordinazione"},{"$f":"+'CE RICLASSIFICATO'!C10","v":0},{"$f":"+'CE RICLASSIFICATO'!D10","v":0},{"$f":"+'CE RICLASSIFICATO'!E10","v":0}]
[null,{"$f":"'CE RICLASSIFICATO'!B11","v":"Incrementi delle immobilizzazioni per lavori interni"},{"$f":"+'CE RICLASSIFICATO'!C11","v":0},{"$f":"+'CE RICLASSIFICATO'!D11","v":0},{"$f":"+'CE RICLASSIFICATO'!E11","v":0}]
[null,{"$f":"'CE RICLASSIFICATO'!B12","v":"Contributi in conto esercizio"},{"$f":"+'CE RICLASSIFICATO'!C12","v":0},{"$f":"+'CE RICLASSIFICATO'!D12","v":0},{"$f":"+'CE RICLASSIFICATO'!E12","v":0}]
[null,{"$f":"'CE RICLASSIFICATO'!B13","v":"Valore della produzione (a)"},{"$f":"+'CE RICLASSIFICATO'!C13","v":0},{"$f":"+'CE RICLASSIFICATO'!D13","v":0},{"$f":"+'CE RICLASSIFICATO'!E13","v":0}]
[null,{"$f":"'CE RICLASSIFICATO'!B14","v":"Costi per materie prime, sussidiari, di consumo e merci"},{"$f":"+'CE RICLASSIFICATO'!C14","v":0},{"$f":"+'CE RICLASSIFICATO'!D14","v":0},{"$f":"+'CE RICLASSIFICATO'!E14","v":0}]
[null,{"$f":"'CE RICLASSIFICATO'!B15","v":"Variazioni delle rimanenze di materie prime, sussidiarie, di consumo e merci"},{"$f":"+'CE RICLASSIFICATO'!C15","v":0},{"$f":"+'CE RICLASSIFICATO'!D15","v":0},{"$f":"+'CE RICLASSIFICATO'!E15","v":0}]
[null,{"$f":"'CE RICLASSIFICATO'!B16","v":"Costi per servizi"},{"$f":"+'CE RICLASSIFICATO'!C16","v":0},{"$f":"+'CE RICLASSIFICATO'!D16","v":0},{"$f":"+'CE RICLASSIFICATO'!E16","v":0}]
[null,{"$f":"'CE RICLASSIFICATO'!B17","v":"Costi per godimento di beni di terzi"},{"$f":"+'CE RICLASSIFICATO'!C17","v":0},{"$f":"+'CE RICLASSIFICATO'!D17","v":0},{"$f":"+'CE RICLASSIFICATO'!E17","v":0}]
[null,{"$f":"'CE RICLASSIFICATO'!B18","v":"Oneri diversi di gestione"},{"$f":"+'CE RICLASSIFICATO'!C18","v":0},{"$f":"+'CE RICLASSIFICATO'!D18","v":0},{"$f":"+'CE RICLASSIFICATO'!E18","v":0}]
[null,{"$f":"'CE RICLASSIFICATO'!B19","v":"Totale di consumi di materie, merci e servizi (b)"},{"$f":"+'CE RICLASSIFICATO'!C19","v":0},{"$f":"+'CE RICLASSIFICATO'!D19","v":0},{"$f":"+'CE RICLASSIFICATO'!E19","v":0}]
[null,{"$f":"'CE RICLASSIFICATO'!B20","v":"Valore aggiunto caratteristico (a-b)"},{"$f":"+'CE RICLASSIFICATO'!C20","v":0},{"$f":"+'CE RICLASSIFICATO'!D20","v":0},{"$f":"+'CE RICLASSIFICATO'!E20","v":0}]
[null,{"$f":"'CE RICLASSIFICATO'!B21","v":"Costi per il personale"},{"$f":"+'CE RICLASSIFICATO'!C21","v":0},{"$f":"+'CE RICLASSIFICATO'!D21","v":0},{"$f":"+'CE RICLASSIFICATO'!E21","v":0}]
[null,{"$f":"'CE RICLASSIFICATO'!B22","v":"Margine operativo lordo (EBITDA) MOL"},{"$f":"+'CE RICLASSIFICATO'!C22","v":0},{"$f":"+'CE RICLASSIFICATO'!D22","v":0},{"$f":"+'CE RICLASSIFICATO'!E22","v":0}]
[null,{"$f":"'CE RICLASSIFICATO'!B23","v":"Ammortamenti "},{"$f":"+'CE RICLASSIFICATO'!C23","v":0},{"$f":"+'CE RICLASSIFICATO'!D23","v":0},{"$f":"+'CE RICLASSIFICATO'!E23","v":0}]
[null,{"$f":"'CE RICLASSIFICATO'!B24","v":"Svalutazione dei crediti compresi nell'attivo circolante e delle disponibilità liquide"},{"$f":"+'CE RICLASSIFICATO'!C24","v":0},{"$f":"+'CE RICLASSIFICATO'!D24","v":0},{"$f":"+'CE RICLASSIFICATO'!E24","v":0}]
[null,{"$f":"'CE RICLASSIFICATO'!B25","v":"Accantonamenti a Fondi rischi e oneri"},{"$f":"+'CE RICLASSIFICATO'!C25","v":0},{"$f":"+'CE RICLASSIFICATO'!D25","v":0},{"$f":"+'CE RICLASSIFICATO'!E25","v":0}]
[null,{"$f":"'CE RICLASSIFICATO'!B26","v":"Reddito  operativo (EBIT)                            Gestione caratteristica o Margine operativo netto"},{"$f":"+'CE RICLASSIFICATO'!C26","v":0},{"$f":"+'CE RICLASSIFICATO'!D26","v":0},{"$f":"+'CE RICLASSIFICATO'!E26","v":0}]
[null,{"$f":"'CE RICLASSIFICATO'!B27","v":"Risultato della gestione finanziaria"},{"$f":"+'CE RICLASSIFICATO'!C27","v":0},{"$f":"+'CE RICLASSIFICATO'!D27","v":0},{"$f":"+'CE RICLASSIFICATO'!E27","v":0}]
[null,{"$f":"'CE RICLASSIFICATO'!B28","v":"Rettifiche di valore di attività finanziarie"},{"$f":"+'CE RICLASSIFICATO'!C28","v":0},{"$f":"+'CE RICLASSIFICATO'!D28","v":0},{"$f":"+'CE RICLASSIFICATO'!E28","v":0}]
[null,{"$f":"'CE RICLASSIFICATO'!B29","v":"Risultato della gestione accessoria"},{"$f":"+'CE RICLASSIFICATO'!C29","v":0},{"$f":"+'CE RICLASSIFICATO'!D29","v":0},{"$f":"+'CE RICLASSIFICATO'!E29","v":0}]
[null,{"$f":"'CE RICLASSIFICATO'!B30","v":"Utile lordo della gestione ordinaria"},{"$f":"+'CE RICLASSIFICATO'!C30","v":0},{"$f":"+'CE RICLASSIFICATO'!D30","v":0},{"$f":"+'CE RICLASSIFICATO'!E30","v":0}]
[null,{"$f":"'CE RICLASSIFICATO'!B31","v":"Saldo della gestione straordinaria"},{"$f":"+'CE RICLASSIFICATO'!C31","v":0},{"$f":"+'CE RICLASSIFICATO'!D31","v":0},{"$f":"+'CE RICLASSIFICATO'!E31","v":0}]
[null,{"$f":"'CE RICLASSIFICATO'!B32","v":"Utile lordo prima delle imposte"},{"$f":"+'CE RICLASSIFICATO'!C32","v":0},{"$f":"+'CE RICLASSIFICATO'!D32","v":0},{"$f":"+'CE RICLASSIFICATO'!E32","v":0}]
[null,{"$f":"'CE RICLASSIFICATO'!B33","v":"Imposte sul reddito dell'esercizio, correnti differite e anticipate"},{"$f":"+'CE RICLASSIFICATO'!C33","v":0},{"$f":"+'CE RICLASSIFICATO'!D33","v":0},{"$f":"+'CE RICLASSIFICATO'!E33","v":0}]
[null,{"$f":"'CE RICLASSIFICATO'!B34","v":"Risultato netto d'esercizio"},{"$f":"+'CE RICLASSIFICATO'!C34","v":0},{"$f":"+'CE RICLASSIFICATO'!D34","v":0},{"$f":"+'CE RICLASSIFICATO'!E34","v":0}]
[]
[]
[null,"CONTO ECONOMICO PERCENTUALIZZATO"]
[]
[null,null,{"$f":"+C56","v":"Anno n "},{"$f":"+D56","v":"Anno n - 1"},{"$f":"+E56","v":"Anno n - 2"}]
[null,null,{"$f":"+'CE RICLASSIFICATO'!C40","v":"00:00:00"},{"$f":"+'CE RICLASSIFICATO'!D40","v":"00:00:00"},{"$f":"+'CE RICLASSIFICATO'!E40","v":"00:00:00"}]
[]
[null,{"$f":"+'CE RICLASSIFICATO'!B42","v":"Ricavi netti di vendita"},{"$f":"+'CE RICLASSIFICATO'!C42","v":0},{"$f":"+'CE RICLASSIFICATO'!D42","v":0},{"$f":"+'CE RICLASSIFICATO'!E42","v":0}]
[null,{"$f":"+'CE RICLASSIFICATO'!B43","v":"Variazione delle rimanenze di prodotti in corso di lavorazione, semilavorati e finiti"},{"$f":"+'CE RICLASSIFICATO'!C43","v":0},{"$f":"+'CE RICLASSIFICATO'!D43","v":0},{"$f":"+'CE RICLASSIFICATO'!E43","v":0}]
[null,{"$f":"+'CE RICLASSIFICATO'!B44","v":"Variazione dei lavori in corso su ordinazione"},{"$f":"+'CE RICLASSIFICATO'!C44","v":0},{"$f":"+'CE RICLASSIFICATO'!D44","v":0},{"$f":"+'CE RICLASSIFICATO'!E44","v":0}]
[null,{"$f":"+'CE RICLASSIFICATO'!B45","v":"Incrementi delle immobilizzazioni per lavori interni"},{"$f":"+'CE RICLASSIFICATO'!C45","v":0},{"$f":"+'CE RICLASSIFICATO'!D45","v":0},{"$f":"+'CE RICLASSIFICATO'!E45","v":0}]
[null,{"$f":"+'CE RICLASSIFICATO'!B46","v":"Contributi in conto esercizio"},{"$f":"+'CE RICLASSIFICATO'!C46","v":0},{"$f":"+'CE RICLASSIFICATO'!D46","v":0},{"$f":"+'CE RICLASSIFICATO'!E46","v":0}]
[null,{"$f":"+'CE RICLASSIFICATO'!B47","v":"Valore della produzione (a)"},{"$f":"+'CE RICLASSIFICATO'!C47","v":0},{"$f":"+'CE RICLASSIFICATO'!D47","v":0},{"$f":"+'CE RICLASSIFICATO'!E47","v":0}]
[null,{"$f":"+'CE RICLASSIFICATO'!B48","v":"Costi per materie prime, sussidiari, di consumo e merci"},{"$f":"+'CE RICLASSIFICATO'!C48","v":0},{"$f":"+'CE RICLASSIFICATO'!D48","v":0},{"$f":"+'CE RICLASSIFICATO'!E48","v":0}]
[null,{"$f":"+'CE RICLASSIFICATO'!B49","v":"Variazioni delle rimanenze di materie prime, sussidiarie, di consumo e merci"},{"$f":"+'CE RICLASSIFICATO'!C49","v":0},{"$f":"+'CE RICLASSIFICATO'!D49","v":0},{"$f":"+'CE RICLASSIFICATO'!E49","v":0}]
[null,{"$f":"+'CE RICLASSIFICATO'!B50","v":"Costi per servizi"},{"$f":"+'CE RICLASSIFICATO'!C50","v":0},{"$f":"+'CE RICLASSIFICATO'!D50","v":0},{"$f":"+'CE RICLASSIFICATO'!E50","v":0}]
[null,{"$f":"+'CE RICLASSIFICATO'!B51","v":"Costi per godimento di beni di terzi"},{"$f":"+'CE RICLASSIFICATO'!C51","v":0},{"$f":"+'CE RICLASSIFICATO'!D51","v":0},{"$f":"+'CE RICLASSIFICATO'!E51","v":0}]
[null,{"$f":"+'CE RICLASSIFICATO'!B52","v":"Oneri diversi di gestione"},{"$f":"+'CE RICLASSIFICATO'!C52","v":0},{"$f":"+'CE RICLASSIFICATO'!D52","v":0},{"$f":"+'CE RICLASSIFICATO'!E52","v":0}]
[null,{"$f":"+'CE RICLASSIFICATO'!B53","v":"Totale di consumi di materie, merci e servizi (b)"},{"$f":"+'CE RICLASSIFICATO'!C53","v":0},{"$f":"+'CE RICLASSIFICATO'!D53","v":0},{"$f":"+'CE RICLASSIFICATO'!E53","v":0}]
[null,{"$f":"+'CE RICLASSIFICATO'!B54","v":"Valore aggiunto caratteristico (a-b)"},{"$f":"+'CE RICLASSIFICATO'!C54","v":0},{"$f":"+'CE RICLASSIFICATO'!D54","v":0},{"$f":"+'CE RICLASSIFICATO'!E54","v":0}]
[null,{"$f":"+'CE RICLASSIFICATO'!B55","v":"Costi per il personale"},{"$f":"+'CE RICLASSIFICATO'!C55","v":0},{"$f":"+'CE RICLASSIFICATO'!D55","v":0},{"$f":"+'CE RICLASSIFICATO'!E55","v":0}]
[null,{"$f":"+'CE RICLASSIFICATO'!B56","v":"Margine operativo lordo (EBITDA) MOL"},{"$f":"+'CE RICLASSIFICATO'!C56","v":0},{"$f":"+'CE RICLASSIFICATO'!D56","v":0},{"$f":"+'CE RICLASSIFICATO'!E56","v":0}]
[null,{"$f":"+'CE RICLASSIFICATO'!B57","v":"Ammortamenti "},{"$f":"+'CE RICLASSIFICATO'!C57","v":0},{"$f":"+'CE RICLASSIFICATO'!D57","v":0},{"$f":"+'CE RICLASSIFICATO'!E57","v":0}]
[null,{"$f":"+'CE RICLASSIFICATO'!B58","v":"Svalutazione dei crediti compresi nell'attivo circolante e delle disponibilità liquide"},{"$f":"+'CE RICLASSIFICATO'!C58","v":0},{"$f":"+'CE RICLASSIFICATO'!D58","v":0},{"$f":"+'CE RICLASSIFICATO'!E58","v":0}]
[null,{"$f":"+'CE RICLASSIFICATO'!B59","v":"Accantonamenti a Fondi rischi e oneri"},{"$f":"+'CE RICLASSIFICATO'!C59","v":0},{"$f":"+'CE RICLASSIFICATO'!D59","v":0},{"$f":"+'CE RICLASSIFICATO'!E59","v":0}]
[null,{"$f":"+'CE RICLASSIFICATO'!B60","v":"Reddito  operativo (EBIT)                            Gestione caratteristica o Margine operativo netto"},{"$f":"+'CE RICLASSIFICATO'!C60","v":0},{"$f":"+'CE RICLASSIFICATO'!D60","v":0},{"$f":"+'CE RICLASSIFICATO'!E60","v":0}]
[null,{"$f":"+'CE RICLASSIFICATO'!B61","v":"Risultato della gestione finanziaria"},{"$f":"+'CE RICLASSIFICATO'!C61","v":0},{"$f":"+'CE RICLASSIFICATO'!D61","v":0},{"$f":"+'CE RICLASSIFICATO'!E61","v":0}]
[null,{"$f":"+'CE RICLASSIFICATO'!B62","v":"Rettifiche di valore di attività finanziarie"},{"$f":"+'CE RICLASSIFICATO'!C62","v":0},{"$f":"+'CE RICLASSIFICATO'!D62","v":0},{"$f":"+'CE RICLASSIFICATO'!E62","v":0}]
[null,{"$f":"+'CE RICLASSIFICATO'!B63","v":"Risultato della gestione accessoria"},{"$f":"+'CE RICLASSIFICATO'!C63","v":0},{"$f":"+'CE RICLASSIFICATO'!D63","v":0},{"$f":"+'CE RICLASSIFICATO'!E63","v":0}]
[null,{"$f":"+'CE RICLASSIFICATO'!B64","v":"Utile lordo della gestione ordinaria"},{"$f":"+'CE RICLASSIFICATO'!C64","v":0},{"$f":"+'CE RICLASSIFICATO'!D64","v":0},{"$f":"+'CE RICLASSIFICATO'!E64","v":0}]
[null,{"$f":"+'CE RICLASSIFICATO'!B65","v":"Saldo della gestione straordinaria"},{"$f":"+'CE RICLASSIFICATO'!C65","v":0},{"$f":"+'CE RICLASSIFICATO'!D65","v":0},{"$f":"+'CE RICLASSIFICATO'!E65","v":0}]
[null,{"$f":"+'CE RICLASSIFICATO'!B66","v":"Utile lordo prima delle imposte"},{"$f":"+'CE RICLASSIFICATO'!C66","v":0},{"$f":"+'CE RICLASSIFICATO'!D66","v":0},{"$f":"+'CE RICLASSIFICATO'!E66","v":0}]
[null,{"$f":"+'CE RICLASSIFICATO'!B67","v":"Imposte sul reddito dell'esercizio, correnti differite e anticipate"},{"$f":"+'CE RICLASSIFICATO'!C67","v":0},{"$f":"+'CE RICLASSIFICATO'!D67","v":0},{"$f":"+'CE RICLASSIFICATO'!E67","v":0}]
[null,{"$f":"+'CE RICLASSIFICATO'!B68","v":"Risultato netto d'esercizio"},{"$f":"+'CE RICLASSIFICATO'!C68","v":0},{"$f":"+'CE RICLASSIFICATO'!D68","v":0},{"$f":"+'CE RICLASSIFICATO'!E68","v":0}]
[]
[]
[null,"CONTO ECONOMICO RICLASSIFICAZIONE FINANZIARIA"]
[]
[null,null,{"$f":"+C90","v":"Anno n "},{"$f":"+D90","v":"Anno n - 1"},"Anno n - 2"]
[null,null,{"$f":"+'CE RICLASSIFICATO'!C73","v":"00:00:00"},{"$f":"+'CE RICLASSIFICATO'!D73","v":"00:00:00"},{"$f":"+'CE RICLASSIFICATO'!E73","v":"00:00:00"}]
[null,{"$f":"+'CE RICLASSIFICATO'!B74","v":"COSTI   "}]
[null,{"$f":"+'CE RICLASSIFICATO'!B75","v":"Costi monetari"}]
[null,{"$f":"+'CE RICLASSIFICATO'!B76","v":"6-Per materie prime, suss.di cons.e merci"},{"$f":"+'CE RICLASSIFICATO'!C76","v":0},{"$f":"+'CE RICLASSIFICATO'!D76","v":0},{"$f":"+'CE RICLASSIFICATO'!E76","v":0}]
[null,{"$f":"+'CE RICLASSIFICATO'!B77","v":"7-Per servizi"},{"$f":"+'CE RICLASSIFICATO'!C77","v":0},{"$f":"+'CE RICLASSIFICATO'!D77","v":0},{"$f":"+'CE RICLASSIFICATO'!E77","v":0}]
[null,{"$f":"+'CE RICLASSIFICATO'!B78","v":"8-Per godimento beni di terzi"},{"$f":"+'CE RICLASSIFICATO'!C78","v":0},{"$f":"+'CE RICLASSIFICATO'!D78","v":0},{"$f":"+'CE RICLASSIFICATO'!E78","v":0}]
[null,{"$f":"+'CE RICLASSIFICATO'!B79","v":"11) variazioni delle rimanenze di materie prime, sussidiarie, di consumo e merci"},{"$f":"+'CE RICLASSIFICATO'!C79","v":0},{"$f":"+'CE RICLASSIFICATO'!D79","v":0},{"$f":"+'CE RICLASSIFICATO'!E79","v":0}]
[null,{"$f":"+'CE RICLASSIFICATO'!B80","v":"9-Per il personale"},{"$f":"+'CE RICLASSIFICATO'!C80","v":0},{"$f":"+'CE RICLASSIFICATO'!D80","v":0},{"$f":"+'CE RICLASSIFICATO'!E80","v":0}]
[null,{"$f":"+'CE RICLASSIFICATO'!B81","v":" a) salari e stipendi"},{"$f":"+'CE RICLASSIFICATO'!C81","v":0},{"$f":"+'CE RICLASSIFICATO'!D81","v":0},{"$f":"+'CE RICLASSIFICATO'!E81","v":0}]
[null,{"$f":"+'CE RICLASSIFICATO'!B82","v":" b) oneri sociali"},{"$f":"+'CE RICLASSIFICATO'!C82","v":0},{"$f":"+'CE RICLASSIFICATO'!D82","v":0},{"$f":"+'CE RICLASSIFICATO'!E82","v":0}]
[null,{"$f":"+'CE RICLASSIFICATO'!B83","v":" e) altri costI"},{"$f":"+'CE RICLASSIFICATO'!C83","v":0},{"$f":"+'CE RICLASSIFICATO'!D83","v":0},{"$f":"+'CE RICLASSIFICATO'!E83","v":0}]
[null,{"$f":"+'CE RICLASSIFICATO'!B84","v":" d) svalutazione crediti"},{"$f":"+'CE RICLASSIFICATO'!C84","v":0},{"$f":"+'CE RICLASSIFICATO'!D84","v":0},{"$f":"+'CE RICLASSIFICATO'!E84","v":0}]
[null,{"$f":"+'CE RICLASSIFICATO'!B85","v":"14-Oneri diversi di gestione"},{"$f":"+'CE RICLASSIFICATO'!C85","v":0},{"$f":"+'CE RICLASSIFICATO'!D85","v":0},{"$f":"+'CE RICLASSIFICATO'!E85","v":0}]
[null,{"$f":"+'CE RICLASSIFICATO'!B86","v":"17-Interessi e altri oneri finanziari"},{"$f":"+'CE RICLASSIFICATO'!C86","v":0},{"$f":"+'CE RICLASSIFICATO'!D86","v":0},{"$f":"+'CE RICLASSIFICATO'!E86","v":0}]
[null,{"$f":"+'CE RICLASSIFICATO'!B87","v":"22-Imposte sul reddito dell'esercizio"},{"$f":"+'CE RICLASSIFICATO'!C87","v":0},{"$f":"+'CE RICLASSIFICATO'!D87","v":0},{"$f":"+'CE RICLASSIFICATO'!E87","v":0}]
[null,{"$f":"+'CE RICLASSIFICATO'!B88","v":"Totale costi monetari"},{"$f":"+'CE RICLASSIFICATO'!C88","v":0},{"$f":"+'CE RICLASSIFICATO'!D88","v":0},{"$f":"+'CE RICLASSIFICATO'!E88","v":0}]
[]
[null,{"$f":"+'CE RICLASSIFICATO'!B90","v":"Costi non monetari"},{"$f":"+'CE RICLASSIFICATO'!C90","v":0},{"$f":"+'CE RICLASSIFICATO'!D90","v":0},{"$f":"+'CE RICLASSIFICATO'!E90","v":0}]
[null,{"$f":"+'CE RICLASSIFICATO'!B91","v":" c) trattamento di fine rapporto"},{"$f":"+'CE RICLASSIFICATO'!C91","v":0},{"$f":"+'CE RICLASSIFICATO'!D91","v":0},{"$f":"+'CE RICLASSIFICATO'!E91","v":0}]
[null,{"$f":"+'CE RICLASSIFICATO'!B92","v":" d) trattamento di quiescenza e simili"},{"$f":"+'CE RICLASSIFICATO'!C92","v":0},{"$f":"+'CE RICLASSIFICATO'!D92","v":0},{"$f":"+'CE RICLASSIFICATO'!E92","v":0}]
[null,{"$f":"+'CE RICLASSIFICATO'!B93","v":" a) ammortamento immobil. Immateriali"},{"$f":"+'CE RICLASSIFICATO'!C93","v":0},{"$f":"+'CE RICLASSIFICATO'!D93","v":0},{"$f":"+'CE RICLASSIFICATO'!E93","v":0}]
[null,{"$f":"+'CE RICLASSIFICATO'!B94","v":" b) ammortamento immobil. Materiali"},{"$f":"+'CE RICLASSIFICATO'!C94","v":0},{"$f":"+'CE RICLASSIFICATO'!D94","v":0},{"$f":"+'CE RICLASSIFICATO'!E94","v":0}]
[null,{"$f":"+'CE RICLASSIFICATO'!B95","v":" c) altre svalutazioni delle immobilizzazioni"},{"$f":"+'CE RICLASSIFICATO'!C95","v":0},{"$f":"+'CE RICLASSIFICATO'!D95","v":0},{"$f":"+'CE RICLASSIFICATO'!E95","v":0}]
[null,{"$f":"+'CE RICLASSIFICATO'!B96","v":"12-Accantonamenti per rischi"},{"$f":"+'CE RICLASSIFICATO'!C96","v":0},{"$f":"+'CE RICLASSIFICATO'!D96","v":0},{"$f":"+'CE RICLASSIFICATO'!E96","v":0}]
[null,{"$f":"+'CE RICLASSIFICATO'!B97","v":"13-Altri accantonamenti"},{"$f":"+'CE RICLASSIFICATO'!C97","v":0},{"$f":"+'CE RICLASSIFICATO'!D97","v":0},{"$f":"+'CE RICLASSIFICATO'!E97","v":0}]
[null,{"$f":"+'CE RICLASSIFICATO'!B98","v":"19-Svalutazioni"},{"$f":"+'CE RICLASSIFICATO'!C98","v":0},{"$f":"+'CE RICLASSIFICATO'!D98","v":0},{"$f":"+'CE RICLASSIFICATO'!E98","v":0}]
[null,{"$f":"+'CE RICLASSIFICATO'!B99","v":0},{"$f":"+'CE RICLASSIFICATO'!C99","v":0},{"$f":"+'CE RICLASSIFICATO'!D99","v":0},{"$f":"+'CE RICLASSIFICATO'!E99","v":0}]
[null,{"$f":"+'CE RICLASSIFICATO'!B100","v":"Totale costi non monetari"},{"$f":"+'CE RICLASSIFICATO'!C100","v":0},{"$f":"+'CE RICLASSIFICATO'!D100","v":0},{"$f":"+'CE RICLASSIFICATO'!E100","v":0}]
[null,{"$f":"+'CE RICLASSIFICATO'!B101","v":"Totale costi "},{"$f":"+'CE RICLASSIFICATO'!C101","v":0},{"$f":"+'CE RICLASSIFICATO'!D101","v":0},{"$f":"+'CE RICLASSIFICATO'!E101","v":0}]
[null,{"$f":"+'CE RICLASSIFICATO'!B102","v":"23-Utile (perdita) dell'esercizio"},{"$f":"+'CE RICLASSIFICATO'!C102","v":0},{"$f":"+'CE RICLASSIFICATO'!D102","v":0},{"$f":"+'CE RICLASSIFICATO'!E102","v":0}]
[null,{"$f":"+'CE RICLASSIFICATO'!B103","v":"Totale a pareggio"},{"$f":"+'CE RICLASSIFICATO'!C103","v":0},{"$f":"+'CE RICLASSIFICATO'!D103","v":0},{"$f":"+'CE RICLASSIFICATO'!E103","v":0}]
[null,{"$f":"+'CE RICLASSIFICATO'!B104","v":"Quadratura con Utile (Perdita) del conto economico"},{"$f":"+'CE RICLASSIFICATO'!C104","v":0},{"$f":"+'CE RICLASSIFICATO'!D104","v":0},{"$f":"+'CE RICLASSIFICATO'!E104","v":0}]
[null,{"$f":"+'CE RICLASSIFICATO'!B105","v":"formula"},{"$f":"+'CE RICLASSIFICATO'!C105","v":"ok"},{"$f":"+'CE RICLASSIFICATO'!D105","v":"ok"},{"$f":"+'CE RICLASSIFICATO'!E105","v":"ok"}]
[null,null,{"$f":"+'CE RICLASSIFICATO'!C106","v":""},{"$f":"+'CE RICLASSIFICATO'!D106","v":""},{"$f":"+'CE RICLASSIFICATO'!E106","v":""}]
[null,null,{"$f":"+'CE RICLASSIFICATO'!C107","v":"00:00:00"},{"$f":"+'CE RICLASSIFICATO'!D107","v":"00:00:00"},{"$f":"+'CE RICLASSIFICATO'!E107","v":"00:00:00"}]
[null,{"$f":"+'CE RICLASSIFICATO'!B108","v":"RICAVI  "}]
[null,{"$f":"+'CE RICLASSIFICATO'!B109","v":"Ricavi monetari"}]
[null,{"$f":"+'CE RICLASSIFICATO'!B110","v":"1 Ricavi delle vendite e delle prestaz."},{"$f":"+'CE RICLASSIFICATO'!C110","v":0},{"$f":"+'CE RICLASSIFICATO'!D110","v":0},{"$f":"+'CE RICLASSIFICATO'!E110","v":0}]
[null,{"$f":"+'CE RICLASSIFICATO'!B111","v":"5-Altri ricavi e proventi"},{"$f":"+'CE RICLASSIFICATO'!C111","v":0},{"$f":"+'CE RICLASSIFICATO'!D111","v":0},{"$f":"+'CE RICLASSIFICATO'!E111","v":0}]
[null,{"$f":"+'CE RICLASSIFICATO'!B112","v":"15-Proventi da partecipazioni"},{"$f":"+'CE RICLASSIFICATO'!C112","v":0},{"$f":"+'CE RICLASSIFICATO'!D112","v":0},{"$f":"+'CE RICLASSIFICATO'!E112","v":0}]
[null,{"$f":"+'CE RICLASSIFICATO'!B113","v":"16-Altri proventi finanziari"},{"$f":"+'CE RICLASSIFICATO'!C113","v":0},{"$f":"+'CE RICLASSIFICATO'!D113","v":0},{"$f":"+'CE RICLASSIFICATO'!E113","v":0}]
[null,{"$f":"+'CE RICLASSIFICATO'!B114","v":"2-Variaz.delle riman.di prod. In c. e finiti"},{"$f":"+'CE RICLASSIFICATO'!C114","v":0},{"$f":"+'CE RICLASSIFICATO'!D114","v":0},{"$f":"+'CE RICLASSIFICATO'!E114","v":0}]
[null,{"$f":"+'CE RICLASSIFICATO'!B115","v":"3-Variaz. Lav. In corso su ord."},{"$f":"+'CE RICLASSIFICATO'!C115","v":0},{"$f":"+'CE RICLASSIFICATO'!D115","v":0},{"$f":"+'CE RICLASSIFICATO'!E115","v":0}]
[null,{"$f":"+'CE RICLASSIFICATO'!B116","v":"Utili/Perdite su cambi"},{"$f":"+'CE RICLASSIFICATO'!C116","v":0},{"$f":"+'CE RICLASSIFICATO'!D116","v":0},{"$f":"+'CE RICLASSIFICATO'!E116","v":0}]
[null,{"$f":"+'CE RICLASSIFICATO'!B117","v":"Totale ricavi monetari"},{"$f":"+'CE RICLASSIFICATO'!C117","v":0},{"$f":"+'CE RICLASSIFICATO'!D117","v":0},{"$f":"+'CE RICLASSIFICATO'!E117","v":0}]
[]
[null,{"$f":"+'CE RICLASSIFICATO'!B119","v":"Ricavi non monetari"}]
[null,{"$f":"+'CE RICLASSIFICATO'!B120","v":"4-Increm. Immobil. Per lav. Interni"},{"$f":"+'CE RICLASSIFICATO'!C120","v":0},{"$f":"+'CE RICLASSIFICATO'!D120","v":0},{"$f":"+'CE RICLASSIFICATO'!E120","v":0}]
[null,{"$f":"+'CE RICLASSIFICATO'!B121","v":"18-Rivalutazioni"},{"$f":"+'CE RICLASSIFICATO'!C121","v":0},{"$f":"+'CE RICLASSIFICATO'!D121","v":0},{"$f":"+'CE RICLASSIFICATO'!E121","v":0}]
[null,{"$f":"+'CE RICLASSIFICATO'!B122","v":0},{"$f":"+'CE RICLASSIFICATO'!C122","v":0},{"$f":"+'CE RICLASSIFICATO'!D122","v":0},{"$f":"+'CE RICLASSIFICATO'!E122","v":0}]
[null,{"$f":"+'CE RICLASSIFICATO'!B123","v":"Totale ricavi non monetari"},{"$f":"+'CE RICLASSIFICATO'!C123","v":0},{"$f":"+'CE RICLASSIFICATO'!D123","v":0},{"$f":"+'CE RICLASSIFICATO'!E123","v":0}]
[null,{"$f":"+'CE RICLASSIFICATO'!B124","v":"Totale ricavi "},{"$f":"+'CE RICLASSIFICATO'!C124","v":0},{"$f":"+'CE RICLASSIFICATO'!D124","v":0},{"$f":"+'CE RICLASSIFICATO'!E124","v":0}]
[]
[null,{"$f":"+'CE RICLASSIFICATO'!B126","v":"CASH FLOW OPERATIVO"},{"$f":"+'CE RICLASSIFICATO'!C126","v":0},{"$f":"+'CE RICLASSIFICATO'!D126","v":0},{"$f":"+'CE RICLASSIFICATO'!E126","v":0}]
[null,"Ricavi monetari - Costi monetari"]
[]
[]
[]
[null,null,null,null,"Vai inizio pagina"]

{"sheet":"CRITERIO RICLASS. SP","index":10,"n_rows":197,"n_cols":4,"rows_kept":197,"cut":false,"hidden":false,"merged":[[5,2,6,2],[2,1,2,2],[3,1,3,2]]}
[]
[]
[null,"In questo schema è riportato per ognuna delle voci di bilancio, la sua destinazione all'interno dello schema di Stato patrimoniale riclassificato. "]
[null,"E' stato utilizzato il criterio finanziario."]
[null,null,null,"Indietro"]
[null,"STATO PATRIMONIALE  (art. 2424 c.c.)","RICLASSIFICAZIONE CRITERIO FINANZIARIO"]
[null,"ATTIVO"]
[null,"A) Crediti verso i soci per versamenti ancora dovuti con separata indicazione della parte già richiamata"]
[null,"Crediti verso soci per versamenti ancora dovuti","Attivo immobilizzato"]
[null,"Decimi già richiamati","Crediti finanziari a breve"]
[null,"Totale Crediti v/soci"]
[null,"B) Immobilizzazioni con separata indicazione di quelle concesse in locazione finanziaria"]
[null,"I - Immobilizzazioni immateriali"]
[null,"1) costi di impianto e di ampliamento","Attivo immobilizzato"]
[null,"2) costi di sviluppo","Attivo immobilizzato"]
[null,"3) diritti di brevetto ind.le e diritti di utilizzazione delle opere dell'ingegno","Attivo immobilizzato"]
[null,"4) concessioni, licenze, marchi e simili","Attivo immobilizzato"]
[null,"5) avviamento","Attivo immobilizzato"]
[null,"6) immobilizzazioni in corso e acconti","Attivo immobilizzato"]
[null,"7) altre","Attivo immobilizzato"]
[null,"Totale"]
[null,"II - Immobilizzazioni materiali"]
[null,"1) terreni e fabbricati","Attivo immobilizzato"]
[null,"2) Impianti e macchinari","Attivo immobilizzato"]
[null,"3) Attrezzature industriali e commerciali","Attivo immobilizzato"]
[null,"4) Altri beni","Attivo immobilizzato"]
[null,"5) Immobilizzazioni in corso e acconti","Attivo immobilizzato"]
[null,"Totale"]
[null,"III - Immobilizzazioni finanziarie con separata indicazionen per ciascuna voce dei crediti, degl importi esigibili entro l'esercizio successivo"]
[null,"1) partecipazioni in:"]
[null,"a) imprese controllate","Attivo immobilizzato"]
[null,"b) imprese collegate","Attivo immobilizzato"]
[null,"c) imprese controllanti","Attivo immobilizzato"]
[null,"d) imprese sottoposte al controllo delle controllanti","Attivo immobilizzato"]
[null,"d bis) altre imprese","Attivo immobilizzato"]
[null,"2) crediti:"]
[null,"a) verso imprese controllate"]
[null,"Entro l'esercizio successivo","Crediti finanziari a breve"]
[null,"Oltre l'esercizio successivo","Attivo immobilizzato"]
[null,"b) verso imprese collegate"]
[null,"Entro l'esercizio successivo","Crediti finanziari a breve"]
[null,"Oltre l'esercizio successivo","Attivo immobilizzato"]
[null,"c) verso controllanti"]
[null,"Entro l'esercizio successivo","Crediti finanziari a breve"]
[null,"Oltre l'esercizio successivo","Attivo immobilizzato"]
[null,"d) verso imprese sottoposte al controllo delle controllanti"]
[null,"Entro l'esercizio successivo","Crediti finanziari a breve"]
[null,"Oltre l'esercizio successivo","Attivo immobilizzato"]
[null,"d bis) verso altri"]
[null,"Entro l'esercizio successivo","Crediti finanziari a breve"]
[null,"Oltre l'esercizio successivo","Attivo immobilizzato"]
[null,"3) altri titoli","Attivo immobilizzato"]
[null,"4) strumenti derivati finanziari attivi","Attivo immobilizzato"]
[null,"Totale"]
[null,"Totale Immobilizzazioni"]
[null,"C) ATTIVO CIRCOLANTE"]
[null,"I - Rimanenze"]
[null,"1) materie prime sussidiarie e di consumo","Rimanenze"]
[null,"2) prodotti in corso di lavorazione e semilavorati","Rimanenze"]
[null,"3) lavori in corso su ordinazioni","Rimanenze"]
[null,"4) prodotti finiti e merci","Rimanenze"]
[null,"5) acconti","Rimanenze"]
[null,"Totale"]
[null,"II - Crediti, con separata indicazione, per ciascuna voce, degli importi esigibili oltre l'esercizio successivo:"]
[null,"1) verso clienti"]
[null,"Entro l'esercizio successivo","Crediti commerciali"]
[null,"Oltre l'esercizio successivo","Attivo immobilizzato"]
[null,"2) verso imprese controllate"]
[null,"Entro l'esercizio successivo","Crediti commerciali"]
[null,"Oltre l'esercizio successivo","Attivo immobilizzato"]
[null,"3) verso imprese collegate"]
[null,"Entro l'esercizio successivo","Crediti commerciali"]
[null,"Oltre l'esercizio successivo","Attivo immobilizzato"]
[null,"4) verso controllanti"]
[null,"Entro l'esercizio successivo","Crediti commerciali"]
[null,"Oltre l'esercizio successivo","Attivo immobilizzato"]
[null,"5) verso imprese sottoposte al controllo delle controllanti"]
[null,"Entro l'esercizio successivo","Crediti commerciali"]
[null,"Oltre l'esercizio successivo","Attivo immobilizzato"]
[null,"5 bis) crediti tributari"]
[null,"Entro l'esercizio successivo","Crediti commerciali"]
[null,"Oltre l'esercizio successivo","Attivo immobilizzato"]
[null,"5 ter) imposte anticipate"]
[null,"Entro l'esercizio successivo","Crediti commerciali"]
[null,"Oltre l'esercizio successivo","Attivo immobilizzato"]
[null,"5 quater) verso altri"]
[null,"Entro l'esercizio successivo","Crediti commerciali"]
[null,"Oltre l'esercizio successivo","Attivo immobilizzato"]
[null,"Totale"]
[null,"III - Attività finanziarie che non costituiscono immobilizzazioni"]
[null,"1) partecipazioni in imprese controllate","Crediti finanziari a breve"]
[null,"2) partecipazioni in imprese collegate","Crediti finanziari a breve"]
[null,"3) partecipazioni in imprese controllanti","Crediti finanziari a breve"]
[null,"3 bis) partecipazione in imprese sottoposte al controllo delle controllanti","Crediti finanziari a breve"]
[null,"4) altre partecipazioni","Crediti finanziari a breve"]
[null,"5) strumenti finanziari derivati","Crediti finanziari a breve"]
[null,"6) altri titoli","Crediti finanziari a breve"]
[null,"Totale"]
[null,"IV - Disponibilità liquide"]
[null,"1) depositi bancari e postali","Liquidità"]
[null,"2) assegni","Liquidità"]
[null,"3) denaro e valori in cassa","Liquidità"]
[null,"Totale"]
[null,"Totale Attivo Circolante"]
[null,"D) Ratei e risconti"]
[null,"di natura finanziaria","Crediti finanziari a breve"]
[null,"di natura commerciale","Crediti commerciali a breve"]
[null,"TOTALE ATTIVO"]
[]
[null,"PASSIVO"]
[]
[null,"A) Patrimonio netto"]
[null,"I - Capitale sociale","Patrimonio Netto"]
[null,"II - Riserva sopraprezzo azioni","Patrimonio Netto"]
[null,"III - Riserva di rivalutazione","Patrimonio Netto"]
[null,"IV - Riserva legale","Patrimonio Netto"]
[null,"V - Riserve statutarie","Patrimonio Netto"]
[null,"VI - Altre riserve, distintamente indicate","Patrimonio Netto"]
[null,"VII - Riserva per operazioni di copertura dei flussi finanziari attesi","Patrimonio Netto"]
[null,"VIII - Utili (perdite) portati a nuovo","Patrimonio Netto"]
[null,"IX - Utili (perdite) dell'esercizio"]
[null,"Parte non distribuita o prelevata (utile o perdita)","Patrimonio Netto"]
[null,"Parte di utile distribuita o prelevata","Pasività Correnti"]
[null,"X - Riserva negativa per azioni proprie in portafoglio","(Patrimonio Netto)"]
[null,"Totale A) Patrimonio Netto"]
[null,"B) Fondi per rischi e oneri"]
[null,"1) per trattamento di quiescenza e obblighi simili"]
[null,"Entro l'esercizio successivo","Pasività Correnti"]
[null,"Oltre l'esercizio successivo","Debiti a medio lungo termine"]
[null,"2) per imposte, anche differite"]
[null,"Entro l'esercizio successivo","Pasività Correnti"]
[null,"Oltre l'esercizio successivo","Debiti a medio lungo termine"]
[null,"3) strumenti finanziari derivati passivi"]
[null,"Entro l'esercizio successivo","Pasività Correnti"]
[null,"Oltre l'esercizio successivo","Debiti a medio lungo termine"]
[null,"4) altri"]
[null,"Entro l'esercizio successivo","Pasività Correnti"]
[null,"Oltre l'esercizio successivo","Debiti a medio lungo termine"]
[null,"Totale B)"]
[null,"C) Trattamento di fine rapporto di lavoro subordinato"]
[null,"Entro l'esercizio successivo","Pasività Correnti"]
[null,"Oltre l'esercizio successivo","Debiti a medio lungo termine"]
[null,"Totale C)"]
[null,"D) Debiti con separata indicazione, per ciascuna voce, degli importi esigibili oltre l'esercizio successivo"]
[null,"1) obbligazioni"]
[null,"Entro l'esercizio successivo","Pasività Correnti"]
[null,"Oltre l'esercizio successivo","Debiti a medio lungo termine"]
[null,"2) obbligazioni convertibili"]
[null,"Entro l'esercizio successivo","Pasività Correnti"]
[null,"Oltre l'esercizio successivo","Debiti a medio lungo termine"]
[null,"3) debiti verso soci per finanziamenti"]
[null,"Entro l'esercizio successivo","Pasività Correnti"]
[null,"Oltre l'esercizio successivo","Debiti a medio lungo termine"]
[null,"4) debiti verso banche"]
[null,"Entro l'esercizio successivo","Pasività Correnti"]
[null,"Oltre l'esercizio successivo","Debiti a medio lungo termine"]
[null,"5) debiti verso altri finanziatori"]
[null,"Entro l'esercizio successivo","Pasività Correnti"]
[null,"Oltre l'esercizio successivo","Debiti a medio lungo termine"]
[null,"6) acconti"]
[null,"Entro l'esercizio successivo","Pasività Correnti"]
[null,"Oltre l'esercizio successivo","Debiti a medio lungo termine"]
[null,"7) debiti verso fornitori"]
[null,"Entro l'esercizio successivo","Pasività Correnti"]
[null,"Oltre l'esercizio successivo","Debiti a medio lungo termine"]
[null,"8) debiti rappresentati da titoli di credito"]
[null,"Entro l'esercizio successivo","Pasività Correnti"]
[null,"Oltre l'esercizio successivo","Debiti a medio lungo termine"]
[null,"9) debiti verso imprese controllate"]
[null,"Entro l'esercizio successivo","Pasività Correnti"]
[null,"Oltre l'esercizio successivo","Debiti a medio lungo termine"]
[null,"10) debiti verso imprese collegate"]
[null,"Entro l'esercizio successivo","Pasività Correnti"]
[null,"Oltre l'esercizio successivo","Debiti a medio lungo termine"]
[null,"11) debiti verso controllanti"]
[null,"Entro l'esercizio successivo","Pasività Correnti"]
[null,"Oltre l'esercizio successivo","Debiti a medio lungo termine"]
[null,"11 bis) debiti verso imprese sottoposte al controllo delle controllanti"]
[null,"Entro l'esercizio successivo","Pasività Correnti"]
[null,"Oltre l'esercizio successivo","Debiti a medio lungo termine"]
[null,"12) debiti tributari"]
[null,"Entro l'esercizio successivo","Pasività Correnti"]
[null,"Oltre l'esercizio successivo","Debiti a medio lungo termine"]
[null,"13) debiti verso istituti di previdenza e sicurezza sociale"]
[null,"Entro l'esercizio successivo","Pasività Correnti"]
[null,"Oltre l'esercizio successivo","Debiti a medio lungo termine"]
[null,"14) altri debiti"]
[null,"Entro l'esercizio successivo","Pasività Correnti"]
[null,"Oltre l'esercizio successivo","Debiti a medio lungo termine"]
[null,"Totale   D)"]
[null,"E) Ratei e Risconti"]
[null,"di natura finanziaria","Debiti finanziari a breve"]
[null,"di natura commerciale","Debiti commerciali a breve"]
[null,"TOTALE PASSIVO"]
[]
[]
[null,null,"Vai inizio pagina"]

{"sheet":"INDICI E MARGINI","index":11,"n_rows":113,"n_cols":9,"rows_kept":113,"cut":false,"hidden":false,"merged":[[89,1,89,2],[73,1,73,2],[74,1,74,2],[6,1,6,2],[17,1,17,2],[26,1,26,2],[27,1,27,2],[31,1,31,2],[35,1,35,2],[57,1,57,2],[75,1,75,2],[66,1,66,2],[72,1,72,2],[67,1,67,2],[68,1,68,2],[69,1,69,2],[90,1,90,2],[91,1,91,2],[92,1,92,2],[93,1,93,2],[94,1,94,2],[102,1,102,2],[106,1,106,2],[95,1,95,2],[96,1,96,2],[97,1,97,2],[98,1,98,2],[99,1,99,2],[87,1,87,2],[88,1,88,2],[70,1,70,2],[71,1,71,2],[3,1,3,6],[78,1,78,2]]}
[]
[null,"Report 7"]
[null,{"$f":"+ANAGRAFICA!C5","v":0}]
[null,"ANALISI PER INDICI E MARGINI DI BILANCIO"]
[null,"Report 2",null,null,null,null,null,null,"Indietro"]
[null,null,null,{"$f":"+'INPUT BILANCI'!C9","v":"00:00:00"},{"$f":"+'INPUT BILANCI'!D9","v":"00:00:00"},{"$f":"+'INPUT BILANCI'!E9","v":"00:00:00"},"Parametri di riferimento"]
[null,"INDICI DI REDDITIVITA'",null,null,null,null,null,null,"Vai al foglio"]
[null,"ROE","Rn/PN",{"$f":"+'INPUT BILANCI'!C293/'BILANCI RICLASSIFICATI'!C25","v":{"$error":"#DIV/0!"}},{"$f":"+'INPUT BILANCI'!D293/'BILANCI RICLASSIFICATI'!D25","v":{"$error":"#DIV/0!"}},{"$f":"+'INPUT BILANCI'!E293/'BILANCI RICLASSIFICATI'!E25","v":{"$error":"#DIV/0!"}},"Trend",null,"COMMENTO INDICI"]
[null,"ROI","EBIT/TI",{"$f":"+'CE RICLASSIFICATO'!C26/'BILANCI RICLASSIFICATI'!C21","v":{"$error":"#DIV/0!"}},{"$f":"+'CE RICLASSIFICATO'!D26/'BILANCI RICLASSIFICATI'!D21","v":{"$error":"#DIV/0!"}},{"$f":"+'CE RICLASSIFICATO'!E26/'BILANCI RICLASSIFICATI'!E21","v":{"$error":"#DIV/0!"}},"Trend"]
[null,"RONA","EBIT/TI-Dc-F-D.TFR",{"$f":"+'CE RICLASSIFICATO'!C26/('BILANCI RICLASSIFICATI'!C21-'BILANCI RICLASSIFICATI'!C29-'INPUT BILANCI'!C143-'INPUT BILANCI'!C147)","v":{"$error":"#DIV/0!"}},{"$f":"+'CE RICLASSIFICATO'!D26/('BILANCI RICLASSIFICATI'!D21-'BILANCI RICLASSIFICATI'!D29-'INPUT BILANCI'!D143-'INPUT BILANCI'!D147)","v":{"$error":"#DIV/0!"}},{"$f":"+'CE RICLASSIFICATO'!E26/('BILANCI RICLASSIFICATI'!E21-'BILANCI RICLASSIFICATI'!E29-'INPUT BILANCI'!E143-'INPUT BILANCI'!E147)","v":{"$error":"#DIV/0!"}},"Trend"]
[null,"ROD","Of/Ct",{"$f":"+('INPUT BILANCI'!C264+'INPUT BILANCI'!C265+'INPUT BILANCI'!C266+'INPUT BILANCI'!C267)/'BILANCI RICLASSIFICATI'!C31","v":{"$error":"#DIV/0!"}},{"$f":"+('INPUT BILANCI'!D264+'INPUT BILANCI'!D265+'INPUT BILANCI'!D266+'INPUT BILANCI'!D267)/'BILANCI RICLASSIFICATI'!D31","v":{"$error":"#DIV/0!"}},{"$f":"+('INPUT BILANCI'!E264+'INPUT BILANCI'!E265+'INPUT BILANCI'!E266+'INPUT BILANCI'!E267)/'BILANCI RICLASSIFICATI'!E31","v":{"$error":"#DIV/0!"}},"Trend"]
[null,"Leverage","Ti/PN",{"$f":"+'BILANCI RICLASSIFICATI'!C21/'BILANCI RICLASSIFICATI'!C25","v":{"$error":"#DIV/0!"}},{"$f":"+'BILANCI RICLASSIFICATI'!D21/'BILANCI RICLASSIFICATI'!D25","v":{"$error":"#DIV/0!"}},{"$f":"+'BILANCI RICLASSIFICATI'!E21/'BILANCI RICLASSIFICATI'!E25","v":{"$error":"#DIV/0!"}},"< 2"]
[null,"Incidenza della gestione non operativa","Rn/EBIT",{"$f":"+'CE RICLASSIFICATO'!C34/'CE RICLASSIFICATO'!C26","v":{"$error":"#DIV/0!"}},{"$f":"+'CE RICLASSIFICATO'!D34/'CE RICLASSIFICATO'!D26","v":{"$error":"#DIV/0!"}},{"$f":"+'CE RICLASSIFICATO'!E34/'CE RICLASSIFICATO'!E26","v":{"$error":"#DIV/0!"}},"Trend"]
[null,"ROS","EBIT/Rv",{"$f":"+'CE RICLASSIFICATO'!C26/'CE RICLASSIFICATO'!C8","v":{"$error":"#DIV/0!"}},{"$f":"+'CE RICLASSIFICATO'!D26/'CE RICLASSIFICATO'!D8","v":{"$error":"#DIV/0!"}},{"$f":"+'CE RICLASSIFICATO'!E26/'CE RICLASSIFICATO'!E8","v":{"$error":"#DIV/0!"}},"Trend"]
[null,"Convenienza a ulteriore indebitamento","ROI - ROD",{"$f":"+D9-D11","v":{"$error":"#DIV/0!"}},{"$f":"+E9-E11","v":{"$error":"#DIV/0!"}},{"$error":"#DIV/0!"},"> 0"]
[]
[]
[null,"INDICI PATRIMONIALI",null,{"$f":"+D6","v":"00:00:00"},{"$f":"+E6","v":"00:00:00"},{"$f":"+F6","v":"00:00:00"},"Parametri di riferimento"]
[null,"Rigidità degli impieghi","I/TI",{"$f":"+'BILANCI RICLASSIFICATI'!C14/'BILANCI RICLASSIFICATI'!C21","v":{"$error":"#DIV/0!"}},{"$f":"+'BILANCI RICLASSIFICATI'!D14/'BILANCI RICLASSIFICATI'!D21","v":{"$error":"#DIV/0!"}},{"$f":"+'BILANCI RICLASSIFICATI'!E14/'BILANCI RICLASSIFICATI'!E21","v":{"$error":"#DIV/0!"}},"< 70%"]
[null,"Elasticità degli impieghi","Ac/Ti",{"$f":"+'BILANCI RICLASSIFICATI'!C20/'BILANCI RICLASSIFICATI'!C21","v":{"$error":"#DIV/0!"}},{"$f":"+'BILANCI RICLASSIFICATI'!D20/'BILANCI RICLASSIFICATI'!D21","v":{"$error":"#DIV/0!"}},{"$f":"+'BILANCI RICLASSIFICATI'!E20/'BILANCI RICLASSIFICATI'!E21","v":{"$error":"#DIV/0!"}},"> 30%"]
[null,"Incidenza dei debiti a breve","Db/Tp",{"$f":"+'BILANCI RICLASSIFICATI'!C30/'BILANCI RICLASSIFICATI'!C32","v":{"$error":"#DIV/0!"}},{"$f":"+'BILANCI RICLASSIFICATI'!D30/'BILANCI RICLASSIFICATI'!D32","v":{"$error":"#DIV/0!"}},{"$f":"+'BILANCI RICLASSIFICATI'!E30/'BILANCI RICLASSIFICATI'!E32","v":{"$error":"#DIV/0!"}}]
[null,"Autonomia finanziaria","Pn/Tp",{"$f":"+'BILANCI RICLASSIFICATI'!C25/'BILANCI RICLASSIFICATI'!C32","v":{"$error":"#DIV/0!"}},{"$f":"+'BILANCI RICLASSIFICATI'!D25/'BILANCI RICLASSIFICATI'!D32","v":{"$error":"#DIV/0!"}},{"$f":"+'BILANCI RICLASSIFICATI'!E25/'BILANCI RICLASSIFICATI'!E32","v":{"$error":"#DIV/0!"}},">  55%"]
[null,"Incidenza delle fonti permanenti","(Pn+Dml)/Tp",{"$f":"+('BILANCI RICLASSIFICATI'!C25+'BILANCI RICLASSIFICATI'!C27)/'BILANCI RICLASSIFICATI'!C32","v":{"$error":"#DIV/0!"}},{"$f":"+('BILANCI RICLASSIFICATI'!D25+'BILANCI RICLASSIFICATI'!D27)/'BILANCI RICLASSIFICATI'!D32","v":{"$error":"#DIV/0!"}},{"$f":"+('BILANCI RICLASSIFICATI'!E25+'BILANCI RICLASSIFICATI'!E27)/'BILANCI RICLASSIFICATI'!E32","v":{"$error":"#DIV/0!"}},"> 60%"]
[null,"Dipendenza finanziaria","Ct/Tp",{"$f":"+'BILANCI RICLASSIFICATI'!C31/'BILANCI RICLASSIFICATI'!C32","v":{"$error":"#DIV/0!"}},{"$f":"+'BILANCI RICLASSIFICATI'!D31/'BILANCI RICLASSIFICATI'!D32","v":{"$error":"#DIV/0!"}},{"$f":"+'BILANCI RICLASSIFICATI'!E31/'BILANCI RICLASSIFICATI'!E32","v":{"$error":"#DIV/0!"}},"< 50%"]
[]
[]
[null,"INDICI FINANZIARI"]
[null,"Indici di solidità patrimoniale",null,{"$f":"+D18","v":"00:00:00"},{"$f":"+E18","v":"00:00:00"},{"$f":"+F18","v":"00:00:00"},"Parametri di riferimento"]
[null,"Autocopertura delle immobilizzazioni","Pn/I",{"$f":"+'BILANCI RICLASSIFICATI'!C25/'BILANCI RICLASSIFICATI'!C14","v":{"$error":"#DIV/0!"}},{"$f":"+'BILANCI RICLASSIFICATI'!D25/'BILANCI RICLASSIFICATI'!D14","v":{"$error":"#DIV/0!"}},{"$f":"+'BILANCI RICLASSIFICATI'!E25/'BILANCI RICLASSIFICATI'!E14","v":{"$error":"#DIV/0!"}},"> 0,33"]
[null,"Copertura delle immobilizzazioni","(Pn+Dml)/I",{"$f":"+('BILANCI RICLASSIFICATI'!C25+'BILANCI RICLASSIFICATI'!C27)/'BILANCI RICLASSIFICATI'!C14","v":{"$error":"#DIV/0!"}},{"$f":"+('BILANCI RICLASSIFICATI'!D25+'BILANCI RICLASSIFICATI'!D27)/'BILANCI RICLASSIFICATI'!D14","v":{"$error":"#DIV/0!"}},{"$f":"+('BILANCI RICLASSIFICATI'!E25+'BILANCI RICLASSIFICATI'!E27)/'BILANCI RICLASSIFICATI'!E14","v":{"$error":"#DIV/0!"}},"> 1"]
[]
[null,"Indici di liquidità"]
[null,"Indice di disponibilità","Ac/Pb",{"$f":"+'BILANCI RICLASSIFICATI'!C20/'BILANCI RICLASSIFICATI'!C30","v":{"$error":"#DIV/0!"}},{"$f":"+'BILANCI RICLASSIFICATI'!D20/'BILANCI RICLASSIFICATI'!D30","v":{"$error":"#DIV/0!"}},{"$f":"+'BILANCI RICLASSIFICATI'!E20/'BILANCI RICLASSIFICATI'!E30","v":{"$error":"#DIV/0!"}},"> 1"]
[null,"Indice di liquidità immediata","(Ac-R)/Db",{"$f":"+('BILANCI RICLASSIFICATI'!C20-'BILANCI RICLASSIFICATI'!C16)/'BILANCI RICLASSIFICATI'!C30","v":{"$error":"#DIV/0!"}},{"$f":"+('BILANCI RICLASSIFICATI'!D20-'BILANCI RICLASSIFICATI'!D16)/'BILANCI RICLASSIFICATI'!D30","v":{"$error":"#DIV/0!"}},{"$f":"+('BILANCI RICLASSIFICATI'!E20-'BILANCI RICLASSIFICATI'!E16)/'BILANCI RICLASSIFICATI'!E30","v":{"$error":"#DIV/0!"}},"> 0,33"]
[]
[null,"Indici di rotazione"]
[null,"Rotazione delle immobilizzazioni","Rv/I",{"$f":"+'CE RICLASSIFICATO'!C8/'BILANCI RICLASSIFICATI'!C14","v":{"$error":"#DIV/0!"}},{"$f":"+'CE RICLASSIFICATO'!D8/'BILANCI RICLASSIFICATI'!D14","v":{"$error":"#DIV/0!"}},{"$f":"+'CE RICLASSIFICATO'!E8/'BILANCI RICLASSIFICATI'!E14","v":{"$error":"#DIV/0!"}},"Trend"]
[null,"Rotazione dell'attivo corrente","Rv/Ac",{"$f":"+'CE RICLASSIFICATO'!C8/'BILANCI RICLASSIFICATI'!C20","v":{"$error":"#DIV/0!"}},{"$f":"+'CE RICLASSIFICATO'!D8/'BILANCI RICLASSIFICATI'!D20","v":{"$error":"#DIV/0!"}},{"$f":"+'CE RICLASSIFICATO'!E8/'BILANCI RICLASSIFICATI'!E20","v":{"$error":"#DIV/0!"}},"Trend"]
[null,"Rotazione degli impieghi","Rv/Ti",{"$f":"+'CE RICLASSIFICATO'!C8/'BILANCI RICLASSIFICATI'!C21","v":{"$error":"#DIV/0!"}},{"$f":"+'CE RICLASSIFICATO'!D8/'BILANCI RICLASSIFICATI'!D21","v":{"$error":"#DIV/0!"}},{"$f":"+'CE RICLASSIFICATO'!E8/'BILANCI RICLASSIFICATI'!E21","v":{"$error":"#DIV/0!"}},"Trend"]
[null,"Rotazione del magazzino","Rv/Rim",{"$f":"+'CE RICLASSIFICATO'!C8/'BILANCI RICLASSIFICATI'!C16","v":{"$error":"#DIV/0!"}},{"$f":"+'CE RICLASSIFICATO'!D8/'BILANCI RICLASSIFICATI'!D16","v":{"$error":"#DIV/0!"}},{"$f":"+'CE RICLASSIFICATO'!E8/'BILANCI RICLASSIFICATI'!E16","v":{"$error":"#DIV/0!"}},"Trend"]
[null,"Indice di durata del magazzino","Rim/Rvx365",{"$f":"+('BILANCI RICLASSIFICATI'!C16/'CE RICLASSIFICATO'!C8)*365","v":{"$error":"#DIV/0!"}},{"$f":"+('BILANCI RICLASSIFICATI'!D16/'CE RICLASSIFICATO'!D8)*365","v":{"$error":"#DIV/0!"}},{"$f":"+('BILANCI RICLASSIFICATI'!E16/'CE RICLASSIFICATO'!E8)*365","v":{"$error":"#DIV/0!"}},"Trend"]
[null,"Rotazione dei crediti","Rv/Cr.com.",{"$f":"+'CE RICLASSIFICATO'!C8/'BILANCI RICLASSIFICATI'!C18","v":{"$error":"#DIV/0!"}},{"$f":"+'CE RICLASSIFICATO'!D8/'BILANCI RICLASSIFICATI'!D18","v":{"$error":"#DIV/0!"}},{"$f":"+'CE RICLASSIFICATO'!E8/'BILANCI RICLASSIFICATI'!E18","v":{"$error":"#DIV/0!"}},"Trend"]
[]
[]
[null,"POSIZIONE FINANZIARIA NETTA","Dl+Cr.f.-Deb.f.",{"$f":"+D28","v":"00:00:00"},{"$f":"+E28","v":"00:00:00"},"00:00:00"]
[null,"Disponibilità liquide",null,{"$f":"+'BILANCI RICLASSIFICATI'!C19","v":0},{"$f":"+'BILANCI RICLASSIFICATI'!D19","v":0},{"$f":"+'BILANCI RICLASSIFICATI'!E19","v":0}]
[null,"Crediti finanziari a breve",null,{"$f":"+'BILANCI RICLASSIFICATI'!C17","v":0},{"$f":"+'BILANCI RICLASSIFICATI'!D17","v":0},{"$f":"+'BILANCI RICLASSIFICATI'!E17","v":0}]
[null,"Debiti finanziari a breve",null,{"$f":"-'BILANCI RICLASSIFICATI'!C28","v":0},{"$f":"-'BILANCI RICLASSIFICATI'!D28","v":0},{"$f":"-'BILANCI RICLASSIFICATI'!E28","v":0}]
[null,"PFN di breve termine",null,{"$f":"SUM(D46:D48)","v":0},{"$f":"SUM(E46:E48)","v":0},{"$f":"SUM(F46:F48)","v":0},"> 0"]
[null,"Crediti finanziari a medio/lungo",null,{"$f":"+'INPUT BILANCI'!C41+'INPUT BILANCI'!C44+'INPUT BILANCI'!C47+'INPUT BILANCI'!C53+'INPUT BILANCI'!C72+'INPUT BILANCI'!C75+'INPUT BILANCI'!C78+'INPUT BILANCI'!C90","v":0},{"$f":"+'INPUT BILANCI'!D41+'INPUT BILANCI'!D44+'INPUT BILANCI'!D47+'INPUT BILANCI'!D53+'INPUT BILANCI'!D72+'INPUT BILANCI'!D75+'INPUT BILANCI'!D78+'INPUT BILANCI'!D90","v":0},{"$f":"+'INPUT BILANCI'!E41+'INPUT BILANCI'!E44+'INPUT BILANCI'!E47+'INPUT BILANCI'!E53+'INPUT BILANCI'!E69+'INPUT BILANCI'!E72+'INPUT BILANCI'!E75+'INPUT BILANCI'!E78+'INPUT BILANCI'!E90","v":0}]
[null,"Debiti finanziari a medio/lungo",null,{"$f":"-('INPUT BILANCI'!C154+'INPUT BILANCI'!C157+'INPUT BILANCI'!C160+'INPUT BILANCI'!C163+'INPUT BILANCI'!C172+'INPUT BILANCI'!C175+'INPUT BILANCI'!C178+'INPUT BILANCI'!C181+'INPUT BILANCI'!C193)","v":0},{"$f":"-('INPUT BILANCI'!D154+'INPUT BILANCI'!D157+'INPUT BILANCI'!D160+'INPUT BILANCI'!D163+'INPUT BILANCI'!D172+'INPUT BILANCI'!D175+'INPUT BILANCI'!D178+'INPUT BILANCI'!D181+'INPUT BILANCI'!D193)","v":0},{"$f":"-('INPUT BILANCI'!E154+'INPUT BILANCI'!E157+'INPUT BILANCI'!E160+'INPUT BILANCI'!E163+'INPUT BILANCI'!E172+'INPUT BILANCI'!E175+'INPUT BILANCI'!E178+'INPUT BILANCI'!E181+'INPUT BILANCI'!E193)","v":0}]
[null,"POSIZIONE FINANZIARIA NETTA",null,{"$f":"SUM(D49:D51)","v":0},{"$f":"SUM(E49:E51)","v":0},0,"> 0"]
[null,null,null,{"$f":"+IF(D52>=0,D52,-D52)","v":0},{"$f":"+IF(E52>=0,E52,-E52)","v":0},{"$f":"+F52","v":0}]
[null,"PFN/EBITDA",null,{"$f":"IF(D52<0,(D52/'CE RICLASSIFICATO'!C22),0)","v":0},{"$f":"IF(E52<0,(E52/'CE RICLASSIFICATO'!D22),0)","v":0},{"$f":"IF(F52<0,(F52/'CE RICLASSIFICATO'!E22),0)","v":0},"< 6"]
[null,"PFN/PN",null,{"$f":"IF(D52<0,(D52/'BILANCI RICLASSIFICATI'!C25),0)","v":0},{"$f":"IF(E52<0,(E52/'BILANCI RICLASSIFICATI'!D25),0)","v":0},{"$f":"IF(F52<0,(F52/'BILANCI RICLASSIFICATI'!E25),0)","v":0},"< 3"]
[null,"CASH FLOW OPERATIVO","Ricavi monetari-Costi monetari",{"$f":"+'CE RICLASSIFICATO'!C126","v":0},{"$f":"+'CE RICLASSIFICATO'!D126","v":0},{"$f":"+'CE RICLASSIFICATO'!E126","v":0},"> 0"]
[]
[null,"INDICI DI PRODUTTIVITA' DEL LAVORO",null,{"$f":"+D28","v":"00:00:00"},{"$f":"+E28","v":"00:00:00"},{"$f":"+F28","v":"00:00:00"},"Parametri di riferimento"]
[null,"Ricavi di vendita per addetto","Rv/N.dip.",{"$f":"+IF('INPUT BILANCI'!C298=0,0,('CE RICLASSIFICATO'!C8/'INPUT BILANCI'!C298))","v":0},{"$f":"+IF('INPUT BILANCI'!D298=0,0,('CE RICLASSIFICATO'!D8/'INPUT BILANCI'!D298))","v":0},{"$f":"+IF('INPUT BILANCI'!E298=0,0,('CE RICLASSIFICATO'!E8/'INPUT BILANCI'!E298))","v":0},"Trend"]
[null,"Valore della produzione per addetto","Vp/N.dip.",{"$f":"+IF('INPUT BILANCI'!C298=0,0,('CE RICLASSIFICATO'!C13/'INPUT BILANCI'!C298))","v":0},{"$f":"+IF('INPUT BILANCI'!D298=0,0,('CE RICLASSIFICATO'!D13/'INPUT BILANCI'!D298))","v":0},{"$f":"+IF('INPUT BILANCI'!E298=0,0,('CE RICLASSIFICATO'!E13/'INPUT BILANCI'!E298))","v":0},"Trend"]
[null,"Valore aggiunto per addetto","Va/N.dip.",{"$f":"+IF('INPUT BILANCI'!C298=0,0,('CE RICLASSIFICATO'!C20/'INPUT BILANCI'!C298))","v":0},{"$f":"+IF('INPUT BILANCI'!D298=0,0,('CE RICLASSIFICATO'!D20/'INPUT BILANCI'!D298))","v":0},{"$f":"+IF('INPUT BILANCI'!E298=0,0,('CE RICLASSIFICATO'!E20/'INPUT BILANCI'!E298))","v":0},"Trend"]
[null,"Incidenza del costo del lavoro","C.pers./Vp",{"$f":"+IF('INPUT BILANCI'!C298=0,0,('CE RICLASSIFICATO'!C21/'CE RICLASSIFICATO'!C13))","v":0},{"$f":"+IF('INPUT BILANCI'!D298=0,0,('CE RICLASSIFICATO'!D21/'CE RICLASSIFICATO'!D13))","v":0},{"$f":"+IF('INPUT BILANCI'!E298=0,0,('CE RICLASSIFICATO'!E21/'CE RICLASSIFICATO'!E13))","v":0}]
[null,"Costo medio per dipendente","C.pers./N.dip.",{"$f":"+IF('INPUT BILANCI'!C298=0,0,('CE RICLASSIFICATO'!C21/'INPUT BILANCI'!C298))","v":0},{"$f":"+IF('INPUT BILANCI'!D298=0,0,('CE RICLASSIFICATO'!D21/'INPUT BILANCI'!D298))","v":0},{"$f":"+IF('INPUT BILANCI'!E298=0,0,('CE RICLASSIFICATO'!E21/'INPUT BILANCI'!E298))","v":0}]
[null,"Costo orario","C.pers./n. ore",{"$f":"+IF('INPUT BILANCI'!C299=0,0,('BILANCI RICLASSIFICATI'!C72/'INPUT BILANCI'!C299))","v":0},{"$f":"+IF('INPUT BILANCI'!D299=0,0,('BILANCI RICLASSIFICATI'!D72/'INPUT BILANCI'!D299))","v":0},{"$f":"+IF('INPUT BILANCI'!E299=0,0,('BILANCI RICLASSIFICATI'!E72/'INPUT BILANCI'!E299))","v":0}]
[null,"Ricavo orario","Rv/n. ore",{"$f":"+IF('INPUT BILANCI'!C299=0,0,('INPUT BILANCI'!C209/'INPUT BILANCI'!C299))","v":0},{"$f":"+IF('INPUT BILANCI'!D299=0,0,('INPUT BILANCI'!D209/'INPUT BILANCI'!D299))","v":0},{"$f":"+IF('INPUT BILANCI'!E299=0,0,('INPUT BILANCI'!E209/'INPUT BILANCI'!E299))","v":0}]
[]
[null,"INDICI DI SVILUPPO",null,{"$f":"+D6","v":"00:00:00"},{"$f":"+E6","v":"00:00:00"},null,"Parametri di riferimento"]
[null,"Variazione dei Ricavi di vendita",null,{"$f":"+('CE RICLASSIFICATO'!C8-'CE RICLASSIFICATO'!D8)/'CE RICLASSIFICATO'!D8","v":{"$error":"#DIV/0!"}},{"$f":"+IF('CE RICLASSIFICATO'!E8=0,0,('CE RICLASSIFICATO'!D8-'CE RICLASSIFICATO'!E8)/'CE RICLASSIFICATO'!E8)","v":0},null,"> 0"]
[null,"Variazione del Valore della produzione",null,{"$f":"+('CE RICLASSIFICATO'!C13-'CE RICLASSIFICATO'!D13)/'CE RICLASSIFICATO'!D13","v":{"$error":"#DIV/0!"}},{"$f":"+IF('CE RICLASSIFICATO'!E13=0,0,('CE RICLASSIFICATO'!D13-'CE RICLASSIFICATO'!E13)/'CE RICLASSIFICATO'!E13)","v":0},null,"> 0"]
[null,"Variazione del Valore aggiunto",null,{"$f":"+('CE RICLASSIFICATO'!C20-'CE RICLASSIFICATO'!D20)/'CE RICLASSIFICATO'!D20","v":{"$error":"#DIV/0!"}},{"$f":"+IF('CE RICLASSIFICATO'!E20=0,0,('CE RICLASSIFICATO'!D20-'CE RICLASSIFICATO'!E20)/'CE RICLASSIFICATO'!E20)","v":0},null,"> 0"]
[null,"Variazione del MOL",null,{"$f":"+('CE RICLASSIFICATO'!C22-'CE RICLASSIFICATO'!D22)/'CE RICLASSIFICATO'!D22","v":{"$error":"#DIV/0!"}},{"$f":"+IF('CE RICLASSIFICATO'!E22=0,0,('CE RICLASSIFICATO'!D22-'CE RICLASSIFICATO'!E22)/'CE RICLASSIFICATO'!E22)","v":0},null,"> 0"]
[null,"Variazione dell'attivo",null,{"$f":"+('BILANCI RICLASSIFICATI'!C21-'BILANCI RICLASSIFICATI'!D21)/'BILANCI RICLASSIFICATI'!D21","v":{"$error":"#DIV/0!"}},{"$f":"+IF('BILANCI RICLASSIFICATI'!E21=0,0,('BILANCI RICLASSIFICATI'!D21-'BILANCI RICLASSIFICATI'!E21)/'BILANCI RICLASSIFICATI'!E21)","v":0},null,"> 0"]
[null,"Variazione del Capitale circolante netto",null,{"$f":"+(MARGINI!C9-MARGINI!D9)/MARGINI!D9","v":{"$error":"#DIV/0!"}},{"$f":"+IF(MARGINI!E9=0,0,(MARGINI!D9-MARGINI!E9)/MARGINI!E9)","v":0},null,"> 0"]
[null,"Variazione del Patrimonio netto",null,{"$f":"+('BILANCI RICLASSIFICATI'!C25-'BILANCI RICLASSIFICATI'!D25)/'BILANCI RICLASSIFICATI'!D25","v":{"$error":"#DIV/0!"}},{"$f":"+IF('BILANCI RICLASSIFICATI'!E25=0,0,('BILANCI RICLASSIFICATI'!D25-'BILANCI RICLASSIFICATI'!E25)/'BILANCI RICLASSIFICATI'!E25)","v":0},null,"> 0"]
[null,"Variazione dei debiti finanziari a breve",null,{"$f":"+('BILANCI RICLASSIFICATI'!C28-'BILANCI RICLASSIFICATI'!D28)/'BILANCI RICLASSIFICATI'!D28","v":{"$error":"#DIV/0!"}},{"$f":"+IF('BILANCI RICLASSIFICATI'!E28=0,0,('BILANCI RICLASSIFICATI'!D28-'BILANCI RICLASSIFICATI'!E28)/'BILANCI RICLASSIFICATI'!E28)","v":0},null,"< 0"]
[null,"Variazione dei debiti commerciali a breve",null,{"$f":"+('BILANCI RICLASSIFICATI'!C29-'BILANCI RICLASSIFICATI'!D29)/'BILANCI RICLASSIFICATI'!D29","v":{"$error":"#DIV/0!"}},{"$f":"+IF('BILANCI RICLASSIFICATI'!E29=0,0,('BILANCI RICLASSIFICATI'!D29-'BILANCI RICLASSIFICATI'!E29)/'BILANCI RICLASSIFICATI'!E29)","v":0},null,"< 0"]
[]
[]
[null,"MARGINI PATRIMONIALI",null,{"$f":"+D58","v":"00:00:00"},{"$f":"+E58","v":"00:00:00"},"00:00:00","Parametri di riferimento"]
[null,"Margine di struttura primario","PN - Imm",{"$f":"+MARGINI!C7","v":0},{"$f":"+MARGINI!D7","v":0},{"$f":"+MARGINI!E7","v":0},{"$f":"+MARGINI!F7","v":">0"}]
[null,"Margine di struttura secondario","(PN+Dml) - Imm",{"$f":"+MARGINI!C8","v":0},{"$f":"+MARGINI!D8","v":0},{"$f":"+MARGINI!E8","v":0},{"$f":"+MARGINI!F8","v":">0"}]
[null,"Capitale circolante netto finanziario","A c- Pb",{"$f":"+MARGINI!C9","v":0},{"$f":"+MARGINI!D9","v":0},{"$f":"+MARGINI!E9","v":0},{"$f":"+MARGINI!F9","v":">0"}]
[null,"Capitale circolante netto commerciale","(Ac-Dl-Cr.fin.) - (Pb-Deb.fin.)",{"$f":"+MARGINI!C10","v":0},{"$f":"+MARGINI!D10","v":0},{"$f":"+MARGINI!E10","v":0},{"$f":"+MARGINI!F10","v":">0"}]
[null,"Margine di tesoreria","(Ac-Rim.)-Pb",{"$f":"+MARGINI!C11","v":0},{"$f":"+MARGINI!D11","v":0},{"$f":"+MARGINI!E11","v":0},{"$f":"+MARGINI!F11","v":">0"}]
[null,"Saldo di liquidità","Dl-Deb.fin.",{"$f":"+MARGINI!C12","v":0},{"$f":"+MARGINI!D12","v":0},{"$f":"+MARGINI!E12","v":0},{"$f":"+MARGINI!F12","v":">0"}]
[]
[]
[null,"MARGINI ECONOMICI",null,{"$f":"+D79","v":"00:00:00"},{"$f":"+E79","v":"00:00:00"},"00:00:00","Parametri di riferimento"]
[null,"Margini in valore assoluto"]
[null,"Margine operativo lordo  (EBITDA) ",null,{"$f":"+MARGINI!C18","v":0},{"$f":"+MARGINI!D18","v":0},{"$f":"+MARGINI!E18","v":0},{"$f":"+MARGINI!F18","v":">0"}]
[null,"Gestione caratteristica (EBIT)",null,{"$f":"+MARGINI!C19","v":0},{"$f":"+MARGINI!D19","v":0},{"$f":"+MARGINI!E19","v":0},{"$f":"+MARGINI!F19","v":">0"}]
[null,"Gestione finanziaria",null,{"$f":"+MARGINI!C20","v":0},{"$f":"+MARGINI!D20","v":0},{"$f":"+MARGINI!E20","v":0},{"$f":"+MARGINI!F20","v":">0"}]
[null,"Gestione accessoria",null,{"$f":"+MARGINI!C21","v":0},{"$f":"+MARGINI!D21","v":0},{"$f":"+MARGINI!E21","v":0},{"$f":"+MARGINI!F21","v":">0"}]
[null,"Gestione straordinaria",null,{"$f":"+MARGINI!C22","v":0},{"$f":"+MARGINI!D22","v":0},{"$f":"+MARGINI!E22","v":0},{"$f":"+MARGINI!F22","v":">0"}]
[null,"Margini in percentuale al fatturato"]
[null,"Margine operativo lordo  (EBITDA) ",null,{"$f":"+MARGINI!C25","v":0},{"$f":"+MARGINI!D25","v":0},{"$f":"+MARGINI!E25","v":0}]
[null,"Gestione caratteristica (EBIT)",null,{"$f":"+MARGINI!C26","v":0},{"$f":"+MARGINI!D26","v":0},{"$f":"+MARGINI!E26","v":0}]
[null,"Gestione finanziaria",null,{"$f":"+MARGINI!C27","v":0},{"$f":"+MARGINI!D27","v":0},{"$f":"+MARGINI!E27","v":0}]
[null,"Gestione accessoria",null,{"$f":"+MARGINI!C28","v":0},{"$f":"+MARGINI!D28","v":0},{"$f":"+MARGINI!E28","v":0}]
[null,"Gestione straordinaria",null,{"$f":"+MARGINI!C29","v":0},{"$f":"+MARGINI!D29","v":0},{"$f":"+MARGINI!E29","v":0}]
[]
[]
[null,"DURATA DEL CICLO OPERATIVO",null,{"$f":"+D88","v":"00:00:00"},{"$f":"+E88","v":"00:00:00"},"00:00:00"]
[null,"Durata media del magazzino","RF/RV*365 = gg.",{"$f":"+'BILANCI RICLASSIFICATI'!C16/'BILANCI RICLASSIFICATI'!C59*365","v":{"$error":"#DIV/0!"}},{"$f":"+'BILANCI RICLASSIFICATI'!D16/'BILANCI RICLASSIFICATI'!D59*365","v":{"$error":"#DIV/0!"}},{"$f":"+'BILANCI RICLASSIFICATI'!E16/'BILANCI RICLASSIFICATI'!E59*365","v":{"$error":"#DIV/0!"}}]
[null,"+ Durata media dei crediti commerciali","Cred. com./RV*365 = gg.",{"$f":"+'BILANCI RICLASSIFICATI'!C18/'BILANCI RICLASSIFICATI'!C59*365","v":{"$error":"#DIV/0!"}},{"$f":"+'BILANCI RICLASSIFICATI'!D18/'BILANCI RICLASSIFICATI'!D59*365","v":{"$error":"#DIV/0!"}},{"$f":"+'BILANCI RICLASSIFICATI'!E18/'BILANCI RICLASSIFICATI'!E59*365","v":{"$error":"#DIV/0!"}}]
[null,"- Durata media dei debiti commerciali","Deb.Com./Costi acqu.*365 = gg.",{"$f":"+'BILANCI RICLASSIFICATI'!C29/('BILANCI RICLASSIFICATI'!C65+'BILANCI RICLASSIFICATI'!C67)*365","v":{"$error":"#DIV/0!"}},{"$f":"+'BILANCI RICLASSIFICATI'!D29/('BILANCI RICLASSIFICATI'!D65+'BILANCI RICLASSIFICATI'!D67)*365","v":{"$error":"#DIV/0!"}},{"$f":"+'BILANCI RICLASSIFICATI'!E29/('BILANCI RICLASSIFICATI'!E65+'BILANCI RICLASSIFICATI'!E67)*365","v":{"$error":"#DIV/0!"}}]
[null,"= Durata del CICLO OPERATIVO (gg.)",null,{"$f":"+D104+D105-D106","v":{"$error":"#DIV/0!"}},{"$f":"+E104+E105-E106","v":{"$error":"#DIV/0!"}},{"$error":"#DIV/0!"}]
[]
[]
[]
[]
[]
[null,null,null,null,null,null,null,null,"Vai inizio pagina"]

{"sheet":"DATI GRAFICI","index":12,"n_rows":181,"n_cols":17,"rows_kept":181,"cut":false,"hidden":true,"merged":[[4,0,21,0],[30,0,47,0],[51,0,69,0],[163,1,163,9]]}
[]
[]
[]
[]
["ANNO N","ANNO N",1,2,3,4,5,6,7,8,9,10]
[null,{"$f":"+ANAGRAFICA!C16","v":"00:00:00"},"EQUIL. PATRIM.",null,null,null,"Critico","Accettabile","Buono"]
[null,null,"Valore","Min","Max","Estensione","Basso","Medio","Alto",{"$f":"C6&\": \"&TEXT(C8,\"0.0%\")","v":"EQUIL. PATRIM.: 00%"},"X","Y"]
[null,null,{"$f":"+'FAST DASHBOARD'!G7","v":0},0,1,180,{"$f":"(1-(360-F8)/360)/3","v":0.16666666666666666},{"$f":"(1-(360-F8)/360)/3","v":0.16666666666666666},{"$f":"(1-(360-F8)/360)/3","v":0.16666666666666666},{"$f":"(360-F8)/360","v":0.5},0.5,0.5]
[null,null,null,null,null,null,null,null,null,null,{"$f":"1-(COS(RADIANS(F8)*(C8-D8)/(E8-D8))+1)/2","v":0},{"$f":"(SIN(RADIANS(F8)*(C8-D8)/(E8-D8))+1)/2","v":0.5}]
[]
[]
[]
[]
[null,"ANNO N",1,2,3,4,5,6,7,8,9,10]
[null,{"$f":"+B6","v":"00:00:00"},"EQUIL. ECON.",null,null,null,"Critico","Accettabile","Buono"]
[null,null,"Valore","Min","Max","Estensione","Basso","Medio","Alto",{"$f":"C15&\": \"&TEXT(C17,\"0.0%\")","v":{"$error":"#DIV/0!"}},"X","Y"]
[null,null,{"$f":"+'FAST DASHBOARD'!G15","v":{"$error":"#DIV/0!"}},0,1,180,{"$f":"(1-(360-F17)/360)/3","v":0.16666666666666666},{"$f":"(1-(360-F17)/360)/3","v":0.16666666666666666},{"$f":"(1-(360-F17)/360)/3","v":0.16666666666666666},{"$f":"(360-F17)/360","v":0.5},0.5,0.5]
[null,null,null,null,null,null,null,null,null,null,{"$f":"1-(COS(RADIANS(F17)*(C17-D17)/(E17-D17))+1)/2","v":{"$error":"#DIV/0!"}},{"$f":"(SIN(RADIANS(F17)*(C17-D17)/(E17-D17))+1)/2","v":{"$error":"#DIV/0!"}}]
[]
[null,"ANNO N"]
[null,{"$f":"+B6","v":"00:00:00"},"EQUIL. FINANZ.",null,null,null,"Critico","Accettabile","Buono"]
[null,null,"Valore","Min","Max","Estensione","Basso","Medio","Alto",{"$f":"C21&\": \"&TEXT(C23,\"0.0%\")","v":{"$error":"#DIV/0!"}},"X","Y"]
[null,null,{"$f":"+'FAST DASHBOARD'!G23","v":{"$error":"#DIV/0!"}},0,1,180,{"$f":"(1-(360-F23)/360)/3","v":0.16666666666666666},{"$f":"(1-(360-F23)/360)/3","v":0.16666666666666666},{"$f":"(1-(360-F23)/360)/3","v":0.16666666666666666},{"$f":"(360-F23)/360","v":0.5},0.5,0.5]
[null,null,null,null,null,null,null,null,null,null,{"$f":"1-(COS(RADIANS(F23)*(C23-D23)/(E23-D23))+1)/2","v":{"$error":"#DIV/0!"}},{"$f":"(SIN(RADIANS(F23)*(C23-D23)/(E23-D23))+1)/2","v":{"$error":"#DIV/0!"}}]
[]
[]
[]
[]
[]
[]
["ANNO N-1","ANNO N-1",1,2,3,4,5,6,7,8,9,10]
[null,{"$f":"+ANAGRAFICA!C17","v":"00:00:00"},"EQUIL. PATRIM.",null,null,null,"Critico","Accettabile","Buono"]
[null,null,"Valore","Min","Max","Estensione","Basso","Medio","Alto",{"$f":"C32&\": \"&TEXT(C34,\"0.0%\")","v":"EQUIL. PATRIM.: 00%"},"X","Y"]
[null,null,{"$f":"+'FAST DASHBOARD'!H7","v":0},0,1,180,{"$f":"(1-(360-F34)/360)/3","v":0.16666666666666666},{"$f":"(1-(360-F34)/360)/3","v":0.16666666666666666},{"$f":"(1-(360-F34)/360)/3","v":0.16666666666666666},{"$f":"(360-F34)/360","v":0.5},0.5,0.5]
[null,null,null,null,null,null,null,null,null,null,{"$f":"1-(COS(RADIANS(F34)*(C34-D34)/(E34-D34))+1)/2","v":0},{"$f":"(SIN(RADIANS(F34)*(C34-D34)/(E34-D34))+1)/2","v":0.5}]
[]
[]
[]
[null,"ANNO N-1",1,2,3,4,5,6,7,8,9,10]
[null,{"$f":"+B32","v":"00:00:00"},"EQUIL. ECON.",null,null,null,"Critico","Accettabile","Buono"]
[null,null,"Valore","Min","Max","Estensione","Basso","Medio","Alto",{"$f":"C40&\": \"&TEXT(C42,\"0.0%\")","v":{"$error":"#DIV/0!"}},"X","Y"]
[null,null,{"$f":"+'FAST DASHBOARD'!H15","v":{"$error":"#DIV/0!"}},0,1,180,{"$f":"(1-(360-F42)/360)/3","v":0.16666666666666666},{"$f":"(1-(360-F42)/360)/3","v":0.16666666666666666},{"$f":"(1-(360-F42)/360)/3","v":0.16666666666666666},{"$f":"(360-F42)/360","v":0.5},0.5,0.5]
[null,null,null,null,null,null,null,null,null,null,{"$f":"1-(COS(RADIANS(F42)*(C42-D42)/(E42-D42))+1)/2","v":{"$error":"#DIV/0!"}},{"$f":"(SIN(RADIANS(F42)*(C42-D42)/(E42-D42))+1)/2","v":{"$error":"#DIV/0!"}}]
[]
[]
[null,"ANNO N-1","EQUIL. FINANZ.",null,null,null,"Critico","Accettabile","Buono"]
[null,{"$f":"+B32","v":"00:00:00"},"Valore","Min","Max","Estensione","Basso","Medio","Alto",{"$f":"C46&\": \"&TEXT(C48,\"0.0%\")","v":{"$error":"#DIV/0!"}},"X","Y"]
[null,null,{"$f":"+'FAST DASHBOARD'!H23","v":{"$error":"#DIV/0!"}},0,1,180,{"$f":"(1-(360-F48)/360)/3","v":0.16666666666666666},{"$f":"(1-(360-F48)/360)/3","v":0.16666666666666666},{"$f":"(1-(360-F48)/360)/3","v":0.16666666666666666},{"$f":"(360-F48)/360","v":0.5},0.5,0.5]
[null,null,null,null,null,null,null,null,null,null,{"$f":"1-(COS(RADIANS(F48)*(C48-D48)/(E48-D48))+1)/2","v":{"$error":"#DIV/0!"}},{"$f":"(SIN(RADIANS(F48)*(C48-D48)/(E48-D48))+1)/2","v":{"$error":"#DIV/0!"}}]
[]
[]
["ANNO N-2","ANNO N-2",1,2,3,4,5,6,7,8,9,10]
[null,{"$f":"+ANAGRAFICA!C18","v":"00:00:00"},"EQUIL. PATRIM.",null,null,null,"Critico","Accettabile","Buono"]
[null,null,"Valore","Min","Max","Estensione","Basso","Medio","Alto",{"$f":"C53&\": \"&TEXT(C55,\"0.0%\")","v":"EQUIL. PATRIM.: 00%"},"X","Y"]
[null,null,{"$f":"+'FAST DASHBOARD'!I7","v":0},0,1,180,{"$f":"(1-(360-F55)/360)/3","v":0.16666666666666666},{"$f":"(1-(360-F55)/360)/3","v":0.16666666666666666},{"$f":"(1-(360-F55)/360)/3","v":0.16666666666666666},{"$f":"(360-F55)/360","v":0.5},0.5,0.5]
[null,null,null,null,null,null,null,null,null,null,{"$f":"1-(COS(RADIANS(F55)*(C55-D55)/(E55-D55))+1)/2","v":0},{"$f":"(SIN(RADIANS(F55)*(C55-D55)/(E55-D55))+1)/2","v":0.5}]
[]
[]
[]
[null,"ANNO N-2",1,2,3,4,5,6,7,8,9,10]
[null,{"$f":"+B53","v":"00:00:00"},"EQUIL. ECON.",null,null,null,"Critico","Accettabile","Buono"]
[null,null,"Valore","Min","Max","Estensione","Basso","Medio","Alto",{"$f":"C61&\": \"&TEXT(C63,\"0.0%\")","v":{"$error":"#DIV/0!"}},"X","Y"]
[null,null,{"$f":"+'FAST DASHBOARD'!I15","v":{"$error":"#DIV/0!"}},0,1,180,{"$f":"(1-(360-F63)/360)/3","v":0.16666666666666666},{"$f":"(1-(360-F63)/360)/3","v":0.16666666666666666},{"$f":"(1-(360-F63)/360)/3","v":0.16666666666666666},{"$f":"(360-F63)/360","v":0.5},0.5,0.5]
[null,null,null,null,null,null,null,null,null,null,{"$f":"1-(COS(RADIANS(F63)*(C63-D63)/(E63-D63))+1)/2","v":{"$error":"#DIV/0!"}},{"$f":"(SIN(RADIANS(F63)*(C63-D63)/(E63-D63))+1)/2","v":{"$error":"#DIV/0!"}}]
[]
[]
[null,"ANNO N-2"]
[null,{"$f":"+B61","v":"00:00:00"},"EQUIL. FINANZ.",null,null,null,"Critico","Accettabile","Buono"]
[null,null,"Valore","Min","Max","Estensione","Basso","Medio","Alto",{"$f":"C68&\": \"&TEXT(C70,\"0.0%\")","v":{"$error":"#DIV/0!"}},"X","Y"]
[null,null,{"$f":"+'FAST DASHBOARD'!I23","v":{"$error":"#DIV/0!"}},0,1,180,{"$f":"(1-(360-F70)/360)/3","v":0.16666666666666666},{"$f":"(1-(360-F70)/360)/3","v":0.16666666666666666},{"$f":"(1-(360-F70)/360)/3","v":0.16666666666666666},{"$f":"(360-F70)/360","v":0.5},0.5,0.5]
[null,null,null,null,null,null,null,null,null,null,{"$f":"1-(COS(RADIANS(F70)*(C70-D70)/(E70-D70))+1)/2","v":{"$error":"#DIV/0!"}},{"$f":"(SIN(RADIANS(F70)*(C70-D70)/(E70-D70))+1)/2","v":{"$error":"#DIV/0!"}}]
[]
[]
[null,"FATTURATO",null,"VAR.","ROE",null,null,null,"EBITDA","EBIT","Reddito netto",null,"ROI",null,null,"LEVERAGE"]
[null,"Anno n",{"$f":"+'BILANCI RICLASSIFICATI'!C59","v":0},{"$f":"+(C75-C76)/C76","v":{"$error":"#DIV/0!"}},"Anno n",{"$f":"+'INDICI E MARGINI'!D8","v":{"$error":"#DIV/0!"}},null,"Anno n",{"$f":"+'BILANCI RICLASSIFICATI'!C107","v":0},{"$f":"+'BILANCI RICLASSIFICATI'!C111","v":0},{"$f":"+'BILANCI RICLASSIFICATI'!C119","v":0},null,"Anno n",{"$f":"+'INDICI E MARGINI'!D9","v":{"$error":"#DIV/0!"}},null,"Anno n",{"$f":"+'INDICI E MARGINI'!D12","v":{"$error":"#DIV/0!"}}]
[null,"Anno n-1",{"$f":"+'BILANCI RICLASSIFICATI'!D59","v":0},{"$f":"+(C76-C77)/C77","v":{"$error":"#DIV/0!"}},"Anno n-1",{"$f":"+'INDICI E MARGINI'!E8","v":{"$error":"#DIV/0!"}},null,"Anno n-1",{"$f":"+'BILANCI RICLASSIFICATI'!D107","v":0},{"$f":"+'BILANCI RICLASSIFICATI'!D111","v":0},{"$f":"+'BILANCI RICLASSIFICATI'!D119","v":0},null,"Anno n-1",{"$f":"+'INDICI E MARGINI'!E9","v":{"$error":"#DIV/0!"}},null,"Anno n-1",{"$f":"+'INDICI E MARGINI'!E12","v":{"$error":"#DIV/0!"}}]
[null,"Anno n-2",{"$f":"+'BILANCI RICLASSIFICATI'!E59","v":0},null,"Anno n-2",{"$f":"+'INDICI E MARGINI'!F8","v":{"$error":"#DIV/0!"}},null,"Anno n-2",{"$f":"+'BILANCI RICLASSIFICATI'!E107","v":0},{"$f":"+'BILANCI RICLASSIFICATI'!E111","v":0},{"$f":"+'BILANCI RICLASSIFICATI'!E119","v":0},null,"Anno n-2",{"$f":"+'INDICI E MARGINI'!F9","v":{"$error":"#DIV/0!"}},null,"Anno n-2",{"$f":"+'INDICI E MARGINI'!F12","v":{"$error":"#DIV/0!"}}]
[]
[]
[null,"COMPOSIZIONE ATTIVO ANNO N",null,null,"COMPOSIZIONE ATTIVO ANNO N-1",null,null,null,"COMPOSIZIONE ATTIVO ANNO N-2",null,null,null,"VARIAZIONE FATTURATO"]
[null,"Attivo immobilizzato",{"$f":"+'BILANCI RICLASSIFICATI'!C41","v":0},null,"Attivo immobilizzato",{"$f":"+'BILANCI RICLASSIFICATI'!D41","v":0},null,null,"Attivo immobilizzato",{"$f":"+'BILANCI RICLASSIFICATI'!E41","v":0},null,null,"Anno n",{"$f":"+D75","v":{"$error":"#DIV/0!"}}]
[null,"Attivo corrente",{"$f":"+'BILANCI RICLASSIFICATI'!C42","v":0},null,"Attivo corrente",{"$f":"+'BILANCI RICLASSIFICATI'!D42","v":0},null,null,"Attivo corrente",{"$f":"+'BILANCI RICLASSIFICATI'!E42","v":0},null,null,"Anno n-1",{"$f":"+D76","v":{"$error":"#DIV/0!"}}]
[]
[]
[null,"COMPOSIZIONE PASSIVO N",null,null,"COMPOSIZIONE PASSIVO N-1",null,null,null,"COMPOSIZIONE PASSIVO N-2"]
[null,"Patrimonio netto",{"$f":"IF('BILANCI RICLASSIFICATI'!C45<0,0,'BILANCI RICLASSIFICATI'!C45)","v":0},null,"Patrimonio netto",{"$f":"IF('BILANCI RICLASSIFICATI'!D45<0,0,'BILANCI RICLASSIFICATI'!D45)","v":0},null,null,"Patrimonio netto",{"$f":"IF('BILANCI RICLASSIFICATI'!E45<0,0,'BILANCI RICLASSIFICATI'!E45)","v":0},"INSERITA CONDIZIONE <0"]
[null,"Capitale di terzi",{"$f":"+'BILANCI RICLASSIFICATI'!C50","v":0},null,"Capitale di terzi",{"$f":"+'BILANCI RICLASSIFICATI'!D50","v":0},null,null,"Capitale di terzi",{"$f":"+'BILANCI RICLASSIFICATI'!E50","v":0}]
[null,null,{"$f":"SUM(C86:C87)","v":0},null,null,{"$f":"SUM(F86:F87)","v":0},null,null,null,{"$f":"SUM(J86:J87)","v":0}]
[]
[]
[]
[]
[]
[]
[]
[]
[null,"FLUSSI MONETARI anno n",null,null,null,"FLUSSI MONETARI anno n-1"]
[null,"Operativo",{"$f":"+'RENDICONTO FINANZIARIO'!D14","v":0},null,null,"Operativo",{"$f":"+'RENDICONTO FINANZIARIO'!F14","v":0}]
[null,"Investimenti",{"$f":"+'RENDICONTO FINANZIARIO'!D15","v":0},null,null,"Investimenti",{"$f":"+'RENDICONTO FINANZIARIO'!F15","v":0}]
[null,"Finanziamenti",{"$f":"+'RENDICONTO FINANZIARIO'!D19","v":0},null,null,"Finanziamenti",{"$f":"+'RENDICONTO FINANZIARIO'!F19","v":0}]
[]
[null,"COMPOSIZ. COSTI",null,null,null,null,"AREE DELLA GESTIONE"]
[null,null,"anno n","anno n-1","anno n-2",null,null,"Caratteristica","Finanziaria","Accessoria","Straordinaria"]
[null,"Imposte sul reddito",{"$f":"+'BILANCI RICLASSIFICATI'!C118","v":0},{"$f":"+'BILANCI RICLASSIFICATI'!D118","v":0},{"$f":"+'BILANCI RICLASSIFICATI'!E118","v":0},null,"Anno n",{"$f":"+'BILANCI RICLASSIFICATI'!C111","v":0},{"$f":"+'BILANCI RICLASSIFICATI'!C112","v":0},{"$f":"+'BILANCI RICLASSIFICATI'!C114","v":0},{"$f":"+'BILANCI RICLASSIFICATI'!C116","v":0}]
[null,"Interessi e oneri fin.",{"$f":"+('INPUT BILANCI'!C264+'INPUT BILANCI'!C265+'INPUT BILANCI'!C266+'INPUT BILANCI'!C267)/'INPUT BILANCI'!C209","v":{"$error":"#DIV/0!"}},{"$f":"+('INPUT BILANCI'!D264+'INPUT BILANCI'!D265+'INPUT BILANCI'!D266+'INPUT BILANCI'!D267)/'INPUT BILANCI'!D209","v":{"$error":"#DIV/0!"}},{"$f":"+('INPUT BILANCI'!E264+'INPUT BILANCI'!E265+'INPUT BILANCI'!E266+'INPUT BILANCI'!E267)/'INPUT BILANCI'!E209","v":{"$error":"#DIV/0!"}},null,"Anno n-1",{"$f":"+'BILANCI RICLASSIFICATI'!D111","v":0},{"$f":"+'BILANCI RICLASSIFICATI'!D112","v":0},{"$f":"+'BILANCI RICLASSIFICATI'!D114","v":0},{"$f":"+'BILANCI RICLASSIFICATI'!D116","v":0}]
[null,"Ammortamenti",{"$f":"+'BILANCI RICLASSIFICATI'!C108","v":0},{"$f":"+'BILANCI RICLASSIFICATI'!D108","v":0},{"$f":"+'BILANCI RICLASSIFICATI'!E108","v":0},null,"Anno n-2",{"$f":"+'BILANCI RICLASSIFICATI'!E111","v":0},{"$f":"+'BILANCI RICLASSIFICATI'!E112","v":0},{"$f":"+'BILANCI RICLASSIFICATI'!E114","v":0},{"$f":"+'BILANCI RICLASSIFICATI'!E116","v":0}]
[null,"Costi del personale",{"$f":"+'BILANCI RICLASSIFICATI'!C106","v":0},{"$f":"+'BILANCI RICLASSIFICATI'!D106","v":0},{"$f":"+'BILANCI RICLASSIFICATI'!E106","v":0}]
[null,"Oneri div. Gestione",{"$f":"+'BILANCI RICLASSIFICATI'!C103","v":0},{"$f":"+'BILANCI RICLASSIFICATI'!D103","v":0},{"$f":"+'BILANCI RICLASSIFICATI'!E103","v":0},null,"CASH FLOW OPERATIVO",null,null,"VALORE AGGIUNTO PER ADDETTO"]
[null,"Costi godim beni terzi",{"$f":"+'BILANCI RICLASSIFICATI'!C102","v":0},{"$f":"+'BILANCI RICLASSIFICATI'!D102","v":0},{"$f":"+'BILANCI RICLASSIFICATI'!E102","v":0},null,"Anno n",{"$f":"+'BILANCI RICLASSIFICATI'!C178","v":0},null,null,null,"n. addetti","Val. agg.x addetto"]
[null,"Costi per servizi",{"$f":"+'BILANCI RICLASSIFICATI'!C101","v":0},{"$f":"+'BILANCI RICLASSIFICATI'!D101","v":0},{"$f":"+'BILANCI RICLASSIFICATI'!E101","v":0},null,"Anno n-1",{"$f":"+'BILANCI RICLASSIFICATI'!D178","v":0},null,"Anno n",{"$f":"+IF(L110=0,0,M110)","v":0},{"$f":"+'INPUT BILANCI'!C298","v":0},{"$f":"+'INDICI E MARGINI'!D61","v":0}]
[null,"Costi materie e merci",{"$f":"+'BILANCI RICLASSIFICATI'!C99","v":0},{"$f":"+'BILANCI RICLASSIFICATI'!D99","v":0},{"$f":"+'BILANCI RICLASSIFICATI'!E99","v":0},null,"Anno n-2",{"$f":"+'BILANCI RICLASSIFICATI'!E178","v":0},null,"Anno n-1",{"$f":"+IF(L111=0,0,M111)","v":0},{"$f":"+'INPUT BILANCI'!D298","v":0},{"$f":"+'INDICI E MARGINI'!E61","v":0}]
[null,"Ricavi delle vendite",1,1,1,null,null,null,null,"Anno n-2",0,{"$f":"+'INPUT BILANCI'!E298","v":0},{"$f":"+'INDICI E MARGINI'!F61","v":0}]
[]
[]
[null,"MARGINE DI SICUREZZA (BEP) ANNO N",null,null,null,"VARIAZIONI DEL REDDITO NETTO"]
[null,"Fatturato di equilibrio",{"$f":"+'REPORT BEP'!C39","v":{"$error":"#DIV/0!"}},null,null,"Anno n",{"$f":"+('BILANCI RICLASSIFICATI'!C85-'BILANCI RICLASSIFICATI'!D85)/'BILANCI RICLASSIFICATI'!D85","v":{"$error":"#DIV/0!"}}]
[null,"Margine di sicurezza    ",{"$f":"+'REPORT BEP'!C41","v":{"$error":"#DIV/0!"}},null,null,"Anno n-1",{"$f":"+('BILANCI RICLASSIFICATI'!D85-'BILANCI RICLASSIFICATI'!E85)/'BILANCI RICLASSIFICATI'!E85","v":{"$error":"#DIV/0!"}}]
[]
[]
[null,"COMPOSIZIONE E ANDAMENTO ATTIVO CIRCOLANTE",null,null,null,null,"COMPOSIZIONE E ANDAMENTO CAPITALE DI TERZI"]
[null,null,"Anno n","Anno n-1","Anno n-2",null,null,"Anno n","Anno n-1","Anno n-2"]
[null,"Rimanenze",{"$f":"+'BILANCI RICLASSIFICATI'!C16","v":0},{"$f":"+'BILANCI RICLASSIFICATI'!D16","v":0},{"$f":"+'BILANCI RICLASSIFICATI'!E16","v":0},null,"Debiti a medio/lungo",{"$f":"+'BILANCI RICLASSIFICATI'!C27","v":0},{"$f":"+'BILANCI RICLASSIFICATI'!D27","v":0},{"$f":"+'BILANCI RICLASSIFICATI'!E27","v":0}]
[null,"Crediti",{"$f":"+'BILANCI RICLASSIFICATI'!C17+'BILANCI RICLASSIFICATI'!C18","v":0},{"$f":"+'BILANCI RICLASSIFICATI'!D17+'BILANCI RICLASSIFICATI'!D18","v":0},{"$f":"+'BILANCI RICLASSIFICATI'!E17+'BILANCI RICLASSIFICATI'!E18","v":0},null,"Debiti a breve",{"$f":"+'BILANCI RICLASSIFICATI'!C28+'BILANCI RICLASSIFICATI'!C29","v":0},{"$f":"+'BILANCI RICLASSIFICATI'!D28+'BILANCI RICLASSIFICATI'!D29","v":0},{"$f":"+'BILANCI RICLASSIFICATI'!E28+'BILANCI RICLASSIFICATI'!E29","v":0}]
[null,"Disp. Liquide",{"$f":"+'BILANCI RICLASSIFICATI'!C19","v":0},{"$f":"+'BILANCI RICLASSIFICATI'!D19","v":0},{"$f":"+'BILANCI RICLASSIFICATI'!E19","v":0}]
[]
[]
[null,"PATRIMONIO NETTO",null,null,"DIPENDENZA FINANZIARIA",null,null,"COMPOSIZIONE E ANDAMENTO PN"]
[null,"Anno n",{"$f":"+'BILANCI RICLASSIFICATI'!C25","v":0},null,"Anno n",{"$f":"+'INDICI E MARGINI'!D24","v":{"$error":"#DIV/0!"}},null,null,"Anno n","Anno n-1","Anno n-2"]
[null,"Anno n-1",{"$f":"+'BILANCI RICLASSIFICATI'!D25","v":0},null,"Anno n-1",{"$f":"+'INDICI E MARGINI'!E24","v":{"$error":"#DIV/0!"}},null,"Capitale proprio",{"$f":"+'BILANCI RICLASSIFICATI'!C23","v":0},{"$f":"+'BILANCI RICLASSIFICATI'!D23","v":0},{"$f":"+'BILANCI RICLASSIFICATI'!E23","v":0}]
[null,"Anno n-2",{"$f":"+'BILANCI RICLASSIFICATI'!E25","v":0},null,"Anno n-2",{"$f":"+'INDICI E MARGINI'!F24","v":{"$error":"#DIV/0!"}},null,"Utile d'esercizio",{"$f":"IF('BILANCI RICLASSIFICATI'!C24<0,0,'BILANCI RICLASSIFICATI'!C24)","v":0},{"$f":"IF('BILANCI RICLASSIFICATI'!D24<0,0,'BILANCI RICLASSIFICATI'!D24)","v":0},{"$f":"IF('BILANCI RICLASSIFICATI'!E24<0,0,'BILANCI RICLASSIFICATI'!E24)","v":0},"INSERITA CONDIZIONE <0"]
[null,null,null,null,null,null,null,null,{"$f":"SUM(I129:I130)","v":0},{"$f":"SUM(J129:J130)","v":0},0]
[null,null,null,null,null,null,null,null,"Anno n","Anno n-1","Anno n-2"]
[null,"STRUTTURA DEL DEBITO A BREVE",null,null,null,null,null,"Capitale proprio",{"$f":"+I129/I131","v":{"$error":"#DIV/0!"}},{"$f":"+J129/J131","v":{"$error":"#DIV/0!"}},{"$error":"#DIV/0!"}]
[null,null,"Anno n","Anno n-1","Anno n-2",null,null,"Utile d'esercizio",{"$f":"+I130/I131","v":{"$error":"#DIV/0!"}},{"$f":"+J130/J131","v":{"$error":"#DIV/0!"}},{"$error":"#DIV/0!"}]
[null,"Debiti commerciali",{"$f":"+'BILANCI RICLASSIFICATI'!C49","v":0},{"$f":"+'BILANCI RICLASSIFICATI'!D49","v":0},{"$f":"+'BILANCI RICLASSIFICATI'!E49","v":0}]
[null,"Debiti finanziari",{"$f":"+'BILANCI RICLASSIFICATI'!C48","v":0},{"$f":"+'BILANCI RICLASSIFICATI'!D48","v":0},{"$f":"+'BILANCI RICLASSIFICATI'!E48","v":0}]
[]
[]
[null,"CORRELAZIONE FONTI IMPIEGHI ANNO N",null,null,null,"CORRELAZIONE FONTI IMPIEGHI ANNO N-1",null,null,null,"CORRELAZIONE FONTI IMPIEGHI ANNO N-2"]
[null,"Anno n","Attivo","Passivo",null,"Anno n-1","Attivo","Passivo",null,"Anno n-2","Attivo","Passivo"]
[null,"AI",{"$f":"+'BILANCI RICLASSIFICATI'!C41","v":0},null,null,"AI",{"$f":"+'BILANCI RICLASSIFICATI'!D41","v":0},null,null,"AI",{"$f":"+'BILANCI RICLASSIFICATI'!E41","v":0}]
[null,"AC",{"$f":"+'BILANCI RICLASSIFICATI'!C42","v":0},null,null,"AC",{"$f":"+'BILANCI RICLASSIFICATI'!D42","v":0},null,null,"AC",{"$f":"+'BILANCI RICLASSIFICATI'!E42","v":0}]
[null,"PN",null,{"$f":"+'BILANCI RICLASSIFICATI'!C45","v":0},null,"PN",null,{"$f":"+'BILANCI RICLASSIFICATI'!D45","v":0},null,"PN",null,{"$f":"+'BILANCI RICLASSIFICATI'!E45","v":0}]
[null,"DML",null,{"$f":"+'BILANCI RICLASSIFICATI'!C47","v":0},null,"DML",null,{"$f":"+'BILANCI RICLASSIFICATI'!D47","v":0},null,"DML",null,{"$f":"+'BILANCI RICLASSIFICATI'!E47","v":0}]
[null,"DB",null,{"$f":"+'BILANCI RICLASSIFICATI'!C48+'BILANCI RICLASSIFICATI'!C49","v":0},null,"DB",null,{"$f":"+'BILANCI RICLASSIFICATI'!D48+'BILANCI RICLASSIFICATI'!D49","v":0},null,"DB",null,{"$f":"+'BILANCI RICLASSIFICATI'!E48+'BILANCI RICLASSIFICATI'!E49","v":0}]
[null,"Totale",{"$f":"SUM(C141:C145)","v":0},{"$f":"SUM(D143:D145)","v":0},null,"Totale",{"$f":"SUM(G141:G145)","v":0},{"$f":"SUM(H143:H145)","v":0},null,"Totale",{"$f":"SUM(K141:K145)","v":0},{"$f":"SUM(L143:L145)","v":0}]
[]
[null,"TUTOR SU YOUTUB PER FARE IL GRAFICO FONTI-IMPIEGHI"]
[null,"https://mail.google.com/mail/u/0/?tab=rm&ogbl#inbox/KtbxLzGDZnsBQWwzWrMjzZWtbprJpnXDWg?projector=1"]
[]
[]
[null,"MARGINE DI STRUTTURA",null,"MARGINE STRUTT. GLOB.",null,"CAP. CIRC. NETTO",null,"MARG. TESORER."]
[null,"Anno n",{"$f":"+'INDICI E MARGINI'!D29","v":{"$error":"#DIV/0!"}},"Anno n",{"$f":"+'INDICI E MARGINI'!D30","v":{"$error":"#DIV/0!"}},"Anno n",{"$f":"+'INDICI E MARGINI'!D33","v":{"$error":"#DIV/0!"}},"Anno n",{"$f":"+'INDICI E MARGINI'!D34","v":{"$error":"#DIV/0!"}}]
[null,"Anno n-1",{"$f":"+'INDICI E MARGINI'!E29","v":{"$error":"#DIV/0!"}},"Anno n-1",{"$f":"+'INDICI E MARGINI'!E30","v":{"$error":"#DIV/0!"}},"Anno n-1",{"$f":"+'INDICI E MARGINI'!E33","v":{"$error":"#DIV/0!"}},"Anno n-1",{"$f":"+'INDICI E MARGINI'!E34","v":{"$error":"#DIV/0!"}}]
[null,"Anno n-2",{"$f":"+'INDICI E MARGINI'!F29","v":{"$error":"#DIV/0!"}},"Anno n-2",{"$f":"+'INDICI E MARGINI'!F30","v":{"$error":"#DIV/0!"}},"Anno n-2",{"$f":"+'INDICI E MARGINI'!F33","v":{"$error":"#DIV/0!"}},"Anno n-2",{"$f":"+'INDICI E MARGINI'!F34","v":{"$error":"#DIV/0!"}}]
[]
[]
[null,"LIQUIDITA'  ANNO N",null,null,"LIQUIDITA'  ANNO N-1",null,null,"PFN"]
[null,"Liquidità iniziale",{"$f":"+'RENDICONTO FINANZIARIO'!D9","v":0},null,"Liquidità iniziale",{"$f":"+'RENDICONTO FINANZIARIO'!F9","v":0},null,"Anno n",{"$f":"+'INDICI E MARGINI'!D52","v":0}]
[null,"Liquidità finale",{"$f":"+'RENDICONTO FINANZIARIO'!D21","v":0},null,"Liquidità finale",{"$f":"+'RENDICONTO FINANZIARIO'!F21","v":0},null,"Anno n-1",{"$f":"+'INDICI E MARGINI'!E52","v":0}]
[null,"Flusso netto",{"$f":"+'RENDICONTO FINANZIARIO'!D22","v":0},null,"Flusso netto",{"$f":"+'RENDICONTO FINANZIARIO'!F22","v":0},null,"Anno n-2",{"$f":"+'INDICI E MARGINI'!F52","v":0}]
[]
[]
[null,"STRUTTURA DEL DEBITO"]
[null,null,"Anno n","Anno n-1","Anno n-2",null,null,"Anno n","Anno n-1","Anno n-2"]
[null,"Altri e diversi",{"$f":"+'INPUT BILANCI'!C150+'INPUT BILANCI'!C151+'INPUT BILANCI'!C153+'INPUT BILANCI'!C154+'INPUT BILANCI'!C165+'INPUT BILANCI'!C166+'INPUT BILANCI'!C174+'INPUT BILANCI'!C175+'INPUT BILANCI'!C180+'INPUT BILANCI'!C181+'INPUT BILANCI'!C183+'INPUT BILANCI'!C184+'INPUT BILANCI'!C189+'INPUT BILANCI'!C190+'INPUT BILANCI'!C192+'INPUT BILANCI'!C193","v":0},{"$f":"+'INPUT BILANCI'!D150+'INPUT BILANCI'!D151+'INPUT BILANCI'!D153+'INPUT BILANCI'!D154+'INPUT BILANCI'!D165+'INPUT BILANCI'!D166+'INPUT BILANCI'!D174+'INPUT BILANCI'!D175+'INPUT BILANCI'!D180+'INPUT BILANCI'!D181+'INPUT BILANCI'!D183+'INPUT BILANCI'!D184+'INPUT BILANCI'!D189+'INPUT BILANCI'!D190+'INPUT BILANCI'!D192+'INPUT BILANCI'!D193","v":0},{"$f":"+'INPUT BILANCI'!E150+'INPUT BILANCI'!E151+'INPUT BILANCI'!E153+'INPUT BILANCI'!E154+'INPUT BILANCI'!E165+'INPUT BILANCI'!E166+'INPUT BILANCI'!E174+'INPUT BILANCI'!E175+'INPUT BILANCI'!E180+'INPUT BILANCI'!E181+'INPUT BILANCI'!E183+'INPUT BILANCI'!E184+'INPUT BILANCI'!E189+'INPUT BILANCI'!E190+'INPUT BILANCI'!E192+'INPUT BILANCI'!E193","v":0},null,"Altri e diversi",{"$f":"+C166/$C$173","v":{"$error":"#DIV/0!"}},{"$f":"+D166/$D$173","v":{"$error":"#DIV/0!"}},{"$f":"+E166/$E$173","v":{"$error":"#DIV/0!"}}]
[null,"Tributari",{"$f":"+'INPUT BILANCI'!C186+'INPUT BILANCI'!C187","v":0},{"$f":"+'INPUT BILANCI'!D186+'INPUT BILANCI'!D187","v":0},{"$f":"+'INPUT BILANCI'!E186+'INPUT BILANCI'!E187","v":0},null,"Tributari",{"$f":"+C167/$C$173","v":{"$error":"#DIV/0!"}},{"$f":"+D167/$D$173","v":{"$error":"#DIV/0!"}},{"$f":"+E167/$E$173","v":{"$error":"#DIV/0!"}}]
[null,"Titoli di credito",{"$f":"+'INPUT BILANCI'!C171+'INPUT BILANCI'!C172","v":0},{"$f":"+'INPUT BILANCI'!D171+'INPUT BILANCI'!D172","v":0},{"$f":"+'INPUT BILANCI'!E171+'INPUT BILANCI'!E172","v":0},null,"Titoli di credito",{"$error":"#DIV/0!"},{"$error":"#DIV/0!"},{"$error":"#DIV/0!"}]
[null,"Fornitori",{"$f":"+'INPUT BILANCI'!C168+'INPUT BILANCI'!C169","v":0},{"$f":"+'INPUT BILANCI'!D168+'INPUT BILANCI'!D169","v":0},{"$f":"+'INPUT BILANCI'!E168+'INPUT BILANCI'!E169","v":0},null,"Fornitori",{"$error":"#DIV/0!"},{"$error":"#DIV/0!"},{"$error":"#DIV/0!"}]
[null,"Altri finanziatori",{"$f":"+'INPUT BILANCI'!C162+'INPUT BILANCI'!C163","v":0},{"$f":"+'INPUT BILANCI'!D162+'INPUT BILANCI'!D163","v":0},{"$f":"+'INPUT BILANCI'!E162+'INPUT BILANCI'!E163","v":0},null,"Altri finanziatori",{"$error":"#DIV/0!"},{"$error":"#DIV/0!"},{"$error":"#DIV/0!"}]
[null,"Banche",{"$f":"+'INPUT BILANCI'!C159+'INPUT BILANCI'!C160","v":0},{"$f":"+'INPUT BILANCI'!D159+'INPUT BILANCI'!D160","v":0},{"$f":"+'INPUT BILANCI'!E159+'INPUT BILANCI'!E160","v":0},null,"Banche",{"$error":"#DIV/0!"},{"$error":"#DIV/0!"},{"$error":"#DIV/0!"}]
[null,"Soci",{"$f":"+'INPUT BILANCI'!C156+'INPUT BILANCI'!C157","v":0},{"$f":"+'INPUT BILANCI'!D156+'INPUT BILANCI'!D157","v":0},{"$f":"+'INPUT BILANCI'!E156+'INPUT BILANCI'!E157","v":0},null,"Soci",{"$error":"#DIV/0!"},{"$error":"#DIV/0!"},{"$error":"#DIV/0!"}]
[null,"Tot. Debiti",{"$f":"SUM(C166:C172)","v":0},{"$f":"SUM(D166:D172)","v":0},0,null,"Tot. Debiti",{"$f":"SUM(H166:H172)","v":{"$error":"#DIV/0!"}},{"$f":"SUM(I166:I172)","v":{"$error":"#DIV/0!"}},{"$f":"SUM(J166:J172)","v":{"$error":"#DIV/0!"}}]
[]
[]
[null,"COMPOSIZIONE DELLA PFN"]
[null,null,"Anno n","Anno n-1","Anno n-2"]
[null,"Liquidità",{"$f":"+'INDICI E MARGINI'!D46","v":0},{"$f":"+'INDICI E MARGINI'!E46","v":0},{"$f":"+'INDICI E MARGINI'!F46","v":0}]
[null,"Crediti finanziari",{"$f":"+'INDICI E MARGINI'!D47+'INDICI E MARGINI'!D50","v":0},{"$f":"+'INDICI E MARGINI'!E47+'INDICI E MARGINI'!E50","v":0},{"$f":"+'INDICI E MARGINI'!F47+'INDICI E MARGINI'!F50","v":0}]
[null,"Debiti finanziari",{"$f":"'INDICI E MARGINI'!D48+'INDICI E MARGINI'!D51","v":0},{"$f":"'INDICI E MARGINI'!E48+'INDICI E MARGINI'!E51","v":0},{"$f":"'INDICI E MARGINI'!F48+'INDICI E MARGINI'!F51","v":0}]
[null,"PFN",{"$f":"SUM(C178:C180)","v":0},{"$f":"SUM(D178:D180)","v":0},0]

{"sheet":"FAST DASHBOARD","index":13,"n_rows":25,"n_cols":15,"rows_kept":25,"cut":false,"hidden":true,"merged":[[9,11,10,11],[2,1,2,5],[2,14,2,27],[3,14,3,27]]}
[]
[null,{"$f":"+ANAGRAFICA!C5","v":0}]
[null,"CALCOLI FAST DASHBOARD SINTETICO - Analisi rapida ",null,null,null,null,"nascondi","nascondi","nascondi",null,null,"Indietro",null,null,"RILEVAZIONE DI EVENTUALI SQUILIBRI DI CARATTERE PATRIMONIALE O ECONOMICO-FINANZIARIO"]
[null,null,null,null,null,null,null,null,null,null,null,null,null,null,"DA RAPPORTARE ALLE SPECIFICHE CARATTERISTICHE DELL'IMPRESA E DELL'ATTIVITA' IMPRENDITORIALE"]
[]
[null,"EQUILIBRIO PATRIMONIALE",{"$f":"+C10","v":"00:00:00"},{"$f":"+D10","v":"00:00:00"},{"$f":"+E10","v":"00:00:00"},"Parametro",{"$f":"+C6","v":"00:00:00"},{"$f":"+D6","v":"00:00:00"},"00:00:00"]
[null,"AUTONOMIA PATRIMONIALE",{"$f":"+'BILANCI RICLASSIFICATI'!C45","v":0},{"$f":"+'BILANCI RICLASSIFICATI'!D45","v":0},{"$f":"+'BILANCI RICLASSIFICATI'!E45","v":0},"> 50%",{"$f":"+IF(C7<=0%,0%,IF(C7>100%,100%,C7))","v":0},{"$f":"+IF(D7<=0%,0%,IF(D7>100%,100%,D7))","v":0},0,null,"FOGLIO DI SERVIZIO NASCOSTO"]
[null,"COMMENTO??",null,null,null,null,null,null,null,null,"I DATI SONO RIPORTATI NEL FOGLIO "]
[null,null,null,null,null,null,null,null,null,null,"FAST DASHBOARD OUTPUT"]
[null,"EQUILIBRIO ECONOMICO",{"$f":"+ANAGRAFICA!C16","v":"00:00:00"},{"$f":"+ANAGRAFICA!C17","v":"00:00:00"},{"$f":"+ANAGRAFICA!C18","v":"00:00:00"},"Parametro",{"$f":"+C10","v":"00:00:00"},{"$f":"+D10","v":"00:00:00"},"00:00:00",null,null,null,null,null,"Il FAST DASHBOARD permette di ottenere un primo indizio circa la presenza dell'equilibrio Patrimoniale ed Economico-Finanziario relativi agli ultimi tre esercizi,  come previsto dal Codice della Crisi d'Impresa e dell'Insolvenza (Art. 3 co. 3 lett. a del D.Lgs. 14/2019). Gli indicatori vanno interpretati congiuntamente a tutti gli altri indici di bilancio e non isolatamente."]
[null,"EBITDA",{"$f":"+'BILANCI RICLASSIFICATI'!C107","v":0},{"$f":"+'BILANCI RICLASSIFICATI'!D107","v":0},{"$f":"+'BILANCI RICLASSIFICATI'!E107","v":0},"> 0%",{"$f":"+IF(C11<=0%,0,1)","v":0},{"$f":"+IF(D11<=0%,0,1)","v":0},0]
[null,"EBIT  ",{"$f":"+'BILANCI RICLASSIFICATI'!C77/'BILANCI RICLASSIFICATI'!C59","v":{"$error":"#DIV/0!"}},{"$f":"+'BILANCI RICLASSIFICATI'!D77/'BILANCI RICLASSIFICATI'!D59","v":{"$error":"#DIV/0!"}},{"$f":"+'BILANCI RICLASSIFICATI'!E77/'BILANCI RICLASSIFICATI'!E59","v":{"$error":"#DIV/0!"}},"> 0%",{"$f":"+IF(C12<=0%,0,1)","v":{"$error":"#DIV/0!"}},{"$f":"+IF(D12<=0%,0,1)","v":{"$error":"#DIV/0!"}},{"$error":"#DIV/0!"}]
[null,"REDDITO NETTO",{"$f":"+'BILANCI RICLASSIFICATI'!C85/'BILANCI RICLASSIFICATI'!C59","v":{"$error":"#DIV/0!"}},{"$f":"+'BILANCI RICLASSIFICATI'!D85/'BILANCI RICLASSIFICATI'!D59","v":{"$error":"#DIV/0!"}},{"$f":"+'BILANCI RICLASSIFICATI'!E85/'BILANCI RICLASSIFICATI'!E59","v":{"$error":"#DIV/0!"}},"> 0%",{"$f":"+IF(C13<=0%,0,1)","v":{"$error":"#DIV/0!"}},{"$f":"+IF(D13<=0%,0,1)","v":{"$error":"#DIV/0!"}},{"$error":"#DIV/0!"}]
[null,"Indice sintetico dell'equilibrio economico",{"$f":"+G15","v":{"$error":"#DIV/0!"}},{"$f":"+H15","v":{"$error":"#DIV/0!"}},{"$error":"#DIV/0!"},null,{"$f":"+G11+G12+G13","v":{"$error":"#DIV/0!"}},{"$f":"+H11+H12+H13","v":{"$error":"#DIV/0!"}},{"$f":"+I11+I12+I13","v":{"$error":"#DIV/0!"}},"Totale"]
[null,null,null,null,null,null,{"$f":"+IF(G14=0,0%,IF(G14=1,33%,IF(G14=2,66%,IF(G14=3,100%))))","v":{"$error":"#DIV/0!"}},{"$f":"+IF(H14=0,0%,IF(H14=1,33%,IF(H14=2,66%,IF(H14=3,100%))))","v":{"$error":"#DIV/0!"}},{"$error":"#DIV/0!"},"Grafico"]
[]
[null,"EQUILIBRIO FINANZIARIO",{"$f":"+C10","v":"00:00:00"},{"$f":"+D10","v":"00:00:00"},{"$f":"+E10","v":"00:00:00"},"Parametro",{"$f":"+C17","v":"00:00:00"},{"$f":"+D17","v":"00:00:00"},"00:00:00"]
[null,"MARGINE DI STRUTTURA",{"$f":"+'INDICI E MARGINI'!D29","v":{"$error":"#DIV/0!"}},{"$f":"+'INDICI E MARGINI'!E29","v":{"$error":"#DIV/0!"}},{"$f":"+'INDICI E MARGINI'!F29","v":{"$error":"#DIV/0!"}},"> 1",{"$f":"+IF(C18<1,0,1)","v":{"$error":"#DIV/0!"}},{"$f":"+IF(D18<1,0,1)","v":{"$error":"#DIV/0!"}},{"$error":"#DIV/0!"}]
[null,"MARGINE DI STRUTTURA GLOBALE",{"$f":"+'INDICI E MARGINI'!D30","v":{"$error":"#DIV/0!"}},{"$f":"+'INDICI E MARGINI'!E30","v":{"$error":"#DIV/0!"}},{"$f":"+'INDICI E MARGINI'!F30","v":{"$error":"#DIV/0!"}},"> 1",{"$f":"+IF(C19<1,0,1)","v":{"$error":"#DIV/0!"}},{"$f":"+IF(D19<1,0,1)","v":{"$error":"#DIV/0!"}},{"$error":"#DIV/0!"}]
[null,"CAPITALE CIRCOLANTE NETTO",{"$f":"+'INDICI E MARGINI'!D33","v":{"$error":"#DIV/0!"}},{"$f":"+'INDICI E MARGINI'!E33","v":{"$error":"#DIV/0!"}},{"$f":"+'INDICI E MARGINI'!F33","v":{"$error":"#DIV/0!"}},"> 1",{"$f":"+IF(C20<1,0,1)","v":{"$error":"#DIV/0!"}},{"$f":"+IF(D20<1,0,1)","v":{"$error":"#DIV/0!"}},{"$error":"#DIV/0!"}]
[null,"MARGINE DI TESORERIA",{"$f":"+'INDICI E MARGINI'!D34","v":{"$error":"#DIV/0!"}},{"$f":"+'INDICI E MARGINI'!E34","v":{"$error":"#DIV/0!"}},{"$f":"+'INDICI E MARGINI'!F34","v":{"$error":"#DIV/0!"}},"> 1",{"$f":"+IF(C21<1,0,1)","v":{"$error":"#DIV/0!"}},{"$f":"+IF(D21<1,0,1)","v":{"$error":"#DIV/0!"}},{"$error":"#DIV/0!"}]
[null,"Indice sintetico dell'equilibrio finanziario",{"$f":"+G23","v":{"$error":"#DIV/0!"}},{"$f":"+H23","v":{"$error":"#DIV/0!"}},{"$error":"#DIV/0!"},null,{"$f":"+G18+G19+G20+G21","v":{"$error":"#DIV/0!"}},{"$f":"+H18+H19+H20+H21","v":{"$error":"#DIV/0!"}},{"$f":"+I18+I19+I20+I21","v":{"$error":"#DIV/0!"}},"Totale"]
[null,null,null,null,null,null,{"$f":"+IF(G22=0,0%,IF(G22=1,25%,IF(G22=2,50%,IF(G22=3,75%,100%))))","v":{"$error":"#DIV/0!"}},{"$f":"+IF(H22=0,0%,IF(H22=1,25%,IF(H22=2,50%,IF(H22=3,75%,100%))))","v":{"$error":"#DIV/0!"}},{"$error":"#DIV/0!"},"Grafico"]
[]
[null,null,null,null,null,null,null,null,null,null,"Vai inizio pagina"]

{"sheet":"COMMENTO INDICI","index":14,"n_rows":300,"n_cols":8,"rows_kept":300,"cut":false,"hidden":false,"merged":[[102,1,103,5],[1,1,2,5],[6,1,6,5],[72,1,73,5],[291,1,291,2],[288,1,288,2],[289,1,289,2],[290,1,290,2],[261,1,261,5]]}
[]
[null,"ATTENZIONE: i rimedi correttivi descritti, sono del tutto indicativi e vanno valutati in riferimento al caso concreto con l'ausilio di un consulente aziendale."]
[]
[]
[null,{"$f":"+ANAGRAFICA!C5","v":0}]
[null,null,null,null,null,null,null,"Indietro"]
[null,"COMMENTO AGLI INDICI DI BILANCIO"]
[]
[null,"Indicatore","Formula",{"$f":"+MARGINI!C6","v":"00:00:00"},{"$f":"+MARGINI!D6","v":"00:00:00"},{"$f":"+MARGINI!E6","v":"00:00:00"}]
[null,"ROE (Return on equity)","Rn/PN",{"$f":"+'INDICI E MARGINI'!D8","v":{"$error":"#DIV/0!"}},{"$f":"+'INDICI E MARGINI'!E8","v":{"$error":"#DIV/0!"}},{"$f":"+'INDICI E MARGINI'!F8","v":{"$error":"#DIV/0!"}}]
[]
[null,"Commento"]
[null,"Il ROE esprime il rendimento ottenuto dal capitale proprio investito nell'azienda, per effetto della gestione."]
[null,"Per misurare la sua adeguatezza è opportuno confrontarlo con il rendimento degli investimenti alternativi a ri-"]
[null,"schio zero (BOT, CCT, ecc.). Inoltre il ROE va comparato con quello ottenuto da aziende dello stesso settore"]
[null,"(banche dati Camere di Commercio)."]
[]
[null,"Giudizio"]
[null,"Il giudizio sull'adeguatezza del ROE è diverso a seconda del settore in cui opera l'azienda."]
[null," Il ROE va confrontato con i seguenti paramentri:"]
[null,"1) rendimento degli investimenti alternativi senza rischio (BOT, CCT, ecc.)"]
[null,"2) ROE di aziende dello stesso settore (banche dati Camere di Commercio)"]
[null,"3) comparazione nel tempo."]
[]
[null,"Interventi correttivi"]
[null,"Se il ROE assume valori inferiori o prossimi al rendimento dei BOT o CCT, occorre:"]
[null,"1) accertarsi se il risultato d'esercizio (utile o perdita) sia derivato dal peso eccessivo della gestione finanziaria"]
[null," (interessi passivi); in questo caso va rivista la composizione delle fonti di finanziamento e dell'indebitamento;"]
[null,"2) accertarsi se il risultato d'esercizio (utile o perdita) sia derivato dall'influenza di minusvalenze o plusvalenze. "]
[null,"In tal caso considerare il reddito operativo."]
[null,"3) confrontare il reddito netto con il reddito operativo; stimolare le vendite con politiche di marketing, "]
[null,"o diminuire i costi."]
[]
[null,"Indicatore","Formula",{"$f":"+D9","v":"00:00:00"},{"$f":"+E9","v":"00:00:00"},"00:00:00"]
[null,"ROI (Return on investment)","EBIT/TI*100",{"$f":"+'INDICI E MARGINI'!D9","v":{"$error":"#DIV/0!"}},{"$f":"+'INDICI E MARGINI'!E9","v":{"$error":"#DIV/0!"}},{"$f":"+'INDICI E MARGINI'!F9","v":{"$error":"#DIV/0!"}}]
[]
[null,"Commento"]
[null,"Il ROI permette di valutare il rendimento dell'intero capitale investito in azienda, ed indica la misura "]
[null,"dell'efficienza  della gestione caratteristica."]
[]
[null,"Giudizio e interventi correttivi"]
[null,"Il giudizio va dato confrontando il ROI  con il ROE. Se:"]
[null,"ROI > ROE = la gestione finanziaria influisce pesantemente e quindi vanno presi tutti quei rimedi tesi a "]
[null,"diminuire l'influenza degli interessi passivi (riduzione dell'indebitamento, maggiori dilazioni nei pagamenti, "]
[null,"aumento del capitale proprio)."]
[]
[null,"Indicatore","Formula",{"$f":"+D34","v":"00:00:00"},{"$f":"+E34","v":"00:00:00"},{"$f":"+F34","v":"00:00:00"}]
[null,"RONA (Return on net assets)","EBIT/TI-Dc-F-D.TFR",{"$f":"+'INDICI E MARGINI'!D10","v":{"$error":"#DIV/0!"}},{"$f":"+'INDICI E MARGINI'!E10","v":{"$error":"#DIV/0!"}},{"$f":"+'INDICI E MARGINI'!F10","v":{"$error":"#DIV/0!"}}]
[]
[null,"Commento"]
[null,"Il RONA è un indice alternativo al ROI, e ne differisce per il denominatore, che viene depurato dei"]
[null,"debiti commerciali, dei fondi e del TFR."]
[]
[]
[null,"Indicatore","Formula",{"$f":"+D47","v":"00:00:00"},{"$f":"+E47","v":"00:00:00"},"00:00:00"]
[null,"ROD (Return on debt)","Of/Ct*100",{"$f":"+'INDICI E MARGINI'!D11","v":{"$error":"#DIV/0!"}},{"$f":"+'INDICI E MARGINI'!E11","v":{"$error":"#DIV/0!"}},{"$f":"+'INDICI E MARGINI'!F11","v":{"$error":"#DIV/0!"}}]
[]
[null,"Commento"]
[null,"Indica il tasso medio pagato dall'azienda sui debiti. Va confrontato con il tasso applicato dal sistema bancario. "]
[null,"Inoltre va confrontato con il ROI (rendimento del capitale investito). Così:"]
[null,"ROI rendimento del capitale investito"]
[null,"ROD costo dei capitali di terzi."]
[null,"Fino a quando il ROI > ROD conviene l'indebitamento in quanto il rendimento aziendale è maggiore del"]
[null,"tasso pagato sui debiti.(effetto leva)."]
[null,"Se ROI < ROD vuol dire che non conviene indebitarsi per investire in azienda in quanto quest'ultimo "]
[null,"investimento è minore del tasso pagato sui debiti."]
[]
[]
[null,"Indicatore","Formula",{"$f":"+D55","v":"00:00:00"},{"$f":"+E55","v":"00:00:00"},"00:00:00"]
[null,"Leverage","Ti/Pn",{"$f":"+'INDICI E MARGINI'!D12","v":{"$error":"#DIV/0!"}},{"$f":"+'INDICI E MARGINI'!E12","v":{"$error":"#DIV/0!"}},{"$f":"+'INDICI E MARGINI'!F12","v":{"$error":"#DIV/0!"}}]
[]
[null,"Commento"]
[null,"Detto anche leva finanziaria, ed esprime il livello di indebitamento. Un valore maggiore di 2 segnala uno squilibrio patrimoniale in quanto l'impresa è sottocapitalizzata."]
[]
[]
[null,"Indicatore","Formula",{"$f":"+D69","v":"00:00:00"},{"$f":"+E69","v":"00:00:00"},"00:00:00"]
[null,"Incidenza della gestione non operativa","Rn/EBIT",{"$f":"+'INDICI E MARGINI'!D13","v":{"$error":"#DIV/0!"}},{"$f":"+'INDICI E MARGINI'!E13","v":{"$error":"#DIV/0!"}},{"$f":"+'INDICI E MARGINI'!F13","v":{"$error":"#DIV/0!"}}]
[]
[null,"Commento"]
[null,"Esprime il concorso degli oneri extracaratteristici (finanziari, straordinari, fiscali) alla formazione del reddito "]
[null,"netto. Più alto è il valore dell'indice, maggiormente al reddito netto hanno influito gli oneri non caratteristici."]
[null,"Indice <1 esprime un maggior peso dei costi non caratteristici."]
[null,"Indice >1 vuol dire che i risultati della gestione finanziaria e straordinaria influenzano positivamente il reddito "]
[null,"netto."]
[]
[null,"Indicatore","Formula",{"$f":"+D76","v":"00:00:00"},{"$f":"+E76","v":"00:00:00"},{"$f":"+F76","v":"00:00:00"}]
[null,"ROS (Return on sales)","EBIT/Rv*100",{"$f":"+'INDICI E MARGINI'!D14","v":{"$error":"#DIV/0!"}},{"$f":"+'INDICI E MARGINI'!E14","v":{"$error":"#DIV/0!"}},{"$f":"+'INDICI E MARGINI'!F14","v":{"$error":"#DIV/0!"}}]
[]
[null,"Commento"]
[null,"Il ROS esprime il rendimento delle vendite, ed in percentuale indica quanto residua dai ricavi di vendita"]
[null,"per la copertura dei costi non operativi. Ad esempio un ROS del 15% indica che su 100 di ricavi 85 hanno "]
[null,"coperto i costi caratteristici e 15 residuano per coprire gli oneri finanziari, straordinari e trubutari."]
[]
[null,"Giudizio e interventi correttivi"]
[null,"Un ROS negativo indica che i ricavi di vendita non sono sufficienti nemmeno a coprire i costi della produzione"]
[null,"o delle merci vendute. In questo caso occorre intervenire sul contenimento dei costi."]
[]
[]
[null,"Indicatore","Formula",{"$f":"+D86","v":"00:00:00"},{"$f":"+E86","v":"00:00:00"},"00:00:00"]
[null,"Convenienza a ulteriore indebitamento","ROI - ROD",{"$f":"+'INDICI E MARGINI'!D15","v":{"$error":"#DIV/0!"}},{"$f":"+'INDICI E MARGINI'!E15","v":{"$error":"#DIV/0!"}},{"$f":"+'INDICI E MARGINI'!F15","v":{"$error":"#DIV/0!"}}]
[]
[null,"Commento"]
[null,"Se la redditività del capitale investito (ROI) è maggiore del costo medio del capitale di terzi (ROD), in prima approssimazione i nuovi investimenti possono essere finanziati anche con capitale di debito. "]
[]
[]
[]
[null,"Indicatori","Formule",{"$f":"+D99","v":"00:00:00"},{"$f":"+E99","v":"00:00:00"},"00:00:00"]
[null,"Rigidità degli impieghi","I/TI",{"$f":"+'INDICI E MARGINI'!D19","v":{"$error":"#DIV/0!"}},{"$f":"+'INDICI E MARGINI'!E19","v":{"$error":"#DIV/0!"}},{"$f":"+'INDICI E MARGINI'!F19","v":{"$error":"#DIV/0!"}}]
[null,"Elasticità degli impieghi","Ac/Ti",{"$f":"+'INDICI E MARGINI'!D20","v":{"$error":"#DIV/0!"}},{"$f":"+'INDICI E MARGINI'!E20","v":{"$error":"#DIV/0!"}},{"$f":"+'INDICI E MARGINI'!F20","v":{"$error":"#DIV/0!"}}]
[]
[null,"Commento"]
[null,"In generale maggiore è la elasticità sia degli impieghi che quella generale, più facilmente l'azienda riesce "]
[null,"ad adattarsi ai mutamenti del mercato. La situazione però cambia a seconda del settore in cui opera l'azienda. "]
[null,"Nelle imprese industriali e di produzione è normale che il grado di rigidità sia maggiore rispetto a quelle "]
[null,"commerciali e di servizi. Comunque una maggiore elasticità è garanzia di un migliore equilibrio finanziario."]
[]
[null,"Interventi correttivi"]
[null,"Per migliorare il grado di elasticità è necessario seguire opportune politiche di bilancio, quali una politica di "]
[null,"ammortamenti anticipati o accelerati, una razionalizzazione della gestione delle scorte di magazzino."]
[]
[]
[null,"Indicatore","Formula",{"$f":"+D107","v":"00:00:00"},{"$f":"+E107","v":"00:00:00"},"00:00:00"]
[null,"Incidenza dei debiti a breve","Db/Tp",{"$f":"+'INDICI E MARGINI'!D21","v":{"$error":"#DIV/0!"}},{"$f":"+'INDICI E MARGINI'!E21","v":{"$error":"#DIV/0!"}},{"$f":"+'INDICI E MARGINI'!F21","v":{"$error":"#DIV/0!"}}]
[]
[null,"Commento"]
[null,"Evidenzia il contributo dei debiti a breve al finanziamento degli investimenti  aziendali. Il grado di incidenza"]
[null,"è tanto maggiore quanto più l'indice si avvicina al valore 1."]
[]
[]
[null,"Indicatore","Formula",{"$f":"+D122","v":"00:00:00"},{"$f":"+E122","v":"00:00:00"},"00:00:00"]
[null,"Autonomia finanziaria","Pn/Tp",{"$f":"+'INDICI E MARGINI'!D22","v":{"$error":"#DIV/0!"}},{"$f":"+'INDICI E MARGINI'!E22","v":{"$error":"#DIV/0!"}},{"$f":"+'INDICI E MARGINI'!F22","v":{"$error":"#DIV/0!"}}]
[]
[null,"Commento"]
[null,"Evidenzia il contributo del capitale proprio al finanziamento degli investimenti aziendali. Il grado di autonomia"]
[null,"è tanto maggiore quanto più l'indice si avvicina al valore 1."]
[]
[]
[null,"Indicatore","Formula",{"$f":"+D130","v":"00:00:00"},{"$f":"+E130","v":"00:00:00"},"00:00:00"]
[null,"Incidenza delle fonti permanenti","(Pn+Dml)/Tp",{"$f":"+'INDICI E MARGINI'!D23","v":{"$error":"#DIV/0!"}},{"$f":"+'INDICI E MARGINI'!E23","v":{"$error":"#DIV/0!"}},{"$f":"+'INDICI E MARGINI'!F23","v":{"$error":"#DIV/0!"}}]
[]
[null,"Commento"]
[null,"Evidenzia il contributo delle fonti permanenti  al finanziamento degli investimenti aziendali."]
[null,"Il grado di incidenza è tanto maggiore quanto più l'indice si avvicina al valore 1."]
[]
[]
[null,"Indicatore","Formula",{"$f":"+D138","v":"00:00:00"},{"$f":"+E138","v":"00:00:00"},"00:00:00"]
[null,"Dipendenza finanziaria","Ct/Tp",{"$f":"+'INDICI E MARGINI'!D24","v":{"$error":"#DIV/0!"}},{"$f":"+'INDICI E MARGINI'!E24","v":{"$error":"#DIV/0!"}},{"$f":"+'INDICI E MARGINI'!F24","v":{"$error":"#DIV/0!"}}]
[]
[null,"Commento"]
[null,"Evidenzia l'incidenza dell'indebitamento rispetto al complesso dei finanziamenti aziendali. Più il valore "]
[null,"dell'indice è vicino a 1, maggiore è il peso dell'indebitamento."]
[]
[null,"Interventi correttivi degli indici di composizione delle fonti"]
[null,"L'analisi degli indici di composizione delle fonti, porta a riconsiderare la politica di finanziamento attuata."]
[null," Per riequilibrare le fonti di finanziamento si può:"]
[null,"1) ricorrere all'aumento del capitale proprio, mediante nuovi conferimenti dei soci/titolare o con una politica"]
[null," di accantonamento di utili a riserve;"]
[null,"2) ricorrere all'estinzione dei debiti a breve scadenza (banche e fornitori) con sostituzione di debiti "]
[null,"a medio lunga scadenza (mutui)."]
[]
[null,"Indicatore","Formula",{"$f":"+D146","v":"00:00:00"},{"$f":"+E146","v":"00:00:00"},"00:00:00"]
[null,"Autocopertura delle immobilizzazioni","Pn/I",{"$f":"+'INDICI E MARGINI'!D29","v":{"$error":"#DIV/0!"}},{"$f":"+'INDICI E MARGINI'!E29","v":{"$error":"#DIV/0!"}},{"$f":"+'INDICI E MARGINI'!F29","v":{"$error":"#DIV/0!"}}]
[null,"Margine di struttura primario","PN - Imm",{"$f":"+'INDICI E MARGINI'!D80","v":0},{"$f":"+'INDICI E MARGINI'!E80","v":0},{"$f":"+'INDICI E MARGINI'!F80","v":0}]
[]
[]
[null,"Commento"]
[null,"L'indice di autocopertura esprime  una valutazione sulla solidità della struttura aziendale, indicando in che "]
[null,"misura gli investimenti sono stati finanziati con il capitale proprio. Maggiore è il quoziente, migliore è la solidità."]
[null,"Viene espresso anche come differenza tra Patrimonio netto e Immobilizzazioni (Margine di struttura primario)."]
[]
[]
[null,"Indicatore","Formula",{"$f":"+D161","v":"00:00:00"},{"$f":"+E161","v":"00:00:00"},"00:00:00"]
[null,"Copertura delle immobilizzazioni","(Pn+Dml)/I",{"$f":"+'INDICI E MARGINI'!D30","v":{"$error":"#DIV/0!"}},{"$f":"+'INDICI E MARGINI'!E30","v":{"$error":"#DIV/0!"}},{"$f":"+'INDICI E MARGINI'!F30","v":{"$error":"#DIV/0!"}}]
[null,"Margine di struttura secondario","(PN+Dml) - Imm",{"$f":"+'INDICI E MARGINI'!D81","v":0},{"$f":"+'INDICI E MARGINI'!E81","v":0},{"$f":"+'INDICI E MARGINI'!F81","v":0}]
[]
[null,"Commento"]
[null,"L'indice di autocopertura esprime  una valutazione globale sulla sulla solidità dell'azienda, indicando in quale "]
[null,"misura gli investimenti sono stati finanziati dal capitale permanente (capitale proprio+debiti a mediolungo "]
[null,"termine). Il quoziente deve essere adeguatamente maggiore di 1 per segnalare una buona solidità strutturale."]
[null,"Si esprime anche come differenza tra il capitale permanente (Patrimonio netto + Debiti a medio lungo termine)"]
[null,"e le Immobilizzazioni (Margine di struttura secondario)."]
[]
[null,"Interventi correttivi"]
[null,"Al fine di migliorare questi indicatori di solidità, si può ricorrere: "]
[null,"1) all'aumento del Capitale proprio mediante nuovi versamenti dei soci o maggiori accantonamenti di utili;"]
[null,"2) consolidamento delle passività a breve, cioè la sostituzione di debiti a breve scadenza con mutui a "]
[null,"media lunga scadenza."]
[]
[null,"Indicatore","Formula",{"$f":"+D172","v":"00:00:00"},{"$f":"+E172","v":"00:00:00"},{"$f":"+F172","v":"00:00:00"}]
[null,"Indice di disponibilità","Ac/Pb",{"$f":"+'INDICI E MARGINI'!D33","v":{"$error":"#DIV/0!"}},{"$f":"+'INDICI E MARGINI'!E33","v":{"$error":"#DIV/0!"}},{"$f":"+'INDICI E MARGINI'!F33","v":{"$error":"#DIV/0!"}}]
[null,"Capitale circolante netto finanziario","A c- Pb",{"$f":"+'INDICI E MARGINI'!D82","v":0},{"$f":"+'INDICI E MARGINI'!E82","v":0},{"$f":"+'INDICI E MARGINI'!F82","v":0}]
[]
[null,"Commento"]
[null,"Questo indicatore esprime la capacità dell'azienda di far fronte agli impegni finanziari a breve utilizzando "]
[null,"i mezzi liquidi già disponibili, e il ritorno monetario dell'attivo circolante. Un quoziente minore di 1 segnala "]
[null,"la mancanza di tale capacità, che migliora all'aumentare di tale indice."]
[null,"Si esprime anche come differenza tra l'Attivo circolante e le Passività a breve termine (Capitale circolante"]
[null,"netto finanziario)."]
[]
[null,"Indicatore","Formula",{"$f":"+D189","v":"00:00:00"},{"$f":"+E189","v":"00:00:00"},{"$f":"+F189","v":"00:00:00"}]
[null,"Indice di liquidità immediata","(Ac-R)/Db",{"$f":"+'INDICI E MARGINI'!D34","v":{"$error":"#DIV/0!"}},{"$f":"+'INDICI E MARGINI'!E34","v":{"$error":"#DIV/0!"}},{"$f":"+'INDICI E MARGINI'!F34","v":{"$error":"#DIV/0!"}}]
[null,"Margine di tesoreria","(Ac-Rim.)-Pb",{"$f":"+'INDICI E MARGINI'!D84","v":0},{"$f":"+'INDICI E MARGINI'!E84","v":0},{"$f":"+'INDICI E MARGINI'!F84","v":0}]
[]
[null,"Commento"]
[null,"Questo indicatore esprime  la capacità dell'azienda di coprire i debiti di prossima scadenza, utilizzando le dispo-"]
[null,"nibilità liquide e i crediti, senza considerare quindi il magazzino. Un quoziente inferiore a 1 comincia "]
[null,"ad indicare una situazione di potenziale crisi di liquidità, anche se è opportuno verificare anche i primi due"]
[null," indicatori."]
[null,"Si esprime anche come differenza tra l'attivo circolante con le rimanenze e le passività a breve termine"]
[null,"(Margine di tesoreria)."]
[]
[null,"Interventi correttivi della liquidità"]
[null,"Per migliorare la situazione della liquidità aziendale, è possibile:"]
[null,"1) diminuire l'indebitamento a breve mediante il consolidamento e la sostituzione con indebitamento a lunga "]
[null,"scadenza;"]
[null,"2) ridurre la durata del ciclo monetario, cioè il tempo che intercorre tra il pagamento degli acquisti e l'incasso "]
[null,"delle vendite;"]
[null,"3) incentivare le vendite, con politiche di marketing, per aumentare i crediti."]
[]
[null,"Indicatore","Formula",{"$f":"+D200","v":"00:00:00"},{"$f":"+E200","v":"00:00:00"},{"$f":"+F200","v":"00:00:00"}]
[null,"Rotazione delle immobilizzazioni","Rv/I",{"$f":"+'INDICI E MARGINI'!D37","v":{"$error":"#DIV/0!"}},{"$f":"+'INDICI E MARGINI'!E37","v":{"$error":"#DIV/0!"}},{"$f":"+'INDICI E MARGINI'!F37","v":{"$error":"#DIV/0!"}}]
[null,"Rotazione dell'attivo corrente","Rv/Ac",{"$f":"+'INDICI E MARGINI'!D38","v":{"$error":"#DIV/0!"}},{"$f":"+'INDICI E MARGINI'!E38","v":{"$error":"#DIV/0!"}},{"$f":"+'INDICI E MARGINI'!F38","v":{"$error":"#DIV/0!"}}]
[null,"Rotazione degli impieghi","Rv/Ti",{"$f":"+'INDICI E MARGINI'!D39","v":{"$error":"#DIV/0!"}},{"$f":"+'INDICI E MARGINI'!E39","v":{"$error":"#DIV/0!"}},{"$f":"+'INDICI E MARGINI'!F39","v":{"$error":"#DIV/0!"}}]
[null,"Rotazione del magazzino","Rv/Rim",{"$f":"+'INDICI E MARGINI'!D40","v":{"$error":"#DIV/0!"}},{"$f":"+'INDICI E MARGINI'!E40","v":{"$error":"#DIV/0!"}},{"$f":"+'INDICI E MARGINI'!F40","v":{"$error":"#DIV/0!"}}]
[null,"Rotazione dei crediti","Rv/Cr.com.",{"$f":"+'INDICI E MARGINI'!D42","v":{"$error":"#DIV/0!"}},{"$f":"+'INDICI E MARGINI'!E42","v":{"$error":"#DIV/0!"}},{"$f":"+'INDICI E MARGINI'!F42","v":{"$error":"#DIV/0!"}}]
[]
[null,"Commento"]
[null,"Segnalano quante volte il capitale investito, e i suoi componenti, si rinnovano, cioè ritornano in forma liquida me-"]
[null,"diante i ricavi delle vendite, nell'arco del periodo considerato."]
[null,"Tanto più tali indici sono elevati, maggiore è il grado di efficienza dell'impresa che, avendo un rapido ciclo "]
[null,"investimenti/disinvestimenti, migliora la redditività."]
[]
[null,"Interventi correttivi"]
[null,"Per migliorare tali indici bisogna considerare:"]
[null,"1) incrementare le vendite mediante opportune e mirate azioni di marketing (sconti, promozioni, pubblicità);"]
[null,"2) razionalizzare le rimanenze di magazzino evitando stock di invenduti;"]
[null,"3) accorciare la durata del ciclo monetario concedendo ai clienti dilazioni più brevi."]
[]
[null,"Indicatore","Formula",{"$f":"+D220","v":"00:00:00"},{"$f":"+E220","v":"00:00:00"},{"$f":"+F220","v":"00:00:00"}]
[null,"Indice di durata del magazzino (giorni)","Rim/Rvx365",{"$f":"+'INDICI E MARGINI'!D41","v":{"$error":"#DIV/0!"}},{"$f":"+'INDICI E MARGINI'!E41","v":{"$error":"#DIV/0!"}},{"$f":"+'INDICI E MARGINI'!F41","v":{"$error":"#DIV/0!"}}]
[]
[null,"Commento"]
[null,"Segnala il tempo medio di permanenza delle scorte in magazzino, cioè il numero medio di giorni che decorrono "]
[null,"dal momento dell'acquisto a quello della vendita."]
[]
[null,"Indicatore","Formula",{"$f":"+D239","v":"00:00:00"},{"$f":"+E239","v":"00:00:00"},"00:00:00"]
[null,"Posizione Finanziaria Netta","Dl+Cf-Df",{"$f":"+'INDICI E MARGINI'!D52","v":0},{"$f":"+'INDICI E MARGINI'!E52","v":0},{"$f":"+'INDICI E MARGINI'!F52","v":0}]
[]
[null,"Commento"]
[null,"Indica la capacità finanziaria dell'azienda a far fronte ai debiti di natura finanziaria (debiti verso le banche "]
[null,"e altri finanziatori). "]
[]
[null,"Indicatore","Formula",{"$f":"+D246","v":"00:00:00"},{"$f":"+E246","v":"00:00:00"},"00:00:00"]
[null,"CASH FLOW OPERATIVO","Ricavi monetari-Costi monetari",{"$f":"+'INDICI E MARGINI'!D56","v":0},{"$f":"+'INDICI E MARGINI'!E56","v":0},{"$f":"+'INDICI E MARGINI'!F56","v":0}]
[]
[null,"Commento"]
[null,"Dà una prima indicazione sul flusso di cassa che è stato generato(segno positivo) o assorbito (segno ne-"]
[null,"gativo) dalla gestione caratteristica. Non tiene conto delle variazioni del circolante (debiti e crediti)."]
[null,"Per una indicazione più precisa dei flussi di cassa, fare riferimento al Rendiconto finanziario."]
[]
[]
[null,"DURATA DEL CICLO OPERATIVO"]
[null,"Esprime la durata del fabbisogno finanziario a breve termine da coprire con capitale di prestito."]
[null,"Tale indicatore si ottiene prima calcolando i seguenti 3 indicatori espressi in numero di giorni:"]
[]
[null,"Indicatore 1","Formula",{"$f":"+D253","v":"00:00:00"},{"$f":"+E253","v":"00:00:00"},"00:00:00"]
[null,"Durata media del magazzino","RF/RV*365 = gg.",{"$f":"+'INDICI E MARGINI'!D104","v":{"$error":"#DIV/0!"}},{"$f":"+'INDICI E MARGINI'!E104","v":{"$error":"#DIV/0!"}},{"$f":"+'INDICI E MARGINI'!F104","v":{"$error":"#DIV/0!"}}]
[]
[null,"Commento"]
[null,"Esprime in giorni la durata media di permanenza delle scorte in magazzino. Un allungamento della durata "]
[null,"del magazzino implica un maggior fabbisogno finanziario."]
[]
[null,"Indicatore 2","Formula",{"$f":"+D266","v":"00:00:00"},{"$f":"+E266","v":"00:00:00"},"00:00:00"]
[null,"Durata media dei crediti commerciali","Cred. com./RV*365 = gg.",{"$f":"+'INDICI E MARGINI'!D105","v":{"$error":"#DIV/0!"}},{"$f":"+'INDICI E MARGINI'!E105","v":{"$error":"#DIV/0!"}},{"$f":"+'INDICI E MARGINI'!F105","v":{"$error":"#DIV/0!"}}]
[]
[null,"Commento"]
[null,"Esprime in giorni la durata media delle dilazioni di pagamento concesse ai clienti. Un allungamento delle"]
[null,"dilazioni implica un maggior fabbisogno finanziario."]
[]
[null,"Indicatore 3","Formula",{"$f":"+D273","v":"00:00:00"},{"$f":"+E273","v":"00:00:00"},"00:00:00"]
[null,"Durata media dei debiti commerciali","Deb.Com./Costi acqu.*365 = gg.",{"$f":"+'INDICI E MARGINI'!D106","v":{"$error":"#DIV/0!"}},{"$f":"+'INDICI E MARGINI'!E106","v":{"$error":"#DIV/0!"}},{"$f":"+'INDICI E MARGINI'!F106","v":{"$error":"#DIV/0!"}}]
[]
[null,"Commento"]
[null,"Esprime in giorni la durata media delle dilazioni di pagamento ottenute dai fornitori. Un allungamento "]
[null,"della durata dei debiti commerciali implica una maggiore capacità di copertura del fabbisogno finanziario."]
[]
[null,"La durata del ciclo operativo è ottenuta per somma algebrica dei su esposti 3 indicatori:"]
[null,null,null,{"$f":"+D280","v":"00:00:00"},{"$f":"+E280","v":"00:00:00"},"00:00:00"]
[null,"Durata media del magazzino",null,{"$f":"+D267","v":{"$error":"#DIV/0!"}},{"$f":"+E267","v":{"$error":"#DIV/0!"}},{"$error":"#DIV/0!"}]
[null,"+ Durata media dei crediti commerciali",null,{"$f":"+D274","v":{"$error":"#DIV/0!"}},{"$f":"+E274","v":{"$error":"#DIV/0!"}},{"$error":"#DIV/0!"}]
[null,"- Durata media dei debiti commerciali",null,{"$f":"+D281","v":{"$error":"#DIV/0!"}},{"$f":"+E281","v":{"$error":"#DIV/0!"}},{"$error":"#DIV/0!"}]
[null,"= DURATA CICLO OPERATIVO",null,{"$f":"+D289+D290-D291","v":{"$error":"#DIV/0!"}},{"$f":"+E289+E290-E291","v":{"$error":"#DIV/0!"}},{"$error":"#DIV/0!"}]
[]
[]
[]
[]
[]
[]
[]
[null,null,null,null,null,null,null,"Vai inizio pagina"]

{"sheet":"RENDICONTO FINANZIARIO","index":15,"n_rows":61,"n_cols":8,"rows_kept":61,"cut":false,"hidden":false,"merged":[[4,2,4,3],[4,4,4,5],[3,2,3,3],[3,4,3,5]]}
[]
[]
[null,{"$f":"+ANAGRAFICA!C5","v":0},null,null,null,null,null,"Indietro"]
[null,null,"Anno n",null,"Anno n-1"]
[null,"RENDICONTO FINANZIARIO DELLE VARIAZIONI DI LIQUIDITA'    al",{"$f":"+'INPUT BILANCI'!C9","v":"00:00:00"},null,{"$f":"+'INPUT BILANCI'!D9","v":"00:00:00"},null,null,"Visualizza FOGLIO DI LAVORO Anno n"]
[null,"Report 3",null,null,null,null,null,"Visualizza FOGLIO DI LAVORO Anno n-1"]
[null,null,"Importi parziali","Importi totali","Importi parziali","Importi totali"]
[null,"Dimostrazione dei flussi"]
["A)","Disponibilità liquide iniziali",null,{"$f":"+'CALCOLI RENDICONTO SINTETICO'!D165","v":0},null,{"$f":"+'CALCOLI RENDICONTO SINTETIC n-1'!D165","v":0}]
["B)","Flusso monetario generato da attività di esercizio"]
["B1)","Ricavi monetari",{"$f":"+'CALCOLI RENDICONTO SINTETICO'!C150","v":0},null,{"$f":"+'CALCOLI RENDICONTO SINTETIC n-1'!C150","v":0}]
["B2)","Costi monetari",{"$f":"+'CALCOLI RENDICONTO SINTETICO'!C151","v":0},null,{"$f":"+'CALCOLI RENDICONTO SINTETIC n-1'!C151","v":0}]
["B3)","Variazione nei crediti, debiti, ratei e risconti",{"$f":"+'CALCOLI RENDICONTO SINTETICO'!C152","v":0},null,{"$f":"+'CALCOLI RENDICONTO SINTETIC n-1'!C152","v":0}]
[null,"Totale flusso monetario da attività di esercizio",null,{"$f":"+'CALCOLI RENDICONTO SINTETICO'!D153","v":0},null,{"$f":"SUM(E11:E13)","v":0}]
["C)","Flusso monetario netto da attività di investimento",null,{"$f":"+'CALCOLI RENDICONTO SINTETICO'!D154","v":0},null,{"$f":"+'CALCOLI RENDICONTO SINTETIC n-1'!D154","v":0}]
["D)","Flusso monetario da attività di finanziamento:"]
["D1)","Da mezzi propri",{"$f":"+'CALCOLI RENDICONTO SINTETICO'!C157","v":0},null,{"$f":"+'CALCOLI RENDICONTO SINTETIC n-1'!C157","v":0}]
["D2)","Da mezzi di terzi",{"$f":"+'CALCOLI RENDICONTO SINTETICO'!C156","v":0},null,{"$f":"+'CALCOLI RENDICONTO SINTETIC n-1'!C156","v":0}]
[null,"Totale flusso monetario da attività di finanziamento",null,{"$f":"+'CALCOLI RENDICONTO SINTETICO'!D155","v":0},null,{"$f":"SUM(E17:E18)","v":0}]
["E)","Flusso monetario netto del periodo  B)+C)+D)",null,{"$f":"SUM(D14:D19)","v":0},null,{"$f":"SUM(F14:F19)","v":0}]
["F)","Disponibilità liquide finali",null,{"$f":"+'CALCOLI RENDICONTO SINTETICO'!D166","v":0},null,{"$f":"+'CALCOLI RENDICONTO SINTETIC n-1'!D166","v":0}]
[null,"Variazione delle disponibilità liquide",null,{"$f":"+'CALCOLI RENDICONTO SINTETICO'!D167","v":0},null,{"$f":"+'CALCOLI RENDICONTO SINTETIC n-1'!D167","v":0}]
[]
[]
[]
[]
[]
[]
[]
[]
[]
[]
[]
[]
[]
[]
[]
[]
[]
[]
[]
[]
[]
[]
[]
[]
[]
[]
[]
[]
[]
[]
[]
[]
[]
[]
[]
[]
[]
[]
[null,null,null,null,null,null,null,"Vai inizio pagina"]

{"sheet":"CALCOLI RENDICONTO SINTETICO","index":16,"n_rows":168,"n_cols":15,"rows_kept":168,"cut":false,"hidden":false,"merged":[[0,1,0,10],[57,1,58,1],[59,1,60,1],[61,1,62,1],[63,1,64,1],[45,1,46,1],[48,1,49,1],[34,1,35,1],[41,1,42,1],[43,1,44,1],[161,1,162,1],[3,1,4,1],[6,1,7,1],[8,1,9,1],[10,1,11,1],[13,1,14,1],[16,1,17,1],[18,1,19,1],[20,1,21,1],[23,1,24,1],[25,1,26,1],[27,1,28,1],[29,1,30,1],[85,1,85,10],[37,1,37,10],[82,1,83,1],[137,2,137,3],[145,2,145,3],[50,1,51,1],[53,1,54,1],[55,1,56,1],[65,1,66,1],[67,1,68,1],[69,1,70,1],[71,1,72,1],[73,1,74,1],[79,1,80,1]]}
[null,"SUDDIVISIONE DELLE SINGOLE VOCI DI BILANCIO IN OGNUNA DELLE VOCI DEL RENDICONTO FINANZIARIO (Anno n-1 e Anno n)"]
[null,"Esci",null,null,"B1","B2","B3","C","D2","D1","F","NASCONDI","NASCONDI","NASCONDI"]
[null,"ATTIVO","Anno","Importi bilancio","RICAVI MONETARI","COSTI MONETARI","CAPITALE CIRCOLANTE NETTO","INVESTIMENTI","FINANZIAMENTI DI TERZI","FINANZIAMENTI DI CAPITALE PROPRIO","DISPONIBILITA' LIQUIDE",null,null,"Controllo","Esci"]
[null,"A) CREDITI V/SOCI",{"$f":"+'INPUT BILANCI'!D9","v":"00:00:00"},{"$f":"+'INPUT BILANCI'!D13","v":0},null,null,{"$f":"+D4","v":0},null,null,null,null,{"$f":"SUM(E4:K4)","v":0},{"$f":"+D4-L4","v":0},{"$f":"+IF(M4=0,\"ok\",\"Errore\")","v":"ok"}]
[null,null,{"$f":"+'INPUT BILANCI'!C9","v":"00:00:00"},{"$f":"+'INPUT BILANCI'!C13","v":0},null,null,{"$f":"+D5","v":0},null,null,null,null,{"$f":"SUM(E5:K5)","v":0},0,{"$f":"+IF(M5=0,\"ok\",\"Errore\")","v":"ok"}]
[null,"B) IMMOBILIZZAZIONI",null,null,null,null,null,null,null,null,null,0,0,"ok"]
[null,"I) Immateriali",{"$f":"+C4","v":"00:00:00"},{"$f":"+'INPUT BILANCI'!D23","v":0},null,null,null,{"$f":"+D7","v":0},null,null,null,0,0,"ok"]
[null,null,{"$f":"+C5","v":"00:00:00"},{"$f":"+'INPUT BILANCI'!C23","v":0},null,null,null,0,null,null,null,0,0,"ok"]
[null,"II) Materiali",{"$f":"+C7","v":"00:00:00"},{"$f":"+'INPUT BILANCI'!D30","v":0},null,null,null,0,null,null,null,0,0,"ok"]
[null,null,{"$f":"+C8","v":"00:00:00"},{"$f":"+'INPUT BILANCI'!C30","v":0},null,null,null,0,null,null,null,0,0,"ok"]
[null,"III) Finanziarie",{"$f":"+C9","v":"00:00:00"},{"$f":"+'INPUT BILANCI'!D56","v":0},null,null,null,0,null,null,null,0,0,"ok"]
[null,null,{"$f":"+C10","v":"00:00:00"},{"$f":"+'INPUT BILANCI'!C56","v":0},null,null,null,0,null,null,null,0,0,"ok"]
[null,"C) ATTIVO CIRCOLANTE",null,null,null,null,null,null,null,null,null,0,0,"ok"]
[null,"I) Rimanenze",{"$f":"+C11","v":"00:00:00"},{"$f":"+'INPUT BILANCI'!D65","v":0},null,null,{"$f":"+D14","v":0},null,null,null,null,0,0,"ok"]
[null,null,{"$f":"+C12","v":"00:00:00"},{"$f":"+'INPUT BILANCI'!C65","v":0},null,null,{"$f":"+D15","v":0},null,null,null,null,0,0,"ok"]
[null,"II) Crediti",null,null,null,null,null,null,null,null,null,0,0,"ok"]
[null,"II)1) Crediti v/clienti",{"$f":"+C14","v":"00:00:00"},{"$f":"+'INPUT BILANCI'!D68+'INPUT BILANCI'!D69","v":0},null,null,{"$f":"+D17","v":0},null,null,null,null,0,0,"ok"]
[null,null,{"$f":"+C15","v":"00:00:00"},{"$f":"+'INPUT BILANCI'!C68+'INPUT BILANCI'!C69","v":0},null,null,0,null,null,null,null,0,0,"ok"]
[null,"II) 2)3)4)5)5bis)5ter)5quater",{"$f":"+C17","v":"00:00:00"},{"$f":"+'INPUT BILANCI'!D71+'INPUT BILANCI'!D72+'INPUT BILANCI'!D74+'INPUT BILANCI'!D75+'INPUT BILANCI'!D77+'INPUT BILANCI'!D78+'INPUT BILANCI'!D83+'INPUT BILANCI'!D84+'INPUT BILANCI'!D86+'INPUT BILANCI'!D87+'INPUT BILANCI'!D89+'INPUT BILANCI'!D90+'INPUT BILANCI'!D80+'INPUT BILANCI'!D81","v":0},null,null,0,null,null,null,null,0,0,"ok"]
[null,null,{"$f":"+C18","v":"00:00:00"},{"$f":"+'INPUT BILANCI'!C71+'INPUT BILANCI'!C72+'INPUT BILANCI'!C74+'INPUT BILANCI'!C75+'INPUT BILANCI'!C77+'INPUT BILANCI'!C78+'INPUT BILANCI'!C83+'INPUT BILANCI'!C84+'INPUT BILANCI'!C86+'INPUT BILANCI'!C87+'INPUT BILANCI'!C89+'INPUT BILANCI'!C90+'INPUT BILANCI'!C80+'INPUT BILANCI'!C81","v":0},null,null,0,null,null,null,null,0,0,"ok"]
[null,"III) Attività finanziarie",{"$f":"+C19","v":"00:00:00"},{"$f":"+'INPUT BILANCI'!D100","v":0},null,null,0,null,null,null,null,0,0,"ok"]
[null,null,{"$f":"+C20","v":"00:00:00"},{"$f":"+'INPUT BILANCI'!C100","v":0},null,null,0,null,null,null,null,0,0,"ok"]
[null,"IV) Disponibilità liquide",null,null,null,null,null,null,null,null,null,0,0,"ok"]
[null,"IV) 1) Depositi bancari e postali",{"$f":"+C21","v":"00:00:00"},{"$f":"+'INPUT BILANCI'!D102","v":0},null,null,null,null,null,null,{"$f":"+D24","v":0},0,0,"ok"]
[null,null,{"$f":"+C22","v":"00:00:00"},{"$f":"+'INPUT BILANCI'!C102","v":0},null,null,null,null,null,null,{"$f":"+D25","v":0},0,0,"ok"]
[null,"IV) 2)3) Assegni e Denaro in cassa",{"$f":"+C24","v":"00:00:00"},{"$f":"+'INPUT BILANCI'!D103+'INPUT BILANCI'!D104","v":0},null,null,null,null,null,null,{"$f":"+D26","v":0},0,0,"ok"]
[null,null,"00:00:00",{"$f":"+'INPUT BILANCI'!C103+'INPUT BILANCI'!C104","v":0},null,null,null,null,null,null,{"$f":"+D27","v":0},0,0,"ok"]
[null,"D) RATEI E RISCONTI","00:00:00",{"$f":"+'INPUT BILANCI'!D107","v":0},null,null,{"$f":"+D28","v":0},null,null,null,null,0,0,"ok"]
[null,null,"00:00:00",{"$f":"+'INPUT BILANCI'!C107","v":0},null,null,{"$f":"+D29","v":0},null,null,null,null,0,0,"ok"]
[null,"TOTALE ATTIVO","00:00:00",{"$f":"+D4+D7+D9+D11+D14+D17+D19+D21+D24+D26+D28","v":0},{"$f":"+E4+E7+E9+E11+E14+E17+E19+E21+E24+E26+E28","v":0},0,0,0,0,0,0,0,0,"ok"]
[null,null,"00:00:00",{"$f":"+D5+D8+D10+D12+D15+D18+D20+D22+D25+D27+D29","v":0},0,0,0,0,0,0,{"$f":"+K5+K8+K10+K12+K15+K18+K20+K22+K25+K27+K29","v":0},0,0,"ok"]
[null,"DIFFERENZA ANNO 1 - ANNO N-1",null,{"$f":"+D31-D30","v":0},{"$f":"+E31-E30","v":0},0,0,0,0,0,{"$f":"+K31-K30","v":0},0,0,"ok"]
[null,null,null,null,"B1","B2","B3","C","D2","D1","F"]
[]
[null,"QUADRATURA CON ATTIVO DEL BILANCIO",{"$f":"+C30","v":"00:00:00"},{"$f":"+D30-'INPUT BILANCI'!D112","v":0},{"$f":"+IF(D35=0,\"ok\",\"Errore\")","v":"ok"}]
[null,null,{"$f":"+C31","v":"00:00:00"},{"$f":"+D31-'INPUT BILANCI'!C112","v":0},{"$f":"+IF(D36=0,\"ok\",\"Errore\")","v":"ok"}]
[]
[null,"SUDDIVISIONE DELLE SINGOLE VOCI DI BILANCIO IN OGNUNA DELLE VOCI DEL RENDICONTO FINANZIARIO (Anno n-1 e Anno n)"]
[null,null,null,null,"B1","B2","B3","C","D2","D1","F"]
[null,"PASSIVO","Anno","Importi bilancio","RICAVI MONETARI","COSTI MONETARI","CAPITALE CIRCOLANTE NETTO","INVESTIMENTI","FINANZIAMENTI DI TERZI","FINANZIAMENTI DI CAPITALE PROPRIO","DISPONIBILITA' LIQUIDE",null,null,"Controllo"]
[null,"A) PATRIMONIO NETTO"]
[null,"I - Capitale sociale",{"$f":"+C30","v":"00:00:00"},{"$f":"+'INPUT BILANCI'!D117","v":0},null,null,null,null,null,{"$f":"+D42","v":0},null,{"$f":"SUM(E42:K42)","v":0},{"$f":"+D42-L42","v":0},{"$f":"+IF(M42=0,\"ok\",\"Errore\")","v":"ok"}]
[null,null,{"$f":"+C31","v":"00:00:00"},{"$f":"+'INPUT BILANCI'!C117","v":0},null,null,null,null,null,0,null,{"$f":"SUM(E43:K43)","v":0},0,{"$f":"+IF(M43=0,\"ok\",\"Errore\")","v":"ok"}]
[null,"II-III-IV-V-VI-VII-VIII - Riserve e Utili a nuovo",{"$f":"+C42","v":"00:00:00"},{"$f":"+'INPUT BILANCI'!D118+'INPUT BILANCI'!D119+'INPUT BILANCI'!D120+'INPUT BILANCI'!D121+'INPUT BILANCI'!D122+'INPUT BILANCI'!D123+'INPUT BILANCI'!D124-'INPUT BILANCI'!D128","v":0},null,null,null,null,null,0,null,0,0,"ok"]
[null,null,{"$f":"+C43","v":"00:00:00"},{"$f":"+'INPUT BILANCI'!C118+'INPUT BILANCI'!C119+'INPUT BILANCI'!C120+'INPUT BILANCI'!C121+'INPUT BILANCI'!C122+'INPUT BILANCI'!C123+'INPUT BILANCI'!C124-'INPUT BILANCI'!C128","v":0},null,null,null,null,null,0,null,0,0,"ok"]
[null,"IX - Utili (perdite) dell'esercizio",{"$f":"+C44","v":"00:00:00"},{"$f":"+'INPUT BILANCI'!D126+'INPUT BILANCI'!D127","v":0},null,null,null,null,null,0,null,0,0,"ok"]
[null,null,{"$f":"+C45","v":"00:00:00"},{"$f":"+'INPUT BILANCI'!C126+'INPUT BILANCI'!C127","v":0},null,null,null,null,null,0,null,0,0,"ok"]
[null,"B) FONDI PER RISCHI E ONERI",null,null,null,null,null,null,null,null,null,0,0]
[null,"1)-2)-3) 4) Fondi",{"$f":"+C46","v":"00:00:00"},{"$f":"+'INPUT BILANCI'!D143","v":0},null,null,null,null,{"$f":"+D49","v":0},null,null,0,0,"ok"]
[null,null,{"$f":"+C47","v":"00:00:00"},{"$f":"+'INPUT BILANCI'!C143","v":0},null,null,null,null,{"$f":"+D50","v":0},null,null,0,0,"ok"]
[null,"C) DEBITI PER TFR",{"$f":"+C49","v":"00:00:00"},{"$f":"+'INPUT BILANCI'!D147","v":0},null,null,null,null,{"$f":"+D51","v":0},null,null,0,0,"ok"]
[null,null,{"$f":"+C50","v":"00:00:00"},{"$f":"+'INPUT BILANCI'!C147","v":0},null,null,null,null,{"$f":"+D52","v":0},null,null,0,0,"ok"]
[null,"D) DEBITI",null,null,null,null,null,null,null,null,null,0,0]
[null,"1)-2)-3) Obbligazioni e Debiti v/soci",{"$f":"+C51","v":"00:00:00"},{"$f":"+'INPUT BILANCI'!D150+'INPUT BILANCI'!D151+'INPUT BILANCI'!D153+'INPUT BILANCI'!D154+'INPUT BILANCI'!D156+'INPUT BILANCI'!D157","v":0},null,null,null,null,{"$f":"+D54","v":0},null,null,0,0,"ok"]
[null,null,{"$f":"+C52","v":"00:00:00"},{"$f":"+'INPUT BILANCI'!C150+'INPUT BILANCI'!C151+'INPUT BILANCI'!C153+'INPUT BILANCI'!C154+'INPUT BILANCI'!C156+'INPUT BILANCI'!C157","v":0},null,null,null,null,0,null,null,0,0,"ok"]
[null,"4) Debiti verso banche",{"$f":"+C54","v":"00:00:00"},{"$f":"+'INPUT BILANCI'!D159+'INPUT BILANCI'!D160","v":0},null,null,null,null,0,null,null,0,0,"ok"]
[null,null,"00:00:00",{"$f":"+'INPUT BILANCI'!C159+'INPUT BILANCI'!C160","v":0},null,null,null,null,0,null,null,0,0,"ok"]
[null,"5) Debiti v/altri finanziatori","00:00:00",{"$f":"+'INPUT BILANCI'!D162+'INPUT BILANCI'!D163","v":0},null,null,null,null,0,null,null,0,0,"ok"]
[null,null,"00:00:00",{"$f":"+'INPUT BILANCI'!C162+'INPUT BILANCI'!C163","v":0},null,null,null,null,0,null,null,0,0,"ok"]
[null,"6) Acconti","00:00:00",{"$f":"+'INPUT BILANCI'!D165+'INPUT BILANCI'!D166","v":0},null,null,{"$f":"+D60","v":0},null,null,null,null,0,0,"ok"]
[null,null,"00:00:00",{"$f":"+'INPUT BILANCI'!C165+'INPUT BILANCI'!C166","v":0},null,null,0,null,null,null,null,0,0,"ok"]
[null,"7) Debiti v/fornitori","00:00:00",{"$f":"+'INPUT BILANCI'!D168+'INPUT BILANCI'!D169","v":0},null,null,0,null,null,null,null,0,0,"ok"]
[null,null,"00:00:00",{"$f":"+'INPUT BILANCI'!C168+'INPUT BILANCI'!C169","v":0},null,null,0,null,null,null,null,0,0,"ok"]
[null,"8) debiti rappresentati da titoli di credito","00:00:00",{"$f":"+'INPUT BILANCI'!D171+'INPUT BILANCI'!D172","v":0},null,null,0,null,null,null,null,0,0,"ok"]
[null,null,"00:00:00",{"$f":"+'INPUT BILANCI'!C171+'INPUT BILANCI'!C172","v":0},null,null,0,null,null,null,null,0,0,"ok"]
[null,"9)10)11) 11bis)","00:00:00",{"$f":"+'INPUT BILANCI'!D174+'INPUT BILANCI'!D175+'INPUT BILANCI'!D177+'INPUT BILANCI'!D178+'INPUT BILANCI'!D180+'INPUT BILANCI'!D181+'INPUT BILANCI'!D183+'INPUT BILANCI'!D184","v":0},null,null,0,null,null,null,null,0,0,"ok"]
[null,null,"00:00:00",{"$f":"+'INPUT BILANCI'!C174+'INPUT BILANCI'!C175+'INPUT BILANCI'!C177+'INPUT BILANCI'!C178+'INPUT BILANCI'!C180+'INPUT BILANCI'!C181+'INPUT BILANCI'!C183+'INPUT BILANCI'!C184","v":0},null,null,0,null,null,null,null,0,0,"ok"]
[null,"12) Debiti tributari","00:00:00",{"$f":"+'INPUT BILANCI'!D186+'INPUT BILANCI'!D187","v":0},null,null,0,null,null,null,null,0,0,"ok"]
[null,null,"00:00:00",{"$f":"+'INPUT BILANCI'!C186+'INPUT BILANCI'!C187","v":0},null,null,0,null,null,null,null,0,0,"ok"]
[null,"13)14) Debiti v/ist.prev.e altri","00:00:00",{"$f":"+'INPUT BILANCI'!D189+'INPUT BILANCI'!D190+'INPUT BILANCI'!D192+'INPUT BILANCI'!D193","v":0},null,null,0,null,null,null,null,0,0,"ok"]
[null,null,"00:00:00",{"$f":"+'INPUT BILANCI'!C189+'INPUT BILANCI'!C190+'INPUT BILANCI'!C192+'INPUT BILANCI'!C193","v":0},null,null,0,null,null,null,null,0,0,"ok"]
[null,"E) RATEI E RISCONTI","00:00:00",{"$f":"+'INPUT BILANCI'!D195","v":0},null,null,0,null,null,null,null,0,0,"ok"]
[null,null,"00:00:00",{"$f":"+'INPUT BILANCI'!C195","v":0},null,null,0,null,null,null,null,0,0,"ok"]
[null,"TOTALE PASSIVO","00:00:00",{"$f":"+D42+D44+D46+D49+D51+D54+D56+D58+D60+D62+D64+D66+D68+D70+D72","v":0},{"$f":"+E42+E44+E46+E49+E51+E54+E56+E58+E60+E62+E64+E66+E68+E70+E72","v":0},0,0,0,0,0,{"$f":"+K42+K44+K46+K49+K51+K54+K56+K58+K60+K62+K64+K66+K68+K70+K72","v":0},0,0,"ok"]
[null,null,"00:00:00",{"$f":"+D43+D45+D47+D50+D52+D55+D57+D59+D61+D63+D65+D67+D69+D71+D73","v":0},0,0,0,0,0,0,{"$f":"+K43+K45+K47+K50+K52+K55+K57+K59+K61+K63+K65+K67+K69+K71+K73","v":0},0,0,"ok"]
[null,"DIFFERENZA ANNO 1 - ANNO N-1",null,{"$f":"+D75-D74","v":0},{"$f":"+E75-E74","v":0},0,0,0,{"$f":"+I75-I74","v":0},{"$f":"+J75-J74","v":0},{"$f":"+K75-K74","v":0},null,null,"ok"]
[null,null,null,null,{"$f":"+E39","v":"B1"},"B2","B3","C","D2","D1","F"]
[]
[]
[null,"QUADRATURA CON ATTIVO DEL BILANCIO",{"$f":"+C74","v":"00:00:00"},{"$f":"+D30-D74","v":0},{"$f":"+IF(D80=0,\"ok\",\"Errore\")","v":"ok"}]
[null,null,{"$f":"+C75","v":"00:00:00"},{"$f":"+D31-D75","v":0},{"$f":"+IF(D81=0,\"ok\",\"Errore\")","v":"ok"}]
[]
[null,"QUADRATURA CON PASSIVO DEL BILANCIO",{"$f":"+C74","v":"00:00:00"},{"$f":"+D74-'INPUT BILANCI'!D200","v":0},{"$f":"+IF(D83=0,\"ok\",\"Errore\")","v":"ok"}]
[null,null,{"$f":"+C75","v":"00:00:00"},{"$f":"+D75-'INPUT BILANCI'!C200","v":0},{"$f":"+IF(D84=0,\"ok\",\"Errore\")","v":"ok"}]
[]
[null,"SUDDIVISIONE DELLE SINGOLE VOCI DI BILANCIO IN OGNUNA DELLE VOCI DEL RENDICONTO FINANZIARIO (Anno n)"]
[null,null,null,null,"B1","B2","B3","C","D2","D1","F",null,null,"Controllo"]
[null,"CONTO ECONOMICO","Anno","Importi bilancio","RICAVI MONETARI","COSTI MONETARI","CAPITALE CIRCOLANTE NETTO","INVESTIMENTI","FINANZIAMENTI DI TERZI","FINANZIAMENTI DI CAPITALE PROPRIO","DISPONIBILITA' LIQUIDE"]
[null,"A) Valore della produzione"]
[null,"1) ricavi delle vendite e delle prestazioni",{"$f":"+'INPUT BILANCI'!C207","v":"00:00:00"},{"$f":"+'INPUT BILANCI'!C209","v":0},{"$f":"+D90","v":0},null,null,null,null,null,null,{"$f":"SUM(E90:K90)","v":0},{"$f":"+D90-L90","v":0},{"$f":"+IF(M90=0,\"ok\",\"Errore\")","v":"ok"}]
[null,"2) variazione delle rimanenze di prodotti in corso di lavorazione, semilavorati e finiti",{"$f":"+C90","v":"00:00:00"},{"$f":"+'INPUT BILANCI'!C210","v":0},{"$f":"+D91","v":0},null,null,null,null,null,null,{"$f":"SUM(E91:K91)","v":0},0,"ok"]
[null,"3) variazione dei lavori in corso su ordinazione",{"$f":"+C90","v":"00:00:00"},{"$f":"+'INPUT BILANCI'!C211","v":0},{"$f":"+D92","v":0},null,null,null,null,null,null,0,0,"ok"]
[null,"4) incrementi delle immobilizzazioni per lavori interni",{"$f":"+C90","v":"00:00:00"},{"$f":"+'INPUT BILANCI'!C212","v":0},null,null,null,{"$f":"+D93","v":0},null,null,null,0,0,"ok"]
[null,"5) altri ricavi e proventi",null,null,null,null,null,null,null,null,null,0,0]
[null,"Contributi in conto esercizio",{"$f":"+C93","v":"00:00:00"},{"$f":"+'INPUT BILANCI'!C214","v":0},{"$f":"+D95","v":0},null,null,null,null,null,null,0,0,"ok"]
[null,"Altri",{"$f":"+C95","v":"00:00:00"},{"$f":"+'INPUT BILANCI'!C215","v":0},{"$f":"+D96","v":0},null,null,null,null,null,null,0,0,"ok"]
[null,"B) Costi della produzione",null,null,null,null,null,null,null,null,null,0,0]
[null,"6) per materie prime, sussidiari, di consumo e merci",{"$f":"+C96","v":"00:00:00"},{"$f":"-+'INPUT BILANCI'!C220","v":0},null,{"$f":"+D98","v":0},null,null,null,null,null,0,0,"ok"]
[null,"7) per servizi",{"$f":"+C98","v":"00:00:00"},{"$f":"-+'INPUT BILANCI'!C221","v":0},null,{"$f":"+D99","v":0},null,null,null,null,null,0,0,"ok"]
[null,"8) per godimento di beni di terzi",{"$f":"+C99","v":"00:00:00"},{"$f":"-+'INPUT BILANCI'!C222","v":0},null,{"$f":"+D100","v":0},null,null,null,null,null,0,0,"ok"]
[null,"9) per il personale",null,null,null,null,null,null,null,null,null,0,0]
[null,"a) salari e stipendi",{"$f":"+C100","v":"00:00:00"},{"$f":"-+'INPUT BILANCI'!C224","v":0},null,{"$f":"+D102","v":0},null,null,null,null,null,0,0,"ok"]
[null,"b) oneri sociali",{"$f":"+C102","v":"00:00:00"},{"$f":"-+'INPUT BILANCI'!C225","v":0},null,{"$f":"+D103","v":0},null,null,null,null,null,0,0,"ok"]
[null,"c) trattamento di fine rapporto",{"$f":"+C103","v":"00:00:00"},{"$f":"-+'INPUT BILANCI'!C226","v":0},null,null,null,null,{"$f":"+D104","v":0},null,null,0,0,"ok"]
[null,"d) trattamento di quiescenza e simili",{"$f":"+C104","v":"00:00:00"},{"$f":"-+'INPUT BILANCI'!C227","v":0},null,null,null,null,{"$f":"+D105","v":0},null,null,0,0,"ok"]
[null,"e) altri costi",{"$f":"+C105","v":"00:00:00"},{"$f":"-+'INPUT BILANCI'!C228","v":0},null,{"$f":"+D106","v":0},null,null,null,null,null,0,0,"ok"]
[null,"10) ammortamenti e svalutazioni",null,null,null,null,null,null,null,null,null,0,0]
[null,"a) ammortam. Delle immobilizazioni immateriali",{"$f":"+C106","v":"00:00:00"},{"$f":"-+'INPUT BILANCI'!C230","v":0},null,null,null,{"$f":"+D108","v":0},null,null,null,0,0,"ok"]
[null,"b) ammort. Delle immobilizzazioni materiali",{"$f":"+C108","v":"00:00:00"},{"$f":"-+'INPUT BILANCI'!C231","v":0},null,null,null,{"$f":"+D109","v":0},null,null,null,0,0,"ok"]
[null,"c) altre svalutazioni delle immobilizzazioni","00:00:00",{"$f":"-+'INPUT BILANCI'!C232","v":0},null,null,null,{"$f":"+D110","v":0},null,null,null,0,0,"ok"]
[null,"d) svalutazione dei crediti compresi nell'attivo circolante e delle disponibilità liquide","00:00:00",{"$f":"-+'INPUT BILANCI'!C233","v":0},null,{"$f":"+D111","v":0},null,null,null,null,null,0,0,"ok"]
[null,"11) variazioni delle rimanenze di materie prime, sussidiarie, di consumo e merci","00:00:00",{"$f":"-+'INPUT BILANCI'!C234","v":0},null,{"$f":"+D112","v":0},null,null,null,null,null,0,0,"ok"]
[null,"12) accantonamenti per rischi","00:00:00",{"$f":"-+'INPUT BILANCI'!C235","v":0},null,null,null,null,{"$f":"+D113","v":0},null,null,0,0,"ok"]
[null,"13) altri accantonamenti","00:00:00",{"$f":"-+'INPUT BILANCI'!C236","v":0},null,null,null,null,{"$f":"+D114","v":0},null,null,0,0,"ok"]
[null,"14) oneri diversi di gestione","00:00:00",{"$f":"-+'INPUT BILANCI'!C237","v":0},null,{"$f":"+D115","v":0},null,null,null,null,null,0,0,"ok"]
[null,"C) Proventi e oneri finanziari",null,null,null,null,null,null,null,null,null,0,0]
[null,"15) proventi da partecipazioni",{"$f":"+C115","v":"00:00:00"},{"$f":"+'INPUT BILANCI'!C246+'INPUT BILANCI'!C247+'INPUT BILANCI'!C248+'INPUT BILANCI'!C249","v":0},{"$f":"+D117","v":0},null,null,null,null,null,null,0,0,"ok"]
[null,"16) altri proventi finanziari",{"$f":"+C117","v":"00:00:00"},{"$f":"+'INPUT BILANCI'!C252+'INPUT BILANCI'!C253+'INPUT BILANCI'!C254+'INPUT BILANCI'!C256+'INPUT BILANCI'!C257+'INPUT BILANCI'!C259+'INPUT BILANCI'!C260+'INPUT BILANCI'!C261+'INPUT BILANCI'!C255+'INPUT BILANCI'!C262","v":0},{"$f":"+D118","v":0},null,null,null,null,null,null,0,0,"ok"]
[null,"17) interessi e altri oneri finanziari",{"$f":"+C118","v":"00:00:00"},{"$f":"-(+'INPUT BILANCI'!C264+'INPUT BILANCI'!C265+'INPUT BILANCI'!C266+'INPUT BILANCI'!C267)","v":0},null,{"$f":"+D119","v":0},null,null,null,null,null,0,0,"ok"]
[null,"17bis) utili e perdite su cambi (+/-)",{"$f":"+C119","v":"00:00:00"},{"$f":"+'INPUT BILANCI'!C268","v":0},{"$f":"+D120","v":0},null,null,null,null,null,null,0,0,"ok"]
[null,"D) Rettifiche di valore di attività finanziarie",null,null,null,null,null,null,null,null,null,0,0]
[null,"18) rivalutazioni",{"$f":"+C120","v":"00:00:00"},{"$f":"+'INPUT BILANCI'!C272+'INPUT BILANCI'!C273+'INPUT BILANCI'!C274+'INPUT BILANCI'!C275","v":0},null,null,null,{"$f":"+D122","v":0},null,null,null,0,0,"ok"]
[null,"19) svalutazioni",{"$f":"+C122","v":"00:00:00"},{"$f":"-(+'INPUT BILANCI'!C277+'INPUT BILANCI'!C278+'INPUT BILANCI'!C279+'INPUT BILANCI'!C280)","v":0},null,null,null,{"$f":"+D123","v":0},null,null,null,0,0,"ok"]
[null,"E) Proventi e oneri straordinari",null,null,null,null,null,null,null,null,null,0,0]
[null,"20) proventi",{"$f":"+C123","v":"00:00:00"},{"$f":"+'INPUT BILANCI'!C284+'INPUT BILANCI'!C285","v":0},null,null,null,{"$f":"+D125","v":0},null,null,null,0,0,"ok"]
[null,"21) oneri",{"$f":"+C125","v":"00:00:00"},{"$f":"-(+'INPUT BILANCI'!C287+'INPUT BILANCI'!C288+'INPUT BILANCI'!C289)","v":0},null,null,null,{"$f":"+D126","v":0},null,null,null,0,0,"ok"]
[null,"22) imposte sul reddito dell'esercizio, correnti differite e anticipate",{"$f":"+C126","v":"00:00:00"},{"$f":"-+'INPUT BILANCI'!C292","v":0},null,{"$f":"+D127","v":0},null,null,null,null,null,0,0,"ok"]
[null,"23) utile (perdita) dell'esercizio",{"$f":"+C126","v":"00:00:00"},{"$f":"SUM(D90:D127)","v":0},null,null,null,null,null,{"$f":"+D128","v":0},null,0,0,"ok"]
[null,"TOTALI",null,null,{"$f":"SUM(E90:E128)","v":0},{"$f":"SUM(F90:F128)","v":0},0,0,0,0,null,0,0,"ok"]
[null,null,null,null,{"$f":"+E87","v":"B1"},"B2","B3","C","D2","D1","F"]
[]
[]
[null,"QUADRATURA CON UTILE/PERDITA CONTO ECONOMICO",{"$f":"+C128","v":"00:00:00"},{"$f":"+D128-'INPUT BILANCI'!C293","v":0},{"$f":"+IF(D133=0,\"ok\",\"Errore\")","v":"ok"}]
[]
[null,"QUADRATURA CON UTILE/PERDITA DEL RENDICONTO",{"$f":"+C133","v":"00:00:00"},{"$f":"+D128-D47","v":0},{"$f":"+IF(D135=0,\"ok\",\"Errore\")","v":"ok"}]
[]
[null,null,null,null,"B1","B2","B3","C","D2","D1","F"]
[null,"RIEPILOGO","Anno",null,"RICAVI MONETARI","COSTI MONETARI","CAPITALE CIRCOLANTE NETTO","INVESTIMENTI","FINANZIAMENTI DI TERZI","FINANZIAMENTI DI CAPITALE PROPRIO","DISPONIBILITA' LIQUIDE"]
[null,"VARIAZIONI ATTIVO",null,{"$f":"+D32","v":0},{"$f":"+E32","v":0},0,{"$f":"+G32","v":0},0,0,0,0,{"$f":"SUM(E139:K139)","v":0},{"$f":"SUM(M100:M138)","v":0},{"$f":"+IF(M139=0,\"ok\",\"Errore\")","v":"ok"}]
[null,"VARIAZIONI PASSIVO",null,{"$f":"+D76","v":0},{"$f":"+E76","v":0},0,0,0,0,0,0,{"$f":"SUM(E140:K140)","v":0},0,{"$f":"+IF(M140=0,\"ok\",\"Errore\")","v":"ok"}]
[null,"CONTO ECONOMICO",{"$f":"+C127","v":"00:00:00"},{"$f":"+D129","v":0},{"$f":"+E129","v":0},0,0,0,0,{"$f":"-+J129","v":0},0,0,0,"ok"]
[null,"Totali",null,null,{"$f":"+E139+E140+E141","v":0},0,0,0,0,0,0,0,0,"ok"]
[null,"VARIAZIONI ATTIVO",null,null,null,null,{"$f":"+IF(G139>0,-G139,IF(G139<0,-G139,IF(G139=0,0)))","v":0},{"$f":"+IF(H139>0,-H139,IF(H139<0,-H139,IF(H139=0,0)))","v":0},{"$f":"+IF(I139>0,-I139,IF(I139<0,-I139,IF(I139=0,0)))","v":0},{"$f":"+J139","v":0},{"$f":"+IF(K139>0,-K139,IF(K139<0,-K139,IF(K139=0,0)))","v":0},0,0,"ok"]
[null,"VARIAZIONI PASSIVO",null,null,null,null,{"$f":"+IF(G140>0,+G140,IF(G140<0,-G140,IF(G140=0,0)))","v":0},{"$f":"+IF(H140>0,+H140,IF(H140<0,-H140,IF(H140=0,0)))","v":0},{"$f":"+I140","v":0},{"$f":"+J140","v":0},{"$f":"+IF(K140>0,+K140,IF(K140<0,-K140,IF(K140=0,0)))","v":0},0,0,"ok"]
[null,"CONTO ECONOMICO",null,null,{"$f":"+E141","v":0},{"$f":"+F141","v":0},0,0,0,0,0,0,0,"ok"]
[null,"Totali RENDICONTO FINANZIARIO",{"$f":"+C141","v":"00:00:00"},null,{"$f":"SUM(E143:E145)","v":0},{"$f":"SUM(F143:F145)","v":0},0,0,0,0,0,0,0,"ok"]
[]
["A","FLUSSI FINANZIARI DI GESTIONE"]
["B)","Flusso monetario generato da attività di esercizio"]
["B1)","Ricavi monetari",{"$f":"+E146","v":0}]
["B2)","Costi monetari",{"$f":"+F146","v":0}]
["B3)","Variazione nei crediti, debiti, ratei e risconti",{"$f":"+G146","v":0}]
["TOT. B","Flussi finanziari della gestione operativa",null,{"$f":"SUM(C150:C152)","v":0}]
["C)","Flussi finanziari dell'attività d'investimento",null,{"$f":"+H146","v":0}]
["D)","Flussi finanziari dell'attività di finanziamento",null,{"$f":"SUM(C156:C157)","v":0}]
["D2)","Da mezzi di terzi",{"$f":"+I146","v":0}]
["D1)","Da mezzi propri",{"$f":"+J146","v":0}]
["E)","Flussi di cassa complessivi della gestione",null,{"$f":"SUM(D153:D155)","v":0}]
[null,"VARIAZIONE DELLE DISPONIBILITA' LIQUIDE"]
[null,"Variazioni delle disponibilità liquide",{"$f":"+K142","v":0}]
[]
[null,"QUADRATURA RENDICONTO",{"$f":"+D158-C160","v":0}]
[null,null,{"$f":"+IF(C162=0,\"OK\",\"ERRORE\")","v":"OK"}]
[]
["A)","Disponibilità liquide iniziali",{"$f":"+C30","v":"00:00:00"},{"$f":"+K30","v":0}]
["F)","Disponibilità liquide finali",{"$f":"+C31","v":"00:00:00"},{"$f":"+K31","v":0}]
[null,"Variazione disponibilità liquide",null,{"$f":"+K32","v":0}]
[null,null,null,null,null,null,"Vai inizio pagina"]

{"sheet":"CALCOLI RENDICONTO SINTETIC n-1","index":17,"n_rows":168,"n_cols":15,"rows_kept":168,"cut":false,"hidden":false,"merged":[[82,1,83,1],[161,1,162,1],[65,1,66,1],[67,1,68,1],[69,1,70,1],[71,1,72,1],[73,1,74,1],[79,1,80,1],[63,1,64,1],[34,1,35,1],[41,1,42,1],[43,1,44,1],[45,1,46,1],[48,1,49,1],[50,1,51,1],[53,1,54,1],[55,1,56,1],[57,1,58,1],[59,1,60,1],[61,1,62,1],[0,1,0,10],[145,2,145,3],[37,1,37,10],[85,1,85,10],[29,1,30,1],[3,1,4,1],[6,1,7,1],[8,1,9,1],[10,1,11,1],[13,1,14,1],[16,1,17,1],[18,1,19,1],[20,1,21,1],[23,1,24,1],[25,1,26,1],[27,1,28,1]]}
[null,"SUDDIVISIONE DELLE SINGOLE VOCI DI BILANCIO IN OGNUNA DELLE VOCI DEL RENDICONTO FINANZIARIO (Anno n-2 e Anno n-1)"]
[null,"Esci",null,null,"B1","B2","B3","C","D2","D1","F","NASCONDI","NASCONDI","NASCONDI"]
[null,"ATTIVO","Anno","Importi bilancio","RICAVI MONETARI","COSTI MONETARI","CAPITALE CIRCOLANTE NETTO","INVESTIMENTI","FINANZIAMENTI DI TERZI","FINANZIAMENTI DI CAPITALE PROPRIO","DISPONIBILITA' LIQUIDE",null,null,"Controllo","Esci"]
[null,"A) CREDITI V/SOCI",{"$f":"+'INPUT BILANCI'!E9","v":"00:00:00"},{"$f":"+'INPUT BILANCI'!E13","v":0},null,null,{"$f":"+D4","v":0},null,null,null,null,{"$f":"SUM(E4:K4)","v":0},{"$f":"+D4-L4","v":0},{"$f":"+IF(M4=0,\"ok\",\"Errore\")","v":"ok"}]
[null,null,{"$f":"+'INPUT BILANCI'!D9","v":"00:00:00"},{"$f":"+'INPUT BILANCI'!D13","v":0},null,null,{"$f":"+D5","v":0},null,null,null,null,{"$f":"SUM(E5:K5)","v":0},0,{"$f":"+IF(M5=0,\"ok\",\"Errore\")","v":"ok"}]
[null,"B) IMMOBILIZZAZIONI",null,null,null,null,null,null,null,null,null,0,0,"ok"]
[null,"I) Immateriali",{"$f":"+C4","v":"00:00:00"},{"$f":"+'INPUT BILANCI'!E23","v":0},null,null,null,{"$f":"+D7","v":0},null,null,null,0,0,"ok"]
[null,null,{"$f":"+C5","v":"00:00:00"},{"$f":"+'INPUT BILANCI'!D23","v":0},null,null,null,0,null,null,null,0,0,"ok"]
[null,"II) Materiali",{"$f":"+C7","v":"00:00:00"},{"$f":"+'INPUT BILANCI'!E30","v":0},null,null,null,0,null,null,null,0,0,"ok"]
[null,null,{"$f":"+C8","v":"00:00:00"},{"$f":"+'INPUT BILANCI'!D30","v":0},null,null,null,0,null,null,null,0,0,"ok"]
[null,"III) Finanziarie",{"$f":"+C9","v":"00:00:00"},{"$f":"+'INPUT BILANCI'!E56","v":0},null,null,null,0,null,null,null,0,0,"ok"]
[null,null,{"$f":"+C10","v":"00:00:00"},{"$f":"+'INPUT BILANCI'!D56","v":0},null,null,null,0,null,null,null,0,0,"ok"]
[null,"C) ATTIVO CIRCOLANTE",null,null,null,null,null,null,null,null,null,0,0,"ok"]
[null,"I) Rimanenze",{"$f":"+C11","v":"00:00:00"},{"$f":"+'INPUT BILANCI'!E65","v":0},null,null,{"$f":"+D14","v":0},null,null,null,null,0,0,"ok"]
[null,null,{"$f":"+C12","v":"00:00:00"},{"$f":"+'INPUT BILANCI'!D65","v":0},null,null,{"$f":"+D15","v":0},null,null,null,null,0,0,"ok"]
[null,"II) Crediti",null,null,null,null,null,null,null,null,null,0,0,"ok"]
[null,"II)1) Crediti v/clienti",{"$f":"+C14","v":"00:00:00"},{"$f":"+'INPUT BILANCI'!E68+'INPUT BILANCI'!E69","v":0},null,null,{"$f":"+D17","v":0},null,null,null,null,0,0,"ok"]
[null,null,{"$f":"+C15","v":"00:00:00"},{"$f":"+'INPUT BILANCI'!D68+'INPUT BILANCI'!D69","v":0},null,null,0,null,null,null,null,0,0,"ok"]
[null,"II) 2)3)4)5)5bis)5ter)5quater",{"$f":"+C17","v":"00:00:00"},{"$f":"+'INPUT BILANCI'!E71+'INPUT BILANCI'!E72+'INPUT BILANCI'!E74+'INPUT BILANCI'!E75+'INPUT BILANCI'!E77+'INPUT BILANCI'!E78+'INPUT BILANCI'!E83+'INPUT BILANCI'!E84+'INPUT BILANCI'!E86+'INPUT BILANCI'!E87+'INPUT BILANCI'!E89+'INPUT BILANCI'!E90+'INPUT BILANCI'!E80+'INPUT BILANCI'!E81","v":0},null,null,0,null,null,null,null,0,0,"ok"]
[null,null,{"$f":"+C18","v":"00:00:00"},{"$f":"+'INPUT BILANCI'!D71+'INPUT BILANCI'!D72+'INPUT BILANCI'!D74+'INPUT BILANCI'!D75+'INPUT BILANCI'!D77+'INPUT BILANCI'!D78+'INPUT BILANCI'!D83+'INPUT BILANCI'!D84+'INPUT BILANCI'!D86+'INPUT BILANCI'!D87+'INPUT BILANCI'!D89+'INPUT BILANCI'!D90+'INPUT BILANCI'!D80+'INPUT BILANCI'!D81","v":0},null,null,0,null,null,null,null,0,0,"ok"]
[null,"III) Attività finanziarie",{"$f":"+C19","v":"00:00:00"},{"$f":"+'INPUT BILANCI'!E100","v":0},null,null,0,null,null,null,null,0,0,"ok"]
[null,null,{"$f":"+C20","v":"00:00:00"},{"$f":"+'INPUT BILANCI'!D100","v":0},null,null,0,null,null,null,null,0,0,"ok"]
[null,"IV) Disponibilità liquide",null,null,null,null,null,null,null,null,null,0,0,"ok"]
[null,"IV) 1) Depositi bancari e postali",{"$f":"+C21","v":"00:00:00"},{"$f":"+'INPUT BILANCI'!E102","v":0},null,null,null,null,null,null,{"$f":"+D24","v":0},0,0,"ok"]
[null,null,{"$f":"+C22","v":"00:00:00"},{"$f":"+'INPUT BILANCI'!D102","v":0},null,null,null,null,null,null,{"$f":"+D25","v":0},0,0,"ok"]
[null,"IV) 2)3) Assegni e Denaro in cassa",{"$f":"+C24","v":"00:00:00"},{"$f":"+'INPUT BILANCI'!E103+'INPUT BILANCI'!E104","v":0},null,null,null,null,null,null,{"$f":"+D26","v":0},0,0,"ok"]
[null,null,"00:00:00",{"$f":"+'INPUT BILANCI'!D103+'INPUT BILANCI'!D104","v":0},null,null,null,null,null,null,{"$f":"+D27","v":0},0,0,"ok"]
[null,"D) RATEI E RISCONTI","00:00:00",{"$f":"+'INPUT BILANCI'!E107","v":0},null,null,{"$f":"+D28","v":0},null,null,null,null,0,0,"ok"]
[null,null,"00:00:00",{"$f":"+'INPUT BILANCI'!D107","v":0},null,null,{"$f":"+D29","v":0},null,null,null,null,0,0,"ok"]
[null,"TOTALE ATTIVO","00:00:00",{"$f":"+D4+D7+D9+D11+D14+D17+D19+D21+D24+D26+D28","v":0},{"$f":"+E4+E7+E9+E11+E14+E17+E19+E21+E24+E26+E28","v":0},0,0,0,0,0,0,0,0,"ok"]
[null,null,"00:00:00",{"$f":"+D5+D8+D10+D12+D15+D18+D20+D22+D25+D27+D29","v":0},0,0,0,0,0,0,{"$f":"+K5+K8+K10+K12+K15+K18+K20+K22+K25+K27+K29","v":0},0,0,"ok"]
[null,"DIFFERENZA ANNO N-1 - ANNO N-2",null,{"$f":"+D31-D30","v":0},{"$f":"+E31-E30","v":0},0,0,0,0,0,{"$f":"+K31-K30","v":0},0,0,"ok"]
[null,null,null,null,"B1","B2","B3","C","D2","D1","F"]
[]
[null,"QUADRATURA CON ATTIVO DEL BILANCIO",{"$f":"+C30","v":"00:00:00"},{"$f":"+D30-'INPUT BILANCI'!E112","v":0},{"$f":"+IF(D35=0,\"ok\",\"Errore\")","v":"ok"}]
[null,null,{"$f":"+C31","v":"00:00:00"},{"$f":"+D31-'INPUT BILANCI'!D112","v":0},{"$f":"+IF(D36=0,\"ok\",\"Errore\")","v":"ok"}]
[]
[null,"SUDDIVISIONE DELLE SINGOLE VOCI DI BILANCIO IN OGNUNA DELLE VOCI DEL RENDICONTO FINANZIARIO (Anno n-2 e Anno n-1)"]
[null,null,null,null,"B1","B2","B3","C","D2","D1","F"]
[null,"PASSIVO","Anno","Importi bilancio","RICAVI MONETARI","COSTI MONETARI","CAPITALE CIRCOLANTE NETTO","INVESTIMENTI","FINANZIAMENTI DI TERZI","FINANZIAMENTI DI CAPITALE PROPRIO","DISPONIBILITA' LIQUIDE",null,null,"Controllo"]
[null,"A) PATRIMONIO NETTO"]
[null,"I - Capitale sociale",{"$f":"+C30","v":"00:00:00"},{"$f":"+'INPUT BILANCI'!E117","v":0},null,null,null,null,null,{"$f":"+D42","v":0},null,{"$f":"SUM(E42:K42)","v":0},{"$f":"+D42-L42","v":0},{"$f":"+IF(M42=0,\"ok\",\"Errore\")","v":"ok"}]
[null,null,{"$f":"+C31","v":"00:00:00"},{"$f":"+'INPUT BILANCI'!D117","v":0},null,null,null,null,null,0,null,{"$f":"SUM(E43:K43)","v":0},0,{"$f":"+IF(M43=0,\"ok\",\"Errore\")","v":"ok"}]
[null,"II-III-IV-V-VI-VII-VIII - Riserve e Utili a nuovo",{"$f":"+C42","v":"00:00:00"},{"$f":"+'INPUT BILANCI'!E118+'INPUT BILANCI'!E119+'INPUT BILANCI'!E120+'INPUT BILANCI'!E121+'INPUT BILANCI'!E122+'INPUT BILANCI'!E123+'INPUT BILANCI'!E124-'INPUT BILANCI'!E128","v":0},null,null,null,null,null,0,null,0,0,"ok"]
[null,null,{"$f":"+C43","v":"00:00:00"},{"$f":"+'INPUT BILANCI'!D118+'INPUT BILANCI'!D119+'INPUT BILANCI'!D120+'INPUT BILANCI'!D121+'INPUT BILANCI'!D122+'INPUT BILANCI'!D123+'INPUT BILANCI'!D124-'INPUT BILANCI'!D128","v":0},null,null,null,null,null,0,null,0,0,"ok"]
[null,"IX - Utili (perdite) dell'esercizio",{"$f":"+C44","v":"00:00:00"},{"$f":"+'INPUT BILANCI'!E126+'INPUT BILANCI'!E127","v":0},null,null,null,null,null,0,null,0,0,"ok"]
[null,null,{"$f":"+C45","v":"00:00:00"},{"$f":"+'INPUT BILANCI'!D126+'INPUT BILANCI'!D127","v":0},null,null,null,null,null,0,null,0,0,"ok"]
[null,"B) FONDI PER RISCHI E ONERI",null,null,null,null,null,null,null,null,null,0,0]
[null,"1)-2)-3) 4) Fondi",{"$f":"+C46","v":"00:00:00"},{"$f":"+'INPUT BILANCI'!E143","v":0},null,null,null,null,{"$f":"+D49","v":0},null,null,0,0,"ok"]
[null,null,{"$f":"+C47","v":"00:00:00"},{"$f":"+'INPUT BILANCI'!D143","v":0},null,null,null,null,{"$f":"+D50","v":0},null,null,0,0,"ok"]
[null,"C) DEBITI PER TFR",{"$f":"+C49","v":"00:00:00"},{"$f":"+'INPUT BILANCI'!E147","v":0},null,null,null,null,{"$f":"+D51","v":0},null,null,0,0,"ok"]
[null,null,{"$f":"+C50","v":"00:00:00"},{"$f":"+'INPUT BILANCI'!D147","v":0},null,null,null,null,{"$f":"+D52","v":0},null,null,0,0,"ok"]
[null,"D) DEBITI",null,null,null,null,null,null,null,null,null,0,0]
[null,"1)-2)-3) Obbligazioni e Debiti v/soci",{"$f":"+C51","v":"00:00:00"},{"$f":"+'INPUT BILANCI'!E150+'INPUT BILANCI'!E151+'INPUT BILANCI'!E153+'INPUT BILANCI'!E154+'INPUT BILANCI'!E156+'INPUT BILANCI'!E157","v":0},null,null,null,null,{"$f":"+D54","v":0},null,null,0,0,"ok"]
[null,null,{"$f":"+C52","v":"00:00:00"},{"$f":"+'INPUT BILANCI'!D150+'INPUT BILANCI'!D151+'INPUT BILANCI'!D153+'INPUT BILANCI'!D154+'INPUT BILANCI'!D156+'INPUT BILANCI'!D157","v":0},null,null,null,null,0,null,null,0,0,"ok"]
[null,"4) Debiti verso banche",{"$f":"+C54","v":"00:00:00"},{"$f":"+'INPUT BILANCI'!E159+'INPUT BILANCI'!E160","v":0},null,null,null,null,0,null,null,0,0,"ok"]
[null,null,"00:00:00",{"$f":"+'INPUT BILANCI'!D159+'INPUT BILANCI'!D160","v":0},null,null,null,null,0,null,null,0,0,"ok"]
[null,"5) Debiti v/altri finanziatori","00:00:00",{"$f":"+'INPUT BILANCI'!E162+'INPUT BILANCI'!E163","v":0},null,null,null,null,0,null,null,0,0,"ok"]
[null,null,"00:00:00",{"$f":"+'INPUT BILANCI'!D162+'INPUT BILANCI'!D163","v":0},null,null,null,null,0,null,null,0,0,"ok"]
[null,"6) Acconti","00:00:00",{"$f":"+'INPUT BILANCI'!E165+'INPUT BILANCI'!E166","v":0},null,null,{"$f":"+D60","v":0},null,null,null,null,0,0,"ok"]
[null,null,"00:00:00",{"$f":"+'INPUT BILANCI'!D165+'INPUT BILANCI'!D166","v":0},null,null,0,null,null,null,null,0,0,"ok"]
[null,"7) Debiti v/fornitori","00:00:00",{"$f":"+'INPUT BILANCI'!E168+'INPUT BILANCI'!E169","v":0},null,null,0,null,null,null,null,0,0,"ok"]
[null,null,"00:00:00",{"$f":"+'INPUT BILANCI'!D168+'INPUT BILANCI'!D169","v":0},null,null,0,null,null,null,null,0,0,"ok"]
[null,"8) debiti rappresentati da titoli di credito","00:00:00",{"$f":"+'INPUT BILANCI'!E171+'INPUT BILANCI'!E172","v":0},null,null,0,null,null,null,null,0,0,"ok"]
[null,null,"00:00:00",{"$f":"+'INPUT BILANCI'!D171+'INPUT BILANCI'!D172","v":0},null,null,0,null,null,null,null,0,0,"ok"]
[null,"9)10)11) 11bis)","00:00:00",{"$f":"+'INPUT BILANCI'!E174+'INPUT BILANCI'!E175+'INPUT BILANCI'!E177+'INPUT BILANCI'!E178+'INPUT BILANCI'!E180+'INPUT BILANCI'!E181+'INPUT BILANCI'!E183+'INPUT BILANCI'!E184","v":0},null,null,0,null,null,null,null,0,0,"ok"]
[null,null,"00:00:00",{"$f":"+'INPUT BILANCI'!D174+'INPUT BILANCI'!D175+'INPUT BILANCI'!D177+'INPUT BILANCI'!D178+'INPUT BILANCI'!D180+'INPUT BILANCI'!D181+'INPUT BILANCI'!D183+'INPUT BILANCI'!D184","v":0},null,null,0,null,null,null,null,0,0,"ok"]
[null,"12) Debiti tributari","00:00:00",{"$f":"+'INPUT BILANCI'!E186+'INPUT BILANCI'!E187","v":0},null,null,0,null,null,null,null,0,0,"ok"]
[null,null,"00:00:00",{"$f":"+'INPUT BILANCI'!D186+'INPUT BILANCI'!D187","v":0},null,null,0,null,null,null,null,0,0,"ok"]
[null,"13)14) Debiti v/ist.prev.e altri","00:00:00",{"$f":"+'INPUT BILANCI'!E189+'INPUT BILANCI'!E190+'INPUT BILANCI'!E192+'INPUT BILANCI'!E193","v":0},null,null,0,null,null,null,null,0,0,"ok"]
[null,null,"00:00:00",{"$f":"+'INPUT BILANCI'!D189+'INPUT BILANCI'!D190+'INPUT BILANCI'!D192+'INPUT BILANCI'!D193","v":0},null,null,0,null,null,null,null,0,0,"ok"]
[null,"E) RATEI E RISCONTI","00:00:00",{"$f":"+'INPUT BILANCI'!E195","v":0},null,null,0,null,null,null,null,0,0,"ok"]
[null,null,"00:00:00",{"$f":"+'INPUT BILANCI'!D195","v":0},null,null,0,null,null,null,null,0,0,"ok"]
[null,"TOTALE PASSIVO","00:00:00",{"$f":"+D42+D44+D46+D49+D51+D54+D56+D58+D60+D62+D64+D66+D68+D70+D72","v":0},{"$f":"+E42+E44+E46+E49+E51+E54+E56+E58+E60+E62+E64+E66+E68+E70+E72","v":0},0,0,0,0,0,{"$f":"+K42+K44+K46+K49+K51+K54+K56+K58+K60+K62+K64+K66+K68+K70+K72","v":0},0,0,"ok"]
[null,null,"00:00:00",{"$f":"+D43+D45+D47+D50+D52+D55+D57+D59+D61+D63+D65+D67+D69+D71+D73","v":0},0,0,0,0,0,0,{"$f":"+K43+K45+K47+K50+K52+K55+K57+K59+K61+K63+K65+K67+K69+K71+K73","v":0},0,0,"ok"]
[null,"DIFFERENZA ANNO N-1 - ANNO N-2",null,{"$f":"+D75-D74","v":0},{"$f":"+E75-E74","v":0},0,0,0,0,0,{"$f":"+K75-K74","v":0},null,null,"ok"]
[null,null,null,null,{"$f":"+E39","v":"B1"},"B2","B3","C","D2","D1","F"]
[]
[]
[null,"QUADRATURA CON ATTIVO DEL BILANCIO",{"$f":"+C74","v":"00:00:00"},{"$f":"+D30-D74","v":0},{"$f":"+IF(D80=0,\"ok\",\"Errore\")","v":"ok"}]
[null,null,{"$f":"+C75","v":"00:00:00"},{"$f":"+D31-D75","v":0},{"$f":"+IF(D81=0,\"ok\",\"Errore\")","v":"ok"}]
[]
[null,"QUADRATURA CON PASSIVO DEL BILANCIO",{"$f":"+C74","v":"00:00:00"},{"$f":"+D74-'INPUT BILANCI'!E200","v":0},{"$f":"+IF(D83=0,\"ok\",\"Errore\")","v":"ok"}]
[null,null,{"$f":"+C75","v":"00:00:00"},{"$f":"+D75-'INPUT BILANCI'!D200","v":0},{"$f":"+IF(D84=0,\"ok\",\"Errore\")","v":"ok"}]
[]
[null,"SUDDIVISIONE DELLE SINGOLE VOCI DI BILANCIO IN OGNUNA DELLE VOCI DEL RENDICONTO FINANZIARIO (Anno n-1)"]
[null,null,null,null,"B1","B2","B3","C","D2","D1","F",null,null,"Controllo"]
[null,"CONTO ECONOMICO","Anno","Importi bilancio","RICAVI MONETARI","COSTI MONETARI","CAPITALE CIRCOLANTE NETTO","INVESTIMENTI","FINANZIAMENTI DI TERZI","FINANZIAMENTI DI CAPITALE PROPRIO","DISPONIBILITA' LIQUIDE"]
[null,"A) Valore della produzione"]
[null,"1) ricavi delle vendite e delle prestazioni",{"$f":"+'INPUT BILANCI'!D9","v":"00:00:00"},{"$f":"+'INPUT BILANCI'!D209","v":0},{"$f":"+D90","v":0},null,null,null,null,null,null,{"$f":"SUM(E90:K90)","v":0},{"$f":"+D90-L90","v":0},{"$f":"+IF(M90=0,\"ok\",\"Errore\")","v":"ok"}]
[null,"2) variazione delle rimanenze di prodotti in corso di lavorazione, semilavorati e finiti",{"$f":"+C90","v":"00:00:00"},{"$f":"+'INPUT BILANCI'!D210","v":0},{"$f":"+D91","v":0},null,null,null,null,null,null,{"$f":"SUM(E91:K91)","v":0},0,"ok"]
[null,"3) variazione dei lavori in corso su ordinazione",{"$f":"+C90","v":"00:00:00"},{"$f":"+'INPUT BILANCI'!D211","v":0},{"$f":"+D92","v":0},null,null,null,null,null,null,0,0,"ok"]
[null,"4) incrementi delle immobilizzazioni per lavori interni",{"$f":"+C90","v":"00:00:00"},{"$f":"+'INPUT BILANCI'!D212","v":0},null,null,null,{"$f":"+D93","v":0},null,null,null,0,0,"ok"]
[null,"5) altri ricavi e proventi",null,null,null,null,null,null,null,null,null,0,0]
[null,"Contributi in conto esercizio",{"$f":"+C93","v":"00:00:00"},{"$f":"+'INPUT BILANCI'!D214","v":0},{"$f":"+D95","v":0},null,null,null,null,null,null,0,0,"ok"]
[null,"Altri",{"$f":"+C95","v":"00:00:00"},{"$f":"+'INPUT BILANCI'!D215","v":0},{"$f":"+D96","v":0},null,null,null,null,null,null,0,0,"ok"]
[null,"B) Costi della produzione",null,null,null,null,null,null,null,null,null,0,0]
[null,"6) per materie prime, sussidiari, di consumo e merci",{"$f":"+C96","v":"00:00:00"},{"$f":"-+'INPUT BILANCI'!D220","v":0},null,{"$f":"+D98","v":0},null,null,null,null,null,0,0,"ok"]
[null,"7) per servizi",{"$f":"+C98","v":"00:00:00"},{"$f":"-+'INPUT BILANCI'!D221","v":0},null,{"$f":"+D99","v":0},null,null,null,null,null,0,0,"ok"]
[null,"8) per godimento di beni di terzi",{"$f":"+C99","v":"00:00:00"},{"$f":"-+'INPUT BILANCI'!D222","v":0},null,{"$f":"+D100","v":0},null,null,null,null,null,0,0,"ok"]
[null,"9) per il personale",null,null,null,null,null,null,null,null,null,0,0]
[null,"a) salari e stipendi",{"$f":"+C100","v":"00:00:00"},{"$f":"-+'INPUT BILANCI'!D224","v":0},null,{"$f":"+D102","v":0},null,null,null,null,null,0,0,"ok"]
[null,"b) oneri sociali",{"$f":"+C102","v":"00:00:00"},{"$f":"-+'INPUT BILANCI'!D225","v":0},null,{"$f":"+D103","v":0},null,null,null,null,null,0,0,"ok"]
[null,"c) trattamento di fine rapporto",{"$f":"+C103","v":"00:00:00"},{"$f":"-+'INPUT BILANCI'!D226","v":0},null,null,null,null,{"$f":"+D104","v":0},null,null,0,0,"ok"]
[null,"d) trattamento di quiescenza e simili",{"$f":"+C104","v":"00:00:00"},{"$f":"-+'INPUT BILANCI'!D227","v":0},null,null,null,null,{"$f":"+D105","v":0},null,null,0,0,"ok"]
[null,"e) altri costi",{"$f":"+C105","v":"00:00:00"},{"$f":"-+'INPUT BILANCI'!D228","v":0},null,{"$f":"+D106","v":0},null,null,null,null,null,0,0,"ok"]
[null,"10) ammortamenti e svalutazioni",null,null,null,null,null,null,null,null,null,0,0]
[null,"a) ammortam. Delle immobilizazioni immateriali",{"$f":"+C106","v":"00:00:00"},{"$f":"-+'INPUT BILANCI'!D230","v":0},null,null,null,{"$f":"+D108","v":0},null,null,null,0,0,"ok"]
[null,"b) ammort. Delle immobilizzazioni materiali",{"$f":"+C108","v":"00:00:00"},{"$f":"-+'INPUT BILANCI'!D231","v":0},null,null,null,{"$f":"+D109","v":0},null,null,null,0,0,"ok"]
[null,"c) altre svalutazioni delle immobilizzazioni","00:00:00",{"$f":"-+'INPUT BILANCI'!D232","v":0},null,null,null,{"$f":"+D110","v":0},null,null,null,0,0,"ok"]
[null,"d) svalutazione dei crediti compresi nell'attivo circolante e delle disponibilità liquide","00:00:00",{"$f":"-+'INPUT BILANCI'!D233","v":0},null,{"$f":"+D111","v":0},null,null,null,null,null,0,0,"ok"]
[null,"11) variazioni delle rimanenze di materie prime, sussidiarie, di consumo e merci","00:00:00",{"$f":"-+'INPUT BILANCI'!D234","v":0},null,{"$f":"+D112","v":0},null,null,null,null,null,0,0,"ok"]
[null,"12) accantonamenti per rischi","00:00:00",{"$f":"-+'INPUT BILANCI'!D235","v":0},null,null,null,null,{"$f":"+D113","v":0},null,null,0,0,"ok"]
[null,"13) altri accantonamenti","00:00:00",{"$f":"-+'INPUT BILANCI'!D236","v":0},null,null,null,null,{"$f":"+D114","v":0},null,null,0,0,"ok"]
[null,"14) oneri diversi di gestione","00:00:00",{"$f":"-+'INPUT BILANCI'!D237","v":0},null,{"$f":"+D115","v":0},null,null,null,null,null,0,0,"ok"]
[null,"C) Proventi e oneri finanziari",null,null,null,null,null,null,null,null,null,0,0]
[null,"15) proventi da partecipazioni",{"$f":"+C115","v":"00:00:00"},{"$f":"+'INPUT BILANCI'!D246+'INPUT BILANCI'!D247+'INPUT BILANCI'!D248+'INPUT BILANCI'!D249","v":0},{"$f":"+D117","v":0},null,null,null,null,null,null,0,0,"ok"]
[null,"16) altri proventi finanziari",{"$f":"+C117","v":"00:00:00"},{"$f":"+'INPUT BILANCI'!D252+'INPUT BILANCI'!D253+'INPUT BILANCI'!D254+'INPUT BILANCI'!D256+'INPUT BILANCI'!D257+'INPUT BILANCI'!D259+'INPUT BILANCI'!D260+'INPUT BILANCI'!D261+'INPUT BILANCI'!D255+'INPUT BILANCI'!D262","v":0},{"$f":"+D118","v":0},null,null,null,null,null,null,0,0,"ok"]
[null,"17) interessi e altri oneri finanziari",{"$f":"+C118","v":"00:00:00"},{"$f":"-(+'INPUT BILANCI'!D264+'INPUT BILANCI'!D265+'INPUT BILANCI'!D266+'INPUT BILANCI'!D267)","v":0},null,{"$f":"+D119","v":0},null,null,null,null,null,0,0,"ok"]
[null,"17bis) utili e perdite su cambi (+/-)",{"$f":"+C119","v":"00:00:00"},{"$f":"+'INPUT BILANCI'!D268","v":0},{"$f":"+D120","v":0},null,null,null,null,null,null,0,0,"ok"]
[null,"D) Rettifiche di valore di attività finanziarie",null,null,null,null,null,null,null,null,null,0,0]
[null,"18) rivalutazioni",{"$f":"+C120","v":"00:00:00"},{"$f":"+'INPUT BILANCI'!D272+'INPUT BILANCI'!D273+'INPUT BILANCI'!D274+'INPUT BILANCI'!D275","v":0},null,null,null,{"$f":"+D122","v":0},null,null,null,0,0,"ok"]
[null,"19) svalutazioni",{"$f":"+C122","v":"00:00:00"},{"$f":"-(+'INPUT BILANCI'!D277+'INPUT BILANCI'!D278+'INPUT BILANCI'!D279+'INPUT BILANCI'!D280)","v":0},null,null,null,{"$f":"+D123","v":0},null,null,null,0,0,"ok"]
[null,"E) Proventi e oneri straordinari",null,null,null,null,null,null,null,null,null,0,0]
[null,"20) proventi",{"$f":"+C123","v":"00:00:00"},{"$f":"+'INPUT BILANCI'!D284+'INPUT BILANCI'!D285","v":0},null,null,null,{"$f":"+D125","v":0},null,null,null,0,0,"ok"]
[null,"21) oneri",{"$f":"+C125","v":"00:00:00"},{"$f":"-(+'INPUT BILANCI'!D287+'INPUT BILANCI'!D288+'INPUT BILANCI'!D289)","v":0},null,null,null,{"$f":"+D126","v":0},null,null,null,0,0,"ok"]
[null,"22) imposte sul reddito dell'esercizio, correnti differite e anticipate",{"$f":"+C126","v":"00:00:00"},{"$f":"-+'INPUT BILANCI'!D292","v":0},null,{"$f":"+D127","v":0},null,null,null,null,null,0,0,"ok"]
[null,"23) utile (perdita) dell'esercizio",{"$f":"+C126","v":"00:00:00"},{"$f":"SUM(D90:D127)","v":0},null,null,null,null,null,{"$f":"+D128","v":0},null,0,0,"ok"]
[null,"TOTALI",null,null,{"$f":"SUM(E90:E128)","v":0},{"$f":"SUM(F90:F128)","v":0},0,0,0,0,null,0,0,"ok"]
[null,null,null,null,{"$f":"+E87","v":"B1"},"B2","B3","C","D2","D1","F"]
[]
[]
[null,"QUADRATURA CON UTILE/PERDITA CONTO ECONOMICO",{"$f":"+C128","v":"00:00:00"},{"$f":"+D128-'INPUT BILANCI'!D293","v":0},{"$f":"+IF(D133=0,\"ok\",\"Errore\")","v":"ok"}]
[]
[null,"QUADRATURA CON UTILE/PERDITA DEL RENDICONTO",{"$f":"+C133","v":"00:00:00"},{"$f":"+D128-D47","v":0},{"$f":"+IF(D135=0,\"ok\",\"Errore\")","v":"ok"}]
[]
[null,null,null,null,"B1","B2","B3","C","D2","D1","F"]
[null,"RIEPILOGO","Anno","Importi bilancio","RICAVI MONETARI","COSTI MONETARI","CAPITALE CIRCOLANTE NETTO","INVESTIMENTI","FINANZIAMENTI DI TERZI","FINANZIAMENTI DI CAPITALE PROPRIO","DISPONIBILITA' LIQUIDE"]
[null,"VARIAZIONI ATTIVO",null,{"$f":"+D32","v":0},{"$f":"+E32","v":0},0,{"$f":"+G32","v":0},0,0,0,0,{"$f":"SUM(E139:K139)","v":0},{"$f":"SUM(M100:M138)","v":0},{"$f":"+IF(M139=0,\"ok\",\"Errore\")","v":"ok"}]
[null,"VARIAZIONI PASSIVO",null,{"$f":"+D76","v":0},{"$f":"+E76","v":0},0,0,0,0,0,0,{"$f":"SUM(E140:K140)","v":0},0,{"$f":"+IF(M140=0,\"ok\",\"Errore\")","v":"ok"}]
[null,"CONTO ECONOMICO",{"$f":"+C127","v":"00:00:00"},{"$f":"+D129","v":0},{"$f":"+E129","v":0},0,0,0,0,{"$f":"-+J129","v":0},0,0,0,"ok"]
[null,"Totali",null,null,{"$f":"+E139+E140+E141","v":0},0,0,0,0,0,0,0,0,"ok"]
[null,"VARIAZIONI ATTIVO",null,null,null,null,{"$f":"+IF(G139>0,-G139,IF(G139<0,-G139,IF(G139=0,0)))","v":0},{"$f":"+IF(H139>0,-H139,IF(H139<0,-H139,IF(H139=0,0)))","v":0},{"$f":"+IF(I139>0,-I139,IF(I139<0,-I139,IF(I139=0,0)))","v":0},{"$f":"+J139","v":0},{"$f":"+IF(K139>0,-K139,IF(K139<0,-K139,IF(K139=0,0)))","v":0},0,0,"ok"]
[null,"VARIAZIONI PASSIVO",null,null,null,null,{"$f":"+IF(G140>0,+G140,IF(G140<0,-G140,IF(G140=0,0)))","v":0},{"$f":"+IF(H140>0,+H140,IF(H140<0,-H140,IF(H140=0,0)))","v":0},{"$f":"+I140","v":0},{"$f":"+J140","v":0},{"$f":"+IF(K140>0,+K140,IF(K140<0,-K140,IF(K140=0,0)))","v":0},0,0,"ok"]
[null,"CONTO ECONOMICO",null,null,{"$f":"+E141","v":0},{"$f":"+F141","v":0},0,0,0,0,0,0,0,"ok"]
[null,"Totali RENDICONTO FINANZIARIO",{"$f":"+C141","v":"00:00:00"},null,{"$f":"SUM(E143:E145)","v":0},{"$f":"SUM(F143:F145)","v":0},0,0,0,0,0,0,0,"ok"]
[]
["A","FLUSSI FINANZIARI DI GESTIONE"]
["B)","Flusso monetario generato da attività di esercizio"]
["B1)","Ricavi monetari",{"$f":"+E146","v":0}]
["B2)","Costi monetari",{"$f":"+F146","v":0}]
["B3)","Variazione nei crediti, debiti, ratei e risconti",{"$f":"+G146","v":0}]
["TOT. B","Flussi finanziari della gestione operativa",null,{"$f":"SUM(C150:C152)","v":0}]
["C)","Flussi finanziari dell'attività d'investimento",null,{"$f":"+H146","v":0}]
["D)","Flussi finanziari dell'attività di finanziamento",null,{"$f":"SUM(C156:C157)","v":0}]
["D2)","Da mezzi di terzi",{"$f":"+I146","v":0}]
["D1)","Da mezzi propri",{"$f":"+J146","v":0}]
["E)","Flussi di cassa complessivi della gestione",null,{"$f":"SUM(D153:D155)","v":0}]
[null,"VARIAZIONE DELLE DISPONIBILITA' LIQUIDE"]
[null,"Variazioni delle disponibilità liquide",{"$f":"+K142","v":0}]
[]
[null,"QUADRATURA RENDICONTO",{"$f":"+D158-C160","v":0}]
[null,null,{"$f":"+IF(C162=0,\"OK\",\"ERRORE\")","v":"OK"}]
[]
["A)","Disponibilità liquide iniziali",{"$f":"+C30","v":"00:00:00"},{"$f":"+K30","v":0}]
["F)","Disponibilità liquide finali",{"$f":"+C31","v":"00:00:00"},{"$f":"+K31","v":0}]
[null,"Variazione disponibilità liquide",null,{"$f":"+K32","v":0}]
[null,null,null,null,null,null,"Vai inizio pagina"]

{"sheet":"RATING OUTPUT","index":18,"n_rows":33,"n_cols":7,"rows_kept":33,"cut":false,"hidden":false,"merged":[[5,1,5,4],[6,1,6,4],[7,1,7,4],[8,1,8,4],[9,1,9,4]]}
[]
[]
[null,"Report 4"]
[null,{"$f":"+ANAGRAFICA!C5","v":0},null,{"$f":"+IF(B5=\"Selezionare da elenco\",\"Dal foglio ANAGRAFICA AZIENDA\",\"\")","v":"Dal foglio ANAGRAFICA AZIENDA"}]
[null,{"$f":"+ANAGRAFICA!B24","v":"Selezionare da elenco"}]
[null,"RATING QUANTITATIVO DEL MERITO CREDITIZIO",null,null,null,null,"Indietro"]
[null,"Il Rating quantitativo del merito creditizio è calcolato in base alle indicazioni del MedioCredito Centrale "]
[null,"S.p.a. per l'accesso al Fondo di garanzia."]
[null,"Per l'applicazione dei nuovi criteri di calcolo del Rating complessivo (quantitativo e qualitativo) "]
[null,"consultare le disposizioni operative e tecniche sul sito internet del MedioCredito Centrale S.p.a.",null,null,null,null,"VAI ALLE TABELLE DI CALCOLO"]
[null,null,"Anno n","Anno n-1","Anno n-2"]
[null,null,{"$f":"+'INPUT BILANCI'!C9","v":"00:00:00"},{"$f":"+'INPUT BILANCI'!D9","v":"00:00:00"},{"$f":"+'INPUT BILANCI'!E9","v":"00:00:00"}]
[null,"RATING QUANTITATIVO SCORE (MAX 12)",{"$f":"+IF('ELENCO TENDINA'!D21=1,'RATING CALCOLI'!K13,IF('ELENCO TENDINA'!D21=2,'RATING CALCOLI'!K25,\"Errore\"))","v":"Errore"},{"$f":"+IF('ELENCO TENDINA'!E21=1,'RATING CALCOLI'!L13,IF('ELENCO TENDINA'!E21=2,'RATING CALCOLI'!L25,\"Errore\"))","v":"Errore"},{"$f":"+IF('ELENCO TENDINA'!F21=1,'RATING CALCOLI'!M13,IF('ELENCO TENDINA'!F21=2,'RATING CALCOLI'!M25,\"Errore\"))","v":"Errore"}]
[null,"LIVELLO (A-B-C)",{"$f":"+IF('ELENCO TENDINA'!D22=1,'RATING CALCOLI'!K14,IF('ELENCO TENDINA'!D22=2,'RATING CALCOLI'!K26,\"Errore\"))","v":"Errore"},{"$f":"+IF('ELENCO TENDINA'!E22=1,'RATING CALCOLI'!L14,IF('ELENCO TENDINA'!E22=2,'RATING CALCOLI'!L26,\"Errore\"))","v":"Errore"},{"$f":"+IF('ELENCO TENDINA'!F22=1,'RATING CALCOLI'!M14,IF('ELENCO TENDINA'!F22=2,'RATING CALCOLI'!M26,\"Errore\"))","v":"Errore"}]
[]
[]
[]
[]
[]
[]
[]
[]
[]
[]
[]
[]
[]
[]
[]
[]
[]
[]
[null,null,null,null,null,null,"Vai inizio pagina"]

{"sheet":"RATING CALCOLI","index":19,"n_rows":55,"n_cols":14,"rows_kept":55,"cut":false,"hidden":false,"merged":[[25,4,25,6],[25,7,25,9],[7,4,7,6],[7,7,7,9],[7,10,7,12],[12,4,12,6],[12,7,12,9],[13,4,13,6],[13,7,13,9],[19,4,19,6],[19,7,19,9],[19,10,19,12],[24,4,24,6],[24,7,24,9],[2,2,2,5],[4,3,4,10],[16,3,16,10]]}
[]
[null,null,{"$f":"+ANAGRAFICA!C5","v":0}]
[null,null,{"$f":"+ANAGRAFICA!B24","v":"Selezionare da elenco"},null,null,null,null,null,null,null,null,null,null,"Indietro"]
[null,null,"RATING QUANTITATIVO"]
[null,null,"MODELLO DI VALUTAZIONE PER LE IMPRESE IN CONTABILITA' ORDINARIA OPERANTI NEI SETTORI:",{"$f":"+IF('ELENCO TENDINA'!D21=2,\"ATTENZIONE: IN ANAGRAFICA  E' STATO INSERITO L'ALTRO SETTORE\",\"\")","v":""}]
[null,null,"INDUSTRIA MANIFATTURIERA, EDILIZIA, ALBERGHI (SOCIETA' ALBERGHIERE PROPRIETARIE DELL'IMMOBILE) PESCA E PISCICOLTURA.",null,null,null,null,"NASCONDI","NASCONDI","NASCONDI"]
[null,null,null,null,{"$f":"+'INPUT BILANCI'!C9","v":"00:00:00"},{"$f":"+'INPUT BILANCI'!D9","v":"00:00:00"},{"$f":"+'INPUT BILANCI'!E9","v":"00:00:00"},null,null,null,{"$f":"+E7","v":"00:00:00"},{"$f":"+F7","v":"00:00:00"},"00:00:00"]
[null,null,null,"VALORE DI RIFERIMENTO","VALORE",null,null,"VALORI DECIMALI",null,null,"PUNTI DI SCORING"]
[null,"A","(Mezzi propri+Debiti a medio-lungo termine)/Immobilizzazioni",">=100%",{"$f":"+(E40+E41)/E35","v":{"$error":"#DIV/0!"}},{"$f":"+(F40+F41)/F35","v":{"$error":"#DIV/0!"}},{"$f":"+(G40+G41)/G35","v":{"$error":"#DIV/0!"}},{"$f":"+E9","v":{"$error":"#DIV/0!"}},{"$f":"+F9","v":{"$error":"#DIV/0!"}},{"$error":"#DIV/0!"},{"$f":"+IF(H9<=0,0,IF(H9<=0.75,1,IF(H9<1,2,IF(H9>=1,3))))","v":{"$error":"#DIV/0!"}},{"$f":"+IF(I9<=0,0,IF(I9<=0.75,1,IF(I9<1,2,IF(I9>=1,3))))","v":{"$error":"#DIV/0!"}},{"$f":"+IF(J9<=0,0,IF(J9<=0.75,1,IF(J9<1,2,IF(J9>=1,3))))","v":{"$error":"#DIV/0!"}}]
[null,"B","Mezzi propri/Totale passivo",">=10%",{"$f":"+E40/E43","v":{"$error":"#DIV/0!"}},{"$f":"+F40/F43","v":{"$error":"#DIV/0!"}},{"$f":"+G40/G43","v":{"$error":"#DIV/0!"}},{"$f":"+E10","v":{"$error":"#DIV/0!"}},{"$error":"#DIV/0!"},{"$error":"#DIV/0!"},{"$f":"+IF(H10<=0,0,IF(H10<=0.06,1,IF(H10<0.1,2,IF(H10>=0.1,3))))","v":{"$error":"#DIV/0!"}},{"$f":"+IF(I10<=0,0,IF(I10<=0.06,1,IF(I10<0.1,2,IF(I10>=0.1,3))))","v":{"$error":"#DIV/0!"}},{"$f":"+IF(J10<=0,0,IF(J10<=0.06,1,IF(J10<0.1,2,IF(J10>=0.1,3))))","v":{"$error":"#DIV/0!"}}]
[null,"C","MOL/Oneri finanziari",">=2",{"$f":"+E51/E49","v":{"$error":"#DIV/0!"}},{"$f":"+F51/F49","v":{"$error":"#DIV/0!"}},{"$f":"+G51/G49","v":{"$error":"#DIV/0!"}},{"$f":"+E11","v":{"$error":"#DIV/0!"}},{"$error":"#DIV/0!"},{"$error":"#DIV/0!"},{"$f":"+IF(E11<1,0,IF(E11<1.5,1,IF(E11<2,2,IF(E11>=2,3))))","v":{"$error":"#DIV/0!"}},{"$f":"+IF(F11<1,0,IF(F11<1.5,1,IF(F11<2,2,IF(F11>=2,3))))","v":{"$error":"#DIV/0!"}},{"$f":"+IF(G11<1,0,IF(G11<1.5,1,IF(G11<2,2,IF(G11>=2,3))))","v":{"$error":"#DIV/0!"}}]
[null,"D","MOL/Ricavi vendite",">=8%",{"$f":"+E51/E47","v":{"$error":"#DIV/0!"}},{"$f":"+F51/F47","v":{"$error":"#DIV/0!"}},{"$f":"+G51/G47","v":{"$error":"#DIV/0!"}},{"$f":"+E12","v":{"$error":"#DIV/0!"}},{"$error":"#DIV/0!"},{"$error":"#DIV/0!"},{"$f":"+IF(H12<0.03,0,IF(H12<0.05,1,IF(H12<0.08,2,IF(H12>=0.08,3))))","v":{"$error":"#DIV/0!"}},{"$f":"+IF(I12<0.03,0,IF(I12<0.05,1,IF(I12<0.08,2,IF(I12>=0.08,3))))","v":{"$error":"#DIV/0!"}},{"$f":"+IF(J12<0.03,0,IF(J12<0.05,1,IF(J12<0.08,2,IF(J12>=0.08,3))))","v":{"$error":"#DIV/0!"}}]
[null,null,null,null,"TOTALE SCORING",null,null,"TOTALE SCORING",null,null,{"$f":"SUM(K9:K12)","v":{"$error":"#DIV/0!"}},{"$f":"SUM(L9:L12)","v":{"$error":"#DIV/0!"}},{"$f":"SUM(M9:M12)","v":{"$error":"#DIV/0!"}}]
[null,null,null,null,"LIVELLO",null,null,"LIVELLO",null,null,{"$f":"+IF(K13>=9,\"A\",IF(K13<7,\"C\",\"B\"))","v":{"$error":"#DIV/0!"}},{"$f":"+IF(L13>=9,\"A\",IF(L13<7,\"C\",\"B\"))","v":{"$error":"#DIV/0!"}},{"$f":"+IF(M13>=9,\"A\",IF(M13<7,\"C\",\"B\"))","v":{"$error":"#DIV/0!"}}]
[]
[]
[null,null,"MODELLO DI VALUTAZIONE PER LE IMPRESE IN CONTABILITA' ORDINARIA OPERANTI NEI SETTORI:",{"$f":"+IF('ELENCO TENDINA'!D21=1,\"ATTENZIONE: IN ANAGRAFICA  E' STATO INSERITO L'ALTRO SETTORE\",\"\")","v":""}]
[null,null,"COMMERCIO, SERVIZI ED ALBERGHI (SOCIETA' ALBERGHIERE LOCATARIE DELL'IMMOBILE)."]
[null,null,null,null,{"$f":"+E7","v":"00:00:00"},{"$f":"+F7","v":"00:00:00"},"00:00:00","00:00:00","00:00:00","00:00:00","00:00:00","00:00:00","00:00:00"]
[null,null,null,"VALORE DI RIFERIMENTO","VALORE",null,null,"VALORI DECIMALI",null,null,"PUNTI DI SCORING"]
[null,"A","Attivo circolante/Passivo circolante","<=080%",{"$f":"+E37/E42","v":{"$error":"#DIV/0!"}},{"$f":"+F37/F42","v":{"$error":"#DIV/0!"}},{"$f":"+G37/G42","v":{"$error":"#DIV/0!"}},{"$f":"+E21","v":{"$error":"#DIV/0!"}},{"$f":"+F21","v":{"$error":"#DIV/0!"}},{"$f":"+G21","v":{"$error":"#DIV/0!"}},{"$f":"+IF(H21<=0,0,IF(H21<=0.5,1,IF(H21<0.8,2,3)))","v":{"$error":"#DIV/0!"}},{"$f":"+IF(I21<=0,0,IF(I21<=0.5,1,IF(I21<0.8,2,3)))","v":{"$error":"#DIV/0!"}},{"$f":"+IF(J21<=0,0,IF(J21<=0.5,1,IF(J21<0.8,2,3)))","v":{"$error":"#DIV/0!"}}]
[null,"B","Mezzi propri/Totale passivo",">=7%",{"$f":"+E40/E43","v":{"$error":"#DIV/0!"}},{"$f":"+F40/F43","v":{"$error":"#DIV/0!"}},{"$f":"+G40/G43","v":{"$error":"#DIV/0!"}},{"$f":"+E22","v":{"$error":"#DIV/0!"}},{"$f":"+F22","v":{"$error":"#DIV/0!"}},{"$error":"#DIV/0!"},{"$f":"+IF(H22<=0,0,IF(H22<0.05,1,IF(H22<0.07,2,IF(H22>=0.07,3))))","v":{"$error":"#DIV/0!"}},{"$f":"+IF(I22<=0,0,IF(I22<0.05,1,IF(I22<0.07,2,IF(I22>=0.07,3))))","v":{"$error":"#DIV/0!"}},{"$f":"+IF(J22<=0,0,IF(J22<0.05,1,IF(J22<0.07,2,IF(J22>=0.07,3))))","v":{"$error":"#DIV/0!"}}]
[null,"C","MOL/Oneri finanziari",">=2",{"$f":"+E11","v":{"$error":"#DIV/0!"}},{"$error":"#DIV/0!"},{"$error":"#DIV/0!"},{"$f":"+E23","v":{"$error":"#DIV/0!"}},{"$error":"#DIV/0!"},{"$error":"#DIV/0!"},{"$f":"+IF(E23<1,0,IF(E23<1.5,1,IF(E23<2,2,IF(E23>=2,3))))","v":{"$error":"#DIV/0!"}},{"$f":"+IF(F23<1,0,IF(F23<1.5,1,IF(F23<2,2,IF(F23>=2,3))))","v":{"$error":"#DIV/0!"}},{"$f":"+IF(G23<1,0,IF(G23<1.5,1,IF(G23<2,2,IF(G23>=2,3))))","v":{"$error":"#DIV/0!"}}]
[null,"D","MOL/Ricavi vendite",">=8%",{"$error":"#DIV/0!"},{"$error":"#DIV/0!"},{"$error":"#DIV/0!"},{"$f":"+E24","v":{"$error":"#DIV/0!"}},{"$error":"#DIV/0!"},{"$error":"#DIV/0!"},{"$f":"+IF(H24<0.03,0,IF(H24<0.05,1,IF(H24<0.08,2,IF(H24>=0.08,3))))","v":{"$error":"#DIV/0!"}},{"$f":"+IF(I24<0.03,0,IF(I24<0.05,1,IF(I24<0.08,2,IF(I24>=0.08,3))))","v":{"$error":"#DIV/0!"}},{"$f":"+IF(J24<0.03,0,IF(J24<0.05,1,IF(J24<0.08,2,IF(J24>=0.08,3))))","v":{"$error":"#DIV/0!"}}]
[null,null,null,null,"TOTALE SCORING",null,null,"TOTALE SCORING",null,null,{"$f":"SUM(K21:K24)","v":{"$error":"#DIV/0!"}},{"$f":"SUM(L21:L24)","v":{"$error":"#DIV/0!"}},{"$f":"SUM(M21:M24)","v":{"$error":"#DIV/0!"}}]
[null,null,null,null,"LIVELLO",null,null,"LIVELLO",null,null,{"$f":"+IF(K25>=9,\"A\",IF(K25<7,\"C\",\"B\"))","v":{"$error":"#DIV/0!"}},{"$f":"+IF(L25>=9,\"A\",IF(L25<7,\"C\",\"B\"))","v":{"$error":"#DIV/0!"}},{"$f":"+IF(M25>=9,\"A\",IF(M25<7,\"C\",\"B\"))","v":{"$error":"#DIV/0!"}}]
[]
[]
[]
[]
[]
[null,null,"VALORI DI BILANCIO                                                                    Riclassificazione con criteri FCG",null,{"$f":"+E19","v":"00:00:00"},{"$f":"+F19","v":"00:00:00"},{"$f":"+G19","v":"00:00:00"}]
[null,null,"STATO PATRIMONIALE"]
[null,null,"ATTIVO"]
[null,null,"Immobilizzazioni","SP B)",{"$f":"+'INPUT BILANCI'!C57","v":0},{"$f":"+'INPUT BILANCI'!D57","v":0},{"$f":"+'INPUT BILANCI'!E57","v":0}]
[null,null,"Rimanenze","SP C) I",{"$f":"+'INPUT BILANCI'!C65","v":0},{"$f":"+'INPUT BILANCI'!D65","v":0},{"$f":"+'INPUT BILANCI'!E65","v":0}]
[null,null,"Altro attivo circolante","SP  C) + D) - C)I",{"$f":"+'INPUT BILANCI'!C106+'INPUT BILANCI'!C107-'INPUT BILANCI'!C65","v":0},{"$f":"+'INPUT BILANCI'!D106+'INPUT BILANCI'!D107-'INPUT BILANCI'!D65","v":0},{"$f":"+'INPUT BILANCI'!E106+'INPUT BILANCI'!E107-'INPUT BILANCI'!E65","v":0}]
[null,null,"Totale Attivo",null,{"$f":"SUM(E35:E37)","v":0},{"$f":"SUM(F35:F37)","v":0},0]
[null,null,"PASSIVO"]
[null,null,"Mezzi propri","SP  A) - SP attivo A)",{"$f":"+'INPUT BILANCI'!C129-'INPUT BILANCI'!C13","v":0},{"$f":"+'INPUT BILANCI'!D129-'INPUT BILANCI'!D13","v":0},{"$f":"+'INPUT BILANCI'!E129-'INPUT BILANCI'!E13","v":0}]
[null,null,"Passivo a m/l termine","SP B) + C) + D) debiti oltre",{"$f":"+'INPUT BILANCI'!C143+'INPUT BILANCI'!C147+'INPUT BILANCI'!C151+'INPUT BILANCI'!C154+'INPUT BILANCI'!C157+'INPUT BILANCI'!C160+'INPUT BILANCI'!C163+'INPUT BILANCI'!C166+'INPUT BILANCI'!C169+'INPUT BILANCI'!C172+'INPUT BILANCI'!C175+'INPUT BILANCI'!C178+'INPUT BILANCI'!C181+'INPUT BILANCI'!C184+'INPUT BILANCI'!C187+'INPUT BILANCI'!C190+'INPUT BILANCI'!C193","v":0},{"$f":"+'INPUT BILANCI'!D143+'INPUT BILANCI'!D147+'INPUT BILANCI'!D151+'INPUT BILANCI'!D154+'INPUT BILANCI'!D157+'INPUT BILANCI'!D160+'INPUT BILANCI'!D163+'INPUT BILANCI'!D166+'INPUT BILANCI'!D169+'INPUT BILANCI'!D172+'INPUT BILANCI'!D175+'INPUT BILANCI'!D178+'INPUT BILANCI'!D181+'INPUT BILANCI'!D184+'INPUT BILANCI'!D187+'INPUT BILANCI'!D190+'INPUT BILANCI'!D193","v":0},{"$f":"+'INPUT BILANCI'!E143+'INPUT BILANCI'!E147+'INPUT BILANCI'!E151+'INPUT BILANCI'!E154+'INPUT BILANCI'!E157+'INPUT BILANCI'!E160+'INPUT BILANCI'!E163+'INPUT BILANCI'!E166+'INPUT BILANCI'!E169+'INPUT BILANCI'!E172+'INPUT BILANCI'!E175+'INPUT BILANCI'!E178+'INPUT BILANCI'!E181+'INPUT BILANCI'!E184+'INPUT BILANCI'!E187+'INPUT BILANCI'!E190+'INPUT BILANCI'!E193","v":0}]
[null,null,"Passivo circolante","SP D) debiti entro + E)",{"$f":"+'INPUT BILANCI'!C150+'INPUT BILANCI'!C153+'INPUT BILANCI'!C156+'INPUT BILANCI'!C159+'INPUT BILANCI'!C162+'INPUT BILANCI'!C165+'INPUT BILANCI'!C168+'INPUT BILANCI'!C171+'INPUT BILANCI'!C174+'INPUT BILANCI'!C177+'INPUT BILANCI'!C180+'INPUT BILANCI'!C183+'INPUT BILANCI'!C186+'INPUT BILANCI'!C189+'INPUT BILANCI'!C192+'INPUT BILANCI'!C195","v":0},{"$f":"+'INPUT BILANCI'!D150+'INPUT BILANCI'!D153+'INPUT BILANCI'!D156+'INPUT BILANCI'!D159+'INPUT BILANCI'!D162+'INPUT BILANCI'!D165+'INPUT BILANCI'!D168+'INPUT BILANCI'!D171+'INPUT BILANCI'!D174+'INPUT BILANCI'!D177+'INPUT BILANCI'!D180+'INPUT BILANCI'!D183+'INPUT BILANCI'!D186+'INPUT BILANCI'!D189+'INPUT BILANCI'!D192+'INPUT BILANCI'!D195","v":0},{"$f":"+'INPUT BILANCI'!E150+'INPUT BILANCI'!E153+'INPUT BILANCI'!E156+'INPUT BILANCI'!E159+'INPUT BILANCI'!E162+'INPUT BILANCI'!E165+'INPUT BILANCI'!E168+'INPUT BILANCI'!E171+'INPUT BILANCI'!E174+'INPUT BILANCI'!E177+'INPUT BILANCI'!E180+'INPUT BILANCI'!E183+'INPUT BILANCI'!E186+'INPUT BILANCI'!E189+'INPUT BILANCI'!E192+'INPUT BILANCI'!E195","v":0}]
[null,null,"Totale Passivo",null,{"$f":"SUM(E40:E42)","v":0},{"$f":"SUM(F40:F42)","v":0},0]
[]
[null,null,"CONTO ECONOMICO"]
[null,null,"Valore della produzione","CE A)",{"$f":"+'INPUT BILANCI'!C218","v":0},{"$f":"+'INPUT BILANCI'!D218","v":0},{"$f":"+'INPUT BILANCI'!E218","v":0}]
[null,null,"Ricavi vendite","CE A) 1)",{"$f":"+'INPUT BILANCI'!C209","v":0},{"$f":"+'INPUT BILANCI'!D209","v":0},{"$f":"+'INPUT BILANCI'!E209","v":0}]
[null,null,"Ammortamenti","CE B) 10) a) b)",{"$f":"+'INPUT BILANCI'!C230+'INPUT BILANCI'!C231","v":0},{"$f":"+'INPUT BILANCI'!D230+'INPUT BILANCI'!D231","v":0},{"$f":"+'INPUT BILANCI'!E230+'INPUT BILANCI'!E231","v":0}]
[null,null,"Oneri finanziari lordi","CE C) 17)",{"$f":"+'INPUT BILANCI'!C264+'INPUT BILANCI'!C265+'INPUT BILANCI'!C266+'INPUT BILANCI'!C267","v":0},{"$f":"+'INPUT BILANCI'!D264+'INPUT BILANCI'!D265+'INPUT BILANCI'!D266+'INPUT BILANCI'!D267","v":0},{"$f":"+'INPUT BILANCI'!E264+'INPUT BILANCI'!E265+'INPUT BILANCI'!E266+'INPUT BILANCI'!E267","v":0}]
[null,null,"Utile","CE 21)",{"$f":"+'INPUT BILANCI'!C293","v":0},{"$f":"+'INPUT BILANCI'!D293","v":0},{"$f":"+'INPUT BILANCI'!E293","v":0}]
[null,null,"Margine Operativo Lordo (MOL)","CE A)1)+/-2)+/-3)+/-4)+5)-B)6)-7)-8)-9)+/-11)",{"$f":"+'INPUT BILANCI'!C209+'INPUT BILANCI'!C210+'INPUT BILANCI'!C211+'INPUT BILANCI'!C212+'INPUT BILANCI'!C214+'INPUT BILANCI'!C217-'INPUT BILANCI'!C220-'INPUT BILANCI'!C221-'INPUT BILANCI'!C222-('INPUT BILANCI'!C224+'INPUT BILANCI'!C225+'INPUT BILANCI'!C226+'INPUT BILANCI'!C227+'INPUT BILANCI'!C228)-'INPUT BILANCI'!C234","v":0},{"$f":"+'INPUT BILANCI'!D209+'INPUT BILANCI'!D210+'INPUT BILANCI'!D211+'INPUT BILANCI'!D212+'INPUT BILANCI'!D214+'INPUT BILANCI'!D217-'INPUT BILANCI'!D220-'INPUT BILANCI'!D221-'INPUT BILANCI'!D222-('INPUT BILANCI'!D224+'INPUT BILANCI'!D225+'INPUT BILANCI'!D226+'INPUT BILANCI'!D227+'INPUT BILANCI'!D228)-'INPUT BILANCI'!D234","v":0},{"$f":"+'INPUT BILANCI'!E209+'INPUT BILANCI'!E210+'INPUT BILANCI'!E211+'INPUT BILANCI'!E212+'INPUT BILANCI'!E214+'INPUT BILANCI'!E217-'INPUT BILANCI'!E220-'INPUT BILANCI'!E221-'INPUT BILANCI'!E222-('INPUT BILANCI'!E224+'INPUT BILANCI'!E225+'INPUT BILANCI'!E226+'INPUT BILANCI'!E227+'INPUT BILANCI'!E228)-'INPUT BILANCI'!E234","v":0}]
[null,null,"Cash Flow ","(Utile + Ammortamenti)",{"$f":"+'INPUT BILANCI'!C293+'INPUT BILANCI'!C230+'INPUT BILANCI'!C231","v":0},{"$f":"+'INPUT BILANCI'!D293+'INPUT BILANCI'!D230+'INPUT BILANCI'!D231","v":0},{"$f":"+'INPUT BILANCI'!E293+'INPUT BILANCI'!E230+'INPUT BILANCI'!E231","v":0}]
[]
[]
[null,null,"Vai inizio pagina"]

{"sheet":"Z-SCORE OUTPUT","index":20,"n_rows":46,"n_cols":7,"rows_kept":46,"cut":false,"hidden":false,"merged":[[5,1,5,4],[6,1,6,4],[7,1,7,4],[8,1,8,4],[4,1,4,4]]}
[]
[null,"Report 5"]
[null,{"$f":"+ANAGRAFICA!C5","v":0},{"$f":"+IF(B4=\"Selezionare da elenco\",\"Dal foglio \"\"ANAGRAFICA AZIENDA\"\"\",\"\")","v":"Dal foglio \"ANAGRAFICA AZIENDA\""},null,null,null,"Indietro"]
[null,{"$f":"+ANAGRAFICA!B21","v":"Selezionare da elenco"}]
[null,"INDICATORE FINANZIARIO Z-SCORE DI ALTMAN"]
[null,"L'indice di Altman è un indicatore sintetico della situazione finanziaria dell'azienda  e deriva dalla sintesi ",null,null,null,null,"Vai alle TABELLE CALCOLI"]
[null,"di altri 5 indicatori."]
[null,"Un indice basso è sintomo di crisi finanziaria; un indice alto rispecchia  una situazione finanziaria migliore."]
[]
[null,null,"Anno","Anno","Anno"]
[null,null,{"$f":"+'Z-SCORE CALCOLI'!C41","v":"00:00:00"},{"$f":"+'Z-SCORE CALCOLI'!D41","v":"00:00:00"},{"$f":"+'Z-SCORE CALCOLI'!E41","v":"00:00:00"}]
[null,"INDICE Z-SCORE",{"$f":"+IF('ELENCO TENDINA'!D9=1,'Z-SCORE CALCOLI'!C43,IF('ELENCO TENDINA'!D9=2,'Z-SCORE CALCOLI'!C56,IF('ELENCO TENDINA'!D9=3,'Z-SCORE CALCOLI'!C69)))","v":false},{"$f":"+IF('ELENCO TENDINA'!E9=1,'Z-SCORE CALCOLI'!D43,IF('ELENCO TENDINA'!E9=2,'Z-SCORE CALCOLI'!D56,IF('ELENCO TENDINA'!E9=3,'Z-SCORE CALCOLI'!D69)))","v":false},{"$f":"+IF('ELENCO TENDINA'!F9=1,'Z-SCORE CALCOLI'!E43,IF('ELENCO TENDINA'!F9=2,'Z-SCORE CALCOLI'!E56,IF('ELENCO TENDINA'!F9=3,'Z-SCORE CALCOLI'!E69)))","v":false}]
[null,null,{"$f":"+IF('ELENCO TENDINA'!D10=1,'Z-SCORE CALCOLI'!C44,IF('ELENCO TENDINA'!D10=2,'Z-SCORE CALCOLI'!C57,IF('ELENCO TENDINA'!D10=3,'Z-SCORE CALCOLI'!C70)))","v":false},{"$f":"+IF('ELENCO TENDINA'!E10=1,'Z-SCORE CALCOLI'!D44,IF('ELENCO TENDINA'!E10=2,'Z-SCORE CALCOLI'!D57,IF('ELENCO TENDINA'!E10=3,'Z-SCORE CALCOLI'!D70)))","v":false},{"$f":"+IF('ELENCO TENDINA'!F10=1,'Z-SCORE CALCOLI'!E44,IF('ELENCO TENDINA'!F10=2,'Z-SCORE CALCOLI'!E57,IF('ELENCO TENDINA'!F10=3,'Z-SCORE CALCOLI'!E70)))","v":false}]
[]
[]
[]
[]
[]
[]
[]
[]
[]
[]
[]
[]
[]
[]
[]
[]
[]
[]
[]
[]
[]
[]
[]
[]
[]
[]
[]
[]
[]
[]
[]
[]
[null,null,null,null,null,null,"Vai inizio pagina"]

{"sheet":"Z-SCORE CALCOLI","index":21,"n_rows":79,"n_cols":6,"rows_kept":79,"cut":false,"hidden":false,"merged":[]}
[]
[null,{"$f":"+ANAGRAFICA!C5","v":0}]
[null,{"$f":"+'ELENCO TENDINA'!C9","v":"Selezionare da elenco"}]
[null,"INDICE  DI  ALTMAN",null,null,null,"Indietro"]
[null,"L'indice di Altman è un indicatore sintetico della situazione finanziaria dell'azienda e deriva dalla sintesi di altri 5 indicatori."]
[null,"Un indice basso è sintomo di crisi finanziaria; un indice alto rispecchia  una situazione finanziaria migliore."]
[null,"I dati che compongono l'indice Z-score di Altman sono quelli di bilancio, come di seguito esposto:"]
[]
[]
[null,null,"Anno","Anno","Anno"]
[null,null,{"$f":"+'INPUT BILANCI'!C9","v":"00:00:00"},{"$f":"+'INPUT BILANCI'!D9","v":"00:00:00"},{"$f":"+'INPUT BILANCI'!E9","v":"00:00:00"}]
[]
[null,"ATTIVO CORRENTE",{"$f":"+'BILANCI RICLASSIFICATI'!C20","v":0},{"$f":"+'BILANCI RICLASSIFICATI'!D20","v":0},{"$f":"+'BILANCI RICLASSIFICATI'!E20","v":0}]
[null,"PASSIVO CORRENTE",{"$f":"+'BILANCI RICLASSIFICATI'!C30","v":0},{"$f":"+'BILANCI RICLASSIFICATI'!D30","v":0},{"$f":"+'BILANCI RICLASSIFICATI'!E30","v":0}]
[null,"TOTALE ATTIVITA'",{"$f":"+'BILANCI RICLASSIFICATI'!C21","v":0},{"$f":"+'BILANCI RICLASSIFICATI'!D21","v":0},{"$f":"+'BILANCI RICLASSIFICATI'!E21","v":0}]
[null,"UTILE NON DISTRIBUITO (UTILE NETTO - UTILE DISTRIBUITO)",{"$f":"+'BILANCI RICLASSIFICATI'!C24","v":0},{"$f":"+'BILANCI RICLASSIFICATI'!D24","v":0},{"$f":"+'BILANCI RICLASSIFICATI'!E24","v":0}]
[null,"UTILE OPERATIVO (DIFF. A - B DEL CE) EBIT",{"$f":"+'CE RICLASSIFICATO'!C26","v":0},{"$f":"+'CE RICLASSIFICATO'!D26","v":0},{"$f":"+'CE RICLASSIFICATO'!E26","v":0}]
[null,"VALORE DI MERCATO (PATR.NETTO)",{"$f":"+'BILANCI RICLASSIFICATI'!C25","v":0},{"$f":"+'BILANCI RICLASSIFICATI'!D25","v":0},{"$f":"+'BILANCI RICLASSIFICATI'!E25","v":0}]
[null,"TOTALE INDEBITAMENTO",{"$f":"+'BILANCI RICLASSIFICATI'!C31","v":0},{"$f":"+'BILANCI RICLASSIFICATI'!D31","v":0},{"$f":"+'BILANCI RICLASSIFICATI'!E31","v":0}]
[null,"VENDITE",{"$f":"+'CE RICLASSIFICATO'!C8","v":0},{"$f":"+'CE RICLASSIFICATO'!D8","v":0},{"$f":"+'CE RICLASSIFICATO'!E8","v":0}]
[]
[null,"I singoli indicatori dai quali scaturisce l'indice di Altman sono i seguenti:"]
[]
[null,null,"Anno","Anno","Anno"]
[null,null,{"$f":"+C11","v":"00:00:00"},{"$f":"+D11","v":"00:00:00"},{"$f":"+E11","v":"00:00:00"}]
[null,"Legenda indici:"]
["A","EQUILIBRIO FINANZIARIO"]
[null,"A = (attivo corrente – passivo corrente)/totale attivita`",{"$f":"+(C13-C14)/C15","v":{"$error":"#DIV/0!"}},{"$f":"+(D13-D14)/D15","v":{"$error":"#DIV/0!"}},{"$f":"+(E13-E14)/E15","v":{"$error":"#DIV/0!"}}]
["B","CAPACITA' DI AUTOFINANZIAMENTO"]
[null,"B = utile non distribuito / totale attivita`",{"$f":"+C16/C15","v":{"$error":"#DIV/0!"}},{"$f":"+D16/D15","v":{"$error":"#DIV/0!"}},{"$f":"+E16/E15","v":{"$error":"#DIV/0!"}}]
["C","REDDITIVITA'"]
[null,"C = utile operativo / totale attivita`",{"$f":"+C17/C15","v":{"$error":"#DIV/0!"}},{"$f":"+D17/D15","v":{"$error":"#DIV/0!"}},{"$f":"+E17/E15","v":{"$error":"#DIV/0!"}}]
["D","SOLVIBILITA'"]
[null,"D = valore di mercato del capitale / totale indebitamento",{"$f":"+C18/C19","v":{"$error":"#DIV/0!"}},{"$f":"+D18/D19","v":{"$error":"#DIV/0!"}},{"$f":"+E18/E19","v":{"$error":"#DIV/0!"}}]
["E","UTILIZZO CAPITALE"]
[null,"E = vendite / totale attivita`",{"$f":"+C20/C15","v":{"$error":"#DIV/0!"}},{"$f":"+D20/D15","v":{"$error":"#DIV/0!"}},{"$f":"+E20/E15","v":{"$error":"#DIV/0!"}}]
[]
[null,{"$f":"+IF('ELENCO TENDINA'!D9=1,\"\",\"SELEZIONATA ALTRA TIPOLOGIA IN ANAGRAFICA\")","v":"SELEZIONATA ALTRA TIPOLOGIA IN ANAGRAFICA"}]
[null,"Z-SCORE ORIGINALE - GRANDI IMPRESE DI PRODUZIONE QUOTATE"]
[null,null,"Anno","Anno","Anno"]
[null,null,{"$f":"+C11","v":"00:00:00"},{"$f":"+D11","v":"00:00:00"},"00:00:00"]
[]
[null,"Z = 1,2 X A + 1,4 X B + 3,3 X C + 0,6 X D + 1 X E",{"$f":"1.2*C28+1.4*C30+3.3*C32+0.6*C34+1*C36","v":{"$error":"#DIV/0!"}},{"$f":"1.2*D28+1.4*D30+3.3*D32+0.6*D34+1*D36","v":{"$error":"#DIV/0!"}},{"$error":"#DIV/0!"}]
[null,"Giudizio",{"$f":"+IF(C43<1.8,\"Disequilibrio finanziario\",IF(C43<3,\"Equilibrio finanziario precario\",\"Buon grado di equilibrio finanziario\"))","v":{"$error":"#DIV/0!"}},{"$f":"+IF(D43<1.8,\"Disequilibrio finanziario\",IF(D43<3,\"Equilibrio finanziario precario\",\"Buon grado di equilibrio finanziario\"))","v":{"$error":"#DIV/0!"}},{"$error":"#DIV/0!"}]
[null,"Legenda"]
[null,"Z > 3 = buon grado di equilibrio finanziario"]
[null,"3 > Z > 1,8 = zona d`ombra – precario equilibrio"]
[null,"Z < 1,8 = non equilibrio finanziario - probabilita` di fallimento alta"]
[]
[]
[null,{"$f":"+IF('ELENCO TENDINA'!D9=2,\"\",\"SELEZIONATA ALTRA TIPOLOGIA IN ANAGRAFICA\")","v":"SELEZIONATA ALTRA TIPOLOGIA IN ANAGRAFICA"}]
[null,"Z-SCORE  -  PMI DI PRODUZIONE"]
[null,null,"Anno","Anno","Anno"]
[null,null,{"$f":"+C25","v":"00:00:00"},{"$f":"+D25","v":"00:00:00"},"00:00:00"]
[]
[null,"Z = 0,717 X A + 0,847 X B + 3,107 X C + 0,42 X D + 0,998 X E",{"$f":"0.717*C28+0.847*C30+3.107*C32+0.42*C34+0.998*C36","v":{"$error":"#DIV/0!"}},{"$f":"0.717*D28+0.847*D30+3.107*D32+0.42*D34+0.998*D36","v":{"$error":"#DIV/0!"}},{"$error":"#DIV/0!"}]
[null,"Giudizio",{"$f":"+IF(C56<1.23,\"Disequilibrio finanziario\",IF(C56<2.9,\"Equilibrio finanziario precario\",\"Buon grado di equilibrio finanziario\"))","v":{"$error":"#DIV/0!"}},{"$f":"+IF(D56<1.23,\"Disequilibrio finanziario\",IF(D56<2.9,\"Equilibrio finanziario precario\",\"Buon grado di equilibrio finanziario\"))","v":{"$error":"#DIV/0!"}},{"$error":"#DIV/0!"}]
[null,"Legenda"]
[null,"Z > 2,90 = buon grado di equilibrio"]
[null,"2,90 > Z > 1,23 = zona d`ombra – precario equilibrio"]
[null,"Z < 1,23 = non equilibrio finanziario - probabilita` di fallimento"]
[]
[]
[null,{"$f":"+IF('ELENCO TENDINA'!D9=3,\"\",\"SELEZIONATA ALTRA TIPOLOGIA IN ANAGRAFICA\")","v":"SELEZIONATA ALTRA TIPOLOGIA IN ANAGRAFICA"}]
[null,"Z-SCORE  -  PMI ALTRI SETTORI (non finanziarie)"]
[null,null,"Anno","Anno","Anno"]
[null,null,{"$f":"+C25","v":"00:00:00"},{"$f":"+D25","v":"00:00:00"},{"$f":"+E25","v":"00:00:00"}]
[]
[null,"Z = 3,25 + (6,56 X A + 3,26 X B + 6,72 X C + 1,05 X D)",{"$f":"3.25+((6.56*C28)+(3.26*C30)+(6.72*C32)+(1.05*C34))","v":{"$error":"#DIV/0!"}},{"$f":"3.25+((6.56*D28)+(3.26*D30)+(6.72*D32)+(1.05*D34))","v":{"$error":"#DIV/0!"}},{"$f":"3.25+((6.56*E28)+(3.26*E30)+(6.72*E32)+(1.05*E34))","v":{"$error":"#DIV/0!"}}]
[null,"Giudizio",{"$f":"+IF(C69<1.8,\"Disequilibrio finanziario\",IF(C69<3,\"Equilibrio finanziario precario\",\"Buon grado di equilibrio finanziario\"))","v":{"$error":"#DIV/0!"}},{"$f":"+IF(D69<1.8,\"Disequilibrio finanziario\",IF(D69<3,\"Equilibrio finanziario precario\",\"Buon grado di equilibrio finanziario\"))","v":{"$error":"#DIV/0!"}},{"$error":"#DIV/0!"}]
[null,"Legenda"]
[null,"Z > 3 = buon grado di equilibrio"]
[null,"3 > Z > 1,8 = zona d`ombra – equilibrio precario"]
[null,"Z < 1,8 = non equilibrio finanziario - probabilita` di fallimento alta"]
[]
[]
[]
[]
[null,null,null,null,null,"Vai inizio pagina"]

{"sheet":"EM SCORE","index":22,"n_rows":27,"n_cols":7,"rows_kept":27,"cut":false,"hidden":false,"merged":[]}
[]
[]
[null,"Report 6"]
[null,{"$f":"+[1]ANAGRAFICA!C5","v":"DEMO SRL"}]
[null,"INDICATORE EM-SCORE",null,null,null,null,"Indietro"]
[null,"L'EM-SCORE è un modello che deriva dallo Z-SCORE e permette di ottenere una"]
[null,"valutazione del rating del debito."]
[]
[]
[null,null,{"$f":"+'INPUT BILANCI'!C9","v":"00:00:00"},{"$f":"+'INPUT BILANCI'!D9","v":"00:00:00"},{"$f":"+'INPUT BILANCI'!E9","v":"00:00:00"}]
["A","Capitale circolante/Capitale investito",{"$f":"+'BILANCI RICLASSIFICATI'!C20/'BILANCI RICLASSIFICATI'!C21","v":{"$error":"#DIV/0!"}},{"$f":"+'BILANCI RICLASSIFICATI'!D20/'BILANCI RICLASSIFICATI'!D21","v":{"$error":"#DIV/0!"}},{"$f":"+'BILANCI RICLASSIFICATI'!E20/'BILANCI RICLASSIFICATI'!E21","v":{"$error":"#DIV/0!"}}]
["B","Utili non distribuiti/Capitale investito",{"$f":"+'BILANCI RICLASSIFICATI'!C24/'BILANCI RICLASSIFICATI'!C21","v":{"$error":"#DIV/0!"}},{"$f":"+'BILANCI RICLASSIFICATI'!D24/'BILANCI RICLASSIFICATI'!D21","v":{"$error":"#DIV/0!"}},{"$f":"+'BILANCI RICLASSIFICATI'!E24/'BILANCI RICLASSIFICATI'!E21","v":{"$error":"#DIV/0!"}}]
["C","Risultato operativo/Capitale investito",{"$f":"+'BILANCI RICLASSIFICATI'!C77/'BILANCI RICLASSIFICATI'!C21","v":{"$error":"#DIV/0!"}},{"$f":"+'BILANCI RICLASSIFICATI'!D77/'BILANCI RICLASSIFICATI'!D21","v":{"$error":"#DIV/0!"}},{"$f":"+'BILANCI RICLASSIFICATI'!E77/'BILANCI RICLASSIFICATI'!E21","v":{"$error":"#DIV/0!"}}]
["D","Patrimonio netto/Totale passività",{"$f":"+'BILANCI RICLASSIFICATI'!C25/'BILANCI RICLASSIFICATI'!C32","v":{"$error":"#DIV/0!"}},{"$f":"+'BILANCI RICLASSIFICATI'!D25/'BILANCI RICLASSIFICATI'!D32","v":{"$error":"#DIV/0!"}},{"$f":"+'BILANCI RICLASSIFICATI'!E25/'BILANCI RICLASSIFICATI'!E32","v":{"$error":"#DIV/0!"}}]
[]
[]
[null,"EM-SCORE = 3,25 + 6,56 x A + 3,26 x B + 6,72 x C + 1,05 x D"]
[]
[null,"EM-SCORE",{"$f":"3.25+(6.56*C11)+(3.26*C12)+(6.72*C13)+(1.05*C14)","v":{"$error":"#DIV/0!"}},{"$f":"3.25+(6.56*D11)+(3.26*D12)+(6.72*D13)+(1.05*D14)","v":{"$error":"#DIV/0!"}},{"$f":"3.25+(6.56*E11)+(3.26*E12)+(6.72*E13)+(1.05*E14)","v":{"$error":"#DIV/0!"}}]
[]
[null,null,{"$f":"+C10","v":"00:00:00"},{"$f":"+D10","v":"00:00:00"},"00:00:00"]
[null,"RATING",{"$f":"+IF(C19<1.75,\"C\",IF(C19<3.75,\"CC\",IF(C19<4.5,\"B\",IF(C19<5.65,\"BB\",IF(C19<6.4,\"BBB\",IF(C19<7,\"A\",IF(C19<8.15,\"AA\",\"AAA\")))))))","v":{"$error":"#DIV/0!"}},{"$f":"+IF(D19<1.75,\"C\",IF(D19<3.75,\"CC\",IF(D19<4.5,\"B\",IF(D19<5.65,\"BB\",IF(D19<6.4,\"BBB\",IF(D19<7,\"A\",IF(D19<8.15,\"AA\",\"AAA\")))))))","v":{"$error":"#DIV/0!"}},{"$f":"+IF(E19<1.75,\"C\",IF(E19<3.75,\"CC\",IF(E19<4.5,\"B\",IF(E19<5.65,\"BB\",IF(E19<6.4,\"BBB\",IF(E19<7,\"A\",IF(E19<8.15,\"AA\",\"AAA\")))))))","v":{"$error":"#DIV/0!"}}]
[null,"Rischiosità",{"$f":"+IF(C22=\"C\",\"Elevata\",IF(C22=\"CC\",\"Significativa\",IF(C22=\"B\",\"Medio-alta\",IF(C22=\"BB\",\"Media\",IF(C22=\"BBB\",\"Medio-bassa\",IF(C22=\"A\",\"Relativa\",IF(C22=\"AA\",\"Contenuta\",\"Bassa\")))))))","v":{"$error":"#DIV/0!"}},{"$f":"+IF(D22=\"C\",\"Elevata\",IF(D22=\"CC\",\"Significativa\",IF(D22=\"B\",\"Medio-alta\",IF(D22=\"BB\",\"Media\",IF(D22=\"BBB\",\"Medio-bassa\",IF(D22=\"A\",\"Relativa\",IF(D22=\"AA\",\"Contenuta\",\"Bassa\")))))))","v":{"$error":"#DIV/0!"}},{"$f":"+IF(E22=\"C\",\"Elevata\",IF(E22=\"CC\",\"Significativa\",IF(E22=\"B\",\"Medio-alta\",IF(E22=\"BB\",\"Media\",IF(E22=\"BBB\",\"Medio-bassa\",IF(E22=\"A\",\"Relativa\",IF(E22=\"AA\",\"Contenuta\",\"Bassa\")))))))","v":{"$error":"#DIV/0!"}}]
[]
[]
[]
[null,null,null,null,"Vai inizio pagina"]

{"sheet":"REPORT BEP","index":23,"n_rows":62,"n_cols":6,"rows_kept":62,"cut":false,"hidden":false,"merged":[[3,1,3,2],[21,1,21,2],[33,1,33,2],[6,5,6,6],[7,5,7,6]]}
[]
[null,"Report 7"]
[null,{"$f":"+ANAGRAFICA!C5","v":0}]
[null,"BREAK EVEN ANALYSIS - FATTURATO DI EQUILIBRIO",null,null,null,"Indietro"]
[]
[]
[null,null,null,null,null,"Vedi importi analitici"]
[null,null,null,null,null,"del grafico"]
[]
[]
[]
[]
[]
[]
[]
[]
[]
[]
[]
[]
[]
[null,"Dati di bilancio",null,"Nuovo scenario",null,"Note"]
[null,null,{"$f":"+'INPUT BILANCI'!C9","v":"00:00:00"}]
["RV","Produzione venduta",{"$f":"+'CALCOLI BEP DATI'!D6","v":0}]
[]
["CV","Costo variabile del venduto",{"$f":"+'CALCOLI BEP DATI'!D12","v":0}]
[]
["MC","Margine di contribuzione (RV-CV))",{"$f":"+C24-C26","v":0},{"$f":"+D24-D26","v":0}]
[]
["CF","Costi fissi di produzione",{"$f":"+'CALCOLI BEP DATI'!C28","v":0}]
[]
[]
[]
[null,"Indicatori calcolati",null,"Nuovo scenario"]
["RO","Risultato economico lordo (MC-CF)",{"$f":"+C28-C30","v":0},{"$f":"+D28-D30","v":0}]
[]
["BEP","Fatturato di equilibrio (BEP)",{"$f":"+C30/(1-((C26/C24)))","v":{"$error":"#DIV/0!"}},{"$f":"+IF(D30=0,0,D30/(1-((D26/D24))))","v":0}]
[]
[null,"Fatturato di equilibrio percentuale",{"$f":"+C37/C24","v":{"$error":"#DIV/0!"}},{"$f":"+IF(D24=0,0,D37/D24)","v":0}]
[]
["MS","Margine di sicurezza (RV-BEP)/RV ovvero capacità di resistenza al calo di fatturato",{"$f":"+(C24-C37)/C24","v":{"$error":"#DIV/0!"}},{"$f":"+IF(D24=0,0,(D24-D37)/D24)","v":0}]
[]
[null,"Indice di efficienza RV/BEP",{"$f":"+C24/C37","v":{"$error":"#DIV/0!"}},{"$f":"+IF(D24=0,0,D24/D37)","v":0}]
[]
[]
[]
[]
[]
[]
[]
[]
[]
[]
[]
[]
[]
[]
[]
[]
[]
[]
[null,null,null,null,null,"Vai inizio pagina"]

{"sheet":"CALCOLI BEP GRAFICO","index":24,"n_rows":24,"n_cols":13,"rows_kept":24,"cut":false,"hidden":false,"merged":[[1,1,1,6]]}
[]
[null,"DATI DEL GRAFICO DEL FATTURATO DI EQULIBRIO MONOMETRICO (Imprese multiprodotto)"]
["Capacità produttiva","FATTURATO","COSTI FISSI","COSTI VARIABILI","COSTI TOTALI","RICAVI TOTALI","RIUSLTATO ECONOMICO",null,"Indietro",null,"DATI DI INTPUT","DATI DI INTPUT"]
[0,{"$f":"+$M$10*A4","v":0},{"$f":"+$M$9","v":0},{"$f":"+B4*$M$7","v":{"$error":"#DIV/0!"}},{"$f":"SUM(C4:D4)","v":{"$error":"#DIV/0!"}},{"$f":"+B4","v":0},{"$f":"+F4-E4","v":{"$error":"#DIV/0!"}}]
[0.05,{"$f":"+$M$10*A5","v":0},{"$f":"+$M$9","v":0},{"$f":"+B5*$M$7","v":{"$error":"#DIV/0!"}},{"$error":"#DIV/0!"},{"$f":"+B5","v":0},{"$error":"#DIV/0!"}]
[0.1,0,0,{"$error":"#DIV/0!"},{"$error":"#DIV/0!"},0,{"$error":"#DIV/0!"},null,null,null,null,null,"Dati di bilancio"]
[0.15,0,0,{"$error":"#DIV/0!"},{"$error":"#DIV/0!"},0,{"$error":"#DIV/0!"},null,null,null,"Margine di contribuzione",null,{"$f":"+M11/M10","v":{"$error":"#DIV/0!"}}]
[0.2,0,0,{"$error":"#DIV/0!"},{"$error":"#DIV/0!"},0,{"$error":"#DIV/0!"},null,null,null,null,null,{"$f":"+M11/M10","v":{"$error":"#DIV/0!"}}]
[0.25,0,0,{"$error":"#DIV/0!"},{"$error":"#DIV/0!"},0,{"$error":"#DIV/0!"},null,null,null,"COSTI FISSI",null,{"$f":"+'CALCOLI BEP DATI'!C28","v":0}]
[0.3,0,0,{"$error":"#DIV/0!"},{"$error":"#DIV/0!"},0,{"$error":"#DIV/0!"},null,null,null,"FATTURATO",null,{"$f":"+'CALCOLI BEP DATI'!D6","v":0}]
[0.35,0,0,{"$error":"#DIV/0!"},{"$error":"#DIV/0!"},0,{"$error":"#DIV/0!"},null,null,null,"COSTI VARIABILI",null,{"$f":"+'CALCOLI BEP DATI'!D12","v":0}]
[0.4,0,0,{"$error":"#DIV/0!"},{"$error":"#DIV/0!"},0,{"$error":"#DIV/0!"}]
[0.45,0,0,{"$error":"#DIV/0!"},{"$error":"#DIV/0!"},0,{"$error":"#DIV/0!"},null,null,null,"FATTURATO DI EQUILIBRIO",null,{"$f":"+M9/(1-M8)","v":{"$error":"#DIV/0!"}}]
[0.5,0,0,{"$error":"#DIV/0!"},{"$error":"#DIV/0!"},0,{"$error":"#DIV/0!"},null,null,null,"Indice di efficienza",null,{"$f":"+M10/M13","v":{"$error":"#DIV/0!"}}]
[0.55000000000000004,0,0,{"$error":"#DIV/0!"},{"$error":"#DIV/0!"},0,{"$error":"#DIV/0!"},null,null,null,"Margine di sicurezza",null,{"$f":"+(M10-M13)/M10","v":{"$error":"#DIV/0!"}}]
[0.6,0,0,{"$error":"#DIV/0!"},{"$error":"#DIV/0!"},0,{"$error":"#DIV/0!"},null,null,null,"FATTURATO DI EQUILIBRIO",null,{"$f":"+M13/M10","v":{"$error":"#DIV/0!"}}]
[0.65,0,0,{"$error":"#DIV/0!"},{"$error":"#DIV/0!"},0,{"$error":"#DIV/0!"},null,null,null,"Area di utile",null,{"$f":"+M10-M13","v":{"$error":"#DIV/0!"}}]
[0.7,0,0,{"$error":"#DIV/0!"},{"$error":"#DIV/0!"},0,{"$error":"#DIV/0!"}]
[0.75,0,0,{"$error":"#DIV/0!"},{"$error":"#DIV/0!"},0,{"$error":"#DIV/0!"}]
[0.8,0,0,{"$error":"#DIV/0!"},{"$error":"#DIV/0!"},0,{"$error":"#DIV/0!"}]
[0.85,0,0,{"$error":"#DIV/0!"},{"$error":"#DIV/0!"},0,{"$error":"#DIV/0!"}]
[0.9,0,0,{"$error":"#DIV/0!"},{"$error":"#DIV/0!"},0,{"$error":"#DIV/0!"}]
[0.95,0,0,{"$error":"#DIV/0!"},{"$error":"#DIV/0!"},0,{"$error":"#DIV/0!"}]
[1,0,0,{"$error":"#DIV/0!"},{"$error":"#DIV/0!"},0,{"$error":"#DIV/0!"}]

{"sheet":"RELAZIONE AUTOMATICA","index":25,"n_rows":95,"n_cols":16,"rows_kept":95,"cut":false,"hidden":false,"merged":[[52,1,52,4],[2,1,2,9],[49,1,49,4],[50,1,50,4],[51,1,51,4],[33,3,33,4]]}
[null,"Report 8"]
[null,{"$f":"+ANAGRAFICA!C5","v":0},null,null,null,null,null,null,null,null,null,"NASCONDERE","NASCONDERE","NASCONDERE","NASCONDERE","NASCONDERE"]
[null,"RELAZIONE TECNICA - Analisi della situazione economica, patrimoniale e finanziaria",null,null,null,null,null,null,null,null,"Indietro"]
[null,null,null,null,"Situazione al",{"$f":"+'INPUT BILANCI'!C9","v":"00:00:00"}]
[]
[null,"Analisi della situazione economica",null,null,null,null,null,null,null,null,null,null,{"$f":"+'CE RICLASSIFICATO'!C40","v":"00:00:00"},{"$f":"+'CE RICLASSIFICATO'!D40","v":"00:00:00"},"VARIAZ."]
[null,"Alla formazione del reddito di esercizio, pari a euro ",null,null,null,{"$f":"+'CE RICLASSIFICATO'!C34","v":0},"ha contribuito la gestione caratteristica",null,null,null,null,"ROE",{"$f":"+'INDICI E MARGINI'!D8","v":{"$error":"#DIV/0!"}},{"$f":"+'INDICI E MARGINI'!E8","v":{"$error":"#DIV/0!"}},null,{"$f":"+IF(M7>N7,\"aumentata\",\"diminuita\")","v":{"$error":"#DIV/0!"}}]
[null,"per una percentuale del",null,{"$f":"+'CE RICLASSIFICATO'!C60","v":0},"e la gestione finanziaria per il ",null,{"$f":"+'CE RICLASSIFICATO'!C61","v":0},null,null,null,null,"ROI-ROD",{"$f":"+'INDICI E MARGINI'!D15","v":{"$error":"#DIV/0!"}},null,null,{"$f":"+IF(M8>0,\"maggiore\",\"minore\")","v":{"$error":"#DIV/0!"}}]
[null,"Circa la redditività del Capitale proprio, essa è",null,null,null,{"$f":"+P7","v":{"$error":"#DIV/0!"}},"rispetto all'esercizio precedente.",null,null,null,null,"Effetto leva",null,null,null,{"$f":"+IF(M8>0,\"positivo\",\"negativo\")","v":{"$error":"#DIV/0!"}}]
[null,null,null,null,null,null,null,null,null,null,null,"leverage",{"$f":"+'INDICI E MARGINI'!D12","v":{"$error":"#DIV/0!"}},{"$f":"+'INDICI E MARGINI'!E12","v":{"$error":"#DIV/0!"}},{"$f":"+M10-N10","v":{"$error":"#DIV/0!"}},{"$f":"+IF(O10<0,\"miglioramento\",\"peggioramento\")","v":{"$error":"#DIV/0!"}}]
[null,"Il ROI (tasso di rendimento del capitale investito) risulta essere ",null,null,null,null,{"$f":"+P8","v":{"$error":"#DIV/0!"}},"del costo medio ",null,null,null,"OF/RV",{"$f":"+('INPUT BILANCI'!C264+'INPUT BILANCI'!C265+'INPUT BILANCI'!C266+'INPUT BILANCI'!C267)/'INPUT BILANCI'!C209","v":{"$error":"#DIV/0!"}},{"$f":"+('INPUT BILANCI'!D264+'INPUT BILANCI'!D265+'INPUT BILANCI'!D266+'INPUT BILANCI'!D267)/'INPUT BILANCI'!D209","v":{"$error":"#DIV/0!"}}]
[null,"del denaro espresso dal ROD. Pertando l'indebitamento produce un effetto leva",null,null,null,null,null,{"$f":"+P9","v":{"$error":"#DIV/0!"}},null,null,null,"CCN",{"$f":"+MARGINI!C10","v":0},null,null,{"$f":"+IF(M12>0,\"positivo\",\"negativo\")","v":"negativo"}]
[null,"sulla redditività del capitale proprio.",null,null,null,null,null,null,null,null,null,null,null,null,null,{"$f":"+IF(M12>0,\"equilibrata\",\"in disequilibrio\")","v":"in disequilibrio"}]
[null,"La redditività delle vendite (ROS) è passata dal",null,null,null,{"$f":"+'INDICI E MARGINI'!E14","v":{"$error":"#DIV/0!"}},"al",{"$f":"+'INDICI E MARGINI'!D14","v":{"$error":"#DIV/0!"}},null,null,null,"CCN",{"$f":"+MARGINI!C10","v":0},{"$f":"+MARGINI!D10","v":0},null,{"$f":"+IF(M14>N14,\"migliorato\",IF(M14=N14,\"invariato\",\"peggiorato\"))","v":"invariato"}]
[null,"L'indice di indebitamento (leverage) è passato da",null,null,null,{"$f":"+'INDICI E MARGINI'!E12","v":{"$error":"#DIV/0!"}},"a",{"$f":"+'INDICI E MARGINI'!D12","v":{"$error":"#DIV/0!"}},"evidenziando un",null,null,"MSS",{"$f":"+MARGINI!C8","v":0},{"$f":"+MARGINI!D8","v":0},null,{"$f":"+IF(M15>0,\"positivo\",\"negativo\")","v":"negativo"}]
[null,{"$f":"+P10","v":{"$error":"#DIV/0!"}},"dell'indebitamento complessivo.",null,null,null,null,null,null,null,null,null,null,null,null,{"$f":"+IF(M15>N15,\"aumentato\",IF(M15=N15,\"invariato\",\"diminuito\"))","v":"invariato"}]
[null,"L'incidenza degli oneri finanziari sul fatturato, è passata dal",null,null,null,{"$f":"+N11","v":{"$error":"#DIV/0!"}},"al",{"$f":"+M11","v":{"$error":"#DIV/0!"}},null,null,null,"AUT.FIN.",{"$f":"+'INDICI E MARGINI'!D22","v":{"$error":"#DIV/0!"}},{"$f":"+'INDICI E MARGINI'!E22","v":{"$error":"#DIV/0!"}},null,{"$f":"+IF(M17>N17,\"migliorata\",IF(M17=N17,\"invariata\",\"peggiorata\"))","v":{"$error":"#DIV/0!"}}]
[null,"La gestione operativa di esercizio ha generato un cash flow ",null,null,null,{"$f":"+P18","v":"negativo"},"che è",{"$f":"+P19","v":"invariato"},null,null,null,"CASH FLOW",{"$f":"+'CE RICLASSIFICATO'!C126","v":0},{"$f":"+'CE RICLASSIFICATO'!D126","v":0},null,{"$f":"+IF(M18>0,\"positivo\",\"negativo\")","v":"negativo"}]
[null,"rispetto al precedente esercizio.",null,null,null,null,null,null,null,null,null,null,null,null,null,{"$f":"+IF(M18>N18,\"migliorato\",IF(M18=N18,\"invariato\",\"peggiorato\"))","v":"invariato"}]
[]
[null,"Analisi della situazione patrimoniale"]
[null,"L'analisi patrimoniale esamina la struttura delle fonti e degli impieghi verificandone l'equilibrio.",null,null,null,null,null,null,null,null,null,"COPERT.IMMOB",{"$f":"+'INDICI E MARGINI'!D30","v":{"$error":"#DIV/0!"}},{"$f":"+'INDICI E MARGINI'!E30","v":{"$error":"#DIV/0!"}},null,{"$f":"+IF(M22>N22,\"migliorata\",IF(M22=N22,\"invariata\",\"peggiorata\"))","v":{"$error":"#DIV/0!"}}]
[null,"Il Capitale circolante netto è",null,{"$f":"+P12","v":"negativo"},"pertanto la situazione patrimoniale, in prima approssimazione appare",null,null,null,null,null,null,null,null,null,null,{"$f":"+IF(M22>1,\"riesce\",\"non riesce\")","v":{"$error":"#DIV/0!"}}]
[null,{"$f":"+P13","v":"in disequilibrio"},"Inoltre esso è",{"$f":"+P14","v":"invariato"},null,"rispetto all'esercizio precedente.",null,null,null,null,null,null,null,null,null,{"$f":"+IF(M22>1,\"solida\",\"non solida\")","v":{"$error":"#DIV/0!"}}]
[]
[null,"Inoltre il margine di struttura secondario risulta",null,null,null,{"$f":"+P15","v":"negativo"},"ed è",{"$f":"+P16","v":"invariato"},null,null,null,"IND.DISPON.",{"$f":"+'INDICI E MARGINI'!D33","v":{"$error":"#DIV/0!"}},{"$f":"+'INDICI E MARGINI'!E33","v":{"$error":"#DIV/0!"}},null,{"$f":"+IF(M26>1,\"positivo\",\"negativo\")","v":{"$error":"#DIV/0!"}}]
[null,"rispetto al precedente esercizio.",null,null,null,null,null,null,null,null,null,null,null,null,null,{"$f":"+IF(M26>N26,\"migliorato\",IF(M26=N26,\"invariato\",\"peggiorato\"))","v":{"$error":"#DIV/0!"}}]
[null,"Il patrimonio aziendale risulta essere così finanziato nel bilancio chiuso al",null,null,null,null,{"$f":"+M6","v":"00:00:00"}]
[null,"Capitale proprio",{"$f":"+'BILANCI RICLASSIFICATI'!C45","v":0}]
[null,"Capitale di terzi",{"$f":"+'BILANCI RICLASSIFICATI'!C50","v":0}]
[null,"Mentre nell'esercizio precedente il patrimonio complessivo era così finanziato:"]
[null,"Capitale proprio",{"$f":"+'BILANCI RICLASSIFICATI'!D45","v":0}]
[null,"Capitale di terzi",{"$f":"+'BILANCI RICLASSIFICATI'!D50","v":0}]
[null,"L'autonomia finanziaria è",null,{"$f":"+P17","v":{"$error":"#DIV/0!"}}]
[]
[]
[]
[]
[]
[null,"Analisi della situazione finanziaria"]
[null,"Solidità patrimoniale"]
[null,"Il Capitale permanente ",null,{"$f":"+P23","v":{"$error":"#DIV/0!"}},"a finanziare le immobilizzazioni."]
[null,"Nel complesso la struttura patrimoniale è quindi",null,null,null,{"$f":"+P24","v":{"$error":"#DIV/0!"}},"e rispetto all'esercizo precedente è"]
[null,{"$f":"+P22","v":{"$error":"#DIV/0!"}}]
[null,"Liquidità",null,null,null,null,null,null,null,null,null,"ROTAZIONE",{"$f":"+'INDICI E MARGINI'!D6","v":"00:00:00"},{"$f":"+'INDICI E MARGINI'!E6","v":"00:00:00"}]
[null,"L'indice di disponibilità risulta essere",null,null,{"$f":"+P26","v":{"$error":"#DIV/0!"}},"ed è ",{"$f":"+P27","v":{"$error":"#DIV/0!"}},"rispetto all'esercizio precedente.",null,null,null,"AC",{"$f":"+'INDICI E MARGINI'!D38","v":{"$error":"#DIV/0!"}},{"$f":"+'INDICI E MARGINI'!E38","v":{"$error":"#DIV/0!"}},null,{"$f":"+IF(M46>N46,\"migliorata\",IF(M46=N46,\"invariata\",\"peggiorata\"))","v":{"$error":"#DIV/0!"}}]
[null,null,null,null,null,null,null,null,null,null,null,"IMP",{"$f":"+'INDICI E MARGINI'!D39","v":{"$error":"#DIV/0!"}},{"$f":"+'INDICI E MARGINI'!E39","v":{"$error":"#DIV/0!"}},null,{"$f":"+IF(M47>N47,\"migliorata\",\"peggiorata\")","v":{"$error":"#DIV/0!"}}]
[null,"Rotazione",null,null,null,null,null,null,null,null,null,"MAG",{"$f":"+'INDICI E MARGINI'!D40","v":{"$error":"#DIV/0!"}},{"$f":"+'INDICI E MARGINI'!E40","v":{"$error":"#DIV/0!"}},null,{"$f":"+IF(M48>N48,\"migliorata\",IF(M48=N48,\"invariata\",\"peggiorata\"))","v":{"$error":"#DIV/0!"}}]
[null,"Dall'analisi della rotazione degli elementi dell'attivo corrente emerge la seguente situazione:",null,null,null,null,null,null,null,null,null,"CRED",{"$f":"+'INDICI E MARGINI'!D42","v":{"$error":"#DIV/0!"}},{"$f":"+'INDICI E MARGINI'!E42","v":{"$error":"#DIV/0!"}},null,{"$f":"+IF(M49>N49,\"migliorata\",IF(M49=N49,\"invariata\",\"peggiorata\"))","v":{"$error":"#DIV/0!"}}]
[null,"Rotazione dell'attivo corrente",null,null,null,{"$f":"+P46","v":{"$error":"#DIV/0!"}}]
[null,"Rotazione degli impieghi",null,null,null,{"$f":"+P47","v":{"$error":"#DIV/0!"}}]
[null,"Rotazione del magazzino",null,null,null,{"$f":"+P48","v":{"$error":"#DIV/0!"}}]
[null,"Rotazione dei crediti",null,null,null,{"$f":"+P49","v":{"$error":"#DIV/0!"}}]
[null,null,null,null,null,null,null,null,null,null,null,"EBIT",{"$f":"+'CE RICLASSIFICATO'!C60","v":0},{"$f":"+'CE RICLASSIFICATO'!D60","v":0},null,{"$f":"+IF(M54>N54,\"migliorata\",IF(M54=N54,\"invariata\",\"peggiorata\"))","v":"invariata"}]
[null,"Analisi dei flussi di liquidità"]
[null,"Dal Rendiconto finanziario è possibile analizzare la fonte e la destinazione dei flussi di liquidità."]
[null,"Le disponibilità liquide iniziali erano ",null,null,{"$f":"+'RENDICONTO FINANZIARIO'!D9","v":0},"e al termine dell'esercizio sono passate ad un totale di"]
[null,{"$f":"+'RENDICONTO FINANZIARIO'!D21","v":0},"con una variazione",null,{"$f":"+IF('RENDICONTO FINANZIARIO'!D22>0,\"positiva di\",\"negativa di\")","v":"negativa di"},{"$f":"+'RENDICONTO FINANZIARIO'!D22","v":0}]
[null,"L'attività reddituale di esercizio ha",null,null,{"$f":"+IF('RENDICONTO FINANZIARIO'!D14>0,\"generato\",\"consumato\")","v":"consumato"},"risorse monetarie per",null,{"$f":"+'RENDICONTO FINANZIARIO'!D14","v":0},"mentre"]
[null,"l'attività di investimento ha",null,null,{"$f":"+IF('RENDICONTO FINANZIARIO'!D15>0,\"generato\",\"consumato\")","v":"consumato"},"risorse monetarie per ",null,{"$f":"+'RENDICONTO FINANZIARIO'!D15","v":0}]
[null,"I mezzi propri si sono",null,{"$f":"+IF('RENDICONTO FINANZIARIO'!C17>0,\"incrementati di\",\"ridotti di\")","v":"ridotti di"},{"$f":"+'RENDICONTO FINANZIARIO'!C17","v":0},"e i mezzi di terzi hanno",null,{"$f":"+IF('RENDICONTO FINANZIARIO'!C18<0,\"assorbito\",\"generato\")","v":"generato"},"risorse"]
[null,"monetarie di",{"$f":"+'RENDICONTO FINANZIARIO'!C18","v":0}]
[null,"In totale il flusso monetario dell'attività di finanziamento ha",null,null,null,{"$f":"+IF('RENDICONTO FINANZIARIO'!D19>0,\"generato\",\"consumato\")","v":"consumato"},"risorse totali ",{"$f":"+'RENDICONTO FINANZIARIO'!D19","v":0}]
[]
[null,"Conclusioni",null,null,null,null,null,null,null,null,null,"PCN",{"$f":"+MARGINI!C9","v":0},{"$f":"+MARGINI!D9","v":0},null,{"$f":"+IF(M65>N65,\"migliorato\",IF(M65=N65,\"invariato\",\"peggiorato\"))","v":"invariato"}]
[null,"Dalla precedente analisi è possibile schematizzare la situazione seguente:",null,null,null,null,null,null,null,null,null,"PFN",{"$f":"+'INDICI E MARGINI'!D52","v":0},{"$f":"+'INDICI E MARGINI'!E52","v":0},null,{"$f":"+IF(M66>N66,\"migliorato\",IF(M66=N66,\"invariato\",\"peggiorato\"))","v":"invariato"}]
[null,"Redditività della gestione caratteristica",null,null,null,{"$f":"+P54","v":"invariata"}]
[null,"Equilibrio fonti/impieghi",null,null,null,{"$f":"+P65","v":"invariato"}]
[null,"Posizione finanziaria netta",null,null,null,{"$f":"+P66","v":"invariato"}]
[null,"Flusso monetario del periodo",null,null,null,{"$f":"+IF('RENDICONTO FINANZIARIO'!D20>0,\"positivo\",\"negativo\")","v":"negativo"}]
[]
[]
[]
[]
[]
[]
[]
[]
[]
[]
[]
[]
[]
[]
[]
[]
[]
[]
[]
[]
[]
[]
[]
[]
[null,null,null,null,null,null,null,null,null,null,"Vai inizio pagina"]

{"sheet":"NOTE LIBERE","index":26,"n_rows":4,"n_cols":12,"rows_kept":4,"cut":false,"hidden":false,"merged":[]}
[]
[null,"Report 9"]
[null,{"$f":"+ANAGRAFICA!C5","v":0}]
[null,null,null,null,null,null,null,null,null,null,null,"Indietro"]

{"sheet":"STAMPA FASCICOLO","index":27,"n_rows":62,"n_cols":9,"rows_kept":62,"cut":false,"hidden":false,"merged":[[28,1,30,1],[32,1,36,1],[58,2,58,4],[42,1,44,1],[38,1,40,1],[50,1,52,1]]}
[]
[]
[null,null,"STAMPA FASCICOLO",null,"Indietro"]
[]
[null,null,"PERSONALIZZA FRONTESPIZIO",null,null,null,"N. pagine"]
[]
[null,null,"FRONTESPIZIO",null,null,null,1]
[]
[null,null,"ANAGRAFICA AZIENDA",null,null,null,1]
[]
[null,null,"INSERIMENTO BILANCI",null,null,null,9]
[]
[null,null,"REPORT RAPIDO: EQUILIBRI GESTIONALI",null,null,null,2]
[]
[]
[null,"Report n.","REPORT GRAFICI ANDAMENTALI"]
[]
[null,1,"ANDAMENTO DEGLI EQUILIBRI PATRIMONIALI",null,null,null,3]
[]
[null,2,"ANDAMENTO DEGLI EQUILIBRI ECONOMICI",null,null,null,3]
[]
[null,3,"ANDAMENTO DEGLI EQUILIBRI FINANZIARI",null,null,null,4]
[]
[]
[null,"Report n.","REPORT ANALISI QUANTITATIVA"]
[]
[null,1,"BILANCI RICLASSIFICATI",null,null,null,4]
[]
[null,2,"ANALISI PER INDICI E MARGINI",null,null,null,4]
[]
[null,null,"INDICI CON COMMENTO E RIMEDI OPERATIVI",null,null,null,7]
[]
[null,3,"ANALISI PER FLUSSI",null,null,null,2]
[]
[null,null,"FOGLIO DI LAVORO Anno n",null,null,null,4]
[]
[null,null,"FOGLIO DI LAVORO Anno n-1",null,null,null,4]
[]
[null,4,"RATING QUANTITATIVO MERITO CREDITIZIO",null,null,null,1]
[]
[null,null,"TABELLE CALCOLO RATING",null,null,null,2]
[]
[null,5,"INDICE FINANZIARIO DI ALTMAN",null,null,null,1]
[]
[null,null,"TABELLE INDICE DI ALTMAN",null,null,null,3]
[]
[null,6,"INDICE EM SCORE",null,null,null,1]
[]
[]
[]
[null,7,"BREAK EVEN ANALYSIS - FATTURATO DI EQUILIBRIO",null,null,null,2]
[null,null,null,null,null,null,null,null," "]
[null,null,"TABELLE CALCOLI B.E.A.",null,null,null,1]
[]
[null,8,"RELAZIONE TECNICA AUTOGENERANTE",null,null,null,3]
[]
[null,9,"NOTE E COMMENTI LIBERI",null,null,null,1]
[]
[null,null,"Totale pagine del fascicolo",null,null,null,{"$f":"SUM(G7:G57)","v":63}]
[]
[]
[null,null,"Vai inizio pagina"]

{"sheet":"FRONTESPIZIO","index":28,"n_rows":37,"n_cols":10,"rows_kept":37,"cut":false,"hidden":false,"merged":[[3,9,8,11],[29,9,47,11]]}
[]
[]
[null,null,null,null,null,null,null,null,null,"Indietro"]
[null,null,null,null,null,null,null,null,null,"AREA A DESCRIZIONE LIBERA"]
[]
[]
[]
[]
[]
[null,{"$f":"+ANAGRAFICA!C5","v":0}]
[]
[null,{"$f":"+ANAGRAFICA!C7","v":0}]
[]
[null,{"$f":"+ANAGRAFICA!C9","v":0}]
[]
[null,{"$f":"+ANAGRAFICA!B11","v":"COD. FISCALE E PARTITA I.V.A."},null,null,{"$f":"+ANAGRAFICA!C11","v":0}]
[]
[null,{"$f":"+ANAGRAFICA!C13","v":0}]
[]
[]
[]
[]
[]
[]
[null,"Bilanci analizzati"]
[null,{"$f":"+ANAGRAFICA!C16","v":"00:00:00"}]
[null,{"$f":"+ANAGRAFICA!C17","v":"00:00:00"}]
[null,{"$f":"+ANAGRAFICA!C18","v":"00:00:00"}]
[]
[null,null,null,null,null,null,null,null,null,"AREA A DESCRIZIONE LIBERA"]
[]
[]
[]
[]
[]
[]
[null,null,"LOGO/IMMAGINE/ALTRO"]

{"sheet":"MAPPA","index":29,"n_rows":48,"n_cols":16,"rows_kept":48,"cut":false,"hidden":false,"merged":[[1,1,2,13],[1,15,2,15],[42,9,43,9],[12,11,13,11],[20,11,21,11],[25,11,26,11],[33,11,34,11],[16,11,18,11],[20,9,23,9],[5,9,5,11],[8,11,10,11],[25,9,28,9],[30,9,31,9],[33,9,35,9],[37,9,40,9],[8,7,10,7],[12,7,14,7],[16,7,18,7],[8,9,10,9],[12,9,14,9],[16,9,18,9]]}
[]
[null,"MAPPA DELLE FUNZIONI",null,null,null,null,null,null,null,null,null,null,null,null,null,"Indietro"]
[]
[]
[]
[null,"ANAGRAFICA",null,"INSERIMENTO BILANCI",null,"REPORT RAPIDO: EQUILIBRI GESTIONALI",null,"REPORT  GRAFICI ANDAMENTALI",null,"REPORT  ANALISI QUANTITATIVA",null,null,null,"STAMPA FASCICOLO"]
[]
[]
[null,null,null,null,null,null,null,"Report 1: Andamento degli equilibri patrimoniali",null,"Report 1: Bilanci riclassificati",null,"Criteri di riclassificazione"]
[]
[]
[]
[null,null,null,null,null,null,null,"Report 2: Andamento degli equilibri economici",null,"Report 2: Analisi per indici e margini",null,"Commento     indici"]
[]
[]
[]
[null,null,null,null,null,null,null,"Report 3: Andamento degli equilibri finanziari",null,"Report 3: Analisi per flussi",null,"Foglio di lavoro Anno n           Foglio di lavoro Anno n-1"]
[]
[]
[]
[null,null,null,null,null,null,null,null,null,"Report 4: Rating quantitativo per il merito creditizio",null,"Tabelle di calcolo"]
[]
[]
[]
[]
[null,null,null,null,null,null,null,null,null,"Report 5: Indice finanziario  Z-score di Altman",null,"Tabelle di calcolo"]
[]
[]
[]
[]
[null,null,null,null,null,null,null,null,null,"Report 6: Indice EM-score"]
[]
[]
[null,null,null,null,null,null,null,null,null,"Report 7: Break even analysis Fatturato di equilibrio",null,"Tabella di calcolo"]
[]
[]
[]
[null,null,null,null,null,null,null,null,null,"Report 8: Relazione autogenerante"]
[]
[]
[]
[]
[null,null,null,null,null,null,null,null,null,"Report 9: Note libere"]
[]
[]
[]
[]
[null,null,null,null,null,null,null,null,null,null,null,null,null,"Vai inizio pagina"]

{"sheet":"INFORMAZIONI","index":30,"n_rows":29,"n_cols":4,"rows_kept":29,"cut":false,"hidden":false,"merged":[]}
[]
[]
[null,"Informazioni & Credits",null,"Indietro"]
[]
[null,"Il prodotto CHECK UP AZIENDA PLUS - Analisi di bilancio  e Report direzionali, può essere utilizzato per"]
[null,"effettuare una completa analisi economica, finanziaria e patrimoniale dell'azienda, completa di REPORT"]
[null,"di veloce consultazione,  numerosi indicatori ed elaborazioni con  generazione automatica di molti grafici "]
[null,"andamentali, tabelle di analisi quantitativa,  RATING  per la valutazione del merito creditizio, il tutto anche in "]
[null,"versione stampabile."]
[]
[null,"Per un corretto utilizzo del prodotto, potete scaricare la GUIDA OPERATIVA in pdf."]
[]
[null,"Per assistenza,  chiarimenti, informazioni specifiche o suggerimenti migliorativi, potete scrivere direttamente"]
[null,"all'autore:"]
[]
[null,"dott. Nicola Napolitano - Dottore commercialista"]
[null,"n.napolitano4@gmail.com"]
[]
[]
[]
[null,"Altri prodotti dello stesso autore"]
[null,"https://www.fiscoetasse.com/autorebc/scheda/id/67"]
[]
[]
[]
[null,"Disclaimer:"]
[null,"L'utilizzatore di questo foglio di calcolo è tenuto a controllare l'esattezza e la completezza dei risultati. "]
[null,"L'autore e l'editore non si assumono alcuna responsabilità per danni diretti o indiretti subìti dal cliente o da terzi"]
[null," in dipendenza dall'uso del presente foglio."]

{"sheet":"MARGINI","index":31,"n_rows":29,"n_cols":8,"rows_kept":29,"cut":false,"hidden":true,"merged":[[27,0,27,1],[28,0,28,1],[16,0,16,1],[17,0,17,1],[18,0,18,1],[19,0,19,1],[21,0,21,1],[23,0,23,1],[20,0,20,1],[24,0,24,1],[25,0,25,1],[26,0,26,1]]}
[]
[{"$f":"+ANAGRAFICA!C5","v":0}]
[]
["ANALISI DEI MARGINI PATRIMONIALI"]
[null,null,null,null,null,null,null,"ATTENZIONE"]
["Margini","Formule",{"$f":"+'BILANCI RICLASSIFICATI'!C8","v":"00:00:00"},{"$f":"+'BILANCI RICLASSIFICATI'!D8","v":"00:00:00"},{"$f":"+'BILANCI RICLASSIFICATI'!E8","v":"00:00:00"},"Valore di riferimento",null,"FOGLIO DI SERVIZIO"]
["Margine di struttura primario","PN - Imm",{"$f":"+'BILANCI RICLASSIFICATI'!C25-'BILANCI RICLASSIFICATI'!C14","v":0},{"$f":"+'BILANCI RICLASSIFICATI'!D25-'BILANCI RICLASSIFICATI'!D14","v":0},{"$f":"+'BILANCI RICLASSIFICATI'!E25-'BILANCI RICLASSIFICATI'!E14","v":0},">0",null,"I DATI SONO RIPORTATI NEL FOGLIO \"INDICI E MARGINI\""]
["Margine di struttura secondario","(PN+Dml) - Imm",{"$f":"+('BILANCI RICLASSIFICATI'!C25+'BILANCI RICLASSIFICATI'!C27)-'BILANCI RICLASSIFICATI'!C14","v":0},{"$f":"+('BILANCI RICLASSIFICATI'!D25+'BILANCI RICLASSIFICATI'!D27)-'BILANCI RICLASSIFICATI'!D14","v":0},{"$f":"+('BILANCI RICLASSIFICATI'!E25+'BILANCI RICLASSIFICATI'!E27)-'BILANCI RICLASSIFICATI'!E14","v":0},">0"]
["Capitale circolante netto finanziario","A c- Pb",{"$f":"+'BILANCI RICLASSIFICATI'!C20-'BILANCI RICLASSIFICATI'!C30","v":0},{"$f":"+'BILANCI RICLASSIFICATI'!D20-'BILANCI RICLASSIFICATI'!D30","v":0},{"$f":"+'BILANCI RICLASSIFICATI'!E20-'BILANCI RICLASSIFICATI'!E30","v":0},">0"]
["Capitale circolante netto commerciale","(Ac-Dl-Cr.fin.) - (Pb-Deb.fin.)",{"$f":"+('BILANCI RICLASSIFICATI'!C20-'BILANCI RICLASSIFICATI'!C19-'BILANCI RICLASSIFICATI'!C17)-('BILANCI RICLASSIFICATI'!C30-'BILANCI RICLASSIFICATI'!C28)","v":0},{"$f":"+('BILANCI RICLASSIFICATI'!D20-'BILANCI RICLASSIFICATI'!D19-'BILANCI RICLASSIFICATI'!D17)-('BILANCI RICLASSIFICATI'!D30-'BILANCI RICLASSIFICATI'!D28)","v":0},{"$f":"+('BILANCI RICLASSIFICATI'!E20-'BILANCI RICLASSIFICATI'!E19-'BILANCI RICLASSIFICATI'!E17)-('BILANCI RICLASSIFICATI'!E30-'BILANCI RICLASSIFICATI'!E28)","v":0},">0"]
["Margine di tesoreria","(Ac-Rim.)-Pb",{"$f":"+('BILANCI RICLASSIFICATI'!C20-'BILANCI RICLASSIFICATI'!C16)-'BILANCI RICLASSIFICATI'!C30","v":0},{"$f":"+('BILANCI RICLASSIFICATI'!D20-'BILANCI RICLASSIFICATI'!D16)-'BILANCI RICLASSIFICATI'!D30","v":0},{"$f":"+('BILANCI RICLASSIFICATI'!E20-'BILANCI RICLASSIFICATI'!E16)-'BILANCI RICLASSIFICATI'!E30","v":0},">0"]
["Saldo di liquidità","Dl-Deb.fin.",{"$f":"+'BILANCI RICLASSIFICATI'!C19-'BILANCI RICLASSIFICATI'!C28","v":0},{"$f":"+'BILANCI RICLASSIFICATI'!D19-'BILANCI RICLASSIFICATI'!D28","v":0},{"$f":"+'BILANCI RICLASSIFICATI'!E19-'BILANCI RICLASSIFICATI'!E28","v":0},">0"]
[]
[]
["ANALISI DEI MARGINI ECONOMICI"]
[]
["Margini in valore assoluto",null,{"$f":"+C6","v":"00:00:00"},{"$f":"+D6","v":"00:00:00"},{"$f":"+E6","v":"00:00:00"},"Valore di riferimento",null,"ATTENZIONE"]
["Margine operativo lordo  (EBITDA) ",null,{"$f":"+'CE RICLASSIFICATO'!C22","v":0},{"$f":"+'CE RICLASSIFICATO'!D22","v":0},{"$f":"+'CE RICLASSIFICATO'!E22","v":0},">0",null,"FOGLIO DI SERVIZIO"]
["Gestione caratteristica (EBIT)",null,{"$f":"+'CE RICLASSIFICATO'!C26","v":0},{"$f":"+'CE RICLASSIFICATO'!D26","v":0},{"$f":"+'CE RICLASSIFICATO'!E26","v":0},">0",null,"I DATI SONO RIPORTATI NEL FOGLIO \"INDICI E MARGINI\""]
["Gestione finanziaria",null,{"$f":"+'CE RICLASSIFICATO'!C27+'CE RICLASSIFICATO'!C28","v":0},{"$f":"+'CE RICLASSIFICATO'!D27+'CE RICLASSIFICATO'!D28","v":0},{"$f":"+'CE RICLASSIFICATO'!E27+'CE RICLASSIFICATO'!E28","v":0},">0"]
["Gestione accessoria",null,{"$f":"+'CE RICLASSIFICATO'!C29","v":0},{"$f":"+'CE RICLASSIFICATO'!D29","v":0},{"$f":"+'CE RICLASSIFICATO'!E29","v":0},">0"]
["Gestione straordinaria",null,{"$f":"+'CE RICLASSIFICATO'!C31","v":0},{"$f":"+'CE RICLASSIFICATO'!D31","v":0},{"$f":"+'CE RICLASSIFICATO'!E31","v":0},">0"]
[]
["Margini in percentuale al fatturato",null,{"$f":"+C17","v":"00:00:00"},{"$f":"+D17","v":"00:00:00"},{"$f":"+E17","v":"00:00:00"}]
["Margine operativo lordo  (EBITDA) ",null,{"$f":"+'CE RICLASSIFICATO'!C56","v":0},{"$f":"+'CE RICLASSIFICATO'!D56","v":0},{"$f":"+'CE RICLASSIFICATO'!E56","v":0}]
["Gestione caratteristica (EBIT)",null,{"$f":"+'CE RICLASSIFICATO'!C60","v":0},{"$f":"+'CE RICLASSIFICATO'!D60","v":0},{"$f":"+'CE RICLASSIFICATO'!E60","v":0}]
["Gestione finanziaria",null,{"$f":"+'CE RICLASSIFICATO'!C61+'CE RICLASSIFICATO'!C62","v":0},{"$f":"+'CE RICLASSIFICATO'!D61+'CE RICLASSIFICATO'!D62","v":0},{"$f":"+'CE RICLASSIFICATO'!E61+'CE RICLASSIFICATO'!E62","v":0}]
["Gestione accessoria",null,{"$f":"+'CE RICLASSIFICATO'!C63","v":0},{"$f":"+'CE RICLASSIFICATO'!D63","v":0},{"$f":"+'CE RICLASSIFICATO'!E63","v":0}]
["Gestione straordinaria",null,{"$f":"+'CE RICLASSIFICATO'!C65","v":0},{"$f":"+'CE RICLASSIFICATO'!D65","v":0},{"$f":"+'CE RICLASSIFICATO'!E65","v":0}]

{"sheet":"CE RICLASSIFICATO","index":32,"n_rows":129,"n_cols":8,"rows_kept":129,"cut":false,"hidden":true,"merged":[[37,1,37,4],[70,1,70,4],[3,1,3,4]]}
[]
[null,{"$f":"+ANAGRAFICA!C5","v":0}]
[]
[null,"CONTO ECONOMICO A VALORE AGGIUNTO",null,null,null,null,null,"ATTENZIONE"]
[null,null,null,null,null,"NASCOSTO"]
[null,null,{"$f":"+'INPUT BILANCI'!C207","v":"00:00:00"},{"$f":"+'INPUT BILANCI'!D207","v":"00:00:00"},{"$f":"+'INPUT BILANCI'!E207","v":"00:00:00"},{"$f":"+'INPUT BILANCI'!F207","v":{"$error":"#REF!"}},null,"FOGLIO DI SERVIZIO"]
[null,null,null,null,null,null,null,"I DATI VENGONO RIPORTATI NEL FOGLIO \"BILANCI RICLASSIFICATI\"."]
[null,"Ricavi netti di vendita",{"$f":"+'INPUT BILANCI'!C209","v":0},{"$f":"+'INPUT BILANCI'!D209","v":0},{"$f":"+'INPUT BILANCI'!E209","v":0},{"$f":"+'INPUT BILANCI'!F209","v":{"$error":"#REF!"}}]
[null,"Variazione delle rimanenze di prodotti in corso di lavorazione, semilavorati e finiti",{"$f":"+'INPUT BILANCI'!C210","v":0},{"$f":"+'INPUT BILANCI'!D210","v":0},{"$f":"+'INPUT BILANCI'!E210","v":0},{"$f":"+'INPUT BILANCI'!F210","v":{"$error":"#REF!"}}]
[null,"Variazione dei lavori in corso su ordinazione",{"$f":"+'INPUT BILANCI'!C211","v":0},{"$f":"+'INPUT BILANCI'!D211","v":0},{"$f":"+'INPUT BILANCI'!E211","v":0},{"$f":"+'INPUT BILANCI'!F211","v":{"$error":"#REF!"}}]
[null,"Incrementi delle immobilizzazioni per lavori interni",{"$f":"+'INPUT BILANCI'!C212","v":0},{"$f":"+'INPUT BILANCI'!D212","v":0},{"$f":"+'INPUT BILANCI'!E212","v":0},{"$f":"+'INPUT BILANCI'!F212","v":{"$error":"#REF!"}}]
[null,"Contributi in conto esercizio",{"$f":"+'INPUT BILANCI'!C214","v":0},{"$f":"+'INPUT BILANCI'!D214","v":0},{"$f":"+'INPUT BILANCI'!E214","v":0},{"$f":"+'INPUT BILANCI'!F214","v":{"$error":"#REF!"}}]
[null,"Valore della produzione (a)",{"$f":"SUM(C8:C12)","v":0},{"$f":"SUM(D8:D12)","v":0},{"$f":"SUM(E8:E12)","v":0},{"$f":"SUM(F8:F12)","v":{"$error":"#REF!"}}]
[null,"Costi per materie prime, sussidiari, di consumo e merci",{"$f":"+'INPUT BILANCI'!C220","v":0},{"$f":"+'INPUT BILANCI'!D220","v":0},{"$f":"+'INPUT BILANCI'!E220","v":0},{"$f":"+'INPUT BILANCI'!F220","v":{"$error":"#REF!"}}]
[null,"Variazioni delle rimanenze di materie prime, sussidiarie, di consumo e merci",{"$f":"+'INPUT BILANCI'!C234","v":0},{"$f":"+'INPUT BILANCI'!D234","v":0},{"$f":"+'INPUT BILANCI'!E234","v":0},{"$f":"+'INPUT BILANCI'!F234","v":{"$error":"#REF!"}}]
[null,"Costi per servizi",{"$f":"+'INPUT BILANCI'!C221","v":0},{"$f":"+'INPUT BILANCI'!D221","v":0},{"$f":"+'INPUT BILANCI'!E221","v":0},{"$f":"+'INPUT BILANCI'!F221","v":{"$error":"#REF!"}}]
[null,"Costi per godimento di beni di terzi",{"$f":"+'INPUT BILANCI'!C222","v":0},{"$f":"+'INPUT BILANCI'!D222","v":0},{"$f":"+'INPUT BILANCI'!E222","v":0},{"$f":"+'INPUT BILANCI'!F222","v":{"$error":"#REF!"}}]
[null,"Oneri diversi di gestione",{"$f":"+'INPUT BILANCI'!C239","v":0},{"$f":"+'INPUT BILANCI'!D239","v":0},{"$f":"+'INPUT BILANCI'!E239","v":0}]
[null,"Totale di consumi di materie, merci e servizi (b)",{"$f":"SUM(C14:C18)","v":0},{"$f":"SUM(D14:D18)","v":0},{"$f":"SUM(E14:E18)","v":0},{"$f":"SUM(F14:F18)","v":{"$error":"#REF!"}}]
[null,"Valore aggiunto caratteristico (a-b)",{"$f":"+C13-C19","v":0},{"$f":"+D13-D19","v":0},{"$f":"+E13-E19","v":0},{"$f":"+F13-F19","v":{"$error":"#REF!"}}]
[null,"Costi per il personale",{"$f":"+'INPUT BILANCI'!C224+'INPUT BILANCI'!C225+'INPUT BILANCI'!C226+'INPUT BILANCI'!C227+'INPUT BILANCI'!C228","v":0},{"$f":"+'INPUT BILANCI'!D224+'INPUT BILANCI'!D225+'INPUT BILANCI'!D226+'INPUT BILANCI'!D227+'INPUT BILANCI'!D228","v":0},{"$f":"+'INPUT BILANCI'!E224+'INPUT BILANCI'!E225+'INPUT BILANCI'!E226+'INPUT BILANCI'!E227+'INPUT BILANCI'!E228","v":0},{"$f":"+'INPUT BILANCI'!F224+'INPUT BILANCI'!F225+'INPUT BILANCI'!F226+'INPUT BILANCI'!F227+'INPUT BILANCI'!F228","v":{"$error":"#REF!"}}]
[null,"Margine operativo lordo (EBITDA) MOL",{"$f":"+C20-C21","v":0},{"$f":"+D20-D21","v":0},{"$f":"+E20-E21","v":0},{"$f":"+F20-F21","v":{"$error":"#REF!"}}]
[null,"Ammortamenti ",{"$f":"+'INPUT BILANCI'!C230+'INPUT BILANCI'!C231+'INPUT BILANCI'!C232","v":0},{"$f":"+'INPUT BILANCI'!D230+'INPUT BILANCI'!D231+'INPUT BILANCI'!D232","v":0},{"$f":"+'INPUT BILANCI'!E230+'INPUT BILANCI'!E231+'INPUT BILANCI'!E232","v":0},{"$f":"+'INPUT BILANCI'!F230+'INPUT BILANCI'!F231+'INPUT BILANCI'!F232","v":{"$error":"#REF!"}}]
[null,"Svalutazione dei crediti compresi nell'attivo circolante e delle disponibilità liquide",{"$f":"+'INPUT BILANCI'!C233","v":0},{"$f":"+'INPUT BILANCI'!D233","v":0},{"$f":"+'INPUT BILANCI'!E233","v":0},{"$f":"+'INPUT BILANCI'!F233","v":{"$error":"#REF!"}}]
[null,"Accantonamenti a Fondi rischi e oneri",{"$f":"+'INPUT BILANCI'!C235+'INPUT BILANCI'!C236","v":0},{"$f":"+'INPUT BILANCI'!D235+'INPUT BILANCI'!D236","v":0},{"$f":"+'INPUT BILANCI'!E235+'INPUT BILANCI'!E236","v":0},{"$f":"+'INPUT BILANCI'!F235+'INPUT BILANCI'!F236","v":{"$error":"#REF!"}}]
[null,"Reddito  operativo (EBIT)                            Gestione caratteristica o Margine operativo netto",{"$f":"+C22-C23-C24-C25","v":0},{"$f":"+D22-D23-D24-D25","v":0},{"$f":"+E22-E23-E24-E25","v":0},{"$f":"+F22-F23-F24-F25","v":{"$error":"#REF!"}}]
[null,"Risultato della gestione finanziaria",{"$f":"+'INPUT BILANCI'!C269-'INPUT BILANCI'!C268","v":0},{"$f":"+'INPUT BILANCI'!D269-'INPUT BILANCI'!D268","v":0},{"$f":"+'INPUT BILANCI'!E269-'INPUT BILANCI'!E268","v":0},{"$f":"+'INPUT BILANCI'!F269-'INPUT BILANCI'!F268","v":{"$error":"#REF!"}}]
[null,"Rettifiche di valore di attività finanziarie",{"$f":"+'INPUT BILANCI'!C281","v":0},{"$f":"+'INPUT BILANCI'!D281","v":0},{"$f":"+'INPUT BILANCI'!E281","v":0},{"$f":"+'INPUT BILANCI'!F281","v":{"$error":"#REF!"}}]
[null,"Risultato della gestione accessoria",{"$f":"+'INPUT BILANCI'!C217+'INPUT BILANCI'!C268-'INPUT BILANCI'!C240","v":0},{"$f":"+'INPUT BILANCI'!D217+'INPUT BILANCI'!D268-'INPUT BILANCI'!D240","v":0},{"$f":"+'INPUT BILANCI'!E217+'INPUT BILANCI'!E268-'INPUT BILANCI'!E240","v":0},{"$f":"+'INPUT BILANCI'!F217+'INPUT BILANCI'!F268-'INPUT BILANCI'!F240","v":{"$error":"#REF!"}}]
[null,"Utile lordo della gestione ordinaria",{"$f":"SUM(C26:C29)","v":0},{"$f":"SUM(D26:D29)","v":0},{"$f":"SUM(E26:E29)","v":0},{"$f":"SUM(F26:F29)","v":{"$error":"#REF!"}}]
[null,"Saldo della gestione straordinaria",{"$f":"+'INPUT BILANCI'!C216-'INPUT BILANCI'!C238","v":0},{"$f":"+'INPUT BILANCI'!D216-'INPUT BILANCI'!D238","v":0},{"$f":"+'INPUT BILANCI'!E216-'INPUT BILANCI'!E238","v":0},{"$f":"+'INPUT BILANCI'!F216-'INPUT BILANCI'!F238","v":{"$error":"#REF!"}}]
[null,"Utile lordo prima delle imposte",{"$f":"SUM(C30:C31)","v":0},{"$f":"SUM(D30:D31)","v":0},{"$f":"SUM(E30:E31)","v":0},{"$f":"SUM(F30:F31)","v":{"$error":"#REF!"}}]
[null,"Imposte sul reddito dell'esercizio, correnti differite e anticipate",{"$f":"+'INPUT BILANCI'!C292","v":0},{"$f":"+'INPUT BILANCI'!D292","v":0},{"$f":"+'INPUT BILANCI'!E292","v":0},{"$f":"+'INPUT BILANCI'!F292","v":{"$error":"#REF!"}}]
[null,"Risultato netto d'esercizio",{"$f":"+C32-C33","v":0},{"$f":"+D32-D33","v":0},{"$f":"+E32-E33","v":0},{"$f":"+F32-F33","v":{"$error":"#REF!"}}]
[null,"Quadratura con Utile (Perdita) del conto Economico civilistico",{"$f":"+'INPUT BILANCI'!C293-'CE RICLASSIFICATO'!C34","v":0},{"$f":"+'INPUT BILANCI'!D293-'CE RICLASSIFICATO'!D34","v":0},{"$f":"+'INPUT BILANCI'!E293-'CE RICLASSIFICATO'!E34","v":0},{"$f":"+'INPUT BILANCI'!F293-'CE RICLASSIFICATO'!F34","v":{"$error":"#REF!"}}]
[null,"formula",{"$f":"+IF(C35=0,\"ok\",\"Errore di quadratura\")","v":"ok"},{"$f":"+IF(D35=0,\"ok\",\"Errore di quadratura\")","v":"ok"},{"$f":"+IF(E35=0,\"ok\",\"Errore di quadratura\")","v":"ok"},{"$f":"+IF(F35=0,\"ok\",\"Errore di quadratura\")","v":{"$error":"#REF!"}}]
[null,null,{"$f":"+IF((C34-'INPUT BILANCI'!C293)=0,\"\",C34-'INPUT BILANCI'!C293)","v":""},{"$f":"+IF((D34-'INPUT BILANCI'!D293)=0,\"\",D34-'INPUT BILANCI'!D293)","v":""},{"$f":"+IF((E34-'INPUT BILANCI'!E293)=0,\"\",E34-'INPUT BILANCI'!E293)","v":""},{"$f":"+IF((F34-'INPUT BILANCI'!F293)=0,\"\",F34-'INPUT BILANCI'!F293)","v":{"$error":"#REF!"}}]
[null,"CONTO ECONOMICO PERCENTUALIZZATO",null,null,null,null,null,"ATTENZIONE"]
[]
[null,null,{"$f":"+C6","v":"00:00:00"},{"$f":"+D6","v":"00:00:00"},{"$f":"+E6","v":"00:00:00"},{"$f":"+F6","v":{"$error":"#REF!"}},null,"FOGLIO DI SERVIZIO"]
[null,null,null,null,null,null,null,"I DATI VENGONO RIPORTATI NEL FOGLIO \"BILANCI RICLASSIFICATI\"."]
[null,"Ricavi netti di vendita",{"$f":"IF(C8=0,0,+C8/$C$8)","v":0},{"$f":"IF(D8=0,0,+D8/$D$8)","v":0},{"$f":"IF(E8=0,0,+E8/$E$8)","v":0},{"$f":"IF(F8=0,0,+F8/$F$8)","v":{"$error":"#REF!"}}]
[null,"Variazione delle rimanenze di prodotti in corso di lavorazione, semilavorati e finiti",{"$f":"IF(C9=0,0,+C9/$C$8)","v":0},{"$f":"IF(D9=0,0,+D9/$D$8)","v":0},{"$f":"IF(E9=0,0,+E9/$E$8)","v":0},{"$error":"#REF!"}]
[null,"Variazione dei lavori in corso su ordinazione",0,0,0,{"$error":"#REF!"}]
[null,"Incrementi delle immobilizzazioni per lavori interni",0,0,0,{"$error":"#REF!"}]
[null,"Contributi in conto esercizio",0,0,0,{"$error":"#REF!"}]
[null,"Valore della produzione (a)",0,0,0,{"$error":"#REF!"}]
[null,"Costi per materie prime, sussidiari, di consumo e merci",0,0,0,{"$error":"#REF!"}]
[null,"Variazioni delle rimanenze di materie prime, sussidiarie, di consumo e merci",0,0,0,{"$error":"#REF!"}]
[null,"Costi per servizi",0,0,0,{"$error":"#REF!"}]
[null,"Costi per godimento di beni di terzi",0,0,0,{"$error":"#REF!"}]
[null,"Oneri diversi di gestione",0,0,0,0]
[null,"Totale di consumi di materie, merci e servizi (b)",0,0,0,{"$error":"#REF!"}]
[null,"Valore aggiunto caratteristico (a-b)",0,0,0,{"$error":"#REF!"}]
[null,"Costi per il personale",0,0,0,{"$error":"#REF!"}]
[null,"Margine operativo lordo (EBITDA) MOL",0,0,0,{"$error":"#REF!"}]
[null,"Ammortamenti ",0,0,0,{"$error":"#REF!"}]
[null,"Svalutazione dei crediti compresi nell'attivo circolante e delle disponibilità liquide",0,0,0,{"$error":"#REF!"}]
[null,"Accantonamenti a Fondi rischi e oneri",0,0,0,{"$error":"#REF!"}]
[null,"Reddito  operativo (EBIT)                            Gestione caratteristica o Margine operativo netto",0,0,0,{"$error":"#REF!"}]
[null,"Risultato della gestione finanziaria",0,0,0,{"$error":"#REF!"}]
[null,"Rettifiche di valore di attività finanziarie",0,0,0,{"$error":"#REF!"}]
[null,"Risultato della gestione accessoria",0,0,0,{"$error":"#REF!"}]
[null,"Utile lordo della gestione ordinaria",0,0,0,{"$error":"#REF!"}]
[null,"Saldo della gestione straordinaria",0,0,0,{"$error":"#REF!"}]
[null,"Utile lordo prima delle imposte",0,0,0,{"$error":"#REF!"}]
[null,"Imposte sul reddito dell'esercizio, correnti differite e anticipate",0,0,0,{"$error":"#REF!"}]
[null,"Risultato netto d'esercizio",0,0,0,{"$error":"#REF!"}]
[]
[]
[null,"CONTO ECONOMICO RICLASSIFICAZIONE FINANZIARIA"]
[]
[null,null,{"$f":"+C40","v":"00:00:00"},{"$f":"+D40","v":"00:00:00"},{"$f":"+E40","v":"00:00:00"},{"$f":"+F40","v":{"$error":"#REF!"}}]
[null,"COSTI   "]
[null,"Costi monetari"]
[null,"6-Per materie prime, suss.di cons.e merci",{"$f":"+'INPUT BILANCI'!C220","v":0},{"$f":"+'INPUT BILANCI'!D220","v":0},{"$f":"+'INPUT BILANCI'!E220","v":0},{"$f":"+'INPUT BILANCI'!F220","v":{"$error":"#REF!"}}]
[null,"7-Per servizi",{"$f":"+'INPUT BILANCI'!C221","v":0},{"$f":"+'INPUT BILANCI'!D221","v":0},{"$f":"+'INPUT BILANCI'!E221","v":0},{"$f":"+'INPUT BILANCI'!F221","v":{"$error":"#REF!"}}]
[null,"8-Per godimento beni di terzi",{"$f":"+'INPUT BILANCI'!C222","v":0},{"$f":"+'INPUT BILANCI'!D222","v":0},{"$f":"+'INPUT BILANCI'!E222","v":0},{"$f":"+'INPUT BILANCI'!F222","v":{"$error":"#REF!"}}]
[null,"11) variazioni delle rimanenze di materie prime, sussidiarie, di consumo e merci",{"$f":"+'INPUT BILANCI'!C234","v":0},{"$f":"+'INPUT BILANCI'!D234","v":0},{"$f":"+'INPUT BILANCI'!E234","v":0},{"$f":"+'INPUT BILANCI'!F234","v":{"$error":"#REF!"}}]
[null,"9-Per il personale"]
[null," a) salari e stipendi",{"$f":"+'INPUT BILANCI'!C224","v":0},{"$f":"+'INPUT BILANCI'!D224","v":0},{"$f":"+'INPUT BILANCI'!E224","v":0},{"$f":"+'INPUT BILANCI'!F224","v":{"$error":"#REF!"}}]
[null," b) oneri sociali",{"$f":"+'INPUT BILANCI'!C225","v":0},{"$f":"+'INPUT BILANCI'!D225","v":0},{"$f":"+'INPUT BILANCI'!E225","v":0},{"$f":"+'INPUT BILANCI'!F225","v":{"$error":"#REF!"}}]
[null," e) altri costI",{"$f":"+'INPUT BILANCI'!C228","v":0},{"$f":"+'INPUT BILANCI'!D228","v":0},{"$f":"+'INPUT BILANCI'!E228","v":0},{"$f":"+'INPUT BILANCI'!F228","v":{"$error":"#REF!"}}]
[null," d) svalutazione crediti",{"$f":"+'INPUT BILANCI'!C233","v":0},{"$f":"+'INPUT BILANCI'!D233","v":0},{"$f":"+'INPUT BILANCI'!E233","v":0},{"$f":"+'INPUT BILANCI'!F233","v":{"$error":"#REF!"}}]
[null,"14-Oneri diversi di gestione",{"$f":"+'INPUT BILANCI'!C237","v":0},{"$f":"+'INPUT BILANCI'!D237","v":0},{"$f":"+'INPUT BILANCI'!E237","v":0},{"$f":"+'INPUT BILANCI'!F240","v":{"$error":"#REF!"}}]
[null,"17-Interessi e altri oneri finanziari",{"$f":"+'INPUT BILANCI'!C264+'INPUT BILANCI'!C265+'INPUT BILANCI'!C266+'INPUT BILANCI'!C267","v":0},{"$f":"+'INPUT BILANCI'!D264+'INPUT BILANCI'!D265+'INPUT BILANCI'!D266+'INPUT BILANCI'!D267","v":0},{"$f":"+'INPUT BILANCI'!E264+'INPUT BILANCI'!E265+'INPUT BILANCI'!E266+'INPUT BILANCI'!E267","v":0},{"$f":"+'INPUT BILANCI'!F264+'INPUT BILANCI'!F265+'INPUT BILANCI'!F266+'INPUT BILANCI'!F267","v":{"$error":"#REF!"}}]
[null,"22-Imposte sul reddito dell'esercizio",{"$f":"+'INPUT BILANCI'!C292","v":0},{"$f":"+'INPUT BILANCI'!D292","v":0},{"$f":"+'INPUT BILANCI'!E292","v":0},{"$f":"+'INPUT BILANCI'!F292","v":{"$error":"#REF!"}}]
[null,"Totale costi monetari",{"$f":"SUM(C76:C87)","v":0},{"$f":"SUM(D76:D87)","v":0},{"$f":"SUM(E76:E87)","v":0},{"$f":"SUM(F76:F87)","v":{"$error":"#REF!"}}]
[]
[null,"Costi non monetari"]
[null," c) trattamento di fine rapporto",{"$f":"+'INPUT BILANCI'!C226","v":0},{"$f":"+'INPUT BILANCI'!D226","v":0},{"$f":"+'INPUT BILANCI'!E226","v":0},{"$f":"+'INPUT BILANCI'!F226","v":{"$error":"#REF!"}}]
[null," d) trattamento di quiescenza e simili",{"$f":"+'INPUT BILANCI'!C227","v":0},{"$f":"+'INPUT BILANCI'!D227","v":0},{"$f":"+'INPUT BILANCI'!E227","v":0},{"$f":"+'INPUT BILANCI'!F227","v":{"$error":"#REF!"}}]
[null," a) ammortamento immobil. Immateriali",{"$f":"+'INPUT BILANCI'!C230","v":0},{"$f":"+'INPUT BILANCI'!D230","v":0},{"$f":"+'INPUT BILANCI'!E230","v":0},{"$f":"+'INPUT BILANCI'!F230","v":{"$error":"#REF!"}}]
[null," b) ammortamento immobil. Materiali",{"$f":"+'INPUT BILANCI'!C231","v":0},{"$f":"+'INPUT BILANCI'!D231","v":0},{"$f":"+'INPUT BILANCI'!E231","v":0},{"$f":"+'INPUT BILANCI'!F231","v":{"$error":"#REF!"}}]
[null," c) altre svalutazioni delle immobilizzazioni",{"$f":"+'INPUT BILANCI'!C232","v":0},{"$f":"+'INPUT BILANCI'!D232","v":0},{"$f":"+'INPUT BILANCI'!E232","v":0},{"$f":"+'INPUT BILANCI'!F232","v":{"$error":"#REF!"}}]
[null,"12-Accantonamenti per rischi",{"$f":"+'INPUT BILANCI'!C235","v":0},{"$f":"+'INPUT BILANCI'!D235","v":0},{"$f":"+'INPUT BILANCI'!E235","v":0},{"$f":"+'INPUT BILANCI'!F235","v":{"$error":"#REF!"}}]
[null,"13-Altri accantonamenti",{"$f":"+'INPUT BILANCI'!C236","v":0},{"$f":"+'INPUT BILANCI'!D236","v":0},{"$f":"+'INPUT BILANCI'!E236","v":0},{"$f":"+'INPUT BILANCI'!F236","v":{"$error":"#REF!"}}]
[null,"19-Svalutazioni",{"$f":"+'INPUT BILANCI'!C277+'INPUT BILANCI'!C278+'INPUT BILANCI'!C279+'INPUT BILANCI'!C280","v":0},{"$f":"+'INPUT BILANCI'!D277+'INPUT BILANCI'!D278+'INPUT BILANCI'!D279+'INPUT BILANCI'!D280","v":0},{"$f":"+'INPUT BILANCI'!E277+'INPUT BILANCI'!E278+'INPUT BILANCI'!E279+'INPUT BILANCI'!E280","v":0},{"$f":"+'INPUT BILANCI'!F277+'INPUT BILANCI'!F278+'INPUT BILANCI'!F279+'INPUT BILANCI'!F280","v":{"$error":"#REF!"}}]
[null,null,null,null,null,{"$f":"+'INPUT BILANCI'!F238","v":{"$error":"#REF!"}}]
[null,"Totale costi non monetari",{"$f":"SUM(C91:C99)","v":0},{"$f":"SUM(D91:D99)","v":0},{"$f":"SUM(E91:E99)","v":0},{"$f":"SUM(F91:F99)","v":{"$error":"#REF!"}}]
[null,"Totale costi ",{"$f":"+C88+C100","v":0},{"$f":"+D88+D100","v":0},{"$f":"+E88+E100","v":0},{"$f":"+F88+F100","v":{"$error":"#REF!"}}]
[null,"23-Utile (perdita) dell'esercizio",{"$f":"+C124-C101","v":0},{"$f":"+D124-D101","v":0},{"$f":"+E124-E101","v":0},{"$f":"+F124-F101","v":{"$error":"#REF!"}}]
[null,"Totale a pareggio",{"$f":"SUM(C101:C102)","v":0},{"$f":"SUM(D101:D102)","v":0},{"$f":"SUM(E101:E102)","v":0},{"$f":"SUM(F101:F102)","v":{"$error":"#REF!"}}]
[null,"Quadratura con Utile (Perdita) del conto economico",{"$f":"+C34-C102","v":0},{"$f":"+D34-D102","v":0},{"$f":"+E34-E102","v":0},{"$f":"+F34-F102","v":{"$error":"#REF!"}}]
[null,"formula",{"$f":"+IF(C104=0,\"ok\",\"Errore di quadratura\")","v":"ok"},{"$f":"+IF(D104=0,\"ok\",\"Errore di quadratura\")","v":"ok"},{"$f":"+IF(E104=0,\"ok\",\"Errore di quadratura\")","v":"ok"},{"$f":"+IF(F104=0,\"ok\",\"Errore di quadratura\")","v":{"$error":"#REF!"}}]
[null,null,{"$f":"+IF((C102-'INPUT BILANCI'!C293)=0,\"\",C102-'INPUT BILANCI'!C293)","v":""},{"$f":"+IF((D102-'INPUT BILANCI'!D293)=0,\"\",D102-'INPUT BILANCI'!D293)","v":""},{"$f":"+IF((E102-'INPUT BILANCI'!E293)=0,\"\",E102-'INPUT BILANCI'!E293)","v":""},{"$f":"+F102-'INPUT BILANCI'!F293","v":{"$error":"#REF!"}}]
[null,null,{"$f":"+C73","v":"00:00:00"},{"$f":"+D73","v":"00:00:00"},{"$f":"+E73","v":"00:00:00"},{"$f":"+F73","v":{"$error":"#REF!"}}]
[null,"RICAVI  "]
[null,"Ricavi monetari"]
[null,"1 Ricavi delle vendite e delle prestaz.",{"$f":"+'INPUT BILANCI'!C209","v":0},{"$f":"+'INPUT BILANCI'!D209","v":0},{"$f":"+'INPUT BILANCI'!E209","v":0},{"$f":"+'INPUT BILANCI'!F209","v":{"$error":"#REF!"}}]
[null,"5-Altri ricavi e proventi",{"$f":"+'INPUT BILANCI'!C214+'INPUT BILANCI'!C215","v":0},{"$f":"+'INPUT BILANCI'!D214+'INPUT BILANCI'!D215","v":0},{"$f":"+'INPUT BILANCI'!E214+'INPUT BILANCI'!E215","v":0},{"$f":"+'INPUT BILANCI'!F214+'INPUT BILANCI'!F217","v":{"$error":"#REF!"}}]
[null,"15-Proventi da partecipazioni",{"$f":"+'INPUT BILANCI'!C246+'INPUT BILANCI'!C247+'INPUT BILANCI'!C248+'INPUT BILANCI'!C249","v":0},{"$f":"+'INPUT BILANCI'!D246+'INPUT BILANCI'!D247+'INPUT BILANCI'!D248+'INPUT BILANCI'!D249","v":0},{"$f":"+'INPUT BILANCI'!E246+'INPUT BILANCI'!E247+'INPUT BILANCI'!E248+'INPUT BILANCI'!E249","v":0},{"$f":"+'INPUT BILANCI'!F246+'INPUT BILANCI'!F247+'INPUT BILANCI'!F248+'INPUT BILANCI'!F249","v":{"$error":"#REF!"}}]
[null,"16-Altri proventi finanziari",{"$f":"+'INPUT BILANCI'!C253+'INPUT BILANCI'!C254+'INPUT BILANCI'!C255+'INPUT BILANCI'!C259+'INPUT BILANCI'!C260+'INPUT BILANCI'!C261+'INPUT BILANCI'!C252+'INPUT BILANCI'!C257+'INPUT BILANCI'!C262+'INPUT BILANCI'!C256","v":0},{"$f":"+'INPUT BILANCI'!D253+'INPUT BILANCI'!D254+'INPUT BILANCI'!D255+'INPUT BILANCI'!D259+'INPUT BILANCI'!D260+'INPUT BILANCI'!D261+'INPUT BILANCI'!D252+'INPUT BILANCI'!D257+'INPUT BILANCI'!D262+'INPUT BILANCI'!D256","v":0},{"$f":"+'INPUT BILANCI'!E253+'INPUT BILANCI'!E254+'INPUT BILANCI'!E255+'INPUT BILANCI'!E259+'INPUT BILANCI'!E260+'INPUT BILANCI'!E261+'INPUT BILANCI'!E252+'INPUT BILANCI'!E257+'INPUT BILANCI'!E262+'INPUT BILANCI'!E256","v":0},{"$f":"+'INPUT BILANCI'!F253+'INPUT BILANCI'!F254+'INPUT BILANCI'!F255+'INPUT BILANCI'!F259+'INPUT BILANCI'!F260+'INPUT BILANCI'!F261+'INPUT BILANCI'!F252+'INPUT BILANCI'!F257+'INPUT BILANCI'!F262+'INPUT BILANCI'!F256","v":{"$error":"#REF!"}}]
[null,"2-Variaz.delle riman.di prod. In c. e finiti",{"$f":"+'INPUT BILANCI'!C210","v":0},{"$f":"+'INPUT BILANCI'!D210","v":0},{"$f":"+'INPUT BILANCI'!E210","v":0},{"$f":"+'INPUT BILANCI'!F210","v":{"$error":"#REF!"}}]
[null,"3-Variaz. Lav. In corso su ord.",{"$f":"+'INPUT BILANCI'!C211","v":0},{"$f":"+'INPUT BILANCI'!D211","v":0},{"$f":"+'INPUT BILANCI'!E211","v":0},{"$f":"+'INPUT BILANCI'!F211","v":{"$error":"#REF!"}}]
[null,"Utili/Perdite su cambi",{"$f":"+'INPUT BILANCI'!C268","v":0},{"$f":"+'INPUT BILANCI'!D268","v":0},{"$f":"+'INPUT BILANCI'!E268","v":0},{"$f":"+'INPUT BILANCI'!F268","v":{"$error":"#REF!"}}]
[null,"Totale ricavi monetari",{"$f":"SUM(C110:C116)","v":0},{"$f":"SUM(D110:D116)","v":0},{"$f":"SUM(E110:E116)","v":0},{"$f":"SUM(F110:F116)","v":{"$error":"#REF!"}}]
[]
[null,"Ricavi non monetari"]
[null,"4-Increm. Immobil. Per lav. Interni",{"$f":"+'INPUT BILANCI'!C212","v":0},{"$f":"+'INPUT BILANCI'!D212","v":0},{"$f":"+'INPUT BILANCI'!E212","v":0},{"$f":"+'INPUT BILANCI'!F212","v":{"$error":"#REF!"}}]
[null,"18-Rivalutazioni",{"$f":"+'INPUT BILANCI'!C272+'INPUT BILANCI'!C273+'INPUT BILANCI'!C274+'INPUT BILANCI'!C275","v":0},{"$f":"+'INPUT BILANCI'!D272+'INPUT BILANCI'!D273+'INPUT BILANCI'!D274+'INPUT BILANCI'!D275","v":0},{"$f":"+'INPUT BILANCI'!E272+'INPUT BILANCI'!E273+'INPUT BILANCI'!E274+'INPUT BILANCI'!E275","v":0},{"$f":"+'INPUT BILANCI'!F272+'INPUT BILANCI'!F273+'INPUT BILANCI'!F274+'INPUT BILANCI'!F275","v":{"$error":"#REF!"}}]
[null,null,null,null,null,{"$f":"+'INPUT BILANCI'!F216","v":{"$error":"#REF!"}}]
[null,"Totale ricavi non monetari",{"$f":"SUM(C120:C122)","v":0},{"$f":"SUM(D120:D122)","v":0},{"$f":"SUM(E120:E122)","v":0},{"$f":"SUM(F120:F122)","v":{"$error":"#REF!"}}]
[null,"Totale ricavi ",{"$f":"+C117+C123","v":0},{"$f":"+D117+D123","v":0},{"$f":"+E117+E123","v":0},{"$f":"+F117+F123","v":{"$error":"#REF!"}}]
[]
[null,"CASH FLOW OPERATIVO",{"$f":"+C117-C88","v":0},{"$f":"+D117-D88","v":0},{"$f":"+E117-E88","v":0},{"$f":"+F117-F88","v":{"$error":"#REF!"}}]
[]
[]
[null,"Vai inizio pagina"]

{"sheet":"ELENCO TENDINA","index":33,"n_rows":22,"n_cols":6,"rows_kept":22,"cut":false,"hidden":true,"merged":[]}
[]
[null,null,"ELENCO A TENDINA INSERITA IN ANAGRAFICA PER Z-SCORE DI ALTMAN"]
[null,null,"Selezionare da elenco"]
[null,null,"Grandi imprese di produzione quotate"]
[null,null,"PMI di produzione"]
[null,null,"PMI altri settori (escluso imprese finanziarie)"]
[null,null,"INDICE Z-SCORE ALTMAN","codice"]
[null,null,"Settore inserito in ANAGRAFICA","anno n","anno n-1","anno n-2"]
[null,null,{"$f":"+'Z-SCORE OUTPUT'!B4","v":"Selezionare da elenco"},{"$f":"+IF(C9=\"Grandi imprese di produzione quotate\",1,IF(C9=\"PMI di produzione\",2,IF(C9=\"PMI altri settori (escluso imprese finanziarie)\",3,\"ERRORE\")))","v":"ERRORE"},{"$f":"+D9","v":"ERRORE"},{"$f":"+D9","v":"ERRORE"}]
[null,null,null,{"$f":"+D9","v":"ERRORE"},{"$f":"+E9","v":"ERRORE"},"ERRORE"]
[]
[]
[null,null,"ELENCO A TENDINA INSERITA IN ANAGRAFICA PER RATING QUANTITATIVO"]
[null,null,"Selezionare da elenco"]
[null,null,"Industria manifatturiera, Edilizia, Alberghi (proprietari dell'immobile), Pesca e piscicoltura"]
[null,null,"Commercio, Servizi ed Alberghi locatari dell'immobile"]
[]
[]
[null,null,"RATING QUANTITATIVO","codice"]
[null,null,"Settore inserito in ANAGRAFICA","anno n","anno n-1","anno n-2"]
[null,null,{"$f":"+'RATING OUTPUT'!B5","v":"Selezionare da elenco"},{"$f":"+IF(C21=\"Industria manifatturiera, Edilizia, Alberghi (proprietari dell'immobile), Pesca e piscicoltura\",1,IF(C21=\"Commercio, Servizi ed Alberghi locatari dell'immobile\",2,\"Errore\"))","v":"Errore"},{"$f":"+D21","v":"Errore"},{"$f":"+D21","v":"Errore"}]
[null,null,null,{"$f":"+D21","v":"Errore"},{"$f":"+E21","v":"Errore"},{"$f":"+F21","v":"Errore"}]

{"sheet":"CALCOLI BEP DATI","index":34,"n_rows":28,"n_cols":7,"rows_kept":28,"cut":false,"hidden":true,"merged":[]}
[]
[]
[null,"CALCOLI FATTURATO DI EQUILIBRIO - B.E.P."]
[null,"DATI RIPORTATI NEL FOGLIO CALCOLI PER BEP GRAFICO"]
[null,null,"AL"]
[null,"PRODUZIONE VENDUTA",{"$f":"+'INPUT BILANCI'!C9","v":"00:00:00"},{"$f":"+G9","v":0},null,{"$f":"+'CE RICLASSIFICATO'!B8","v":"Ricavi netti di vendita"},{"$f":"+'CE RICLASSIFICATO'!C8","v":0}]
[null,null,null,null,null,{"$f":"+'CE RICLASSIFICATO'!B9","v":"Variazione delle rimanenze di prodotti in corso di lavorazione, semilavorati e finiti"},{"$f":"+'CE RICLASSIFICATO'!C9","v":0}]
[null,null,"AL",null,null,{"$f":"+'CE RICLASSIFICATO'!B10","v":"Variazione dei lavori in corso su ordinazione"},{"$f":"+'CE RICLASSIFICATO'!C10","v":0}]
[null,null,null,null,null,"Totale PRODUZIONE VENDUTA",{"$f":"SUM(G6:G8)","v":0}]
[null,{"$f":"+F12","v":"Variazioni delle rimanenze di materie prime, sussidiarie, di consumo e merci"},{"$f":"+'BILANCI RICLASSIFICATI'!C8","v":"00:00:00"},{"$f":"+G12","v":0}]
[null,{"$f":"+F11","v":"Costi per materie prime, sussidiari, di consumo e merci"},{"$f":"+C10","v":"00:00:00"},{"$f":"+G11","v":0},null,{"$f":"+'CE RICLASSIFICATO'!B14","v":"Costi per materie prime, sussidiari, di consumo e merci"},{"$f":"+'CE RICLASSIFICATO'!C14","v":0}]
[null,{"$f":"+F13","v":"COSTO VARIABILE DEL VENDUTO"},{"$f":"+C11","v":"00:00:00"},{"$f":"SUM(D10:D11)","v":0},null,{"$f":"+'CE RICLASSIFICATO'!B15","v":"Variazioni delle rimanenze di materie prime, sussidiarie, di consumo e merci"},{"$f":"+'CE RICLASSIFICATO'!C15","v":0}]
[null,null,null,null,null,"COSTO VARIABILE DEL VENDUTO",{"$f":"SUM(G11:G12)","v":0}]
[null,null,"AL"]
[null,"COSTI FISSI DI PRODUZIONE",{"$f":"+C11","v":"00:00:00"}]
[]
[null,"Costi per servizi",{"$f":"+'CE RICLASSIFICATO'!C16","v":0}]
[null,"Costi per godimento di beni di terzi",{"$f":"+'CE RICLASSIFICATO'!C17","v":0}]
[]
[]
[]
[null,"Costi per il personale",{"$f":"+'CE RICLASSIFICATO'!C21","v":0}]
[]
[null,"Ammortamenti ",{"$f":"+'CE RICLASSIFICATO'!C23","v":0}]
[]
[null,"Accantonamenti a Fondi rischi e oneri",{"$f":"+'CE RICLASSIFICATO'!C25","v":0}]
[]
[null,"TOTALE COSTI FISSI DI PRODUZIONE",{"$f":"SUM(C17:C27)","v":0}]